Workbook

Sheet tblCountries (hidden)
A1: CountryID | B1: ISO | C1: Country | D1: RegionFilter | E1: RegionHighlight | F1: Status | H1: RegionID | I1: Region | K1: =I2 -> <none> | L1: =I3 -> All | M1: =I4 -> Developed | N1: =I5 -> Emerging | O1: =I6 -> Central and West Asia | P1: =I7 -> East Asia | Q1: =I8 -> Pacific | R1: =I9 -> South Asia | S1: =I10 -> South-east Asia
A2: 0 | C2: <none> | D2: =uxbWorks!B9 -> 1 | E2: =uxbWorks!B10 -> 1 | F2: =uxbWorks!B8 -> 0 | H2: 0 | I2: <none>
A3: 1 | B3: AU | C3: =INDEX(Data!$J$4:$Q$4,A3) -> Bangladesh | D3: =INDEX(L3:V3,$D$2) -> 1 | E3: =INDEX(K3:V3,$E$2) -> 0 | F3: =IF(A3=$F$2,3,IF(D3=0,0,IF(E3=1,2,1))) -> 1 | H3: 1 | I3: All | K3: 0 | L3: 1 | M3: 1 | N3: 0 | O3: 0 | P3: 0 | Q3: 1 | R3: 0 | S3: 0
A4: 2 | B4: BD | C4: =INDEX(Data!$J$4:$Q$4,A4) -> Bhutan | D4: =INDEX(L4:V4,$D$2) -> 1 | E4: =INDEX(K4:V4,$E$2) -> 0 | F4: 1 | H4: 2 | I4: Developed | K4: 0 | L4: 1 | M4: 0 | N4: 1 | O4: 0 | P4: 0 | Q4: 0 | R4: 1 | S4: 0
A5: 3 | B5: CN | C5: =INDEX(Data!$J$4:$Q$4,A5) -> India | D5: 1 | E5: 0 | F5: 1 | H5: 3 | I5: Emerging | K5: 0 | L5: 1 | M5: 0 | N5: 1 | O5: 0 | P5: 1 | Q5: 0 | R5: 0 | S5: 0
A6: 4 | B6: IN | C6: =INDEX(Data!$J$4:$Q$4,A6) -> Maldives | D6: 1 | E6: 0 | F6: 1 | H6: 4 | I6: Central and West Asia | K6: 0 | L6: 1 | M6: 0 | N6: 1 | O6: 0 | P6: 0 | Q6: 0 | R6: 1 | S6: 0
A7: 5 | B7: ID | C7: =INDEX(Data!$J$4:$Q$4,A7) -> Nepal | D7: 1 | E7: 0 | F7: 1 | H7: 5 | I7: East Asia | K7: 0 | L7: 1 | M7: 0 | N7: 1 | O7: 0 | P7: 0 | Q7: 0 | R7: 0 | S7: 1
A8: 6 | B8: JP | C8: =INDEX(Data!$J$4:$Q$4,A8) -> Pakistan | D8: 1 | E8: 0 | F8: 1 | H8: 6 | I8: Pacific | K8: 0 | L8: 1 | M8: 1 | N8: 0 | O8: 0 | P8: 0 | Q8: 0 | R8: 0 | S8: 1
A9: 7 | B9: KZ | C9: =INDEX(Data!$J$4:$Q$4,A9) -> Sri Lanka | D9: 1 | E9: 0 | F9: 1 | H9: 7 | I9: South Asia | K9: 0 | L9: 1 | M9: 0 | N9: 1 | O9: 1 | P9: 0 | Q9: 0 | R9: 0 | S9: 0
A10: 8 | B10: MN | C10: =INDEX(Data!$J$4:$Q$4,A10) -> Japan | D10: 1 | E10: 0 | F10: 1 | H10: 8 | I10: South-east Asia | K10: 0 | L10: 1 | M10: 0 | N10: 1 | O10: 0 | P10: 1 | Q10: 0 | R10: 0 | S10: 0
C12: DO NOT EDIT COUNTRY NAMES ABOVE.
C13: TO CHANGE COUNTRY NAMES, MAKE CHANGES IN [DATA]

Sheet tblIndiSets (hidden)
A2: CATEGORIES
A5: TOTAL | B5: =IF(A5="","",MATCH(A5,tblIndicators!C$2:C$115,0)) -> 1 | C5: =IF($A5="","",INDEX(tblIndicators!$V$2:$V$115,$B5)) -> OVERALL SCORE
A6: ECON | B6: =IF(A6="","",MATCH(A6,tblIndicators!C$2:C$115,0)) -> 2 | C6: =IF($A6="","",INDEX(tblIndicators!$V$2:$V$115,$B6)) -> 1) ECONOMIC
A7: INFRA | B7: =IF(A7="","",MATCH(A7,tblIndicators!C$2:C$115,0)) -> 17 | C7: =IF($A7="","",INDEX(tblIndicators!$V$2:$V$115,$B7)) -> 2) INFRASTRUCTURE
A8: INST | B8: =IF(A8="","",MATCH(A8,tblIndicators!C$2:C$115,0)) -> 39 | C8: =IF($A8="","",INDEX(tblIndicators!$V$2:$V$115,$B8)) -> 3) INSTITUTIONAL
A9: SOCIAL | B9: =IF(A9="","",MATCH(A9,tblIndicators!C$2:C$115,0)) -> 74 | C9: =IF($A9="","",INDEX(tblIndicators!$V$2:$V$115,$B9)) -> 4) SOCIAL
A13: CATEGORIES + INDICATORS
A14: ECON | B14: =IF(A14="","",MATCH(A14,tblIndicators!C$2:C$115,0)) -> 2 | C14: =IF($A14="","",INDEX(tblIndicators!$V$2:$V$115,$B14)) -> 1) ECONOMIC
A15: CLES_S | B15: =IF(A15="","",MATCH(A15,tblIndicators!C$2:C$115,0)) -> 3 | C15: =IF($A15="","",INDEX(tblIndicators!$V$2:$V$115,$B15)) -> 1.1) Country-level economic strength
A16: PERFNC_S | B16: =IF(A16="","",MATCH(A16,tblIndicators!C$2:C$115,0)) -> 8 | C16: =IF($A16="","",INDEX(tblIndicators!$V$2:$V$115,$B16)) -> 1.2) Personal finance: Women
A17: LABENV_S | B17: =IF(A17="","",MATCH(A17,tblIndicators!C$2:C$115,0)) -> 14 | C17: =IF($A17="","",INDEX(tblIndicators!$V$2:$V$115,$B17)) -> 1.3) Labour environment: Women
A18: INFRA | B18: =IF(A18="","",MATCH(A18,tblIndicators!C$2:C$115,0)) -> 17 | C18: =IF($A18="","",INDEX(tblIndicators!$V$2:$V$115,$B18)) -> 2) INFRASTRUCTURE
A19: ADREG | B19: =IF(A19="","",MATCH(A19,tblIndicators!C$2:C$115,0)) -> 18 | C19: =IF($A19="","",INDEX(tblIndicators!$V$2:$V$115,$B19)) -> 2.1) Adherence to land use regulations
A20: ADCOD | B20: =IF(A20="","",MATCH(A20,tblIndicators!C$2:C$115,0)) -> 19 | C20: =IF($A20="","",INDEX(tblIndicators!$V$2:$V$115,$B20)) -> 2.2) Adherence to building codes
A21: COMM_S | B21: =IF(A21="","",MATCH(A21,tblIndicators!C$2:C$115,0)) -> 20 | C21: =IF($A21="","",INDEX(tblIndicators!$V$2:$V$115,$B21)) -> 2.3) Communication
A22: POW_S | B22: =IF(A22="","",MATCH(A22,tblIndicators!C$2:C$115,0)) -> 25 | C22: =IF($A22="","",INDEX(tblIndicators!$V$2:$V$115,$B22)) -> 2.4) Power
A23: ENVPER_S | B23: =IF(A23="","",MATCH(A23,tblIndicators!C$2:C$115,0)) -> 28 | C23: =IF($A23="","",INDEX(tblIndicators!$V$2:$V$115,$B23)) -> 2.5) Environmental performance
A24: SAN_S | B24: =IF(A24="","",MATCH(A24,tblIndicators!C$2:C$115,0)) -> 33 | C24: =IF($A24="","",INDEX(tblIndicators!$V$2:$V$115,$B24)) -> 2.6) Sanitation
A25: TRANET | B25: =IF(A25="","",MATCH(A25,tblIndicators!C$2:C$115,0)) -> 37 | C25: =IF($A25="","",INDEX(tblIndicators!$V$2:$V$115,$B25)) -> 2.7) Quality of transport network
A26: POTH2O | B26: =IF(A26="","",MATCH(A26,tblIndicators!C$2:C$115,0)) -> 38 | C26: =IF($A26="","",INDEX(tblIndicators!$V$2:$V$115,$B26)) -> 2.8) Access to potable water
A27: INST | B27: =IF(A27="","",MATCH(A27,tblIndicators!C$2:C$115,0)) -> 39 | C27: =IF($A27="","",INDEX(tblIndicators!$V$2:$V$115,$B27)) -> 3) INSTITUTIONAL
A28: DOMPRO_S | B28: =IF(A28="","",MATCH(A28,tblIndicators!C$2:C$115,0)) -> 40 | C28: =IF($A28="","",INDEX(tblIndicators!$V$2:$V$115,$B28)) -> 3.1) Domestic protection
A29: CULSAF_S | B29: =IF(A29="","",MATCH(A29,tblIndicators!C$2:C$115,0)) -> 44 | C29: =IF($A29="","",INDEX(tblIndicators!$V$2:$V$115,$B29)) -> 3.2) Culture of safety
A30: POLCOO_S | B30: =IF(A30="","",MATCH(A30,tblIndicators!C$2:C$115,0)) -> 51 | C30: =IF($A30="","",INDEX(tblIndicators!$V$2:$V$115,$B30)) -> 3.3) Policy coordination
A31: GENPOL_S | B31: =IF(A31="","",MATCH(A31,tblIndicators!C$2:C$115,0)) -> 55 | C31: =IF($A31="","",INDEX(tblIndicators!$V$2:$V$115,$B31)) -> 3.4) Gender focus in DRR policy
A32: GOVEFF_S | B32: =IF(A32="","",MATCH(A32,tblIndicators!C$2:C$115,0)) -> 61 | C32: =IF($A32="","",INDEX(tblIndicators!$V$2:$V$115,$B32)) -> 3.5) Government effectiveness
A33: VIOLEN_S | B33: =IF(A33="","",MATCH(A33,tblIndicators!C$2:C$115,0)) -> 69 | C33: =IF($A33="","",INDEX(tblIndicators!$V$2:$V$115,$B33)) -> 3.6) Violence
A34: SOCIAL | B34: =IF(A34="","",MATCH(A34,tblIndicators!C$2:C$115,0)) -> 74 | C34: =IF($A34="","",INDEX(tblIndicators!$V$2:$V$115,$B34)) -> 4) SOCIAL
A35: POPUL_S | B35: =IF(A35="","",MATCH(A35,tblIndicators!C$2:C$115,0)) -> 75 | C35: =IF($A35="","",INDEX(tblIndicators!$V$2:$V$115,$B35)) -> 4.1) Population vulnerability
A36: EDUCA_S | B36: =IF(A36="","",MATCH(A36,tblIndicators!C$2:C$115,0)) -> 79 | C36: =IF($A36="","",INDEX(tblIndicators!$V$2:$V$115,$B36)) -> 4.2) Education and gender
A37: HEALTH_S | B37: =IF(A37="","",MATCH(A37,tblIndicators!C$2:C$115,0)) -> 83 | C37: =IF($A37="","",INDEX(tblIndicators!$V$2:$V$115,$B37)) -> 4.3) Health
A40: COUNTRY PROFILE
B41: =IF(A41="","",MATCH(A41,tblIndicators!C$2:C$115,0)) ->  | C41: VIEW ALL
A42: ECON | B42: =IF(A42="","",MATCH(A42,tblIndicators!C$2:C$115,0)) -> 2 | C42: =IF($A42="","",INDEX(tblIndicators!$V$2:$V$115,$B42)) -> 1) ECONOMIC
A43: INFRA | B43: =IF(A43="","",MATCH(A43,tblIndicators!C$2:C$115,0)) -> 17 | C43: =IF($A43="","",INDEX(tblIndicators!$V$2:$V$115,$B43)) -> 2) INFRASTRUCTURE
A44: INST | B44: =IF(A44="","",MATCH(A44,tblIndicators!C$2:C$115,0)) -> 39 | C44: =IF($A44="","",INDEX(tblIndicators!$V$2:$V$115,$B44)) -> 3) INSTITUTIONAL
A45: SOCIAL | B45: =IF(A45="","",MATCH(A45,tblIndicators!C$2:C$115,0)) -> 74 | C45: =IF($A45="","",INDEX(tblIndicators!$V$2:$V$115,$B45)) -> 4) SOCIAL
A46: EXPO | B46: =IF(A46="","",MATCH(A46,tblIndicators!C$2:C$115,0)) -> 90 | C46: =IF($A46="","",INDEX(tblIndicators!$V$2:$V$115,$B46)) -> 5) EXPOSURE
A48: Weights Sub Indicators
A49: CLES_S | B49: =IF(A49="","",MATCH(A49,tblIndicators!C$2:C$115,0)) -> 3 | C49: =IF($A49="","",INDEX(tblIndicators!$V$2:$V$115,$B49)) -> 1.1) Country-level economic strength
A50: CLES_01 | B50: =IF(A50="","",MATCH(A50,tblIndicators!C$2:C$115,0)) -> 4 | C50: =IF($A50="","",INDEX(tblIndicators!$V$2:$V$115,$B50)) -> 1.1.1) GDP per capita
A51: CLES_02 | B51: =IF(A51="","",MATCH(A51,tblIndicators!C$2:C$115,0)) -> 5 | C51: =IF($A51="","",INDEX(tblIndicators!$V$2:$V$115,$B51)) -> 1.1.2) Level of foreign currency reserves
A52: CLES_03 | B52: =IF(A52="","",MATCH(A52,tblIndicators!C$2:C$115,0)) -> 6 | C52: =IF($A52="","",INDEX(tblIndicators!$V$2:$V$115,$B52)) -> 1.1.3) Poverty headcount ratio
A53: CLES_04 | B53: =IF(A53="","",MATCH(A53,tblIndicators!C$2:C$115,0)) -> 7 | C53: =IF($A53="","",INDEX(tblIndicators!$V$2:$V$115,$B53)) -> 1.1.4) Government funding for disaster relief (per person)
A54: PERFNC_S | B54: =IF(A54="","",MATCH(A54,tblIndicators!C$2:C$115,0)) -> 8 | C54: =IF($A54="","",INDEX(tblIndicators!$V$2:$V$115,$B54)) -> 1.2) Personal finance: Women
A55: PERFNC_S_01 | B55: =IF(A55="","",MATCH(A55,tblIndicators!C$2:C$115,0)) -> 9 | C55: =IF($A55="","",INDEX(tblIndicators!$V$2:$V$115,$B55)) -> 1.2.1) Microfinance: Women borrowers
A56: PERFNC_S_02 | B56: =IF(A56="","",MATCH(A56,tblIndicators!C$2:C$115,0)) -> 10 | C56: =IF($A56="","",INDEX(tblIndicators!$V$2:$V$115,$B56)) -> 1.2.2) Building credit histories
A57: PERFNC_S_03 | B57: =IF(A57="","",MATCH(A57,tblIndicators!C$2:C$115,0)) -> 11 | C57: =IF($A57="","",INDEX(tblIndicators!$V$2:$V$115,$B57)) -> 1.2.3) Women's access to finance programmes
A58: PERFNC_S_04 | B58: =IF(A58="","",MATCH(A58,tblIndicators!C$2:C$115,0)) -> 12 | C58: =IF($A58="","",INDEX(tblIndicators!$V$2:$V$115,$B58)) -> 1.2.4) Loans at financial institutions
A59: PERFNC_S_05 | B59: =IF(A59="","",MATCH(A59,tblIndicators!C$2:C$115,0)) -> 13 | C59: =IF($A59="","",INDEX(tblIndicators!$V$2:$V$115,$B59)) -> 1.2.5) Accounts at financial institutions
A60: LABENV_S | B60: =IF(A60="","",MATCH(A60,tblIndicators!C$2:C$115,0)) -> 14 | C60: =IF($A60="","",INDEX(tblIndicators!$V$2:$V$115,$B60)) -> 1.3) Labour environment: Women
A61: LABENV_01 | B61: =IF(A61="","",MATCH(A61,tblIndicators!C$2:C$115,0)) -> 15 | C61: =IF($A61="","",INDEX(tblIndicators!$V$2:$V$115,$B61)) -> 1.3.1) Employment guarantee schemes for women
A62: LABENV_02 | B62: =IF(A62="","",MATCH(A62,tblIndicators!C$2:C$115,0)) -> 16 | C62: =IF($A62="","",INDEX(tblIndicators!$V$2:$V$115,$B62)) -> 1.3.2) Female unemployment rate
A63: COMM_S | B63: =IF(A63="","",MATCH(A63,tblIndicators!C$2:C$115,0)) -> 20 | C63: =IF($A63="","",INDEX(tblIndicators!$V$2:$V$115,$B63)) -> 2.3) Communication
A64: COMM_01 | B64: =IF(A64="","",MATCH(A64,tblIndicators!C$2:C$115,0)) -> 21 | C64: =IF($A64="","",INDEX(tblIndicators!$V$2:$V$115,$B64)) -> 2.3.1) Penetration of TV
A65: COMM_02 | B65: =IF(A65="","",MATCH(A65,tblIndicators!C$2:C$115,0)) -> 22 | C65: =IF($A65="","",INDEX(tblIndicators!$V$2:$V$115,$B65)) -> 2.3.2) Penetration of Radio
A66: COMM_03 | B66: =IF(A66="","",MATCH(A66,tblIndicators!C$2:C$115,0)) -> 23 | C66: =IF($A66="","",INDEX(tblIndicators!$V$2:$V$115,$B66)) -> 2.3.3) Mobile cellular subscriptions
A67: COMM_04 | B67: =IF(A67="","",MATCH(A67,tblIndicators!C$2:C$115,0)) -> 24 | C67: =IF($A67="","",INDEX(tblIndicators!$V$2:$V$115,$B67)) -> 2.3.4) Availability of an effective early warning system
A68: POW_S | B68: =IF(A68="","",MATCH(A68,tblIndicators!C$2:C$115,0)) -> 25 | C68: =IF($A68="","",INDEX(tblIndicators!$V$2:$V$115,$B68)) -> 2.4) Power
A69: POW_01 | B69: =IF(A69="","",MATCH(A69,tblIndicators!C$2:C$115,0)) -> 26 | C69: =IF($A69="","",INDEX(tblIndicators!$V$2:$V$115,$B69)) -> 2.4.1) Quality of power
A70: POW_02 | B70: =IF(A70="","",MATCH(A70,tblIndicators!C$2:C$115,0)) -> 27 | C70: =IF($A70="","",INDEX(tblIndicators!$V$2:$V$115,$B70)) -> 2.4.2) Access to electricity
A71: ENVPER_S | B71: =IF(A71="","",MATCH(A71,tblIndicators!C$2:C$115,0)) -> 28 | C71: =IF($A71="","",INDEX(tblIndicators!$V$2:$V$115,$B71)) -> 2.5) Environmental performance
A72: ENVPER_01 | B72: =IF(A72="","",MATCH(A72,tblIndicators!C$2:C$115,0)) -> 29 | C72: =IF($A72="","",INDEX(tblIndicators!$V$2:$V$115,$B72)) -> 2.5.1) Treatment of wastewater
A73: ENVPER_02 | B73: =IF(A73="","",MATCH(A73,tblIndicators!C$2:C$115,0)) -> 30 | C73: =IF($A73="","",INDEX(tblIndicators!$V$2:$V$115,$B73)) -> 2.5.2) Pesticide and fertiliser regulation
A74: ENVPER_03 | B74: =IF(A74="","",MATCH(A74,tblIndicators!C$2:C$115,0)) -> 31 | C74: =IF($A74="","",INDEX(tblIndicators!$V$2:$V$115,$B74)) -> 2.5.3) Loss in forested area
A75: ENVPER_04 | B75: =IF(A75="","",MATCH(A75,tblIndicators!C$2:C$115,0)) -> 32 | C75: =IF($A75="","",INDEX(tblIndicators!$V$2:$V$115,$B75)) -> 2.5.4) Protection of terrestrial and marine areas
A76: SAN_S | B76: =IF(A76="","",MATCH(A76,tblIndicators!C$2:C$115,0)) -> 33 | C76: =IF($A76="","",INDEX(tblIndicators!$V$2:$V$115,$B76)) -> 2.6) Sanitation
A77: SAN_01 | B77: =IF(A77="","",MATCH(A77,tblIndicators!C$2:C$115,0)) -> 34 | C77: =IF($A77="","",INDEX(tblIndicators!$V$2:$V$115,$B77)) -> 2.6.1) Access to sanitation
A78: SAN_02 | B78: =IF(A78="","",MATCH(A78,tblIndicators!C$2:C$115,0)) -> 35 | C78: =IF($A78="","",INDEX(tblIndicators!$V$2:$V$115,$B78)) -> 2.6.2) Waste water treatment (Urban)
A79: SAN_03 | B79: =IF(A79="","",MATCH(A79,tblIndicators!C$2:C$115,0)) -> 36 | C79: =IF($A79="","",INDEX(tblIndicators!$V$2:$V$115,$B79)) -> 2.6.3) Waste water treatment (Rural)
A80: DOMPRO_S | B80: =IF(A80="","",MATCH(A80,tblIndicators!C$2:C$115,0)) -> 40 | C80: =IF($A80="","",INDEX(tblIndicators!$V$2:$V$115,$B80)) -> 3.1) Domestic protection
A81: DOMPRO_01 | B81: =IF(A81="","",MATCH(A81,tblIndicators!C$2:C$115,0)) -> 41 | C81: =IF($A81="","",INDEX(tblIndicators!$V$2:$V$115,$B81)) -> 3.1.1) Implementation of CEDAW
A82: DOMPRO_02 | B82: =IF(A82="","",MATCH(A82,tblIndicators!C$2:C$115,0)) -> 42 | C82: =IF($A82="","",INDEX(tblIndicators!$V$2:$V$115,$B82)) -> 3.1.2) Asssessment of National Critical Infrastructure Plan
A83: DOMPRO_03 | B83: =IF(A83="","",MATCH(A83,tblIndicators!C$2:C$115,0)) -> 43 | C83: =IF($A83="","",INDEX(tblIndicators!$V$2:$V$115,$B83)) -> 3.1.3) Existence of social safety nets
A84: CULSAF_S | B84: =IF(A84="","",MATCH(A84,tblIndicators!C$2:C$115,0)) -> 44 | C84: =IF($A84="","",INDEX(tblIndicators!$V$2:$V$115,$B84)) -> 3.2) Culture of safety
A85: CULSAF_01 | B85: =IF(A85="","",MATCH(A85,tblIndicators!C$2:C$115,0)) -> 45 | C85: =IF($A85="","",INDEX(tblIndicators!$V$2:$V$115,$B85)) -> 3.2.1) Drills
A86: CULSAF_02 | B86: =IF(A86="","",MATCH(A86,tblIndicators!C$2:C$115,0)) -> 46 | C86: =IF($A86="","",INDEX(tblIndicators!$V$2:$V$115,$B86)) -> 3.2.2) Quality of emergency response team
A87: CULSAF_03 | B87: =IF(A87="","",MATCH(A87,tblIndicators!C$2:C$115,0)) -> 47 | C87: =IF($A87="","",INDEX(tblIndicators!$V$2:$V$115,$B87)) -> 3.2.3) Military force
A88: CULSAF_04 | B88: =IF(A88="","",MATCH(A88,tblIndicators!C$2:C$115,0)) -> 48 | C88: =IF($A88="","",INDEX(tblIndicators!$V$2:$V$115,$B88)) -> 3.2.4) Police force
A89: CULSAF_05 | B89: =IF(A89="","",MATCH(A89,tblIndicators!C$2:C$115,0)) -> 49 | C89: =IF($A89="","",INDEX(tblIndicators!$V$2:$V$115,$B89)) -> 3.2.5) Women in police force
A90: CULSAF_06 | B90: =IF(A90="","",MATCH(A90,tblIndicators!C$2:C$115,0)) -> 50 | C90: =IF($A90="","",INDEX(tblIndicators!$V$2:$V$115,$B90)) -> 3.2.6) Influence of women in police force
A91: POLCOO_S | B91: =IF(A91="","",MATCH(A91,tblIndicators!C$2:C$115,0)) -> 51 | C91: =IF($A91="","",INDEX(tblIndicators!$V$2:$V$115,$B91)) -> 3.3) Policy coordination
A92: POLCOO_01 | B92: =IF(A92="","",MATCH(A92,tblIndicators!C$2:C$115,0)) -> 52 | C92: =IF($A92="","",INDEX(tblIndicators!$V$2:$V$115,$B92)) -> 3.3.1) Transboundary risk assessment systems and agreements
A93: POLCOO_02 | B93: =IF(A93="","",MATCH(A93,tblIndicators!C$2:C$115,0)) -> 53 | C93: =IF($A93="","",INDEX(tblIndicators!$V$2:$V$115,$B93)) -> 3.3.2) National platform for multilevel coordination of DRR
A94: POLCOO_03 | B94: =IF(A94="","",MATCH(A94,tblIndicators!C$2:C$115,0)) -> 54 | C94: =IF($A94="","",INDEX(tblIndicators!$V$2:$V$115,$B94)) -> 3.3.3) Decentralisation
A95: GENPOL_S | B95: =IF(A95="","",MATCH(A95,tblIndicators!C$2:C$115,0)) -> 55 | C95: =IF($A95="","",INDEX(tblIndicators!$V$2:$V$115,$B95)) -> 3.4) Gender focus in DRR policy
A96: GENPOL_01 | B96: =IF(A96="","",MATCH(A96,tblIndicators!C$2:C$115,0)) -> 56 | C96: =IF($A96="","",INDEX(tblIndicators!$V$2:$V$115,$B96)) -> 3.4.1) Gender perspective in disaster management planning
A97: GENPOL_02 | B97: =IF(A97="","",MATCH(A97,tblIndicators!C$2:C$115,0)) -> 57 | C97: =IF($A97="","",INDEX(tblIndicators!$V$2:$V$115,$B97)) -> 3.4.2) Inclusion of women in DRR decision-making and leadership
A98: GENPOL_03 | B98: =IF(A98="","",MATCH(A98,tblIndicators!C$2:C$115,0)) -> 58 | C98: =IF($A98="","",INDEX(tblIndicators!$V$2:$V$115,$B98)) -> 3.4.3) Consideration of the needs of female internally-displaced persons
A99: GENPOL_04 | B99: =IF(A99="","",MATCH(A99,tblIndicators!C$2:C$115,0)) -> 59 | C99: =IF($A99="","",INDEX(tblIndicators!$V$2:$V$115,$B99)) -> 3.4.4) Inclusion of women in disaster preparedness training
A100: GENPOL_05 | B100: =IF(A100="","",MATCH(A100,tblIndicators!C$2:C$115,0)) -> 60 | C100: =IF($A100="","",INDEX(tblIndicators!$V$2:$V$115,$B100)) -> 3.4.5) Measures to address violence against women
A101: GOVEFF_S | B101: =IF(A101="","",MATCH(A101,tblIndicators!C$2:C$115,0)) -> 61 | C101: =IF($A101="","",INDEX(tblIndicators!$V$2:$V$115,$B101)) -> 3.5) Government effectiveness
A102: GOVEFF_01 | B102: =IF(A102="","",MATCH(A102,tblIndicators!C$2:C$115,0)) -> 62 | C102: =IF($A102="","",INDEX(tblIndicators!$V$2:$V$115,$B102)) -> 3.5.1) Government corruption
A103: GOVEFF_02 | B103: =IF(A103="","",MATCH(A103,tblIndicators!C$2:C$115,0)) -> 63 | C103: =IF($A103="","",INDEX(tblIndicators!$V$2:$V$115,$B103)) -> 3.5.2) Quality of the bureaucracy
A104: GOVEFF_03 | B104: =IF(A104="","",MATCH(A104,tblIndicators!C$2:C$115,0)) -> 64 | C104: =IF($A104="","",INDEX(tblIndicators!$V$2:$V$115,$B104)) -> 3.5.3) Effectiveness of legal system
A105: GOVEFF_04 | B105: =IF(A105="","",MATCH(A105,tblIndicators!C$2:C$115,0)) -> 65 | C105: =IF($A105="","",INDEX(tblIndicators!$V$2:$V$115,$B105)) -> 3.5.4) Well-defined property rights
A106: GOVEFF_05 | B106: =IF(A106="","",MATCH(A106,tblIndicators!C$2:C$115,0)) -> 66 | C106: =IF($A106="","",INDEX(tblIndicators!$V$2:$V$115,$B106)) -> 3.5.5) Presence of free and independent media
A107: GOVEFF_06 | B107: =IF(A107="","",MATCH(A107,tblIndicators!C$2:C$115,0)) -> 67 | C107: =IF($A107="","",INDEX(tblIndicators!$V$2:$V$115,$B107)) -> 3.5.6) Women's access to common property and government-allocated land
A108: GOVEFF_07 | B108: =IF(A108="","",MATCH(A108,tblIndicators!C$2:C$115,0)) -> 68 | C108: =IF($A108="","",INDEX(tblIndicators!$V$2:$V$115,$B108)) -> 3.5.7) Women's property rights
A109: VIOLEN_S | B109: =IF(A109="","",MATCH(A109,tblIndicators!C$2:C$115,0)) -> 69 | C109: =IF($A109="","",INDEX(tblIndicators!$V$2:$V$115,$B109)) -> 3.6) Violence
A110: VIOLEN_01 | B110: =IF(A110="","",MATCH(A110,tblIndicators!C$2:C$115,0)) -> 70 | C110: =IF($A110="","",INDEX(tblIndicators!$V$2:$V$115,$B110)) -> 3.6.1) Violent crime level
A111: VIOLEN_02 | B111: =IF(A111="","",MATCH(A111,tblIndicators!C$2:C$115,0)) -> 71 | C111: =IF($A111="","",INDEX(tblIndicators!$V$2:$V$115,$B111)) -> 3.6.2) Trafficking in persons
A112: VIOLEN_03 | B112: =IF(A112="","",MATCH(A112,tblIndicators!C$2:C$115,0)) -> 72 | C112: =IF($A112="","",INDEX(tblIndicators!$V$2:$V$115,$B112)) -> 3.6.3) Deaths from organised conflict (internal)
A113: VIOLEN_04 | B113: =IF(A113="","",MATCH(A113,tblIndicators!C$2:C$115,0)) -> 73 | C113: =IF($A113="","",INDEX(tblIndicators!$V$2:$V$115,$B113)) -> 3.6.4) Deaths from homicides
A114: POPUL_S | B114: =IF(A114="","",MATCH(A114,tblIndicators!C$2:C$115,0)) -> 75 | C114: =IF($A114="","",INDEX(tblIndicators!$V$2:$V$115,$B114)) -> 4.1) Population vulnerability
A115: POPUL_01 | B115: =IF(A115="","",MATCH(A115,tblIndicators!C$2:C$115,0)) -> 76 | C115: =IF($A115="","",INDEX(tblIndicators!$V$2:$V$115,$B115)) -> 4.1.1) Dependency ratio
A116: POPUL_02 | B116: =IF(A116="","",MATCH(A116,tblIndicators!C$2:C$115,0)) -> 77 | C116: =IF($A116="","",INDEX(tblIndicators!$V$2:$V$115,$B116)) -> 4.1.2) Internally displaced persons (IDPs)
A117: POPUL_03 | B117: =IF(A117="","",MATCH(A117,tblIndicators!C$2:C$115,0)) -> 78 | C117: =IF($A117="","",INDEX(tblIndicators!$V$2:$V$115,$B117)) -> 4.1.3) Ease of mobility for women
A118: EDUCA_S | B118: =IF(A118="","",MATCH(A118,tblIndicators!C$2:C$115,0)) -> 79 | C118: =IF($A118="","",INDEX(tblIndicators!$V$2:$V$115,$B118)) -> 4.2) Education and gender
A119: EDUCA_01 | B119: =IF(A119="","",MATCH(A119,tblIndicators!C$2:C$115,0)) -> 80 | C119: =IF($A119="","",INDEX(tblIndicators!$V$2:$V$115,$B119)) -> 4.2.1) Female/male literacy rate
A120: EDUCA_02 | B120: =IF(A120="","",MATCH(A120,tblIndicators!C$2:C$115,0)) -> 81 | C120: =IF($A120="","",INDEX(tblIndicators!$V$2:$V$115,$B120)) -> 4.2.2) Rate of secondary school enrollment (girls)
A121: EDUCA_03 | B121: =IF(A121="","",MATCH(A121,tblIndicators!C$2:C$115,0)) -> 82 | C121: =IF($A121="","",INDEX(tblIndicators!$V$2:$V$115,$B121)) -> 4.2.3) Rate of primary school enrollment (girls)
A122: HEALTH_S | B122: =IF(A122="","",MATCH(A122,tblIndicators!C$2:C$115,0)) -> 83 | C122: =IF($A122="","",INDEX(tblIndicators!$V$2:$V$115,$B122)) -> 4.3) Health
A123: HEALTH_01 | B123: =IF(A123="","",MATCH(A123,tblIndicators!C$2:C$115,0)) -> 84 | C123: =IF($A123="","",INDEX(tblIndicators!$V$2:$V$115,$B123)) -> 4.3.1) # of doctors/1000
A124: HEALTH_02 | B124: =IF(A124="","",MATCH(A124,tblIndicators!C$2:C$115,0)) -> 85 | C124: =IF($A124="","",INDEX(tblIndicators!$V$2:$V$115,$B124)) -> 4.3.2) # of hospitals/land unit
A125: HEALTH_03 | B125: =IF(A125="","",MATCH(A125,tblIndicators!C$2:C$115,0)) -> 86 | C125: =IF($A125="","",INDEX(tblIndicators!$V$2:$V$115,$B125)) -> 4.3.3) Affordability of healthcare
A126: HEALTH_04 | B126: =IF(A126="","",MATCH(A126,tblIndicators!C$2:C$115,0)) -> 87 | C126: =IF($A126="","",INDEX(tblIndicators!$V$2:$V$115,$B126)) -> 4.3.4) Level of child malnutrition
A127: HEALTH_05 | B127: =IF(A127="","",MATCH(A127,tblIndicators!C$2:C$115,0)) -> 88 | C127: =IF($A127="","",INDEX(tblIndicators!$V$2:$V$115,$B127)) -> 4.3.5) Fertility rate
A128: HEALTH_06 | B128: =IF(A128="","",MATCH(A128,tblIndicators!C$2:C$115,0)) -> 89 | C128: =IF($A128="","",INDEX(tblIndicators!$V$2:$V$115,$B128)) -> 4.3.6) Psychiatric morbidity
A130: Country Compare Spider
A131: ECON | B131: =IF(A131="","",MATCH(A131,tblIndicators!C$2:C$115,0)) -> 2 | C131: =IF($A131="","",INDEX(tblIndicators!$V$2:$V$115,$B131)) -> 1) ECONOMIC | D131: 3 | E131: 1.1) Country-level economic strength | F131: 18 | G131: 2.1) Adherence to land use regulations | H131: 40 | I131: 3.1) Domestic protection | J131: 75 | K131: 4.1) Population
A132: INFRA | B132: =IF(A132="","",MATCH(A132,tblIndicators!C$2:C$115,0)) -> 17 | C132: =IF($A132="","",INDEX(tblIndicators!$V$2:$V$115,$B132)) -> 2) INFRASTRUCTURE | D132: 8 | E132: 1.2) Personal finance | F132: 19 | G132: 2.2) Adherence to building codes | H132: 44 | I132: 3.2) Culture of safety | J132: 79 | K132: 4.2) Education
A133: INST | B133: =IF(A133="","",MATCH(A133,tblIndicators!C$2:C$115,0)) -> 39 | C133: =IF($A133="","",INDEX(tblIndicators!$V$2:$V$115,$B133)) -> 3) INSTITUTIONAL | D133: 14 | E133: 1.3) Labour environment | F133: 20 | G133: 2.3) Communication | H133: 52 | I133: 3.3) Policy coordination | J133: 83 | K133: 4.3) Health
A134: SOCIAL | B134: =IF(A134="","",MATCH(A134,tblIndicators!C$2:C$115,0)) -> 74 | C134: =IF($A134="","",INDEX(tblIndicators!$V$2:$V$115,$B134)) -> 4) SOCIAL | F134: 25 | G134: 2.4) Power | H134: 55 | I134: 3.4) Gender focus in DRR policy
F135: 28 | G135: 2.5) Environmental performance | H135: 61 | I135: 3.5) Government effectiveness
F136: 33 | G136: 2.6) Sanitation | H136: 69 | I136: 3.6) Violence
F137: 37 | G137: 2.7) Quality of transport network
F138: 38 | G138: 2.8) Access to potable water
A141: Indicator Ranking selection box
A143: TOTAL | B143: =IF(A143="","",MATCH(A143,tblIndicators!C$2:C$115,0)) -> 1 | C143: =IF($A143="","",INDEX(tblIndicators!$V$2:$V$115,$B143)) -> OVERALL SCORE
A144: ECON | B144: =IF(A144="","",MATCH(A144,tblIndicators!C$2:C$115,0)) -> 2 | C144: =IF($A144="","",INDEX(tblIndicators!$V$2:$V$115,$B144)) -> 1) ECONOMIC
A145: CLES_S | B145: =IF(A145="","",MATCH(A145,tblIndicators!C$2:C$115,0)) -> 3 | C145: =IF($A145="","",INDEX(tblIndicators!$V$2:$V$115,$B145)) -> 1.1) Country-level economic strength
A146: CLES_01 | B146: =IF(A146="","",MATCH(A146,tblIndicators!C$2:C$115,0)) -> 4 | C146: =IF($A146="","",INDEX(tblIndicators!$V$2:$V$115,$B146)) -> 1.1.1) GDP per capita
A147: CLES_02 | B147: =IF(A147="","",MATCH(A147,tblIndicators!C$2:C$115,0)) -> 5 | C147: =IF($A147="","",INDEX(tblIndicators!$V$2:$V$115,$B147)) -> 1.1.2) Level of foreign currency reserves
A148: CLES_03 | B148: =IF(A148="","",MATCH(A148,tblIndicators!C$2:C$115,0)) -> 6 | C148: =IF($A148="","",INDEX(tblIndicators!$V$2:$V$115,$B148)) -> 1.1.3) Poverty headcount ratio
A149: CLES_04 | B149: =IF(A149="","",MATCH(A149,tblIndicators!C$2:C$115,0)) -> 7 | C149: =IF($A149="","",INDEX(tblIndicators!$V$2:$V$115,$B149)) -> 1.1.4) Government funding for disaster relief (per person)
A150: PERFNC_S | B150: =IF(A150="","",MATCH(A150,tblIndicators!C$2:C$115,0)) -> 8 | C150: =IF($A150="","",INDEX(tblIndicators!$V$2:$V$115,$B150)) -> 1.2) Personal finance: Women
A151: PERFNC_S_01 | B151: =IF(A151="","",MATCH(A151,tblIndicators!C$2:C$115,0)) -> 9 | C151: =IF($A151="","",INDEX(tblIndicators!$V$2:$V$115,$B151)) -> 1.2.1) Microfinance: Women borrowers
A152: PERFNC_S_02 | B152: =IF(A152="","",MATCH(A152,tblIndicators!C$2:C$115,0)) -> 10 | C152: =IF($A152="","",INDEX(tblIndicators!$V$2:$V$115,$B152)) -> 1.2.2) Building credit histories
A153: PERFNC_S_03 | B153: =IF(A153="","",MATCH(A153,tblIndicators!C$2:C$115,0)) -> 11 | C153: =IF($A153="","",INDEX(tblIndicators!$V$2:$V$115,$B153)) -> 1.2.3) Women's access to finance programmes
A154: PERFNC_S_04 | B154: =IF(A154="","",MATCH(A154,tblIndicators!C$2:C$115,0)) -> 12 | C154: =IF($A154="","",INDEX(tblIndicators!$V$2:$V$115,$B154)) -> 1.2.4) Loans at financial institutions
A155: PERFNC_S_05 | B155: =IF(A155="","",MATCH(A155,tblIndicators!C$2:C$115,0)) -> 13 | C155: =IF($A155="","",INDEX(tblIndicators!$V$2:$V$115,$B155)) -> 1.2.5) Accounts at financial institutions
A156: LABENV_S | B156: =IF(A156="","",MATCH(A156,tblIndicators!C$2:C$115,0)) -> 14 | C156: =IF($A156="","",INDEX(tblIndicators!$V$2:$V$115,$B156)) -> 1.3) Labour environment: Women
A157: LABENV_01 | B157: =IF(A157="","",MATCH(A157,tblIndicators!C$2:C$115,0)) -> 15 | C157: =IF($A157="","",INDEX(tblIndicators!$V$2:$V$115,$B157)) -> 1.3.1) Employment guarantee schemes for women
A158: LABENV_02 | B158: =IF(A158="","",MATCH(A158,tblIndicators!C$2:C$115,0)) -> 16 | C158: =IF($A158="","",INDEX(tblIndicators!$V$2:$V$115,$B158)) -> 1.3.2) Female unemployment rate
A159: INFRA | B159: =IF(A159="","",MATCH(A159,tblIndicators!C$2:C$115,0)) -> 17 | C159: =IF($A159="","",INDEX(tblIndicators!$V$2:$V$115,$B159)) -> 2) INFRASTRUCTURE
A160: ADREG | B160: =IF(A160="","",MATCH(A160,tblIndicators!C$2:C$115,0)) -> 18 | C160: =IF($A160="","",INDEX(tblIndicators!$V$2:$V$115,$B160)) -> 2.1) Adherence to land use regulations
A161: ADCOD | B161: =IF(A161="","",MATCH(A161,tblIndicators!C$2:C$115,0)) -> 19 | C161: =IF($A161="","",INDEX(tblIndicators!$V$2:$V$115,$B161)) -> 2.2) Adherence to building codes
A162: COMM_S | B162: =IF(A162="","",MATCH(A162,tblIndicators!C$2:C$115,0)) -> 20 | C162: =IF($A162="","",INDEX(tblIndicators!$V$2:$V$115,$B162)) -> 2.3) Communication
A163: COMM_01 | B163: =IF(A163="","",MATCH(A163,tblIndicators!C$2:C$115,0)) -> 21 | C163: =IF($A163="","",INDEX(tblIndicators!$V$2:$V$115,$B163)) -> 2.3.1) Penetration of TV
A164: COMM_02 | B164: =IF(A164="","",MATCH(A164,tblIndicators!C$2:C$115,0)) -> 22 | C164: =IF($A164="","",INDEX(tblIndicators!$V$2:$V$115,$B164)) -> 2.3.2) Penetration of Radio
A165: COMM_03 | B165: =IF(A165="","",MATCH(A165,tblIndicators!C$2:C$115,0)) -> 23 | C165: =IF($A165="","",INDEX(tblIndicators!$V$2:$V$115,$B165)) -> 2.3.3) Mobile cellular subscriptions
A166: COMM_04 | B166: =IF(A166="","",MATCH(A166,tblIndicators!C$2:C$115,0)) -> 24 | C166: =IF($A166="","",INDEX(tblIndicators!$V$2:$V$115,$B166)) -> 2.3.4) Availability of an effective early warning system
A167: POW_S | B167: =IF(A167="","",MATCH(A167,tblIndicators!C$2:C$115,0)) -> 25 | C167: =IF($A167="","",INDEX(tblIndicators!$V$2:$V$115,$B167)) -> 2.4) Power
A168: POW_01 | B168: =IF(A168="","",MATCH(A168,tblIndicators!C$2:C$115,0)) -> 26 | C168: =IF($A168="","",INDEX(tblIndicators!$V$2:$V$115,$B168)) -> 2.4.1) Quality of power
A169: POW_02 | B169: =IF(A169="","",MATCH(A169,tblIndicators!C$2:C$115,0)) -> 27 | C169: =IF($A169="","",INDEX(tblIndicators!$V$2:$V$115,$B169)) -> 2.4.2) Access to electricity
A170: ENVPER_S | B170: =IF(A170="","",MATCH(A170,tblIndicators!C$2:C$115,0)) -> 28 | C170: =IF($A170="","",INDEX(tblIndicators!$V$2:$V$115,$B170)) -> 2.5) Environmental performance
A171: ENVPER_01 | B171: =IF(A171="","",MATCH(A171,tblIndicators!C$2:C$115,0)) -> 29 | C171: =IF($A171="","",INDEX(tblIndicators!$V$2:$V$115,$B171)) -> 2.5.1) Treatment of wastewater
A172: ENVPER_02 | B172: =IF(A172="","",MATCH(A172,tblIndicators!C$2:C$115,0)) -> 30 | C172: =IF($A172="","",INDEX(tblIndicators!$V$2:$V$115,$B172)) -> 2.5.2) Pesticide and fertiliser regulation
A173: ENVPER_03 | B173: =IF(A173="","",MATCH(A173,tblIndicators!C$2:C$115,0)) -> 31 | C173: =IF($A173="","",INDEX(tblIndicators!$V$2:$V$115,$B173)) -> 2.5.3) Loss in forested area
A174: ENVPER_04 | B174: =IF(A174="","",MATCH(A174,tblIndicators!C$2:C$115,0)) -> 32 | C174: =IF($A174="","",INDEX(tblIndicators!$V$2:$V$115,$B174)) -> 2.5.4) Protection of terrestrial and marine areas
A175: SAN_S | B175: =IF(A175="","",MATCH(A175,tblIndicators!C$2:C$115,0)) -> 33 | C175: =IF($A175="","",INDEX(tblIndicators!$V$2:$V$115,$B175)) -> 2.6) Sanitation
A176: SAN_01 | B176: =IF(A176="","",MATCH(A176,tblIndicators!C$2:C$115,0)) -> 34 | C176: =IF($A176="","",INDEX(tblIndicators!$V$2:$V$115,$B176)) -> 2.6.1) Access to sanitation
A177: SAN_02 | B177: =IF(A177="","",MATCH(A177,tblIndicators!C$2:C$115,0)) -> 35 | C177: =IF($A177="","",INDEX(tblIndicators!$V$2:$V$115,$B177)) -> 2.6.2) Waste water treatment (Urban)
A178: SAN_03 | B178: =IF(A178="","",MATCH(A178,tblIndicators!C$2:C$115,0)) -> 36 | C178: =IF($A178="","",INDEX(tblIndicators!$V$2:$V$115,$B178)) -> 2.6.3) Waste water treatment (Rural)
A179: TRANET | B179: =IF(A179="","",MATCH(A179,tblIndicators!C$2:C$115,0)) -> 37 | C179: =IF($A179="","",INDEX(tblIndicators!$V$2:$V$115,$B179)) -> 2.7) Quality of transport network
A180: POTH2O | B180: =IF(A180="","",MATCH(A180,tblIndicators!C$2:C$115,0)) -> 38 | C180: =IF($A180="","",INDEX(tblIndicators!$V$2:$V$115,$B180)) -> 2.8) Access to potable water
A181: INST | B181: =IF(A181="","",MATCH(A181,tblIndicators!C$2:C$115,0)) -> 39 | C181: =IF($A181="","",INDEX(tblIndicators!$V$2:$V$115,$B181)) -> 3) INSTITUTIONAL
A182: DOMPRO_S | B182: =IF(A182="","",MATCH(A182,tblIndicators!C$2:C$115,0)) -> 40 | C182: =IF($A182="","",INDEX(tblIndicators!$V$2:$V$115,$B182)) -> 3.1) Domestic protection
A183: DOMPRO_01 | B183: =IF(A183="","",MATCH(A183,tblIndicators!C$2:C$115,0)) -> 41 | C183: =IF($A183="","",INDEX(tblIndicators!$V$2:$V$115,$B183)) -> 3.1.1) Implementation of CEDAW
A184: DOMPRO_02 | B184: =IF(A184="","",MATCH(A184,tblIndicators!C$2:C$115,0)) -> 42 | C184: =IF($A184="","",INDEX(tblIndicators!$V$2:$V$115,$B184)) -> 3.1.2) Asssessment of National Critical Infrastructure Plan
A185: DOMPRO_03 | B185: =IF(A185="","",MATCH(A185,tblIndicators!C$2:C$115,0)) -> 43 | C185: =IF($A185="","",INDEX(tblIndicators!$V$2:$V$115,$B185)) -> 3.1.3) Existence of social safety nets
A186: CULSAF_S | B186: =IF(A186="","",MATCH(A186,tblIndicators!C$2:C$115,0)) -> 44 | C186: =IF($A186="","",INDEX(tblIndicators!$V$2:$V$115,$B186)) -> 3.2) Culture of safety
A187: CULSAF_01 | B187: =IF(A187="","",MATCH(A187,tblIndicators!C$2:C$115,0)) -> 45 | C187: =IF($A187="","",INDEX(tblIndicators!$V$2:$V$115,$B187)) -> 3.2.1) Drills
A188: CULSAF_02 | B188: =IF(A188="","",MATCH(A188,tblIndicators!C$2:C$115,0)) -> 46 | C188: =IF($A188="","",INDEX(tblIndicators!$V$2:$V$115,$B188)) -> 3.2.2) Quality of emergency response team
A189: CULSAF_03 | B189: =IF(A189="","",MATCH(A189,tblIndicators!C$2:C$115,0)) -> 47 | C189: =IF($A189="","",INDEX(tblIndicators!$V$2:$V$115,$B189)) -> 3.2.3) Military force
A190: CULSAF_04 | B190: =IF(A190="","",MATCH(A190,tblIndicators!C$2:C$115,0)) -> 48 | C190: =IF($A190="","",INDEX(tblIndicators!$V$2:$V$115,$B190)) -> 3.2.4) Police force
A191: CULSAF_05 | B191: =IF(A191="","",MATCH(A191,tblIndicators!C$2:C$115,0)) -> 49 | C191: =IF($A191="","",INDEX(tblIndicators!$V$2:$V$115,$B191)) -> 3.2.5) Women in police force
A192: CULSAF_06 | B192: =IF(A192="","",MATCH(A192,tblIndicators!C$2:C$115,0)) -> 50 | C192: =IF($A192="","",INDEX(tblIndicators!$V$2:$V$115,$B192)) -> 3.2.6) Influence of women in police force
A193: POLCOO_S | B193: =IF(A193="","",MATCH(A193,tblIndicators!C$2:C$115,0)) -> 51 | C193: =IF($A193="","",INDEX(tblIndicators!$V$2:$V$115,$B193)) -> 3.3) Policy coordination
A194: POLCOO_01 | B194: =IF(A194="","",MATCH(A194,tblIndicators!C$2:C$115,0)) -> 52 | C194: =IF($A194="","",INDEX(tblIndicators!$V$2:$V$115,$B194)) -> 3.3.1) Transboundary risk assessment systems and agreements
A195: POLCOO_02 | B195: =IF(A195="","",MATCH(A195,tblIndicators!C$2:C$115,0)) -> 53 | C195: =IF($A195="","",INDEX(tblIndicators!$V$2:$V$115,$B195)) -> 3.3.2) National platform for multilevel coordination of DRR
A196: POLCOO_03 | B196: =IF(A196="","",MATCH(A196,tblIndicators!C$2:C$115,0)) -> 54 | C196: =IF($A196="","",INDEX(tblIndicators!$V$2:$V$115,$B196)) -> 3.3.3) Decentralisation
A197: GENPOL_S | B197: =IF(A197="","",MATCH(A197,tblIndicators!C$2:C$115,0)) -> 55 | C197: =IF($A197="","",INDEX(tblIndicators!$V$2:$V$115,$B197)) -> 3.4) Gender focus in DRR policy
A198: GENPOL_01 | B198: =IF(A198="","",MATCH(A198,tblIndicators!C$2:C$115,0)) -> 56 | C198: =IF($A198="","",INDEX(tblIndicators!$V$2:$V$115,$B198)) -> 3.4.1) Gender perspective in disaster management planning
A199: GENPOL_02 | B199: =IF(A199="","",MATCH(A199,tblIndicators!C$2:C$115,0)) -> 57 | C199: =IF($A199="","",INDEX(tblIndicators!$V$2:$V$115,$B199)) -> 3.4.2) Inclusion of women in DRR decision-making and leadership
A200: GENPOL_03 | B200: =IF(A200="","",MATCH(A200,tblIndicators!C$2:C$115,0)) -> 58 | C200: =IF($A200="","",INDEX(tblIndicators!$V$2:$V$115,$B200)) -> 3.4.3) Consideration of the needs of female internally-displaced persons
A201: GENPOL_04 | B201: =IF(A201="","",MATCH(A201,tblIndicators!C$2:C$115,0)) -> 59 | C201: =IF($A201="","",INDEX(tblIndicators!$V$2:$V$115,$B201)) -> 3.4.4) Inclusion of women in disaster preparedness training
A202: GENPOL_05 | B202: =IF(A202="","",MATCH(A202,tblIndicators!C$2:C$115,0)) -> 60 | C202: =IF($A202="","",INDEX(tblIndicators!$V$2:$V$115,$B202)) -> 3.4.5) Measures to address violence against women
A203: GOVEFF_S | B203: =IF(A203="","",MATCH(A203,tblIndicators!C$2:C$115,0)) -> 61 | C203: =IF($A203="","",INDEX(tblIndicators!$V$2:$V$115,$B203)) -> 3.5) Government effectiveness
A204: GOVEFF_01 | B204: =IF(A204="","",MATCH(A204,tblIndicators!C$2:C$115,0)) -> 62 | C204: =IF($A204="","",INDEX(tblIndicators!$V$2:$V$115,$B204)) -> 3.5.1) Government corruption
A205: GOVEFF_02 | B205: =IF(A205="","",MATCH(A205,tblIndicators!C$2:C$115,0)) -> 63 | C205: =IF($A205="","",INDEX(tblIndicators!$V$2:$V$115,$B205)) -> 3.5.2) Quality of the bureaucracy
A206: GOVEFF_03 | B206: =IF(A206="","",MATCH(A206,tblIndicators!C$2:C$115,0)) -> 64 | C206: =IF($A206="","",INDEX(tblIndicators!$V$2:$V$115,$B206)) -> 3.5.3) Effectiveness of legal system
A207: GOVEFF_04 | B207: =IF(A207="","",MATCH(A207,tblIndicators!C$2:C$115,0)) -> 65 | C207: =IF($A207="","",INDEX(tblIndicators!$V$2:$V$115,$B207)) -> 3.5.4) Well-defined property rights
A208: GOVEFF_05 | B208: =IF(A208="","",MATCH(A208,tblIndicators!C$2:C$115,0)) -> 66 | C208: =IF($A208="","",INDEX(tblIndicators!$V$2:$V$115,$B208)) -> 3.5.5) Presence of free and independent media
A209: GOVEFF_06 | B209: =IF(A209="","",MATCH(A209,tblIndicators!C$2:C$115,0)) -> 67 | C209: =IF($A209="","",INDEX(tblIndicators!$V$2:$V$115,$B209)) -> 3.5.6) Women's access to common property and government-allocated land
A210: GOVEFF_07 | B210: =IF(A210="","",MATCH(A210,tblIndicators!C$2:C$115,0)) -> 68 | C210: =IF($A210="","",INDEX(tblIndicators!$V$2:$V$115,$B210)) -> 3.5.7) Women's property rights
A211: VIOLEN_S | B211: =IF(A211="","",MATCH(A211,tblIndicators!C$2:C$115,0)) -> 69 | C211: =IF($A211="","",INDEX(tblIndicators!$V$2:$V$115,$B211)) -> 3.6) Violence
A212: VIOLEN_01 | B212: =IF(A212="","",MATCH(A212,tblIndicators!C$2:C$115,0)) -> 70 | C212: =IF($A212="","",INDEX(tblIndicators!$V$2:$V$115,$B212)) -> 3.6.1) Violent crime level
A213: VIOLEN_02 | B213: =IF(A213="","",MATCH(A213,tblIndicators!C$2:C$115,0)) -> 71 | C213: =IF($A213="","",INDEX(tblIndicators!$V$2:$V$115,$B213)) -> 3.6.2) Trafficking in persons
... 25 more rows

Sheet Cover

Sheet Index
A1: INDEX
B3: Click the circle icon in any worksheet to return to this page
B5: RANKING
B6: This worksheet provides ranked comparisons by overall as well as category scores. It enables evaluation of how specific geographies fared against one another across the five major scoring categories.
B7: INDICATOR RANKING
B8: This worksheet displays the scores and ranks for each category, indicator and sub-indicator by geography.
B9: COUNTRY PROFILE
B10: This worksheet displays scores and data for each of the 8 countries in detail. It provides a visual analysis of a selected country's absolute and relative performance. Detailed notes are provided by country.
B11: COUNTRY COMPARE
B12: The facility to compare the scores and data of up to 2 countries and filter by category.
B13: SCATTER
B14: A visual comparison between 2 indicators of all countries.
B15: WEIGHT
B16: This worksheet provides a detailed breakdown of the weights applied to each category, indicator and sub-indicator. It allows users to change category, indicator and sub-indicator weights in order to evaluate the impact of each respective category and/or indicator and/or sub-indicator on the overall geography ranking.
B17: DATA
B18: This worksheet displays the data for all indicators for all 8 countries.

Sheet tblIndicators (hidden)
A1: ID | B1: BG | C1: Code | D1: Parent | E1: Level | G1: Indicator | H1: Unit | I1: Source | J1: Description | M1: HighIs (0=Good,1=Bad) | N1: NormalisationTypeID | O1: MIN | P1: MAX | Q1: DP | R1: Format | S1: WeightRow | T1: Wnom | U1: Wpercent | V1: IndentDesc | W1: Qual/Qunt
A2: 1 | B2: 0 | C2: TOTAL | E2: 0 | G2: OVERALL SCORE | H2: 0 - 100 where 100= best and 0=worst | I2: Weighted sum of category scores | J2: This is the weighted sum of the following category scores: 1) Economic 2) Infrastructure 3) Institutional 4) Social | M2: 0 | N2: 1 | R2: 0.0 | V2: =IF(F2="",G2,CONCATENATE(F2,") ",IF(E2>=2,G2,UPPER(G2)))) -> OVERALL SCORE
A3: 2 | B3: 0 | C3: ECON | D3: TOTAL | E3: 1 | F3: 1 | G3: ECONOMIC | H3: 0 - 100 where 100= best and 0=worst | I3: Weighted sum of indicator scores | J3: This is the weighted sum of the following indicator scores: 1.1 Country-level economic strength 1.2 Personal finance: Women 1.3 Labour environment | M3: 0 | N3: 1 | R3: 0.0 | S3: =MATCH(C3,iWeights!C$4:C$116,0) -> 1 | T3: =INDEX(Weights!G$4:G$116,S3) -> 1 | U3: =T3/SUMIF(D$2:D$98,D3,T$2:T$98) -> 0.25 | V3: =IF(F3="",G3,CONCATENATE(F3,") ",IF(E3>=2,G3,UPPER(G3)))) -> 1) ECONOMIC
A4: 3 | B4: 0 | C4: CLES_S | D4: ECON | E4: 2 | F4: 1.1 | G4: Country-level economic strength | H4: 0 - 100 where 100= best and 0=worst | I4: Weighted sum of sub-indicator scores | J4: This is the weighted sum of the following indicator scores: 1.1.1 GDP per capita 1.1.2 Level of foreign currency reserves 1.1.3 Poverty headcount ratio 1.1.4 Government funding for disaster relief | M4: 0 | N4: 1 | Q4: 0 | R4: 0.0 | S4: =MATCH(C4,iWeights!C$4:C$116,0) -> 9 | T4: =INDEX(Weights!G$4:G$116,S4) -> 1 | U4: 0.3333333333 | V4: 1.1) Country-level economic strength
A5: 4 | B5: 0 | C5: CLES_01 | D5: CLES_S | E5: 3 | F5: 1.1.1 | G5: GDP per capita | H5: PPP International $ | I5: World Bank, World Development Indicators, (2013) | J5: GDP per capita, PPP (current international $). | M5: 0 | N5: 2 | Q5: 0 | R5: #,###.0 | S5: =MATCH(C5,iWeights!C$4:C$116,0) -> 35 | T5: =INDEX(Weights!G$4:G$116,S5) -> 1 | U5: 0.25 | V5: 1.1.1) GDP per capita | W5: Quant | X5: 36315.4509
A6: 5 | B6: 0 | C6: CLES_02 | D6: CLES_S | E6: 3 | F6: 1.1.2 | G6: Level of foreign currency reserves | H6: % | I6: EIU; IMF International Financial Statistics; World Bank (World Development Indicators), (2012-2013) | J6: Reserves are weighted against the economic health of the country indicated by GDP (%) 1. Total reserves comprise holdings of monetary gold, special drawing rights, reserves of IMF members held by the IMF, and holdings of foreign exchange under the control of monetary authorities. The gold component of these reserves is valued at year-end (December 31) London prices. Data are in current U.S. dollars. 2. GDP at purchaser's prices in current U.S. dollars. Dollar figures for GDP are converted from domestic currencies using single year official exchange rates. For a few countries where the official exchange rate does not reflect the rate effectively applied to actual foreign exchange transactions, an alternative conversion factor is used. | M6: 0 | N6: 2 | Q6: 0 | R6: #,###.0 | S6: =MATCH(C6,iWeights!C$4:C$116,0) -> 36 | T6: =INDEX(Weights!G$4:G$116,S6) -> 1 | U6: 0.25 | V6: 1.1.2) Level of foreign currency reserves | W6: Quant | X6: 1237.2
A7: 6 | B7: 0 | C7: CLES_03 | D7: CLES_S | E7: 3 | F7: 1.1.3 | G7: Poverty headcount ratio | H7: % | I7: World Development Indicators, World Bank, (2009-2013); OECD Factbook 2010: Economic, Environmental and Social Statistics | J7: Percentage of population living at or below USD1.25 per day, except for Japan. For Japan, the poverty rate was calculated using the ratio of the number of people who fall below the poverty line and the total population; the poverty line is here taken as half the median household income. | M7: 1 | N7: 2 | Q7: 0 | R7: 0.0 | S7: =MATCH(C7,iWeights!C$4:C$116,0) -> 37 | T7: =INDEX(Weights!G$4:G$116,S7) -> 1 | U7: 0.25 | V7: 1.1.3) Poverty headcount ratio | W7: Quant | X7: 14.932407
A8: 7 | B8: 0 | C8: CLES_04 | D8: CLES_S | E8: 3 | F8: 1.1.4 | G8: Government funding for disaster relief (per person) | H8: USD/capita | I8: Ministry of Finance Bangladesh; Ministry of Finance Bhutan; Ministry of Finance India; Ministry of Finance Nepal; Ministry of Finance Japan; Ministry of Finance and Treasury Maldives; Ministry of Finance Pakistan; Ministry of Disaster Management Sri Lanka (2013); World Bank, World Development Indicators (2013) | J8: Government funding set aside for disaster relief per capita, (USD). | M8: 0 | N8: 2 | Q8: 0 | R8: #,###.0 | S8: =MATCH(C8,iWeights!C$4:C$116,0) -> 38 | T8: =INDEX(Weights!G$4:G$116,S8) -> 1 | U8: 0.25 | V8: 1.1.4) Government funding for disaster relief (per person) | W8: Quant | X8: 37362.3
A9: 8 | B9: 0 | C9: PERFNC_S | D9: ECON | E9: 2 | F9: 1.2 | G9: Personal finance: Women | H9: 0 - 100 where 100= best and 0=worst | I9: Weighted sum of sub-indicator scores | J9: This is the weighted sum of the following indicator scores: 1.2.1 Microfinance: Women borrowers 1.2.2 Building credit histories 1.2.3 Women's access to finance programmes 1.2.4 Loans at financial institutions 1.2.5 Accounts at financial institutions | M9: 0 | N9: 1 | Q9: 0 | R9: 0.0 | S9: =MATCH(C9,iWeights!C$4:C$116,0) -> 10 | T9: =INDEX(Weights!G$4:G$116,S9) -> 1 | U9: 0.3333333333 | V9: 1.2) Personal finance: Women
A10: 9 | B10: 0 | C10: PERFNC_S_01 | D10: PERFNC_S | E10: 3 | F10: 1.2.1 | G10: Microfinance: Women borrowers | H10: % | I10: MixMarket, 2012 | J10: Percentage of women borrowers (2012). | M10: 0 | N10: 2 | Q10: 0 | R10: 0.0 | S10: =MATCH(C10,iWeights!C$4:C$116,0) -> 40 | T10: =INDEX(Weights!G$4:G$116,S10) -> 1 | U10: 0.2 | V10: 1.2.1) Microfinance: Women borrowers | W10: Quant | X10: 0
A11: 10 | B11: 0 | C11: PERFNC_S_02 | D11: PERFNC_S | E11: 3 | F11: 1.2.2 | G11: Building credit histories | H11: Score (0-8), 8= Best | I11: World Bank and IFC's Doing Business 2014 Index | J11: This indicator combines gender-sensitive elements from two of the World Bank Group's Doing Business 'Getting Credit' measures: 'Depth of credit information' and 'Legal rights to credit' - into a single, composite indicator. This measure is not gender-disaggregated, but is useful in establishing the credit environment in which women participate. The average of the two scores is taken. | M11: 0 | N11: 2 | Q11: 0 | R11: 0.0 | S11: =MATCH(C11,iWeights!C$4:C$116,0) -> 41 | T11: =INDEX(Weights!G$4:G$116,S11) -> 1 | U11: 0.2 | V11: 1.2.2) Building credit histories | W11: Qual | X11: 6.5
A12: 11 | B12: 0 | C12: PERFNC_S_03 | D12: PERFNC_S | E12: 3 | F12: 1.2.3 | G12: Women's access to finance programmes | H12: Score (0 - 5), 5 = Best | I12: EIU qualitative assessment | J12: This indicator assesses the ability of women employed in the formal sector as well as female entrepreneurs to access three types of programmes: 1) Initiatives to provide financial accounts to women (for example, current accounts, savings accounts and deposit accounts) 2) Outreach efforts aimed at improving women entrepreneurs' access to credit/loans/lines of credit, etc 3) Provision of financial literacy and/or risk-management programmes to women Provision of these programmes is by the formal financial sector only. Microfinance lending/institutions are excluded from the analysis. Scoring: 1= None of the three programmes are available 2= Only one of the three programmes is available, but it is limited in scope (a minority of women in the formal sector/entrepreneurs have access) 3= Two of the three programmes are available, but they are limited in scope (a minority of women in the formal sector/entrepreneurs have access); OR only one of the three programmes is available, but it is reasonably broad in scope (a majority of women in the formal sector/entrepreneurs have access) 4= Two of the three programmes are available, and they are reasonably broad in scope (a majority of women in the formal sector/entrepreneurs have access) 5= All three programmes are available, they are comprehensive in scope; OR women's access to financial services is already widespread, so these programmes are unnecessary | M12: 0 | N12: 3 | O12: 0 | P12: 5 | Q12: 0 | R12: 0 | S12: =MATCH(C12,iWeights!C$4:C$116,0) -> 42 | T12: =INDEX(Weights!G$4:G$116,S12) -> 1 | U12: 0.2 | V12: 1.2.3) Women's access to finance programmes | W12: Qual | X12: 5
A13: 12 | B13: 0 | C13: PERFNC_S_04 | D13: PERFNC_S | E13: 3 | F13: 1.2.4 | G13: Loans at financial institutions | H13: % females aged 15+ | I13: World Bank, Global Financial Inclusion Database (2012-2013) | J13: Denotes the percentage of respondents who report borrowing any money from a bank, credit union, microfinance institution, or other financial institution such as a cooperative in the past 12 months (% female, age 15+). | M13: 0 | N13: 2 | Q13: 0 | R13: 0.0 | S13: =MATCH(C13,iWeights!C$4:C$116,0) -> 43 | T13: =INDEX(Weights!G$4:G$116,S13) -> 1 | U13: 0.2 | V13: 1.2.4) Loans at financial institutions | W13: Qual | X13: 3.5
A14: 13 | B14: 0 | C14: PERFNC_S_05 | D14: PERFNC_S | E14: 3 | F14: 1.2.5 | G14: Accounts at financial institutions | H14: % females aged 15+ | I14: World Bank, Global Financial Inclusion Database | J14: Denotes the percentage of respondents with an account (individual or joint) at a bank, credit union, other financial institution (eg cooperative, microfinance institution), or the post office (if applicable), including respondents who reported having a debit card (% female, age 15+). | M14: 0 | N14: 2 | Q14: 0 | R14: 0.0 | S14: =MATCH(C14,iWeights!C$4:C$116,0) -> 44 | T14: =INDEX(Weights!G$4:G$116,S14) -> 1 | U14: 0.2 | V14: 1.2.5) Accounts at financial institutions | W14: Qual | X14: 96.8
A15: 14 | B15: 0 | C15: LABENV_S | D15: ECON | E15: 2 | F15: 1.3 | G15: Labour environment: Women | H15: 0 - 100 where 100= best and 0=worst | I15: Weighted sum of sub-indicator scores | J15: This is the weighted sum of the following indicator scores: 1.3.1 Employment guarantee schemes for women 1.3.2 Female unemployment rate | M15: 0 | N15: 1 | Q15: 0 | R15: 0.0 | S15: =MATCH(C15,iWeights!C$4:C$116,0) -> 11 | T15: =INDEX(Weights!G$4:G$116,S15) -> 1 | U15: 0.3333333333 | V15: 1.3) Labour environment: Women
A16: 15 | B16: 0 | C16: LABENV_01 | D16: LABENV_S | E16: 3 | F16: 1.3.1 | G16: Employment guarantee schemes for women | H16: Score (0-4), 4=Best | I16: EIU qualitative assessment | J16: Weighted sum of the indicators scores 0-2 points to be awarded for each of the following sub-indicators: In the country's employment guarantee schemes : Is there an operational right to work for women? (0-2 points) Is there an explicit quota set for the provision of jobs for women? (0-1 point) Is there a requirement for the payment of equal wages? (0-1 point) | M16: 0 | N16: 2 | O16: 0 | P16: 4 | Q16: 0 | R16: 0 | S16: =MATCH(C16,iWeights!C$4:C$116,0) -> 46 | T16: =INDEX(Weights!G$4:G$116,S16) -> 1 | U16: 0.5 | V16: 1.3.1) Employment guarantee schemes for women | W16: Qual | X16: 2
A17: 16 | B17: 0 | C17: LABENV_02 | D17: LABENV_S | E17: 3 | F17: 1.3.2 | G17: Female unemployment rate | H17: % | I17: EIU; World Bank World Development Indicators; ILO Stat; Bangladesh Labour Force Survey 2010; Statistical Yearbook 2013 Maldives; Nepal Labour Force Survey 2008; Pakistan Employment Trends 2013; Sri Lanka Labour Force Survey 2012 | J17: Unemployment rate of women aged 15-64. | M17: 1 | N17: 2 | Q17: 0 | R17: 0.0 | S17: =MATCH(C17,iWeights!C$4:C$116,0) -> 47 | T17: =INDEX(Weights!G$4:G$116,S17) -> 1 | U17: 0.5 | V17: 1.3.2) Female unemployment rate | W17: Quant | X17: 3.7
A18: 17 | B18: 0 | C18: INFRA | D18: TOTAL | E18: 1 | F18: 2 | G18: INFRASTRUCTURE | H18: 0 - 100 where 100= best and 0=worst | I18: Weighted sum of indicator scores | J18: This is the weighted sum of the following indicator scores: 2.1 Adherence to land use regulations 2.2 Adherence to building codes 2.3 Communication 2.4 Power 2.5 Environmental performance 2.6 Sanitation 2.7 Quality of transport network 2.8 Access to potable water | M18: 0 | N18: 1 | Q18: 0 | R18: 0.0 | S18: =MATCH(C18,iWeights!C$4:C$116,0) -> 2 | T18: =INDEX(Weights!G$4:G$116,S18) -> 1 | U18: 0.25 | V18: 2) INFRASTRUCTURE
A19: 18 | B19: 0 | C19: ADREG | D19: INFRA | E19: 3 | F19: 2.1 | G19: Adherence to land use regulations | H19: Score (0 - 10), 10 = Best | I19: EIU qualitative assessment | J19: Weighted sum of the indicator scores: 0-2 points to be awarded for each of the following sub-indicators, with 2=yes, 1=partially, 0=no Is there a formal land planning system, integrated at national, regional and local level? Is the system transparent, easy to understand and accessible? Is the application of this system mandatory? Is the system consistently implemented and enforced? Are affected communities able to participate in decision-making in planning? | M19: 0 | N19: 3 | O19: 0 | P19: 10 | Q19: 0 | R19: 0 | S19: =MATCH(C19,iWeights!C$4:C$116,0) -> 13 | T19: =INDEX(Weights!G$4:G$116,S19) -> 1 | U19: 0.125 | V19: 2.1) Adherence to land use regulations | W19: Qual | X19: 10
A20: 19 | B20: 0 | C20: ADCOD | D20: INFRA | E20: 2 | F20: 2.2 | G20: Adherence to building codes | H20: Score (0 - 14), 14 = Best | I20: EIU qualitative assessment | J20: Weighted sum of the indicators scores: 0-2 points to be awarded for each of the following sub-indicators, with 2=yes, 1=partially, 0=no Is there a formal building code? Is the building code transparent, easy to understand and accessible? Is the application of the building code mandatory? Is the building code consistently implemented and enforced? In general does the construction industry possess the required skills to consistently meet the standards of the building code? Is the application of the building code cost-effective and efficient? Is there an active scheme to assess existing structures and carry out mitigation where necessary? | M20: 0 | N20: 3 | O20: 0 | P20: 14 | Q20: 0 | R20: 0 | S20: =MATCH(C20,iWeights!C$4:C$116,0) -> 14 | T20: =INDEX(Weights!G$4:G$116,S20) -> 1 | U20: 0.125 | V20: 2.2) Adherence to building codes | W20: Qual | X20: 13
A21: 20 | B21: 0 | C21: COMM_S | D21: INFRA | E21: 2 | F21: 2.3 | G21: Communication | H21: 0 - 100 where 100= best and 0=worst | I21: Weighted sum of sub-indicator scores | J21: This is the weighted sum of the following indicator scores: 2.3.1 Penetration of TV 2.3.2 Penetration of Radio 2.3.3 Mobile cellular subscriptions 2.3.4 Availabilty of an effective early warning system | M21: 0 | N21: 1 | Q21: 0 | R21: 0.0 | S21: =MATCH(C21,iWeights!C$4:C$116,0) -> 15 | T21: =INDEX(Weights!G$4:G$116,S21) -> 1 | U21: 0.125 | V21: 2.3) Communication
A22: 21 | B22: 0 | C22: COMM_01 | D22: COMM_S | E22: 3 | F22: 2.3.1 | G22: Penetration of TV | H22: % | I22: Various national sources | J22: % of households who own a TV. | M22: 0 | N22: 2 | Q22: 0 | R22: 0.0 | S22: =MATCH(C22,iWeights!C$4:C$116,0) -> 49 | T22: =INDEX(Weights!G$4:G$116,S22) -> 1 | U22: 0.25 | V22: 2.3.1) Penetration of TV | W22: Quant | X22: 0.9
A23: 22 | B23: 0 | C23: COMM_02 | D23: COMM_S | E23: 3 | F23: 2.3.2 | G23: Penetration of Radio | H23: % | I23: Various national sources | J23: % of households who own a radio. | M23: 0 | N23: 2 | Q23: 0 | R23: 0.0 | S23: =MATCH(C23,iWeights!C$4:C$116,0) -> 50 | T23: =INDEX(Weights!G$4:G$116,S23) -> 1 | U23: 0.25 | V23: 2.3.2) Penetration of Radio | W23: Quant | X23: 0.673
A24: 23 | B24: 0 | C24: COMM_03 | D24: COMM_S | E24: 3 | F24: 2.3.3 | G24: Mobile cellular subscriptions | H24: % | I24: World Bank, World Development Indicators | J24: Mobile cellular subscriptions per 100 people. | M24: 0 | N24: 2 | Q24: 0 | R24: 0.0 | S24: =MATCH(C24,iWeights!C$4:C$116,0) -> 51 | T24: =INDEX(Weights!G$4:G$116,S24) -> 1 | U24: 0.25 | V24: 2.3.3) Mobile cellular subscriptions | W24: Quant | X24: 115
A25: 24 | B25: 0 | C25: COMM_04 | D25: COMM_S | E25: 3 | F25: 2.3.4 | G25: Availability of an effective early warning system | H25: Score (0 - 8), 8 = Best | I25: EIU qualitative assessment | J25: Weighted sum of the indicator scores 0-2 points to be awarded for each of the following sub-indicators, with 2=yes, 1=partially, 0=no Is there an effective link with international-level EWS? Is there an effective link with information flowing in both directions between the national-level EWS and local communities, capitalising on the strengths of both without confused signals or competition (eg designated members of the community or organisations, ICT crowdsourcing to input to crisis maps/databases, etc)? Is there an effective monitoring system (eg meteorological instruments, forecasts and computer modelling, geophysical instruments, ground/aircraft/satellite remote sensing techniques, community monitoring of river levels, etc)? Is there an effective dissemination system (eg high-tech communication systems, telephones, TVs, WHF, HF, radios and at the community level: volunteers, radios, megaphones, flags, sirens etc)? | M25: 0 | N25: 3 | O25: 0 | P25: 8 | Q25: 0 | R25: 0 | S25: =MATCH(C25,iWeights!C$4:C$116,0) -> 52 | T25: =INDEX(Weights!G$4:G$116,S25) -> 1 | U25: 0.25 | V25: 2.3.4) Availability of an effective early warning system | W25: Qual | X25: 8
A26: 25 | B26: 0 | C26: POW_S | D26: INFRA | E26: 2 | F26: 2.4 | G26: Power | H26: 0 - 100 where 100= best and 0=worst | I26: Weighted sum of sub-indicator scores | J26: This is the weighted sum of the following indicator scores: 2.4.1 Quality of power 2.4.2 Access to electricity | M26: 0 | N26: 1 | Q26: 0 | R26: 0.0 | S26: =MATCH(C26,iWeights!C$4:C$116,0) -> 16 | T26: =INDEX(Weights!G$4:G$116,S26) -> 1 | U26: 0.125 | V26: 2.4) Power
A27: 26 | B27: 0 | C27: POW_01 | D27: POW_S | E27: 3 | F27: 2.4.1 | G27: Quality of power | H27: Score (0 - 4), 4 = Highest Risk | I27: EIU Risk Briefing | J27: This indicator measures the quality of power in the country. Indicators include the availability of power, quality and distribution across the country, prevalence of power outages (average power outages per month) and cost of power, including generator costs. The risk that power shortages could disrupt business activities is considered as well as companies' capacity to respond to power shortages through self-generation. | M27: 1 | N27: 2 | Q27: 0 | R27: 0 | S27: =MATCH(C27,iWeights!C$4:C$116,0) -> 54 | T27: =INDEX(Weights!G$4:G$116,S27) -> 1 | U27: 0.5 | V27: 2.4.1) Quality of power | W27: Qual | X27: 3
A28: 27 | B28: 0 | C28: POW_02 | D28: POW_S | E28: 3 | F28: 2.4.2 | G28: Access to electricity | H28: % | I28: Environmental Performance Index, Yale University 2014; World Bank World Development Indicators | J28: Percentage of the population with access to electricity (%). | M28: 0 | N28: 2 | Q28: 0 | R28: 0.0 | S28: =MATCH(C28,iWeights!C$4:C$116,0) -> 55 | T28: =INDEX(Weights!G$4:G$116,S28) -> 1 | U28: 0.5 | V28: 2.4.2) Access to electricity | W28: Quant | X28: 100
A29: 28 | B29: 0 | C29: ENVPER_S | D29: INFRA | E29: 2 | F29: 2.5 | G29: Environmental performance | H29: 0 - 100 where 100= best and 0=worst | I29: Weighted sum of sub-indicator scores | J29: This is the weighted sum of the following indicator scores: 2.5.1 Treatment of wastewater 2.5.2 Quality of agricultural policies 2.5.3 Loss in forested area 2.5.4 Protection of terrestrial and marine areas | M29: 0 | N29: 1 | Q29: 0 | R29: 0.0 | S29: =MATCH(C29,iWeights!C$4:C$116,0) -> 17 | T29: =INDEX(Weights!G$4:G$116,S29) -> 1 | U29: 0.125 | V29: 2.5) Environmental performance
A30: 29 | B30: 0 | C30: ENVPER_01 | D30: ENVPER_S | E30: 3 | F30: 2.5.1 | G30: Treatment of wastewater | H30: % | I30: Environmental Performance Index, Yale University, 2014 | J30: Percentage of anthropogenic wastewater that receives treatment (%). | M30: 0 | N30: 2 | Q30: 0 | R30: 0.0 | S30: =MATCH(C30,iWeights!C$4:C$116,0) -> 57 | T30: =INDEX(Weights!G$4:G$116,S30) -> 1 | U30: 0.2857142857 | V30: 2.5.1) Treatment of wastewater | W30: Quant | X30: 71.3
A31: 30 | B31: 0 | C31: ENVPER_02 | D31: ENVPER_S | E31: 3 | F31: 2.5.2 | G31: Pesticide and fertiliser regulation | H31: Scoring (0-24), 24=Best | I31: Environmental Performance Index, Yale University 2014 | J31: Regulation of the dirty-dozen persistent organic pollutants (POPs) under the Stockholm Convention; Countries are awarded points based on whether they have signed or ratified the Stockholm Convention, as well as whether of not they allow, restrict or ban the dirty dozen POPs. Points are awarded on the following basis: 3 points if signed and ratified; 2 if not signed but ratified and 1 for signed and not ratified and 0 for not signed or ratified. Then, 2 points per POP banned, 1 per POP restricted and 0 for POPs allowed. (Environmental Performance Index, Yale University, 2014). | M31: 0 | N31: 2 | O31: 0 | P31: 24 | Q31: 0 | R31: 0.0 | S31: =MATCH(C31,iWeights!C$4:C$116,0) -> 58 | T31: =INDEX(Weights!G$4:G$116,S31) -> 0.5 | U31: 0.1428571429 | V31: 2.5.2) Pesticide and fertiliser regulation | W31: Qual | X31: 23
A32: 31 | B32: 0 | C32: ENVPER_03 | D32: ENVPER_S | E32: 3 | F32: 2.5.3 | G32: Loss in forested area | H32: % | I32: Environmental Performance Index, Yale University 2014; National sources | J32: Change in forest cover between 2000 and 2012 (%). The Change in Forest Cover indicator measures the percent change in forest cover between 2000 and 2012 in areas with greater than 50 percent tree cover. It factors in areas of deforestation (forest loss), reforestation (forest restoration or replanting) and afforestation (conversion of bare or cultivated land into forest). (Environmental Performance Index, Yale University, 2014). | M32: 0 | N32: 2 | Q32: 0 | R32: 0.0 | S32: =MATCH(C32,iWeights!C$4:C$116,0) -> 59 | T32: =INDEX(Weights!G$4:G$116,S32) -> 1 | U32: 0.2857142857 | V32: 2.5.3) Loss in forested area | W32: Quant | X32: -0.6
A33: 32 | B33: 0 | C33: ENVPER_04 | D33: ENVPER_S | E33: 3 | F33: 2.5.4 | G33: Protection of terrestrial and marine areas | H33: % | I33: Environmental Performance Index, Yale University 2014; Maldives Environmental Protection Agency, 2013 | J33: The Terrestrial Protected Areas (National Biome Weight) indicator assesses the protection of biomes weighted by the proportion of a country’s territory the biome occupies (%) (Environmental Performance Index, Yale University, 2014). | M33: 0 | N33: 2 | Q33: 0 | R33: 0.0 | S33: =MATCH(C33,iWeights!C$4:C$116,0) -> 60 | T33: =INDEX(Weights!G$4:G$116,S33) -> 1 | U33: 0.2857142857 | V33: 2.5.4) Protection of terrestrial and marine areas | W33: Quant | X33: 14.9
A34: 33 | B34: 0 | C34: SAN_S | D34: INFRA | E34: 2 | F34: 2.6 | G34: Sanitation | H34: 0 - 100 where 100= best and 0=worst | I34: Weighted sum of sub-indicator scores | J34: This is the weighted sum of the following indicator scores: 2.6.1 Access to sanitation 2.6.2 Waste Water (Urban) 2.6.3 Waster water (Rural) | M34: 0 | N34: 1 | Q34: 0 | R34: 0.0 | S34: =MATCH(C34,iWeights!C$4:C$116,0) -> 18 | T34: =INDEX(Weights!G$4:G$116,S34) -> 1 | U34: 0.125 | V34: 2.6) Sanitation
A35: 34 | B35: 0 | C35: SAN_01 | D35: SAN_S | E35: 3 | F35: 2.6.1 | G35: Access to sanitation | H35: % | I35: World Bank, World Development Indicators | J35: Percentage of the population with access to sanitation (%). | M35: 0 | N35: 2 | Q35: 0 | R35: 0.0 | S35: =MATCH(C35,iWeights!C$4:C$116,0) -> 62 | T35: =INDEX(Weights!G$4:G$116,S35) -> 1 | U35: =T35/SUMIF(D$2:D$98,D35,T$2:T$98) -> 0.3333333333 | V35: 2.6.1) Access to sanitation | W35: Quant | X35: 100
A36: 35 | B36: 0 | C36: SAN_02 | D36: SAN_S | E36: 3 | F36: 2.6.2 | G36: Waste water treatment (Urban) | H36: % | I36: World Bank, World Development Indicators | J36: Percentage of urban population connected to waste water treatment facilities. | M36: 0 | N36: 2 | Q36: 0 | R36: 0.0 | S36: =MATCH(C36,iWeights!C$4:C$116,0) -> 63 | T36: =INDEX(Weights!G$4:G$116,S36) -> 1 | U36: 0.3333333333 | V36: 2.6.2) Waste water treatment (Urban) | W36: Quant | X36: 100
A37: 36 | B37: 0 | C37: SAN_03 | D37: SAN_S | E37: 3 | F37: 2.6.3 | G37: Waste water treatment (Rural) | H37: % | I37: World Bank, World Development Indicators | J37: Percentage of villages connected to waste water treatment facilities. | M37: 0 | N37: 2 | Q37: 0 | R37: 0.0 | S37: =MATCH(C37,iWeights!C$4:C$116,0) -> 64 | T37: =INDEX(Weights!G$4:G$116,S37) -> 1 | U37: 0.3333333333 | V37: 2.6.3) Waste water treatment (Rural) | W37: Quant | X37: 100
A38: 37 | B38: 0 | C38: TRANET | D38: INFRA | E38: 2 | F38: 2.7 | G38: Quality of transport network | H38: Scoring (1 - 4), 4 = High Risk | I38: EIU Risk Briefing | J38: Scoring system: 1- 4, with 4= High Risk What is the risk that port facilities will prove inadequate to business needs? Evaluate the risk based on three criteria: degree of obsolescence, maintenance and sufficient supply to meet demand. What is the risk that air transport will prove inadequate to business needs? Evaluate the risk based on three criteria: degree of obsolescence, maintenance and sufficient supply to meet demand. What is the risk that the road network will prove inadequate to business needs? Evaluate the risk based on three criteria: degree of obsolescence, maintenance and sufficient supply to meet demand. What is the risk that the rail network will prove inadequate to business needs? Evaluate the risk based on three criteria: degree of obsolescence, maintenance and sufficient supply to meet demand. | M38: 1 | N38: 2 | Q38: 0 | R38: 0 | S38: =MATCH(C38,iWeights!C$4:C$116,0) -> 19 | T38: =INDEX(Weights!G$4:G$116,S38) -> 1 | U38: 0.125 | V38: 2.7) Quality of transport network | W38: Qual | X38: 1
A39: 38 | B39: 0 | C39: POTH2O | D39: INFRA | E39: 2 | F39: 2.8 | G39: Access to potable water | H39: % | I39: World Bank, World Development Indicators | J39: Access to an improved water source refers to the percentage of the population using an improved drinking water source. The improved drinking water source includes piped water on premises (piped household water connection located inside the user’s dwelling, plot or yard), and other improved drinking water sources (public taps or standpipes, tube wells or boreholes, protected dug wells, protected springs, and rainwater collection). | M39: 0 | N39: 2 | Q39: 0 | R39: 0.0 | S39: =MATCH(C39,iWeights!C$4:C$116,0) -> 20 | T39: =INDEX(Weights!G$4:G$116,S39) -> 1 | U39: 0.125 | V39: 2.8) Access to potable water | W39: Qual | X39: 100
A40: 39 | B40: 0 | C40: INST | D40: TOTAL | E40: 1 | F40: 3 | G40: INSTITUTIONAL | H40: 0 - 100 where 100= best and 0=worst | I40: Weighted sum of indicator scores | J40: This is the weighted sum of the following indicator scores: 3.1 Domestic protection 3.2 Culture of safety 3.3 Policy coordination 3.4 Gender focus in DRR policy 3.5 Government effectiveness 3.6 Violence | M40: 0 | N40: 1 | Q40: 0 | R40: 0.0 | S40: =MATCH(C40,iWeights!C$4:C$116,0) -> 3 | T40: =INDEX(Weights!G$4:G$116,S40) -> 1 | U40: 0.25 | V40: 3) INSTITUTIONAL
A41: 40 | B41: 0 | C41: DOMPRO_S | D41: INST | E41: 2 | F41: 3.1 | G41: Domestic protection | H41: 0 - 100 where 100= best and 0=worst | I41: Weighted sum of sub-indicator scores | J41: This is the weighted sum of the following indicator scores: 3.1.1 Implementation of CEDAW Convention 3.1.2 Assessment of national critical infrastructure plan 3.1.3 Existence of social safety nets | M41: 0 | N41: 1 | Q41: 0 | R41: 0.0 | S41: =MATCH(C41,iWeights!C$4:C$116,0) -> 22 | T41: =INDEX(Weights!G$4:G$116,S41) -> 1 | U41: 0.1666666667 | V41: 3.1) Domestic protection
A42: 41 | B42: 0 | C42: DOMPRO_01 | D42: DOMPRO_S | E42: 3 | F42: 3.1.1 | G42: Implementation of CEDAW | H42: Scoring (0 - 4), 4 = Best | I42: EIU qualitative assessment | J42: This indicator assesses how far a country has gone in implementing the Convention on the Elimination of all forms of Discrimination against Women (CEDAW). The scoring system is as follows: 0= CEDAW has not been ratified by the country under consideration 1= CEDAW has been ratified by the country under consideration, but has reservations with CEDAW articles, other than Article 29. The country has not signed the Optional Protocol 2= CEDAW has been ratified by the country under consideration, but has reservations with CEDAW Article 29 only. The country has not signed the Optional Protocol 3= CEDAW has been ratified by the country under consideration without reservations, but has not signed the Optional Protocol 4= CEDAW has been ratified by the country under consideration without reservations, and has signed the Optional Protocol of the Convention | M42: 0 | N42: 3 | O42: 0 | P42: 4 | Q42: 0 | R42: 0 | S42: =MATCH(C42,iWeights!C$4:C$116,0) -> 66 | T42: =INDEX(Weights!G$4:G$116,S42) -> 1 | U42: 0.3333333333 | V42: 3.1.1) Implementation of CEDAW | W42: Qual | X42: 4
A43: 42 | B43: 0 | C43: DOMPRO_02 | D43: DOMPRO_S | E43: 3 | F43: 3.1.2 | G43: Asssessment of National Critical Infrastructure Plan | H43: Scoring (0 - 8), 8 = Best | I43: EIU qualitative assessment | J43: This indicator measures the effectiveness of a country’s National Critical Infrastructure Plan. It is a weighted sum of sub-indicator scores: 0-2 points to be awarded for each of the following sub-indicators, with 2=yes, 1=partially, 0=no Does the country have a critical infrastructure plan (identifying critical infrastructure, threats, vulnerabilities, mitigation measures to increase resilience and emergency response measures, feedback/lessons learnt and mechanisms for further improvement)? Is the application of this plan mandatory for all identified critical infrastructure, whether public or private sector? Have the relevant public and private sector bodies effectively implemented the plan, including measures such as asset-specific assessments and appointed individuals (linking the owner/operator with the national authority responsible for critical infrastructure protection)? Does the plan detail standard operating procedures (SOPs)? | M43: 0 | N43: 3 | O43: 0 | P43: 8 | Q43: 0 | R43: 0 | S43: =MATCH(C43,iWeights!C$4:C$116,0) -> 67 | T43: =INDEX(Weights!G$4:G$116,S43) -> 1 | U43: 0.3333333333 | V43: 3.1.2) Asssessment of National Critical Infrastructure Plan | W43: Qual | X43: 4
A44: 43 | B44: 0 | C44: DOMPRO_03 | D44: DOMPRO_S | E44: 3 | F44: 3.1.3 | G44: Existence of social safety nets | H44: Scoring (0 - 6), 6 = Best | I44: EIU qualitative assessment | J44: Weighted sum of sub-indicators scores. 0-2 points to be awarded for each of the following sub-indicators, with 2=yes, 1=partially, 0=no Does the country have a universally-accessible government-funded pension scheme? Does the government provide unemployment benefits? Does the government provide welfare benefits for poor families with children? | M44: 0 | N44: 3 | O44: 0 | P44: 6 | Q44: 0 | R44: 0 | S44: =MATCH(C44,iWeights!C$4:C$116,0) -> 68 | T44: =INDEX(Weights!G$4:G$116,S44) -> 1 | U44: 0.3333333333 | V44: 3.1.3) Existence of social safety nets | W44: Qual | X44: 6
A45: 44 | B45: 0 | C45: CULSAF_S | D45: INST | E45: 2 | F45: 3.2 | G45: Culture of safety | H45: 0 - 100 where 100= best and 0=worst | I45: Weighted sum of sub-indicator scores | J45: This is the weighted sum of the following indicator scores: 3.2.1 Drills 3.2.2 Quality of emergency response team 3.2.3 Military force 3.2.4 Police force 3.2.5 Internal security officers and police force 3.2.6 Women in police force 3.2.7 Influence of women in police force | M45: 0 | N45: 1 | Q45: 0 | R45: 0.0 | S45: =MATCH(C45,iWeights!C$4:C$116,0) -> 23 | T45: =INDEX(Weights!G$4:G$116,S45) -> 1 | U45: 0.1666666667 | V45: 3.2) Culture of safety
A46: 45 | B46: 0 | C46: CULSAF_01 | D46: CULSAF_S | E46: 3 | F46: 3.2.1 | G46: Drills | H46: Scoring (0 - 4), 4 = Best | I46: EIU qualitative assessment | J46: This indicator measures whether there are drills in place that take into account local risk and whether these drills are included in the school curriculum. The scoring system is based on the drills and education sub-indicators below: Drills (0-2 points) 0= There are no or very infrequent training drills in place to respond to disasters 1= There are drills in place nation-wide at a local level, but they are not mandatory or consistent across the country 2=There are drills in place nation-wide at a local level, and drills organised by local authorities are part of a mandatory and consistent national system Education (0-2 points) 0= Regulations and/or recommendations by the government do not include promoting an awareness of emergency drills in the school curriculum (primary and secondary school) 1= Regulations and/or recommendations by the government promote an awareness of disaster management and prevention in the school curriculum, but do not specifically mention drills or do not cover both primary and secondary schools 2= Regulations and/or recommendations by the government include promoting an awareness of these drills in the school curriculum in both primary and secondary schools | M46: 0 | N46: 3 | O46: 0 | P46: 4 | Q46: 0 | R46: 0 | S46: =MATCH(C46,iWeights!C$4:C$116,0) -> 70 | T46: =INDEX(Weights!G$4:G$116,S46) -> 1 | U46: 0.25 | V46: 3.2.1) Drills | W46: Qual | X46: 4
A47: 46 | B47: 0 | C47: CULSAF_02 | D47: CULSAF_S | E47: 3 | F47: 3.2.2 | G47: Quality of emergency response team | H47: Scoring (0 - 3), 3 = Best | I47: EIU qualitative assessment | J47: This indicator measures the quality of the emergency response team. The scoring system is based on the indicators below: 0=There is no mechanism for a coordinated response by emergency response teams; 1=There is a mechanism for a coordinated response by emergency response teams, but it is only partially effective; 2=There is an effective mechanism for a coordinated response by emergency response teams, but it is highly reliant on non-governmental assistance; 3=There is an effective mechanism for a coordinated response by emergency response teams, which is modern and effective without reliance on non-governmental assistance | M47: 0 | N47: 3 | O47: 0 | P47: 3 | Q47: 0 | R47: 0 | S47: =MATCH(C47,iWeights!C$4:C$116,0) -> 71 | T47: =INDEX(Weights!G$4:G$116,S47) -> 1 | U47: 0.25 | V47: 3.2.2) Quality of emergency response team | W47: Qual | X47: 3
A48: 47 | B48: 0 | C48: CULSAF_03 | D48: CULSAF_S | E48: 3 | F48: 3.2.3 | G48: Military force | H48: Scoring (0 - 6), 6 = Best | I48: EIU qualitative assessment | J48: This indicator measures the quality (including consideration of standard and availability of military equipment) and size of the regular (ie full time) military force per 100,000 population. It also considers whether there are dedicated disaster response units and their effectiveness. The scoring system is based on the indicators below: 1. Quality: 0 = Sub-standard-military force; 1 = Regional-standard military force; 2 = International-standard military force 2. Size: 0 = <200 regular military personnel per 100,000 population; 1 = 200-299 regular military personnel per 100,000 population; 2 = >300 regular military personnel per 100,000 population 3. Disaster Response Unit: 0 = There are no units military units dedicated to disaster response; 1 = There are dedicated disaster response units, but these have some obvious shortcomings; 2 = There are effective and well-trained disaster response units | M48: 0 | N48: 3 | O48: 0 | P48: 6 | Q48: 0 | R48: 0 | S48: =MATCH(C48,iWeights!C$4:C$116,0) -> 72 | T48: =INDEX(Weights!G$4:G$116,S48) -> 0.5 | U48: 0.125 | V48: 3.2.3) Military force | W48: Qual | X48: 4
A49: 48 | B49: 0 | C49: CULSAF_04 | D49: CULSAF_S | E49: 3 | F49: 3.2.4 | G49: Police force | H49: Scoring (0 - 6), 6 = Best | I49: EIU qualitative assessment | J49: This indicator measures the relative quality (considering factors such as standards, skills, pay, attitudes, morale etc) of the police force, the size of the police force per 100,000 population (not counting non-uniformed support staff) and the existence of dedicated disaster response units and their effectiveness. The score is based on the following 3 sub-indicators: 1. Quality: 0 = Sub-standard police force; 1 = Regional standard police force; 2 = International standard police force 2. Size: 0 = <200 police per 100,000 population; 1 = 200-299 police per 100,000 population; 2 = >300 police per 100,000 population 3. Disaster Response Unit: 0 = There are no police units dedicated to disaster response; 1 = There are dedicated disaster response units, but these have some obvious shortcomings; 2 = There are effective and well-trained disaster response units | M49: 0 | N49: 3 | O49: 0 | P49: 6 | Q49: 0 | R49: 0 | S49: =MATCH(C49,iWeights!C$4:C$116,0) -> 73 | T49: =INDEX(Weights!G$4:G$116,S49) -> 0.5 | U49: 0.125 | V49: 3.2.4) Police force | W49: Qual | X49: 5
A50: 49 | B50: 0 | C50: CULSAF_05 | D50: CULSAF_S | E50: 3 | F50: 3.2.5 | G50: Women in police force | H50: 0 - 100 where 100= best and 0=worst | I50: Global Network of Women Peacebuilders (2012); Nepal Police; Network for Improved Policing in South Asia (2013); UK Department for International Development; United Nations Office on Drugs and Crime (UNODC); Estimate for Bhutan based on academic article: 'Attitudes of Royal Bhutan Police Officers Towards Community Policing in Bhutan', in Journal of African and Asian Local Government Studies, 2:3 (2013), and input by the UNODC's National Project Coordinator in Bhutan | J50: % of women officers in police force. | M50: 0 | N50: 3 | O50: 0 | P50: 100 | Q50: 0 | R50: 0.0 | S50: =MATCH(C50,iWeights!C$4:C$116,0) -> 74 | T50: =INDEX(Weights!G$4:G$116,S50) -> 0.5 | U50: 0.125 | V50: 3.2.5) Women in police force | W50: Quant | X50: 6.8
A51: 50 | B51: 0 | C51: CULSAF_06 | D51: CULSAF_S | E51: 3 | F51: 3.2.6 | G51: Influence of women in police force | H51: Scoring (0 - 2), 2 = Best | I51: EIU qualitative assessment | J51: This indicator tests women's ability to improve positive outcomes in the police force with respect to resilience. 0 = Women in the police force have inadequate opportunities to influence and improve outcomes with respect to resilience; 1 = Women in the police force have limited opportunities to influence and improve outcomes with respect to resilience; 2 = Women in the police force have significant opportunities to influence and improve outcomes with respect to resilience | M51: 0 | N51: 3 | O51: 0 | P51: 2 | Q51: 0 | R51: 0 | S51: =MATCH(C51,iWeights!C$4:C$116,0) -> 75 | T51: =INDEX(Weights!G$4:G$116,S51) -> 0.5 | U51: 0.125 | V51: 3.2.6) Influence of women in police force | W51: Qual | X51: 1
A52: 51 | B52: 0 | C52: POLCOO_S | D52: INST | E52: 2 | F52: 3.3 | G52: Policy coordination | H52: 0 - 100 where 100= best and 0=worst | I52: Weighted sum of sub-indicator scores | J52: This is the weighted sum of the following indicator scores: 3.3.1 Transboundary risk assessment systems and agreements 3.3.2 National platform for multilevel coordination of DRR 3.3.3 Decentralisation | M52: 0 | N52: 1 | Q52: 0 | R52: 0.0 | S52: =MATCH(C52,iWeights!C$4:C$116,0) -> 24 | T52: =INDEX(Weights!G$4:G$116,S52) -> 1 | U52: 0.1666666667 | V52: 3.3) Policy coordination
A53: 52 | B53: 0 | C53: POLCOO_01 | D53: POLCOO_S | E53: 3 | F53: 3.3.1 | G53: Transboundary risk assessment systems and agreements | H53: Scoring (0 - 4), 4 = Best | I53: EIU qualitative assessment | J53: This indicator measures the effectiveness of transboundary risk assessment systems and agreements. The scoring system is as follows: 1. Is the country signatory to a regional or international agreement on disaster monitoring and risk assessment? (O= no; 1= yes) 2. Does the country have the capacity to gather, analyse and share data on disasters by type, location and losses? (O= no; 1= yes) 3. Has the country developed comprehensive and up-to-date hazard maps? (0= no; 1= partially; 2= yes) | M53: 0 | N53: 3 | O53: 0 | P53: 4 | Q53: 0 | R53: 0 | S53: =MATCH(C53,iWeights!C$4:C$116,0) -> 77 | T53: =INDEX(Weights!G$4:G$116,S53) -> 1 | U53: 0.3333333333 | V53: 3.3.1) Transboundary risk assessment systems and agreements | W53: Qual | X53: 3
A54: 53 | B54: 0 | C54: POLCOO_02 | D54: POLCOO_S | E54: 3 | F54: 3.3.2 | G54: National platform for multilevel coordination of DRR | H54: Scoring (0 - 3), 3 = Best | I54: EIU qualitative assessment | J54: This indicator measures the effectiveness of the national platform for multilevel coordination of disaster risk reduction. A country will score one point each for the three sub-indicators: 1. A dedicated agency or governmental organisation for coordination 2. Disaster preparedness regulations include specific mention of how coordination should take place between different levels of government 3. Disaster preparedness regulations include specific mention of how coordination should take place between different levels of government, civil society and local or international NGOs | M54: 0 | N54: 3 | O54: 0 | P54: 3 | Q54: 0 | R54: 0 | S54: =MATCH(C54,iWeights!C$4:C$116,0) -> 78 | T54: =INDEX(Weights!G$4:G$116,S54) -> 1 | U54: 0.3333333333 | V54: 3.3.2) National platform for multilevel coordination of DRR | W54: Qual | X54: 3
A55: 54 | B55: 0 | C55: POLCOO_03 | D55: POLCOO_S | E55: 3 | F55: 3.3.3 | G55: Decentralisation | H55: Scoring (0 - 3), 3 = Best | I55: EIU qualitative assessment | J55: This indicator measures the degree to which the authority for a nation's framework for disaster management is decentralised to local governments. While a degree of centralised responsibility and control is good, there are many types of disasters which are better monitored and prepared for at a local level. The scoring system is as follows: 0 = There is no evidence in the disaster readiness plans or explicit regulations that a level of responsibility and authority should be transferred to the local level for disaster planning and preparedness 1= There is evidence in the national disaster readiness plans or regulations stating that some level of responsibility and authority should be transferred to the local level for disaster planning and preparedness, but this has not yet been fully implemented 2= There is evidence in the national disaster readiness plans or regulations stating that some level of responsibility and authority should be transferred to the local level for disaster planning and preparedness, and a decentralised DRR system has been implemented | M55: 0 | N55: 3 | O55: 0 | P55: 3 | Q55: 0 | R55: 0 | S55: =MATCH(C55,iWeights!C$4:C$116,0) -> 79 | T55: =INDEX(Weights!G$4:G$116,S55) -> 1 | U55: 0.3333333333 | V55: =IF(F55="",G55,CONCATENATE(F55,") ",IF(E55>=2,G55,UPPER(G55)))) -> 3.3.3) Decentralisation | W55: Qual | X55: 3
A56: 55 | B56: 0 | C56: GENPOL_S | D56: INST | E56: 2 | F56: 3.4 | G56: Gender focus in DRR policy | H56: 0 - 100 where 100= best and 0=worst | I56: Weighted sum of sub-indicator scores | J56: This is the weighted sum of the following indicator scores: 3.4.1 Gender perspective in disaster management planning 3.4.2 Inclusion of women in DRR decision-making and leadership 3.4.3 Consideration of the needs of female internally-displaced persons 3.4.4 Inclusion of women in disaster preparedness training 3.4.5 Measures to address violence against women | M56: 0 | N56: 1 | Q56: 0 | R56: 0.0 | S56: =MATCH(C56,iWeights!C$4:C$116,0) -> 25 | T56: =INDEX(Weights!G$4:G$116,S56) -> 1 | U56: 0.1666666667 | V56: 3.4) Gender focus in DRR policy
A57: 56 | B57: 0 | C57: GENPOL_01 | D57: GENPOL_S | E57: 3 | F57: 3.4.1 | G57: Gender perspective in disaster management planning | H57: Scoring (0 - 2), 2 = Best | I57: EIU qualitative assessment | J57: This indicator measures whether a gender perspective is included in disaster management planning. The scoring system is as follows: 2 points: A gender perspective is mandated and included in all national- and local-level disaster management plans, recognising both the vulnerabilities and important role of women 1 point: A gender perspective is included in some, but not all, national- or local-level disaster management plans; or it recognises vulnerabilities without acknowledging the role women should play in DRR 0 points: There is little or no evidence of a gender perspective in disaster management planning | M57: 0 | N57: 3 | O57: 0 | P57: 2 | Q57: 0 | R57: 0 | S57: =MATCH(C57,iWeights!C$4:C$116,0) -> 81 | T57: =INDEX(Weights!G$4:G$116,S57) -> 1 | U57: 0.2 | V57: 3.4.1) Gender perspective in disaster management planning | W57: Qual | X57: 2
A58: 57 | B58: 0 | C58: GENPOL_02 | D58: GENPOL_S | E58: 3 | F58: 3.4.2 | G58: Inclusion of women in DRR decision-making and leadership | H58: Scoring (0 - 3), 3 = Best | I58: EIU qualitative assessment | J58: This indicator captures the extent to which women are represented in decision-making and leadership at national and local level disaster management bodies. The scoring system is as follows: 3 points: Roughly equal female representation is mandatory on national- and local-level disaster management bodies; or exists in practice due to gender equality throughout the country’s bureaucracy 2 points: (Where gender equality is not the norm) female representation is mandatory on national- and local-level disaster management bodies 1 point: (Where gender equality is not the norm) female representation on disaster management bodies is recommended but not always mandatory 0 points: (Where gender equality is not the norm) there is no requirement or recommendation for female representation on disaster management planning councils (or equivalent bodies) | M58: 0 | N58: 3 | O58: 0 | P58: 3 | Q58: 0 | R58: 0 | S58: =MATCH(C58,iWeights!C$4:C$116,0) -> 82 | T58: =INDEX(Weights!G$4:G$116,S58) -> 1 | U58: 0.2 | V58: 3.4.2) Inclusion of women in DRR decision-making and leadership | W58: Qual | X58: 1
A59: 58 | B59: 0 | C59: GENPOL_03 | D59: GENPOL_S | E59: 3 | F59: 3.4.3 | G59: Consideration of the needs of female internally-displaced persons | H59: Scoring (0 - 6), 6 = Best | I59: EIU qualitative assessment | J59: This indicator measures whether the needs of female internally displaced persons are considered in policy. One point to be awarded where policy stipulates each of the following sub-indicators: 1. Women must be given leadership roles in designing and/or running shelters/temporary accommodation 2. Women’s privacy concerns must be taken into account in assessing needs and distributing relief items (eg through female administration or procedures which allow for privacy) 3. Shelters/temporary accommodation must provide separate sanitary facilities for women 4. Shelters/temporary accommodation must provide appropriate medical facilities/care for women 5. Security features are taken into account in designing/operating shelters/temporary accommodation | M59: 0 | N59: 3 | O59: 0 | P59: 6 | Q59: 0 | R59: 0 | S59: =MATCH(C59,iWeights!C$4:C$116,0) -> 83 | T59: =INDEX(Weights!G$4:G$116,S59) -> 1 | U59: 0.2 | V59: 3.4.3) Consideration of the needs of female internally-displaced persons | W59: Qual | X59: 4
A60: 59 | B60: 0 | C60: GENPOL_04 | D60: GENPOL_S | E60: 3 | F60: 3.4.4 | G60: Inclusion of women in disaster preparedness training | H60: Scoring (0 - 2), 2 = Best | I60: EIU qualitative assessment | J60: This indicator measures whether women are included in policy for disaster preparedness training. One point to be awarded for each of the following sub-indicators: 1. Where women have less mobility outside the home than men, the government makes efforts to support women’s participation in disaster training/drills; OR Women do not have significantly less mobility outside the home than men. 2. Government regulations/plans state that disaster training/drills must include guidance aimed specifically at women. | M60: 0 | N60: 3 | O60: 0 | P60: 2 | Q60: 0 | R60: 0 | S60: =MATCH(C60,iWeights!C$4:C$116,0) -> 84 | T60: =INDEX(Weights!G$4:G$116,S60) -> 1 | U60: 0.2 | V60: 3.4.4) Inclusion of women in disaster preparedness training | W60: Qual | X60: 2
A61: 60 | B61: 0 | C61: GENPOL_05 | D61: GENPOL_S | E61: 3 | F61: 3.4.5 | G61: Measures to address violence against women | H61: Scoring (0 - 2), 2 = Best | I61: EIU qualitative assessment | J61: This indicator looks at measures to address violence against women in DRR policy. The scoring system is as follows: 0= Violence against women (VAW) is recognised to be a widespread problem in this location, yet DRR plans/regulations do not recognise it as a significant problem in the context of a disaster. 1= VAW is recognised to be a widespread problem in this location, and DRR plans/regulations recognise this as a significant problem in the context of a disaster. 2= VAW is recognised to be a widespread problem in this location, and DRR plans/regulations not only recognise this as a significant problem in the context of a disaster, but include appropriate steps to address it (in law, policy, education, shelter design etc); OR violence against women is not considered to be a widespread problem in this location, and existing laws already adequately protect women. | M61: 0 | N61: 3 | O61: 0 | P61: 2 | Q61: 0 | R61: 0 | S61: =MATCH(C61,iWeights!C$4:C$116,0) -> 85 | T61: =INDEX(Weights!G$4:G$116,S61) -> 1 | U61: 0.2 | V61: 3.4.5) Measures to address violence against women | W61: Qual | X61: 2
A62: 61 | B62: 0 | C62: GOVEFF_S | D62: INST | E62: 2 | F62: 3.5 | G62: Government effectiveness | H62: 0 - 100 where 100= best and 0=worst | I62: Weighted sum of sub-indicator scores | J62: This is the weighted sum of the following indicator scores: 3.5.1 Government corruption 3.5.2 Quality of bureaucracy 3.5.3 Effectiveness of legal system 3.5.4 Well-defined property rights 3.5.5 Presence of free and independent media 3.5.6 Women's access to common property and government-allocated land 3.5.7 Women's property rights | M62: 0 | N62: 1 | Q62: 0 | R62: 0.0 | S62: =MATCH(C62,iWeights!C$4:C$116,0) -> 26 | T62: =INDEX(Weights!G$4:G$116,S62) -> 1 | U62: 0.1666666667 | V62: 3.5) Government effectiveness
A63: 62 | B63: 0 | C63: GOVEFF_01 | D63: GOVEFF_S | E63: 3 | F63: 3.5.1 | G63: Government corruption | H63: 0 - 100 where 100= best and 0=worst | I63: Transparency International, 2013 | J63: A country or territory’s score indicates the perceived level of public sector corruption on a scale of 0 - 100, where 0 means that a country is perceived as highly corrupt and 100 means it is perceived as very clean. | M63: 0 | N63: 2 | Q63: 0 | R63: 0.0 | S63: =MATCH(C63,iWeights!C$4:C$116,0) -> 87 | T63: =INDEX(Weights!G$4:G$116,S63) -> 1 | U63: 0.1428571429 | V63: 3.5.1) Government corruption | W63: Quant | X63: 74
A64: 63 | B64: 0 | C64: GOVEFF_02 | D64: GOVEFF_S | E64: 3 | F64: 3.5.2 | G64: Quality of the bureaucracy | H64: Scoring (1 - 4), 4 = Highest Risk | I64: EIU Risk Briefing | J64: This indicator assesses the quality of the bureaucracy across the following criteria: overall competency/training; morale/dedication; and compensation/status. Other factors that may change civil service quality within the forecast period, as well as prevailing conditions, are also considered. The scoring system is as follows: 1-4, with 1 being "very low risk" and 4 being "very high risk". | M64: 1 | N64: 3 | O64: 1 | P64: 4 | Q64: 0 | R64: 0 | S64: =MATCH(C64,iWeights!C$4:C$116,0) -> 88 | T64: =INDEX(Weights!G$4:G$116,S64) -> 1 | U64: 0.1428571429 | V64: 3.5.2) Quality of the bureaucracy | W64: Qual | X64: 1
A65: 64 | B65: 0 | C65: GOVEFF_03 | D65: GOVEFF_S | E65: 3 | F65: 3.5.3 | G65: Effectiveness of legal system | H65: Scoring (1 - 4), 4 = Highest Risk | I65: EIU Risk Briefing | J65: This indicator assesses the extent to which the authorities favour domestic interest over foreign companies in legal matters. Evaluating the record presented by recent case history; factors that may lead this to change have been considered. Is a new administration likely to present a more or less hostile position on foreign investment? Are local lobby groups growing in influence, or likely to do so within the forecast period? These component indicators assess: 1) Extent to which the legal process/the courts can be interfered with or distorted to serve particular interests. Are judicial appointments made independently of political interests? 2) The risk that contract rights will not be enforced. Considering the efficiency, transparency and impartiality of courts, regulatory boards and the police. 3) To what extent is the judicial process speedy and efficient? Evaluating according to historical record and indications that the duration of legal processes is likely to change 1-4, with 1 being "very low risk" and 4 being "very high risk"; weighted rankings for component indicators | M65: 1 | N65: 3 | O65: 1 | P65: 4 | Q65: 0 | R65: 0.0 | S65: =MATCH(C65,iWeights!C$4:C$116,0) -> 89 | T65: =INDEX(Weights!G$4:G$116,S65) -> 1 | U65: 0.1428571429 | V65: 3.5.3) Effectiveness of legal system | W65: Qual | X65: 2
A66: 65 | B66: 0 | C66: GOVEFF_04 | D66: GOVEFF_S | E66: 3 | F66: 3.5.4 | G66: Well-defined property rights | H66: Scoring (0- 4), 4 = Highest Risk | I66: EIU Risk Briefing; World Bank, World Governance Indicators | J66: This indicator assesses the intellectual and private property rights in a country. Scoring system is as follows: 1-4, with 1 being "very low risk" and 4 being "very high risk". These component indicators assess: 1) Extent of the protection of intellectual property in this country. How strict and well-enforced are regulations? How efficient are the courts in dealing with transgressors? Does an injured party gain an injunction? Does protection extend to patents, trademarks and service marks? 2) Degree to which private property rights are guaranteed and protected. Are existing legal protections effectively enforced? Is respect for private property rights credibly upheld by the current administration? Is it likely to change under an incoming one? | M66: 1 | N66: 3 | O66: 0 | P66: 4 | Q66: 0 | R66: 0.0 | S66: =MATCH(C66,iWeights!C$4:C$116,0) -> 90 | T66: =INDEX(Weights!G$4:G$116,S66) -> 1 | U66: 0.1428571429 | V66: 3.5.4) Well-defined property rights | W66: Qual | X66: 0.5
A67: 66 | B67: 0 | C67: GOVEFF_05 | D67: GOVEFF_S | E67: 3 | F67: 3.5.5 | G67: Presence of free and independent media | H67: Scoring (-2.5 - +2.5), +2.5 = Best | I67: World Bank, World Governance Indicators | J67: This indicator assesses perceptions of the extent to which a country's citizens are able to participate in selecting their government, as well as freedom of expression, freedom of association, and a free media. Estimate of governance ranges from approximately -2.5 (weak) to 2.5 (strong) governance performance. | M67: 0 | N67: 2 | O67: -2.5 | P67: 2.5 | Q67: 0 | R67: 0.0 | S67: =MATCH(C67,iWeights!C$4:C$116,0) -> 91 | T67: =INDEX(Weights!G$4:G$116,S67) -> 1 | U67: =T67/SUMIF(D$2:D$98,D67,T$2:T$98) -> 0.1428571429 | V67: =IF(F67="",G67,CONCATENATE(F67,") ",IF(E67>=2,G67,UPPER(G67)))) -> 3.5.5) Presence of free and independent media | W67: Qual | X67: 1.09
A68: 67 | B68: 0 | C68: GOVEFF_06 | D68: GOVEFF_S | E68: 3 | F68: 3.5.6 | G68: Women's access to common property and government-allocated land | H68: Scoring (0-2), 2 = Best | I68: EIU qualitative assessment | J68: This indicator measures women's access to common property and government-allocated land under the law. The scoring system is as follows: 0= Women are not given equal access to common property and government land allocations under the law 1= Women have equal access to common property and government land allocations under the law, but awareness/enforcement of the law is patchy 2= Women have equal access to common property and government land allocations under the law, and the law is generally known/enforced | M68: 0 | N68: 3 | O68: 0 | P68: 2 | Q68: 0 | R68: 0 | S68: =MATCH(C68,iWeights!C$4:C$116,0) -> 92 | T68: =INDEX(Weights!G$4:G$116,S68) -> 1 | U68: 0.1428571429 | V68: 3.5.6) Women's access to common property and government-allocated land | W68: Qual | X68: 2
A69: 68 | B69: 0 | C69: GOVEFF_07 | D69: GOVEFF_S | E69: 3 | F69: 3.5.7 | G69: Women's property rights | H69: Scoring (0-3), 0 = Best | I69: EIU qualitative assessment | J69: This indicator examines the legal environment for property ownership for women. The scoring system is as follows: 0= Men and women do not have equal ownership and inheritance rights over moveable and immoveable property 1= Men and women have equal ownership and inheritance rights according to legal codes, but customary practices take precedence over statutory law in the majority of cases, in ways that are harmful to women 2= Men and women have equal ownership and inheritance rights according to legal codes, but customary practices take precedence over statutory law in in a minority of cases in ways that are harmful to women (for example, in minority ethnic groups) 3= Men and women have equal ownership and inheritance rights according to legal codes and customary practices do not take precedence over statutory law/there are no relevant customary practices | M69: 0 | N69: 3 | O69: 0 | P69: 3 | Q69: 0 | R69: 0 | S69: =MATCH(C69,iWeights!C$4:C$116,0) -> 93 | T69: =INDEX(Weights!G$4:G$116,S69) -> 1 | U69: 0.1428571429 | V69: 3.5.7) Women's property rights | W69: Qual | X69: 3
A70: 69 | B70: 0 | C70: VIOLEN_S | D70: INST | E70: 2 | F70: 3.6 | G70: Violence | H70: 0 - 100 where 100= best and 0=worst | I70: Weighted sum of sub-indicator scores | J70: This is the weighted sum of the following indicator scores: 3.6.1 Violent crime level 3.6.2 Trafficking in persons 3.6.3 Deaths from organised conflict (internal) 3.6.4 Deaths from homicides | M70: 0 | N70: 1 | Q70: 0 | R70: 0.0 | S70: =MATCH(C70,iWeights!C$4:C$116,0) -> 27 | T70: =INDEX(Weights!G$4:G$116,S70) -> 1 | U70: 0.1666666667 | V70: 3.6) Violence
A71: 70 | B71: 0 | C71: VIOLEN_01 | D71: VIOLEN_S | E71: 3 | F71: 3.6.1 | G71: Violent crime level | H71: Scoring (1 - 5), 5 = Worst | I71: Global Peace Index, EIU, 2014 | J71: Assessment of the likelihood of violent crime ranked from 1 to 5 (very low to very high) based on the question “Is violent crime likely to pose a significant problem for government and/or business over the next two years? | M71: 1 | N71: 2 | Q71: 0 | R71: 0 | S71: =MATCH(C71,iWeights!C$4:C$116,0) -> 95 | T71: =INDEX(Weights!G$4:G$116,S71) -> 1 | U71: 0.25 | V71: 3.6.1) Violent crime level | W71: Qual | X71: 1
A72: 71 | B72: 0 | C72: VIOLEN_02 | D72: VIOLEN_S | E72: 3 | F72: 3.6.2 | G72: Trafficking in persons | H72: Scoring (0 - 4), 4 = Worst | I72: Trafficking in Persons Report, US State Department 2013 | J72: This indicator measures the performance of a country in anti-trafficking efforts based on the Trafficking in Persons report. Tier 1: Countries whose governments fully comply with the TVPA’s minimum standards for the elimination of trafficking Tier 2: Countries whose governments do not fully comply with the TVPA’s minimum standards but are making significant efforts to bring themselves into compliance with those standards Tier 2 Watch List: Countries whose governments do not fully comply with the TVPA’s minimum standards, but are making significant efforts to bring themselves into compliance with those standards Tier 3: Countries whose governments do not fully comply with the TVPA’s minimum standards and are not making significant efforts to do so The scoring system is as follows: Tier 1 = 1 Tier 2 = 2 Tier 2 watchlist = 3 Tier 3 = 4 | M72: 1 | N72: 3 | O72: 1 | P72: 4 | Q72: 0 | R72: 0 | S72: =MATCH(C72,iWeights!C$4:C$116,0) -> 96 | T72: =INDEX(Weights!G$4:G$116,S72) -> 1 | U72: 0.25 | V72: 3.6.2) Trafficking in persons | W72: Qual | X72: 2
A73: 72 | B73: 0 | C73: VIOLEN_03 | D73: VIOLEN_S | E73: 3 | F73: 3.6.3 | G73: Deaths from organised conflict (internal) | H73: # | I73: UCDP Battle-Related Deaths Dataset v.5-2014, Uppsala Conflict Data Program, Uppsala University | J73: Total number of deaths from internal armed conflict from 2002-2012. Defined as conflict that occurs between the government of a state and one or more internal opposition group(s) without intervention from other states. | M73: 1 | N73: 2 | Q73: 0 | R73: 0.0 | S73: =MATCH(C73,iWeights!C$4:C$116,0) -> 97 | T73: =INDEX(Weights!G$4:G$116,S73) -> 1 | U73: 0.25 | V73: 3.6.3) Deaths from organised conflict (internal) | W73: Quant | X73: 0
A74: 73 | B74: 0 | C74: VIOLEN_04 | D74: VIOLEN_S | E74: 3 | F74: 3.6.4 | G74: Deaths from homicides | H74: # | I74: United Nations Office on Drugs and Crime, 2003-2007 | J74: Average annual intentional homicide rate per 100,000 population (2003-2010). | M74: 1 | N74: 2 | Q74: 0 | R74: 0.0 | S74: =MATCH(C74,iWeights!C$4:C$116,0) -> 98 | T74: =INDEX(Weights!G$4:G$116,S74) -> 1 | U74: 0.25 | V74: 3.6.4) Deaths from homicides | W74: Quant | X74: 0
A75: 74 | B75: 0 | C75: SOCIAL | D75: TOTAL | E75: 1 | F75: 4 | G75: SOCIAL | H75: 0 - 100 where 100= best and 0=worst | I75: Weighted sum of indicator scores | J75: This is the weighted sum of the following indicator scores: 4.1 Population vulnerability 4.2 Education 4.3 Health | M75: 0 | N75: 1 | Q75: 0 | R75: 0.0 | S75: =MATCH(C75,iWeights!C$4:C$116,0) -> 4 | T75: =INDEX(Weights!G$4:G$116,S75) -> 1 | U75: 0.25 | V75: 4) SOCIAL
A76: 75 | B76: 0 | C76: POPUL_S | D76: SOCIAL | E76: 2 | F76: 4.1 | G76: Population vulnerability | H76: 0 - 100 where 100= best and 0=worst | I76: Weighted sum of sub-indicator scores | J76: This is the weighted sum of the following indicator scores: 4.1.1 Dependency ratio 4.1.2 Number of internally displaced persons (IDPs) 4.1.3 Ease of mobility for women | M76: 0 | N76: 1 | Q76: 0 | R76: 0.0 | S76: =MATCH(C76,iWeights!C$4:C$116,0) -> 29 | T76: =INDEX(Weights!G$4:G$116,S76) -> 1 | U76: 0.3333333333 | V76: 4.1) Population vulnerability
A77: 76 | B77: 0 | C77: POPUL_01 | D77: POPUL_S | E77: 3 | F77: 4.1.1 | G77: Dependency ratio | H77: ratio | I77: World Bank, World Development Indicators, 2012 | J77: Age dependency ratio is the ratio of dependents (people younger than 15 or older than 64) to the working-age population (those ages 15-64). Data shown as the proportion of dependents per 100 working-age population. | M77: 0 | N77: 2 | Q77: 0 | R77: 0.0 | S77: =MATCH(C77,iWeights!C$4:C$116,0) -> 100 | T77: =INDEX(Weights!G$4:G$116,S77) -> 1 | U77: 0.3333333333 | V77: 4.1.1) Dependency ratio | W77: Quant | X77: 60
A78: 77 | B78: 0 | C78: POPUL_02 | D78: POPUL_S | E78: 3 | F78: 4.1.2 | G78: Internally displaced persons (IDPs) | H78: % | I78: Internal Displacement Monitoring Centre, Global Overview 2014; US Department of State, Human Rights Report Bhutan, 2009; Japanese Red Cross Society, 2013; UNHCR, 2014; World Bank Databank, World Development Indicators, Population 2013 | J78: Number of internal displaced persons as a proportion of the total population (%). | M78: 1 | N78: 2 | Q78: 0 | R78: 0.0000 | S78: =MATCH(C78,iWeights!C$4:C$116,0) -> 101 | T78: =INDEX(Weights!G$4:G$116,S78) -> 1 | U78: 0.3333333333 | V78: 4.1.2) Internally displaced persons (IDPs) | W78: Quant | X78: 0
A79: 78 | B79: 0 | C79: POPUL_03 | D79: POPUL_S | E79: 3 | F79: 4.1.3 | G79: Ease of mobility for women | H79: 0 - 100 where 100= best and 0=worst | I79: EIU qualitative assessment | J79: The indicator measures the ease of mobility of women outsides their homes, taking into account certain societal restrictions that may lower mobility. The scoring system is as follows: 0-2 points: 0= For a majority of the population, responsibility for childcare, care of the elderly/disabled and household chores fall on women to the extent that mobility and options for outside employment are greatly restricted compared to men 1= For a significant minority of the population (10-50%), responsibility for childcare, care of the elderly/disabled and household chores fall on women to the extent that mobility and options for outside employment are greatly restricted compared to men 2= Typically, women's responsibilities for childcare, care of the elderly/disabled and household chores do not excessively hamper their mobility or options for outside employment (owing, for example, to a culture of gender equality and/or strong state provision of social care) 0-2 points: 0= For a majority of the population, it is not socially acceptable for women to visit public places without being accompanied by a male relative, even to seek healthcare 1= For a significant minority of the population (10-50%), it is not socially acceptable for women to visit public places without being accompanied by a male relative, even to seek healthcare 2= Women face no social stigma or religious norms restricting independent travel outside of the family home | M79: 0 | N79: 3 | O79: 0 | P79: 4 | Q79: 0 | R79: 0 | S79: =MATCH(C79,iWeights!C$4:C$116,0) -> 102 | T79: =INDEX(Weights!G$4:G$116,S79) -> 1 | U79: 0.3333333333 | V79: 4.1.3) Ease of mobility for women | W79: Qual | X79: 3
A80: 79 | B80: 0 | C80: EDUCA_S | D80: SOCIAL | E80: 2 | F80: 4.2 | G80: Education and gender | H80: 0 - 100 where 100= best and 0=worst | I80: Weighted sum of sub-indicator scores | J80: This is the weighted sum of the following indicator scores: 4.2.1 Female/male literacy rate 4.2.2 Rate of secondary school enrollment (girls) 4.2.4 Rate of primary school enrollment (girls | M80: 0 | N80: 1 | Q80: 0 | R80: 0.0 | S80: =MATCH(C80,iWeights!C$4:C$116,0) -> 30 | T80: =INDEX(Weights!G$4:G$116,S80) -> 1 | U80: 0.3333333333 | V80: 4.2) Education and gender
A81: 80 | B81: 0 | C81: EDUCA_01 | D81: EDUCA_S | E81: 3 | F81: 4.2.1 | G81: Female/male literacy rate | H81: ratio | I81: World Bank, World Development Indicators, 2012 | J81: Gender parity index for youth literacy rate is the ratio of female youth literacy rate to male youth literacy rate. It is calculated by dividing the female value for the indicator by the male value for the indicator. A GPI equal to 1 indicates parity between females and males. A value less than 1 indicates disparity in favour of males and a value greater than 1 indicates disparity in favour of females. | M81: 0 | N81: 2 | Q81: 0 | R81: 0.0 | S81: =MATCH(C81,iWeights!C$4:C$116,0) -> 104 | T81: =INDEX(Weights!G$4:G$116,S81) -> 1 | U81: 0.3333333333 | V81: 4.2.1) Female/male literacy rate | W81: Quant | X81: 1
A82: 81 | B82: 0 | C82: EDUCA_02 | D82: EDUCA_S | E82: 3 | F82: 4.2.2 | G82: Rate of secondary school enrollment (girls) | H82: % | I82: World Bank, World Development Indicators | J82: Total enrollment in secondary education, regardless of age, expressed as a percentage of the population of official secondary education age. The figure can exceed 100% due to the inclusion of over-aged and under-aged students because of early or late school entrance and grade repetition. | M82: 0 | N82: 2 | Q82: 0 | R82: 0.0 | S82: =MATCH(C82,iWeights!C$4:C$116,0) -> 105 | T82: =INDEX(Weights!G$4:G$116,S82) -> 1 | U82: 0.3333333333 | V82: 4.2.2) Rate of secondary school enrollment (girls) | W82: Quant | X82: 101.9
A83: 82 | B83: 0 | C83: EDUCA_03 | D83: EDUCA_S | E83: 3 | F83: 4.2.3 | G83: Rate of primary school enrollment (girls) | H83: % | I83: World Bank, World Development Indicators | J83: Total enrollment in primary education, regardless of age, expressed as a percentage of the population of official primary education age. The figure can exceed 100% due to the inclusion of over-aged and under-aged students because of early or late school entrance and grade repetition. | M83: 0 | N83: 2 | Q83: 0 | R83: 0.0 | S83: =MATCH(C83,iWeights!C$4:C$116,0) -> 106 | T83: =INDEX(Weights!G$4:G$116,S83) -> 1 | U83: 0.3333333333 | V83: 4.2.3) Rate of primary school enrollment (girls) | W83: Quant | X83: 102.2
A84: 83 | B84: 0 | C84: HEALTH_S | D84: SOCIAL | E84: 2 | F84: 4.3 | G84: Health | H84: 0 - 100 where 100= best and 0=worst | I84: Weighted sum of sub-indicator scores | J84: This is the weighted sum of the following indicator scores: 4.3.1 # of doctors/1000 4.3.2 # of hospitals/land unit 4.3.3 Affordability of healthcare 4.3.4 Level of child malnutrition 4.3.5 Fertility rate 4.3.6 Psychiatric morbidity | M84: 0 | N84: 1 | Q84: 0 | R84: 0.0 | S84: =MATCH(C84,iWeights!C$4:C$116,0) -> 31 | T84: =INDEX(Weights!G$4:G$116,S84) -> 1 | U84: 0.3333333333 | V84: 4.3) Health
A85: 84 | B85: 0 | C85: HEALTH_01 | D85: HEALTH_S | E85: 3 | F85: 4.3.1 | G85: # of doctors/1000 | H85: #/1000 | I85: World Health Organization, 2012 | J85: Number of medical doctors (physicians), including generalist and specialist medical practitioners, per 1000 population. | M85: 0 | N85: 3 | O85: 0.2 | P85: 2.3 | Q85: 0 | R85: 0.0 | S85: =MATCH(C85,iWeights!C$4:C$116,0) -> 108 | T85: =INDEX(Weights!G$4:G$116,S85) -> 1 | U85: 0.1666666667 | V85: 4.3.1) # of doctors/1000 | W85: Quant | X85: 2.297
A86: 85 | B86: 0 | C86: HEALTH_02 | D86: HEALTH_S | E86: 3 | F86: 4.3.2 | G86: # of hospitals/land unit | H86: #/sq.km | I86: Bangladesh Health, Family Planning and Social Statistics, 2012; Bhutan Annual Health Bulletin, 2010; Indian Chamber of Commerce, Healthcare, Infrastructure and Servicecs Financing in India, 2012; WHO and Ministry of Health, Labour and Welfare "Health Service Delivery Profile, Japan" 2012; Commonwealth Health Online, Maldives, 2011; Central Bureau of Statistics, Nepal in Figures, 2012; Pakistan Bureau of Statistics, 2012; Annual Health Bulletin 2012, Sri Lanka | J86: Number of hospitals / sq km of land. | M86: 0 | N86: 2 | Q86: 0 | R86: 0.0 | S86: =MATCH(C86,iWeights!C$4:C$116,0) -> 109 | T86: =INDEX(Weights!G$4:G$116,S86) -> 1 | U86: 0.1666666667 | V86: 4.3.2) # of hospitals/land unit | W86: Quant | X86: 2.29
A87: 86 | B87: 0 | C87: HEALTH_03 | D87: HEALTH_S | E87: 3 | F87: 4.3.3 | G87: Affordability of healthcare | H87: % | I87: World Bank, World Development Indicators, 2012 | J87: Private expenditure on health as a percentage of total expenditure on health ('out of pocket' as % of total health expenditure). | M87: 1 | N87: 3 | O87: 0 | P87: 100 | Q87: 0 | R87: 0.0 | S87: =MATCH(C87,iWeights!C$4:C$116,0) -> 110 | T87: =INDEX(Weights!G$4:G$116,S87) -> 1 | U87: 0.1666666667 | V87: 4.3.3) Affordability of healthcare | W87: Qual | X87: 19.7
A88: 87 | B88: 0 | C88: HEALTH_04 | D88: HEALTH_S | E88: 3 | F88: 4.3.4 | G88: Level of child malnutrition | H88: % | I88: World Bank, World Development Indicators, 2012 | J88: Prevalence of child malnutrition is the percentage of children under age 5 whose weight for age is more than two standard deviations below the median for the international reference population ages 0-59 months. The data are based on the WHO's new child growth standards released in 2006. | M88: 1 | N88: 2 | Q88: 0 | R88: 0.0 | S88: =MATCH(C88,iWeights!C$4:C$116,0) -> 111 | T88: =INDEX(Weights!G$4:G$116,S88) -> 1 | U88: 0.1666666667 | V88: 4.3.4) Level of child malnutrition | W88: Quant | X88: na
A89: 88 | B89: 0 | C89: HEALTH_05 | D89: HEALTH_S | E89: 3 | F89: 4.3.5 | G89: Fertility rate | H89: # | I89: World Bank, World Development Indicators, 2012 | J89: Total fertility rate represents the number of children that would be born to a woman if she were to live to the end of her childbearing years and bear children in accordance with current age-specific fertility rates. | M89: 1 | N89: 2 | Q89: 0 | R89: 0.0 | S89: =MATCH(C89,iWeights!C$4:C$116,0) -> 112 | T89: =INDEX(Weights!G$4:G$116,S89) -> 1 | U89: 0.1666666667 | V89: 4.3.5) Fertility rate | W89: Quant | X89: 1.4
A90: 89 | B90: 0 | C90: HEALTH_06 | D90: HEALTH_S | E90: 3 | F90: 4.3.6 | G90: Psychiatric morbidity | H90: #/100,000 | I90: World Health Organization Mental Health Country Profiles, 2011-2012 | J90: Aggregate of admissions to mental health hospitals and persons treated in mental health outpatient facilities per 100,000 population. | M90: 1 | N90: 2 | Q90: 0 | R90: 0.0 | S90: =MATCH(C90,iWeights!C$4:C$116,0) -> 113 | T90: =INDEX(Weights!G$4:G$116,S90) -> 1 | U90: 0.1666666667 | V90: 4.3.6) Psychiatric morbidity | W90: Quant | X90: 193.71
A91: 90 | B91: 1 | C91: EXPO | D91: TOTL | E91: 1 | F91: 5 | G91: EXPOSURE | M91: 0 | Q91: 0 | R91: 0.0 | V91: 5) EXPOSURE
A92: 91 | B92: 1 | C92: EXPO_S | D92: EXPO | E92: 2 | F92: 5.1 | G92: Exposure | H92: Background reference indicators | M92: 0 | Q92: 1 | R92: 0.0 | V92: 5.1) Exposure
A93: 92 | B93: 1 | C93: EXPO_01 | D93: EXPO_S | E93: 3 | F93: 5.1.1 | G93: Rate of urbanisation | H93: % | I93: United Nations Department of Economic and Social Affairs (UNDESA) | J93: Increase in the proportion of urban population over time, calculated as the rate of growth of the urban population minus that of the total population, from (2010-2015) | M93: 1 | Q93: 1 | R93: 0 | V93: 5.1.1) Rate of urbanisation | W93: Quant | X93: 0.7
A94: 93 | B94: 1 | C94: EXPO_02 | D94: EXPO_S | E94: 3 | F94: 5.1.2 | G94: Population growth | H94: % | I94: World Bank, World Development Indicators | J94: Annual population growth rate for year t is the exponential rate of growth of midyear population from year t-1 to t, expressed as a percentage. Population is based on the de facto definition of population, which counts all residents regardless of legal status or citizenship--except for refugees not permanently settled in the country of asylum, who are generally considered part of the population of the country of origin (2012). | M94: 1 | Q94: 1 | R94: 0.0 | V94: 5.1.2) Population growth | W94: Quant | X94: -0.2
A95: 94 | B95: 1 | C95: EXPO_03 | D95: EXPO_S | E95: 3 | F95: 5.1.3 | G95: Death from disasters | H95: # | I95: The International Disaster Database | J95: Number of deaths from disasters (1995-2014). | M95: 1 | Q95: 1 | R95: #,### | V95: 5.1.3) Death from disasters | W95: Quant | X95: 27098
A96: 95 | B96: 1 | C96: EXPO_04 | D96: EXPO_S | E96: 3 | F96: 5.1.4 | G96: Economic damage from disasters | H96: Thousand USD | I96: The International Disaster Database | J96: Economic damage from disasters (1995-2014). | M96: 1 | Q96: 1 | R96: #,### | V96: 5.1.4) Economic damage from disasters | W96: Quant | X96: 520614073.7
A97: 96 | B97: 1 | C97: EXPO_05 | D97: EXPO_S | E97: 3 | F97: 5.1.5 | G97: List of major disasters | H97: # | I97: The International Disaster Database | J97: List of major disasters (1995-2014). | M97: 1 | Q97: 1 | R97: #,###.0 | V97: 5.1.5) List of major disasters | W97: Qual | X97: Available
A98: 97 | B98: 1 | C98: EXPO_06 | D98: EXPO_S | E98: 3 | F98: 5.1.6 | G98: Rate of migration | H98: #/1000 | I98: UNDESA, World Population Prospects: The 2012 Revision | J98: Migrants/1000 population (2005-2010). | M98: 1 | Q98: 1 | R98: 0.0 | V98: 5.1.6) Rate of migration | W98: Quant | X98: 0.7

Sheet tblCategories (hidden)
A1: CityID | B1: ISO | C1: City | D1: DisplayName | E1: ISO/MAP | F1: Display_Status | G1: ParentCountry | M1: 1 | N1: 2 | O1: 3 | P1: 4 | Q1: 5 | R1: 6
A2: 0 | C2: <none> | D2: =C2 -> <none> | F2: 0 | K2: All | M2: =INDEX(tblIndiSets!$C$41:$C$46,tblCategories!M1) -> VIEW ALL | N2: =INDEX(tblIndiSets!$C$41:$C$46,tblCategories!N1) -> 1) ECONOMIC | O2: =INDEX(tblIndiSets!$C$41:$C$46,tblCategories!O1) -> 2) INFRASTRUCTURE | P2: =INDEX(tblIndiSets!$C$41:$C$46,tblCategories!P1) -> 3) INSTITUTIONAL | Q2: =INDEX(tblIndiSets!$C$41:$C$46,tblCategories!Q1) -> 4) SOCIAL | R2: =INDEX(tblIndiSets!$C$41:$C$46,tblCategories!R1) -> 5) EXPOSURE
A3: 1 | C3: =tblIndicators!V3 -> 1) ECONOMIC | D3: =C3 -> 1) ECONOMIC | F3: =IF(INDEX($M3:$R3,$I$5)=0,0,IF(A3=$I$3,3,IF(INDEX($L3:$R3,$I$4)=1,1,1))) -> 3 | H3: COUNTRY_HIGHLIGHT_ID | I3: =uxbWorks!B9 -> 1 | K3: 0 | L3: 1 | M3: 1 | N3: 1 | O3: 0 | P3: 0 | Q3: 0 | R3: 0
A4: 2 | C4: =tblIndicators!V4 -> 1.1) Country-level economic strength | D4: =C4 -> 1.1) Country-level economic strength | F4: =IF(INDEX($M4:$R4,$I$5)=0,0,IF(A4=$I$3,3,IF(INDEX($L4:$R4,$I$4)=1,1,1))) -> 1 | H4: GROUP_HIGHLIGHT_ID | I4: 1 | L4: 1 | M4: 1 | N4: 1 | O4: 0 | P4: 0 | Q4: 0 | R4: 0
A5: 3 | C5: =tblIndicators!V5 -> 1.1.1) GDP per capita | D5: 1.1.1) GDP per capita | F5: 1 | I5: =CountryCompare!AL303 -> 1 | L5: 1 | M5: 1 | N5: 1 | O5: 0 | P5: 0 | Q5: 0 | R5: 0
A6: 4 | C6: =tblIndicators!V6 -> 1.1.2) Level of foreign currency reserves | D6: 1.1.2) Level of foreign currency reserves | F6: 1 | L6: 1 | M6: 1 | N6: 1 | O6: 0 | P6: 0 | Q6: 0 | R6: 0
A7: 5 | C7: =tblIndicators!V7 -> 1.1.3) Poverty headcount ratio | D7: 1.1.3) Poverty headcount ratio | F7: 1 | L7: 1 | M7: 1 | N7: 1 | O7: 0 | P7: 0 | Q7: 0 | R7: 0
A8: 6 | C8: =tblIndicators!V8 -> 1.1.4) Government funding for disaster relief (per person) | D8: 1.1.4) Government funding for disaster relief (per person) | F8: 1 | L8: 1 | M8: 1 | N8: 1 | O8: 0 | P8: 0 | Q8: 0 | R8: 0
A9: 7 | C9: =tblIndicators!V9 -> 1.2) Personal finance: Women | D9: 1.2) Personal finance: Women | F9: 1 | L9: 1 | M9: 1 | N9: 1 | O9: 0 | P9: 0 | Q9: 0 | R9: 0
A10: 8 | C10: =tblIndicators!V10 -> 1.2.1) Microfinance: Women borrowers | D10: 1.2.1) Microfinance: Women borrowers | F10: 1 | L10: 1 | M10: 1 | N10: 1 | O10: 0 | P10: 0 | Q10: 0 | R10: 0
A11: 9 | C11: =tblIndicators!V11 -> 1.2.2) Building credit histories | D11: 1.2.2) Building credit histories | F11: 1 | L11: 1 | M11: 1 | N11: 1 | O11: 0 | P11: 0 | Q11: 0 | R11: 0
A12: 10 | C12: =tblIndicators!V12 -> 1.2.3) Women's access to finance programmes | D12: 1.2.3) Women's access to finance programmes | F12: 1 | L12: 1 | M12: 1 | N12: 1 | O12: 0 | P12: 0 | Q12: 0 | R12: 0
A13: 11 | C13: =tblIndicators!V13 -> 1.2.4) Loans at financial institutions | D13: 1.2.4) Loans at financial institutions | F13: 1 | L13: 1 | M13: 1 | N13: 1 | O13: 0 | P13: 0 | Q13: 0 | R13: 0
A14: 12 | C14: =tblIndicators!V14 -> 1.2.5) Accounts at financial institutions | D14: 1.2.5) Accounts at financial institutions | F14: 1 | L14: 1 | M14: 1 | N14: 1 | O14: 0 | P14: 0 | Q14: 0 | R14: 0
A15: 13 | C15: =tblIndicators!V15 -> 1.3) Labour environment: Women | D15: 1.3) Labour environment: Women | F15: 1 | L15: 1 | M15: 1 | N15: 1 | O15: 0 | P15: 0 | Q15: 0 | R15: 0
A16: 14 | C16: =tblIndicators!V16 -> 1.3.1) Employment guarantee schemes for women | D16: 1.3.1) Employment guarantee schemes for women | F16: 1 | L16: 1 | M16: 1 | N16: 1 | O16: 0 | P16: 0 | Q16: 0 | R16: 0
A17: 15 | C17: =tblIndicators!V17 -> 1.3.2) Female unemployment rate | D17: 1.3.2) Female unemployment rate | F17: 1 | L17: 1 | M17: 1 | N17: 1 | O17: 0 | P17: 0 | Q17: 0 | R17: 0
A18: 16 | C18: =tblIndicators!V18 -> 2) INFRASTRUCTURE | D18: 2) INFRASTRUCTURE | F18: 1 | L18: 1 | M18: 1 | N18: 0 | O18: 1 | P18: 0 | Q18: 0 | R18: 0
A19: 17 | C19: =tblIndicators!V19 -> 2.1) Adherence to land use regulations | D19: 2.1) Adherence to land use regulations | F19: 1 | L19: 1 | M19: 1 | N19: 0 | O19: 1 | P19: 0 | Q19: 0 | R19: 0
A20: 18 | C20: =tblIndicators!V20 -> 2.2) Adherence to building codes | D20: 2.2) Adherence to building codes | F20: 1 | L20: 1 | M20: 1 | N20: 0 | O20: 1 | P20: 0 | Q20: 0 | R20: 0
A21: 19 | C21: =tblIndicators!V21 -> 2.3) Communication | D21: 2.3) Communication | F21: 1 | L21: 1 | M21: 1 | N21: 0 | O21: 1 | P21: 0 | Q21: 0 | R21: 0
A22: 20 | C22: =tblIndicators!V22 -> 2.3.1) Penetration of TV | D22: 2.3.1) Penetration of TV | F22: 1 | L22: 1 | M22: 1 | N22: 0 | O22: 1 | P22: 0 | Q22: 0 | R22: 0
A23: 21 | C23: =tblIndicators!V23 -> 2.3.2) Penetration of Radio | D23: 2.3.2) Penetration of Radio | F23: 1 | L23: 1 | M23: 1 | N23: 0 | O23: 1 | P23: 0 | Q23: 0 | R23: 0
A24: 22 | C24: =tblIndicators!V24 -> 2.3.3) Mobile cellular subscriptions | D24: 2.3.3) Mobile cellular subscriptions | F24: 1 | L24: 1 | M24: 1 | N24: 0 | O24: 1 | P24: 0 | Q24: 0 | R24: 0
A25: 23 | C25: =tblIndicators!V25 -> 2.3.4) Availability of an effective early warning system | D25: 2.3.4) Availability of an effective early warning system | F25: 1 | L25: 1 | M25: 1 | N25: 0 | O25: 1 | P25: 0 | Q25: 0 | R25: 0
A26: 24 | C26: =tblIndicators!V26 -> 2.4) Power | D26: 2.4) Power | F26: 1 | L26: 1 | M26: 1 | N26: 0 | O26: 1 | P26: 0 | Q26: 0 | R26: 0
A27: 25 | C27: =tblIndicators!V27 -> 2.4.1) Quality of power | D27: 2.4.1) Quality of power | F27: 1 | L27: 1 | M27: 1 | N27: 0 | O27: 1 | P27: 0 | Q27: 0 | R27: 0
A28: 26 | C28: =tblIndicators!V28 -> 2.4.2) Access to electricity | D28: 2.4.2) Access to electricity | F28: 1 | L28: 1 | M28: 1 | N28: 0 | O28: 1 | P28: 0 | Q28: 0 | R28: 0
A29: 27 | C29: =tblIndicators!V29 -> 2.5) Environmental performance | D29: 2.5) Environmental performance | F29: 1 | L29: 1 | M29: 1 | N29: 0 | O29: 1 | P29: 0 | Q29: 0 | R29: 0
A30: 28 | C30: =tblIndicators!V30 -> 2.5.1) Treatment of wastewater | D30: 2.5.1) Treatment of wastewater | F30: 1 | L30: 1 | M30: 1 | N30: 0 | O30: 1 | P30: 0 | Q30: 0 | R30: 0
A31: 29 | C31: =tblIndicators!V31 -> 2.5.2) Pesticide and fertiliser regulation | D31: 2.5.2) Pesticide and fertiliser regulation | F31: 1 | L31: 1 | M31: 1 | N31: 0 | O31: 1 | P31: 0 | Q31: 0 | R31: 0
A32: 30 | C32: =tblIndicators!V32 -> 2.5.3) Loss in forested area | D32: 2.5.3) Loss in forested area | F32: 1 | L32: 1 | M32: 1 | N32: 0 | O32: 1 | P32: 0 | Q32: 0 | R32: 0
A33: 31 | C33: =tblIndicators!V33 -> 2.5.4) Protection of terrestrial and marine areas | D33: 2.5.4) Protection of terrestrial and marine areas | F33: 1 | L33: 1 | M33: 1 | N33: 0 | O33: 1 | P33: 0 | Q33: 0 | R33: 0
A34: 32 | C34: =tblIndicators!V34 -> 2.6) Sanitation | D34: 2.6) Sanitation | F34: 1 | L34: 1 | M34: 1 | N34: 0 | O34: 1 | P34: 0 | Q34: 0 | R34: 0
A35: 33 | C35: =tblIndicators!V35 -> 2.6.1) Access to sanitation | D35: 2.6.1) Access to sanitation | F35: 1 | L35: 1 | M35: 1 | N35: 0 | O35: 1 | P35: 0 | Q35: 0 | R35: 0
A36: 34 | C36: =tblIndicators!V36 -> 2.6.2) Waste water treatment (Urban) | D36: 2.6.2) Waste water treatment (Urban) | F36: 1 | L36: 1 | M36: 1 | N36: 0 | O36: 1 | P36: 0 | Q36: 0 | R36: 0
A37: 35 | C37: =tblIndicators!V37 -> 2.6.3) Waste water treatment (Rural) | D37: 2.6.3) Waste water treatment (Rural) | F37: 1 | L37: 1 | M37: 1 | N37: 0 | O37: 1 | P37: 0 | Q37: 0 | R37: 0
A38: 36 | C38: =tblIndicators!V38 -> 2.7) Quality of transport network | D38: 2.7) Quality of transport network | F38: 1 | L38: 1 | M38: 1 | N38: 0 | O38: 1 | P38: 0 | Q38: 0 | R38: 0
A39: 37 | C39: =tblIndicators!V39 -> 2.8) Access to potable water | D39: 2.8) Access to potable water | F39: 1 | L39: 1 | M39: 1 | N39: 0 | O39: 1 | P39: 0 | Q39: 0 | R39: 0
A40: 38 | C40: =tblIndicators!V40 -> 3) INSTITUTIONAL | D40: 3) INSTITUTIONAL | F40: 1 | L40: 1 | M40: 1 | N40: 0 | O40: 0 | P40: 1 | Q40: 0 | R40: 0
A41: 39 | C41: =tblIndicators!V41 -> 3.1) Domestic protection | D41: 3.1) Domestic protection | F41: 1 | L41: 1 | M41: 1 | N41: 0 | O41: 0 | P41: 1 | Q41: 0 | R41: 0
A42: 40 | C42: =tblIndicators!V42 -> 3.1.1) Implementation of CEDAW | D42: 3.1.1) Implementation of CEDAW | F42: 1 | L42: 1 | M42: 1 | N42: 0 | O42: 0 | P42: 1 | Q42: 0 | R42: 0
A43: 41 | C43: =tblIndicators!V43 -> 3.1.2) Asssessment of National Critical Infrastructure Plan | D43: 3.1.2) Asssessment of National Critical Infrastructure Plan | F43: 1 | L43: 1 | M43: 1 | N43: 0 | O43: 0 | P43: 1 | Q43: 0 | R43: 0
A44: 42 | C44: =tblIndicators!V44 -> 3.1.3) Existence of social safety nets | D44: 3.1.3) Existence of social safety nets | F44: 1 | L44: 1 | M44: 1 | N44: 0 | O44: 0 | P44: 1 | Q44: 0 | R44: 0
A45: 43 | C45: =tblIndicators!V45 -> 3.2) Culture of safety | D45: 3.2) Culture of safety | F45: 1 | L45: 1 | M45: 1 | N45: 0 | O45: 0 | P45: 1 | Q45: 0 | R45: 0
A46: 44 | C46: =tblIndicators!V46 -> 3.2.1) Drills | D46: 3.2.1) Drills | F46: 1 | L46: 1 | M46: 1 | N46: 0 | O46: 0 | P46: 1 | Q46: 0 | R46: 0
A47: 45 | C47: =tblIndicators!V47 -> 3.2.2) Quality of emergency response team | D47: 3.2.2) Quality of emergency response team | F47: 1 | L47: 1 | M47: 1 | N47: 0 | O47: 0 | P47: 1 | Q47: 0 | R47: 0
A48: 46 | C48: =tblIndicators!V48 -> 3.2.3) Military force | D48: 3.2.3) Military force | F48: 1 | L48: 1 | M48: 1 | N48: 0 | O48: 0 | P48: 1 | Q48: 0 | R48: 0
A49: 47 | C49: =tblIndicators!V49 -> 3.2.4) Police force | D49: 3.2.4) Police force | F49: 1 | L49: 1 | M49: 1 | N49: 0 | O49: 0 | P49: 1 | Q49: 0 | R49: 0
A50: 48 | C50: =tblIndicators!V50 -> 3.2.5) Women in police force | D50: 3.2.5) Women in police force | F50: 1 | L50: 1 | M50: 1 | N50: 0 | O50: 0 | P50: 1 | Q50: 0 | R50: 0
A51: 49 | C51: =tblIndicators!V51 -> 3.2.6) Influence of women in police force | D51: 3.2.6) Influence of women in police force | F51: 1 | L51: 1 | M51: 1 | N51: 0 | O51: 0 | P51: 1 | Q51: 0 | R51: 0
A52: 50 | C52: =tblIndicators!V52 -> 3.3) Policy coordination | D52: 3.3) Policy coordination | F52: 1 | L52: 1 | M52: 1 | N52: 0 | O52: 0 | P52: 1 | Q52: 0 | R52: 0
A53: 51 | C53: =tblIndicators!V53 -> 3.3.1) Transboundary risk assessment systems and agreements | D53: 3.3.1) Transboundary risk assessment systems and agreements | F53: 1 | L53: 1 | M53: 1 | N53: 0 | O53: 0 | P53: 1 | Q53: 0 | R53: 0
A54: 52 | C54: =tblIndicators!V54 -> 3.3.2) National platform for multilevel coordination of DRR | D54: 3.3.2) National platform for multilevel coordination of DRR | F54: 1 | L54: 1 | M54: 1 | N54: 0 | O54: 0 | P54: 1 | Q54: 0 | R54: 0
A55: 53 | C55: =tblIndicators!V55 -> 3.3.3) Decentralisation | D55: =C55 -> 3.3.3) Decentralisation | F55: =IF(INDEX($M55:$R55,$I$5)=0,0,IF(A55=$I$3,3,IF(INDEX($L55:$R55,$I$4)=1,1,1))) -> 1 | L55: 1 | M55: 1 | N55: 0 | O55: 0 | P55: 1 | Q55: 0 | R55: 0
A56: 54 | C56: =tblIndicators!V56 -> 3.4) Gender focus in DRR policy | D56: 3.4) Gender focus in DRR policy | F56: 1 | L56: 1 | M56: 1 | N56: 0 | O56: 0 | P56: 1 | Q56: 0 | R56: 0
A57: 55 | C57: =tblIndicators!V57 -> 3.4.1) Gender perspective in disaster management planning | D57: 3.4.1) Gender perspective in disaster management planning | F57: 1 | L57: 1 | M57: 1 | N57: 0 | O57: 0 | P57: 1 | Q57: 0 | R57: 0
A58: 56 | C58: =tblIndicators!V58 -> 3.4.2) Inclusion of women in DRR decision-making and leadership | D58: 3.4.2) Inclusion of women in DRR decision-making and leadership | F58: 1 | L58: 1 | M58: 1 | N58: 0 | O58: 0 | P58: 1 | Q58: 0 | R58: 0
A59: 57 | C59: =tblIndicators!V59 -> 3.4.3) Consideration of the needs of female internally-displaced persons | D59: 3.4.3) Consideration of the needs of female internally-displaced persons | F59: 1 | L59: 1 | M59: 1 | N59: 0 | O59: 0 | P59: 1 | Q59: 0 | R59: 0
A60: 58 | C60: =tblIndicators!V60 -> 3.4.4) Inclusion of women in disaster preparedness training | D60: 3.4.4) Inclusion of women in disaster preparedness training | F60: 1 | L60: 1 | M60: 1 | N60: 0 | O60: 0 | P60: 1 | Q60: 0 | R60: 0
A61: 59 | C61: =tblIndicators!V61 -> 3.4.5) Measures to address violence against women | D61: 3.4.5) Measures to address violence against women | F61: 1 | L61: 1 | M61: 1 | N61: 0 | O61: 0 | P61: 1 | Q61: 0 | R61: 0
A62: 60 | C62: =tblIndicators!V62 -> 3.5) Government effectiveness | D62: 3.5) Government effectiveness | F62: 1 | L62: 1 | M62: 1 | N62: 0 | O62: 0 | P62: 1 | Q62: 0 | R62: 0
A63: 61 | C63: =tblIndicators!V63 -> 3.5.1) Government corruption | D63: 3.5.1) Government corruption | F63: 1 | L63: 1 | M63: 1 | N63: 0 | O63: 0 | P63: 1 | Q63: 0 | R63: 0
A64: 62 | C64: =tblIndicators!V64 -> 3.5.2) Quality of the bureaucracy | D64: 3.5.2) Quality of the bureaucracy | F64: 1 | L64: 1 | M64: 1 | N64: 0 | O64: 0 | P64: 1 | Q64: 0 | R64: 0
A65: 63 | C65: =tblIndicators!V65 -> 3.5.3) Effectiveness of legal system | D65: 3.5.3) Effectiveness of legal system | F65: 1 | L65: 1 | M65: 1 | N65: 0 | O65: 0 | P65: 1 | Q65: 0 | R65: 0
A66: 64 | C66: =tblIndicators!V66 -> 3.5.4) Well-defined property rights | D66: 3.5.4) Well-defined property rights | F66: 1 | L66: 1 | M66: 1 | N66: 0 | O66: 0 | P66: 1 | Q66: 0 | R66: 0
A67: 65 | C67: =tblIndicators!V67 -> 3.5.5) Presence of free and independent media | D67: 3.5.5) Presence of free and independent media | F67: 1 | L67: 1 | M67: 1 | N67: 0 | O67: 0 | P67: 1 | Q67: 0 | R67: 0
A68: 66 | C68: =tblIndicators!V68 -> 3.5.6) Women's access to common property and government-allocated land | D68: =C68 -> 3.5.6) Women's access to common property and government-allocated land | F68: =IF(INDEX($M68:$R68,$I$5)=0,0,IF(A68=$I$3,3,IF(INDEX($L68:$R68,$I$4)=1,1,1))) -> 1 | L68: 1 | M68: 1 | N68: 0 | O68: 0 | P68: 1 | Q68: 0 | R68: 0
A69: 67 | C69: =tblIndicators!V69 -> 3.5.7) Women's property rights | D69: 3.5.7) Women's property rights | F69: 1 | L69: 1 | M69: 1 | N69: 0 | O69: 0 | P69: 1 | Q69: 0 | R69: 0
A70: 68 | C70: =tblIndicators!V70 -> 3.6) Violence | D70: 3.6) Violence | F70: 1 | L70: 1 | M70: 1 | N70: 0 | O70: 0 | P70: 1 | Q70: 0 | R70: 0
A71: 69 | C71: =tblIndicators!V71 -> 3.6.1) Violent crime level | D71: 3.6.1) Violent crime level | F71: 1 | L71: 1 | M71: 1 | N71: 0 | O71: 0 | P71: 1 | Q71: 0 | R71: 0
A72: 70 | C72: =tblIndicators!V72 -> 3.6.2) Trafficking in persons | D72: 3.6.2) Trafficking in persons | F72: 1 | L72: 1 | M72: 1 | N72: 0 | O72: 0 | P72: 1 | Q72: 0 | R72: 0
A73: 71 | C73: =tblIndicators!V73 -> 3.6.3) Deaths from organised conflict (internal) | D73: 3.6.3) Deaths from organised conflict (internal) | F73: 1 | L73: 1 | M73: 1 | N73: 0 | O73: 0 | P73: 1 | Q73: 0 | R73: 0
A74: 72 | C74: =tblIndicators!V74 -> 3.6.4) Deaths from homicides | D74: 3.6.4) Deaths from homicides | F74: 1 | L74: 1 | M74: 1 | N74: 0 | O74: 0 | P74: 1 | Q74: 0 | R74: 0
A75: 73 | C75: =tblIndicators!V75 -> 4) SOCIAL | D75: 4) SOCIAL | F75: 1 | L75: 1 | M75: 1 | N75: 0 | O75: 0 | P75: 0 | Q75: 1 | R75: 0
A76: 74 | C76: =tblIndicators!V76 -> 4.1) Population vulnerability | D76: 4.1) Population vulnerability | F76: 1 | L76: 1 | M76: 1 | N76: 0 | O76: 0 | P76: 0 | Q76: 1 | R76: 0
A77: 75 | C77: =tblIndicators!V77 -> 4.1.1) Dependency ratio | D77: 4.1.1) Dependency ratio | F77: 1 | L77: 1 | M77: 1 | N77: 0 | O77: 0 | P77: 0 | Q77: 1 | R77: 0
A78: 76 | C78: =tblIndicators!V78 -> 4.1.2) Internally displaced persons (IDPs) | D78: 4.1.2) Internally displaced persons (IDPs) | F78: 1 | L78: 1 | M78: 1 | N78: 0 | O78: 0 | P78: 0 | Q78: 1 | R78: 0
A79: 77 | C79: =tblIndicators!V79 -> 4.1.3) Ease of mobility for women | D79: 4.1.3) Ease of mobility for women | F79: 1 | L79: 1 | M79: 1 | N79: 0 | O79: 0 | P79: 0 | Q79: 1 | R79: 0
A80: 78 | C80: =tblIndicators!V80 -> 4.2) Education and gender | D80: 4.2) Education and gender | F80: 1 | L80: 1 | M80: 1 | N80: 0 | O80: 0 | P80: 0 | Q80: 1 | R80: 0
A81: 79 | C81: =tblIndicators!V81 -> 4.2.1) Female/male literacy rate | D81: 4.2.1) Female/male literacy rate | F81: 1 | L81: 1 | M81: 1 | N81: 0 | O81: 0 | P81: 0 | Q81: 1 | R81: 0
A82: 80 | C82: =tblIndicators!V82 -> 4.2.2) Rate of secondary school enrollment (girls) | D82: 4.2.2) Rate of secondary school enrollment (girls) | F82: 1 | L82: 1 | M82: 1 | N82: 0 | O82: 0 | P82: 0 | Q82: 1 | R82: 0
A83: 81 | C83: =tblIndicators!V83 -> 4.2.3) Rate of primary school enrollment (girls) | D83: 4.2.3) Rate of primary school enrollment (girls) | F83: 1 | L83: 1 | M83: 1 | N83: 0 | O83: 0 | P83: 0 | Q83: 1 | R83: 0
A84: 82 | C84: =tblIndicators!V84 -> 4.3) Health | D84: 4.3) Health | F84: 1 | L84: 1 | M84: 1 | N84: 0 | O84: 0 | P84: 0 | Q84: 1 | R84: 0
A85: 83 | C85: =tblIndicators!V85 -> 4.3.1) # of doctors/1000 | D85: 4.3.1) # of doctors/1000 | F85: 1 | L85: 1 | M85: 1 | N85: 0 | O85: 0 | P85: 0 | Q85: 1 | R85: 0
A86: 84 | C86: =tblIndicators!V86 -> 4.3.2) # of hospitals/land unit | D86: =C86 -> 4.3.2) # of hospitals/land unit | F86: 1 | L86: 1 | M86: 1 | N86: 0 | O86: 0 | P86: 0 | Q86: 1 | R86: 0
A87: 85 | C87: =tblIndicators!V87 -> 4.3.3) Affordability of healthcare | D87: 4.3.3) Affordability of healthcare | F87: 1 | L87: 1 | M87: 1 | N87: 0 | O87: 0 | P87: 0 | Q87: 1 | R87: 0
A88: 86 | C88: =tblIndicators!V88 -> 4.3.4) Level of child malnutrition | D88: 4.3.4) Level of child malnutrition | F88: 1 | L88: 1 | M88: 1 | N88: 0 | O88: 0 | P88: 0 | Q88: 1 | R88: 0
A89: 87 | C89: =tblIndicators!V89 -> 4.3.5) Fertility rate | D89: 4.3.5) Fertility rate | F89: 1 | L89: 1 | M89: 1 | N89: 0 | O89: 0 | P89: 0 | Q89: 1 | R89: 0
A90: 88 | C90: =tblIndicators!V90 -> 4.3.6) Psychiatric morbidity | D90: 4.3.6) Psychiatric morbidity | F90: 1 | L90: 1 | M90: 1 | N90: 0 | O90: 0 | P90: 0 | Q90: 1 | R90: 0
A91: 89 | C91: =tblIndicators!V91 -> 5) EXPOSURE | D91: 5) EXPOSURE | F91: 1 | L91: 1 | M91: 1 | N91: 0 | O91: 0 | P91: 0 | Q91: 0 | R91: 1
A92: 90 | C92: =tblIndicators!V92 -> 5.1) Exposure | D92: 5.1) Exposure | F92: 1 | L92: 1 | M92: 1 | N92: 0 | O92: 0 | P92: 0 | Q92: 0 | R92: 1
A93: 91 | C93: =tblIndicators!V93 -> 5.1.1) Rate of urbanisation | D93: 5.1.1) Rate of urbanisation | F93: 1 | L93: 1 | M93: 1 | N93: 0 | O93: 0 | P93: 0 | Q93: 0 | R93: 1
A94: 92 | C94: =tblIndicators!V94 -> 5.1.2) Population growth | D94: 5.1.2) Population growth | F94: 1 | L94: 1 | M94: 1 | N94: 0 | O94: 0 | P94: 0 | Q94: 0 | R94: 1
A95: 93 | C95: =tblIndicators!V95 -> 5.1.3) Death from disasters | D95: 5.1.3) Death from disasters | F95: 1 | L95: 1 | M95: 1 | N95: 0 | O95: 0 | P95: 0 | Q95: 0 | R95: 1
A96: 94 | C96: =tblIndicators!V96 -> 5.1.4) Economic damage from disasters | D96: 5.1.4) Economic damage from disasters | F96: 1 | L96: 1 | M96: 1 | N96: 0 | O96: 0 | P96: 0 | Q96: 0 | R96: 1
A97: 95 | C97: =tblIndicators!V97 -> 5.1.5) List of major disasters | D97: 5.1.5) List of major disasters | F97: 1 | L97: 1 | M97: 1 | N97: 0 | O97: 0 | P97: 0 | Q97: 0 | R97: 1
A98: 96 | C98: =tblIndicators!V98 -> 5.1.6) Rate of migration | D98: 5.1.6) Rate of migration | F98: 1 | L98: 1 | M98: 1 | N98: 0 | O98: 0 | P98: 0 | Q98: 0 | R98: 1

Sheet uxbWorks (hidden)
A2: COUNTRY_COUNT | B2: 8
A3: DEFAULT_ROUND_DP | B3: 1
A4: TRIM_TEXT_LEN | B4: 200
A5: WEIGHT_PROFILE_ID | B5: 2
A7: COUNTRY_HIGHLIGHT_DD | B7: 1
A8: COUNTRY_HIGHLIGHT_ID | B8: =B7-1 -> 0
A9: REGION_FILTER_ID | B9: 1
A10: REGION_HIGHLIGHT_DD | B10: 1
A11: REGION_HIGHLIGHT_ID | B11: =B10-1 -> 0
C13: =tblIndicators!C1 -> Code | D13: =tblIndicators!D1 -> Parent | E13: =tblIndicators!E1 -> Level | F13: =tblIndicators!G1 -> Indicator | G13: =tblIndicators!H1 -> Unit | H13: =tblIndicators!I1 -> Source | I13: =tblIndicators!J1 -> Description | J13: =tblIndicators!K1 -> 0 | K13: =tblIndicators!M1 -> HighIs (0=Good,1=Bad) | L13: =tblIndicators!N1 -> NormalisationTypeID | M13: =tblIndicators!O1 -> MIN | N13: =tblIndicators!Q1 -> DP | O13: =tblIndicators!R1 -> Format | P13: =tblIndicators!S1 -> WeightRow | Q13: =tblIndicators!T1 -> Wnom | R13: =tblIndicators!U1 -> Wpercent | T13: ISBG
A14: INDI_ID | B14: 1 | C14: =INDEX(tblIndicators!C$2:C$98,$B14) -> TOTAL | D14: =INDEX(tblIndicators!D$2:D$98,$B14) -> 0 | E14: =INDEX(tblIndicators!E$2:E$98,$B14) -> 0 | F14: =INDEX(tblIndicators!G$2:G$98,$B14) -> OVERALL SCORE | G14: =INDEX(tblIndicators!H$2:H$98,$B14) -> 0 - 100 where 100= best and 0=worst | H14: =INDEX(tblIndicators!I$2:I$98,$B14) -> Weighted sum of category scores | I14: =INDEX(tblIndicators!J$2:J$98,$B14) -> This is the weighted sum of the following category scores: 1) Economic 2) Infrastructure 3) Institutional 4) Social | J14: =INDEX(tblIndicators!K$2:K$98,$B14) -> 0 | K14: =INDEX(tblIndicators!M$2:M$98,$B14) -> 0 | L14: =INDEX(tblIndicators!N$2:N$98,$B14) -> 1 | M14: =INDEX(tblIndicators!O$2:O$98,$B14) -> 0 | N14: =INDEX(tblIndicators!Q$2:Q$98,$B14) -> 0 | O14: =INDEX(tblIndicators!R$2:R$98,$B14) -> 0.0 | P14: =INDEX(tblIndicators!S$2:S$98,$B14) -> 0 | Q14: =INDEX(tblIndicators!T$2:T$98,$B14) -> 0 | R14: =INDEX(tblIndicators!U$2:U$98,$B14) -> 0 | T14: =INDEX(tblIndicators!B$2:B$98,$B14) -> 0
A15: INDI_2_ID | B15: 6 | C15: =INDEX(tblIndicators!C$2:C$98,$B15) -> CLES_03 | D15: =INDEX(tblIndicators!D$2:D$98,$B15) -> CLES_S | E15: =INDEX(tblIndicators!E$2:E$98,$B15) -> 3 | F15: =INDEX(tblIndicators!G$2:G$98,$B15) -> Poverty headcount ratio | G15: =INDEX(tblIndicators!H$2:H$98,$B15) -> % | H15: =INDEX(tblIndicators!I$2:I$98,$B15) -> World Development Indicators, World Bank, (2009-2013); OECD Factbook 2010: Economic, Environmental and Social Statistics | I15: =INDEX(tblIndicators!J$2:J$98,$B15) -> Percentage of population living at or below USD1.25 per day, except for Japan. For Japan, the poverty rate was calculated using the ratio of the number of people who fall below the poverty line and the total population; the poverty line is here taken as half the median household income. | J15: =INDEX(tblIndicators!K$2:K$98,$B15) -> 0 | K15: =INDEX(tblIndicators!M$2:M$98,$B15) -> 1 | L15: =INDEX(tblIndicators!N$2:N$98,$B15) -> 2 | M15: =INDEX(tblIndicators!O$2:O$98,$B15) ->  | N15: =INDEX(tblIndicators!Q$2:Q$98,$B15) -> 0 | O15: =INDEX(tblIndicators!R$2:R$98,$B15) -> 0.0 | P15: =INDEX(tblIndicators!S$2:S$98,$B15) -> 37 | Q15: =INDEX(tblIndicators!T$2:T$98,$B15) -> 1 | R15: =INDEX(tblIndicators!U$2:U$98,$B15) -> 0.25
A18: COUNTRY1_ID | B18: 1 | C18: =INDEX(tblCountries!C$3:C$10,$B18) -> Bangladesh
A19: COUNTRY2_DD | B19: 2 | C19: =INDEX(tblCountries!C$3:C$10,$B19) -> Bhutan
A21: COUNTRY1_ID | B21: =B18 -> 1 | C21: =C18 -> Bangladesh
A22: COUNTRY2_ID | B22: =B19-1 -> 1 | C22: =C19 -> Bhutan
A25: TEXT_BOX
A26: TXT_INDI_ID | B26: 5
A27: TXT_LEVEL | B27: =INDEX(tblIndicators!E2:E98,$B$26) -> 3
A28: TXT_COUNTRY | B28: =C18 -> Bangladesh
A29: TXT_INDI | B29: =INDEX(tblIndicators!G2:G98,$B$26) -> Level of foreign currency reserves
A30: TXT_SCORE | B30: =INDEX(aScores,$B26,$B$18) -> 21.7
A31: TXT_TEXT | B31: =SUBSTITUTE(INDEX(aText,$B26,$B$18),"\n",CHAR(10)) -> IMF International Financial Statistics,World Bank (World Development Indicators), (2012-2013)
A33: SHOW_LABELS | B33: FALSE
A34: SHOW_OUTLIERS | B34: FALSE
A36: INDI_GROUP_SEL | B36: =CountryCompare!AL303 -> 1

Sheet tblLookups (hidden)
A1: NormalisationID | E1: SectionID
A2: 1 | B2: Weighted Sum | E2: 0 | F2: =tblIndiSets!A5 -> TOTAL | G2: =MATCH(F2,lu_indicode,0) -> 1 | H2: =INDEX(tblIndicators!G$2:G$98,G2) -> OVERALL SCORE
A3: 2 | B3: Multiply by NP1 | E3: 1 | F3: =tblIndiSets!A6 -> ECON | G3: =MATCH(F3,lu_indicode,0) -> 2 | H3: =INDEX(tblIndicators!G$2:G$98,G3) -> ECONOMIC
A4: 3 | B4: Min/max | E4: 2 | F4: =tblIndiSets!A7 -> INFRA | G4: =MATCH(F4,lu_indicode,0) -> 17 | H4: =INDEX(tblIndicators!G$2:G$98,G4) -> INFRASTRUCTURE
E5: 3 | F5: =tblIndiSets!A8 -> INST | G5: =MATCH(F5,lu_indicode,0) -> 39 | H5: =INDEX(tblIndicators!G$2:G$98,G5) -> INSTITUTIONAL
E6: 4 | F6: =tblIndiSets!A9 -> SOCIAL | G6: =MATCH(F6,lu_indicode,0) -> 74 | H6: =INDEX(tblIndicators!G$2:G$98,G6) -> SOCIAL

Sheet iRank (hidden)
B1: =uxbWorks!B13 -> 0 | C1: =uxbWorks!C13 -> Code | D1: =uxbWorks!D13 -> Parent | E1: =uxbWorks!E13 -> Level | F1: =uxbWorks!F13 -> Indicator | G1: =uxbWorks!G13 -> Unit | H1: =uxbWorks!H13 -> Source | I1: =uxbWorks!I13 -> Description | J1: =uxbWorks!K13 -> HighIs (0=Good,1=Bad) | K1: =uxbWorks!L13 -> NormalisationTypeID | L1: =uxbWorks!M13 -> MIN | M1: =uxbWorks!N13 -> DP | N1: =uxbWorks!O13 -> Format | O1: =uxbWorks!P13 -> WeightRow | P1: =uxbWorks!Q13 -> Wnom | Q1: =uxbWorks!R13 -> Wpercent | S1: ISBG
A2: INDI_ID | B2: =uxbWorks!B14 -> 1 | C2: =uxbWorks!C14 -> TOTAL | D2: =uxbWorks!D14 -> 0 | E2: =uxbWorks!E14 -> 0 | F2: =uxbWorks!F14 -> OVERALL SCORE | G2: =uxbWorks!G14 -> 0 - 100 where 100= best and 0=worst | H2: =uxbWorks!H14 -> Weighted sum of category scores | I2: =uxbWorks!I14 -> This is the weighted sum of the following category scores: 1) Economic 2) Infrastructure 3) Institutional 4) Social | J2: =uxbWorks!K14 -> 0 | K2: =uxbWorks!L14 -> 1 | L2: =uxbWorks!M14 -> 0 | M2: =uxbWorks!N14 -> 0 | N2: =uxbWorks!O14 -> 0.0 | O2: =uxbWorks!P14 -> 0 | P2: =uxbWorks!Q14 -> 0 | Q2: =uxbWorks!R14 -> 0 | S2: =uxbWorks!T14 -> 0
V3: SECTIONID | W3: 1 | AG3: SECTIONID | AH3: 2 | AR3: SECTIONID | AS3: 3 | BB3: SECTIONID | BC3: 4 | BL3: SECTIONID | BM3: 5
F4: DATA IS ROUNDED AT 1DP (COULD USE ACTUAL DP SETTING, BUT MAY BE EASIER TO LEAVE AT 1) | V4: INDI_CODE | W4: =INDEX(tblLookups!$F$1:$F$6,W3+1) -> TOTAL | AG4: INDI_CODE | AH4: =INDEX(tblLookups!$F$1:$F$6,AH3+1) -> ECON | AR4: INDI_CODE | AS4: =INDEX(tblLookups!$F$1:$F$6,AS3+1) -> INFRA | BB4: INDI_CODE | BC4: =INDEX(tblLookups!$F$1:$F$6,BC3+1) -> INST | BL4: INDI_CODE | BM4: =INDEX(tblLookups!$F$1:$F$6,BM3+1) -> SOCIAL
V5: INDI_ID | W5: =INDEX(tblLookups!$G$1:$G$6,W3+1) -> 1 | AG5: INDI_ID | AH5: =INDEX(tblLookups!$G$1:$G$6,AH3+1) -> 2 | AR5: INDI_ID | AS5: =INDEX(tblLookups!$G$1:$G$6,AS3+1) -> 17 | BB5: INDI_ID | BC5: =INDEX(tblLookups!$G$1:$G$6,BC3+1) -> 39 | BL5: INDI_ID | BM5: =INDEX(tblLookups!$G$1:$G$6,BM3+1) -> 74
E6: SCORE | F6: DATA | G6: RANKER | H6: RANK (NO TIE) | I6: RANK (TIE) | J6: LU | V6: INDI_ID | W6: =INDEX(tblLookups!$H$1:$H$6,W3+1) -> OVERALL SCORE | AC6: =W6 -> OVERALL SCORE | AG6: INDI_ID | AH6: =INDEX(tblLookups!$H$1:$H$6,AH3+1) -> ECONOMIC | AN6: =AH6 -> ECONOMIC | AR6: INDI_ID | AS6: =INDEX(tblLookups!$H$1:$H$6,AS3+1) -> INFRASTRUCTURE | AY6: =AS6 -> INFRASTRUCTURE | BB6: INDI_ID | BC6: =INDEX(tblLookups!$H$1:$H$6,BC3+1) -> INSTITUTIONAL | BI6: =BC6 -> INSTITUTIONAL | BL6: INDI_ID | BM6: =INDEX(tblLookups!$H$1:$H$6,BM3+1) -> SOCIAL | BS6: =BM6 -> SOCIAL
A7: ID/HC | B7: Status | K7: RANK_TIE | L7: Status | O7: Score | P7: Data | S7: ScatterX | T7: ScatterY | W7: SCORE | X7: RANK (NO TIE) | Y7: RANK (TIE) | Z7: LU | AA7: RANK_TIE | AB7: STATUS | AH7: SCORE | AI7: RANK (NO TIE) | AJ7: RANK (TIE) | AK7: LU | AL7: RANK_TIE | AM7: STATUS | AS7: SCORE | AT7: RANK (NO TIE) | AU7: RANK (TIE) | AV7: LU | AW7: RANK_TIE | AX7: STATUS | BC7: SCORE | BD7: RANK (NO TIE) | BE7: RANK (TIE) | BF7: LU | BG7: RANK_TIE | BH7: STATUS | BM7: SCORE | BN7: RANK (NO TIE) | BO7: RANK (TIE) | BP7: LU | BQ7: RANK_TIE | BR7: STATUS
A8: =tblCountries!A3 -> 1 | B8: =tblCountries!F3 -> 1 | C8: =tblCountries!C3 -> Bangladesh | E8: =IF(ISERROR(INDEX(aScores,$B$2,$A8)),"",INDEX(aScores,$B$2,$A8)) -> 40 | F8: =IF($B8=0,"",IF(INDEX(aData,$B$2,$A8)="","",ROUND(INDEX(aData,$B$2,$A8),4))) ->  | G8: =IF($S$2=0,E8,F8) -> 40 | H8: =IF($B8=0,"",RANK(G8,G$8:G$15,0)+COUNTIF(G$8:G8,G8)-1) -> 7 | I8: =IF($B8=0,"",RANK(G8,G$8:G$15,0)) -> 7 | J8: =MATCH($A8,H$8:H$15,0) -> 8 | K8: =IF(ISNUMBER(J8),INDEX(I$8:I$15,J8),"") -> 1 | L8: =IF(ISNUMBER(K8),INDEX($B$8:$B$15,J8),0) -> 1 | M8: =IF(L8=0,"",CONCATENATE(IF(OR(K8=K7,K8=K9),"=",""),K8)) -> 1 | N8: =IF(L8=0,"",INDEX($C$8:$C$15,J8)) -> Japan | O8: =IF(L8=0,"",INDEX(E$8:E$15,J8)) -> 80.6 | P8: =IF(OR(L8=0),"",INDEX(F$8:F$15,J8)) ->  | R8: =IF($S$2=0,O8,P8) -> 80.6 | S8: =IF(ISNUMBER(R8),R8,NA()) -> 80.6 | T8: 1 | W8: =IF($B8=0,"",INDEX(aScores,W$5,$A8)) -> 40 | X8: =IF($B8=0,"",RANK(W8,W$8:W$15)+COUNTIF(W$8:W8,W8)-1) -> 7 | Y8: =IF($B8=0,"",RANK(W8,W$8:W$15)) -> 7 | Z8: =MATCH($A8,X$8:X$15,0) -> 8 | AA8: =IF(ISNUMBER(Z8),INDEX(Y$8:Y$15,Z8),"") -> 1 | AB8: =IF(ISNUMBER(AA8),INDEX($B$8:$B$15,Z8),0) -> 1 | AC8: =IF(AB8=0,"",CONCATENATE(IF(OR(AA8=AA7,AA8=AA9),"=",""),AA8)) -> 1 | AD8: =IF(AB8=0,"",INDEX($C$8:$C$15,Z8)) -> Japan | AE8: =IF(AB8=0,"",INDEX(W$8:W$15,Z8)) -> 80.6 | AH8: =IF($B8=0,"",INDEX(aScores,AH$5,$A8)) -> 48.6 | AI8: =IF($B8=0,"",RANK(AH8,AH$8:AH$15)+COUNTIF(AH$8:AH8,AH8)-1) -> 4 | AJ8: =IF($B8=0,"",RANK(AH8,AH$8:AH$15)) -> 4 | AK8: =MATCH($A8,AI$8:AI$15,0) -> 8 | AL8: =IF(ISNUMBER(AK8),INDEX(AJ$8:AJ$15,AK8),"") -> 1 | AM8: =IF(ISNUMBER(AL8),INDEX($B$8:$B$15,AK8),0) -> 1 | AN8: =IF(AM8=0,"",CONCATENATE(IF(OR(AL8=AL7,AL8=AL9),"=",""),AL8)) -> 1 | AO8: =IF(AM8=0,"",INDEX($C$8:$C$15,AK8)) -> Japan | AP8: =IF(AM8=0,"",INDEX(AH$8:AH$15,AK8)) -> 73.2 | AS8: =IF($B8=0,"",INDEX(aScores,AS$5,$A8)) -> 22.3 | AT8: =IF($B8=0,"",RANK(AS8,AS$8:AS$15)+COUNTIF(AS$8:AS8,AS8)-1) -> 8 | AU8: =IF($B8=0,"",RANK(AS8,AS$8:AS$15)) -> 8 | AV8: =MATCH($A8,AT$8:AT$15,0) -> 8 | AW8: =IF(ISNUMBER(AV8),INDEX(AU$8:AU$15,AV8),"") -> 1 | AX8: =IF(ISNUMBER(AW8),INDEX($B$8:$B$15,AV8),0) -> 1 | AY8: =IF(AX8=0,"",CONCATENATE(IF(OR(AW8=AW7,AW8=AW9),"=",""),AW8)) -> 1 | AZ8: =IF(AX8=0,"",INDEX($C$8:$C$15,AV8)) -> Japan | BA8: =IF(AX8=0,"",INDEX(AS$8:AS$15,AV8)) -> 90.1 | BC8: =IF($B8=0,"",INDEX(aScores,BC$5,$A8)) -> 45.4 | BD8: =IF($B8=0,"",RANK(BC8,BC$8:BC$15)+COUNTIF(BC$8:BC8,BC8)-1) -> 4 | BE8: =IF($B8=0,"",RANK(BC8,BC$8:BC$15)) -> 4 | BF8: =MATCH($A8,BD$8:BD$15,0) -> 8 | BG8: =IF(ISNUMBER(BF8),INDEX(BE$8:BE$15,BF8),"") -> 1 | BH8: =IF(ISNUMBER(BG8),INDEX($B$8:$B$15,BF8),0) -> 1 | BI8: =IF(BH8=0,"",CONCATENATE(IF(OR(BG8=BG7,BG8=BG9),"=",""),BG8)) -> 1 | BJ8: =IF(BH8=0,"",INDEX($C$8:$C$15,BF8)) -> Japan | BK8: =IF(BH8=0,"",INDEX(BC$8:BC$15,BF8)) -> 85.5 | BM8: =IF($B8=0,"",INDEX(aScores,BM$5,$A8)) -> 43.8 | BN8: =IF($B8=0,"",RANK(BM8,BM$8:BM$15)+COUNTIF(BM$8:BM8,BM8)-1) -> 6 | BO8: =IF($B8=0,"",RANK(BM8,BM$8:BM$15)) -> 6 | BP8: =MATCH($A8,BN$8:BN$15,0) -> 8 | BQ8: =IF(ISNUMBER(BP8),INDEX(BO$8:BO$15,BP8),"") -> 1 | BR8: =IF(ISNUMBER(BQ8),INDEX($B$8:$B$15,BP8),0) -> 1 | BS8: =IF(BR8=0,"",CONCATENATE(IF(OR(BQ8=BQ7,BQ8=BQ9),"=",""),BQ8)) -> 1 | BT8: =IF(BR8=0,"",INDEX($C$8:$C$15,BP8)) -> Japan | BU8: =IF(BR8=0,"",INDEX(BM$8:BM$15,BP8)) -> 73.7
A9: =tblCountries!A4 -> 2 | B9: =tblCountries!F4 -> 1 | C9: =tblCountries!C4 -> Bhutan | E9: 46.4 | G9: =IF($S$2=0,E9,F9) -> 46.4 | H9: =IF($B9=0,"",RANK(G9,G$8:G$15,0)+COUNTIF(G$8:G9,G9)-1) -> 2 | I9: =IF($B9=0,"",RANK(G9,G$8:G$15,0)) -> 2 | J9: 2 | K9: 2 | L9: 1 | M9: 2 | N9: Bhutan | O9: 46.4 | P9: =IF(OR(L9=0),"",INDEX(F$8:F$15,J9)) ->  | R9: =IF($S$2=0,O9,P9) -> 46.4 | S9: =IF(ISNUMBER(R9),R9,NA()) -> 46.4 | T9: 1 | W9: 46.4 | X9: =IF($B9=0,"",RANK(W9,W$8:W$15)+COUNTIF(W$8:W9,W9)-1) -> 2 | Y9: 2 | Z9: 2 | AA9: 2 | AB9: 1 | AC9: =IF(AB9=0,"",CONCATENATE(IF(OR(AA9=AA8,AA9=AA10),"=",""),AA9)) -> 2 | AD9: Bhutan | AE9: 46.4 | AH9: 43 | AI9: =IF($B9=0,"",RANK(AH9,AH$8:AH$15)+COUNTIF(AH$8:AH9,AH9)-1) -> 6 | AJ9: 6 | AK9: 3 | AL9: 2 | AM9: 1 | AN9: =IF(AM9=0,"",CONCATENATE(IF(OR(AL9=AL8,AL9=AL10),"=",""),AL9)) -> 2 | AO9: India | AP9: 55.9 | AS9: 37.5 | AT9: =IF($B9=0,"",RANK(AS9,AS$8:AS$15)+COUNTIF(AS$8:AS9,AS9)-1) -> 4 | AU9: 4 | AV9: 4 | AW9: 2 | AX9: 1 | AY9: =IF(AX9=0,"",CONCATENATE(IF(OR(AW9=AW8,AW9=AW10),"=",""),AW9)) -> 2 | AZ9: Maldives | BA9: 59.6 | BC9: 49.7 | BD9: =IF($B9=0,"",RANK(BC9,BC$8:BC$15)+COUNTIF(BC$8:BC9,BC9)-1) -> 2 | BE9: 2 | BF9: 2 | BG9: 2 | BH9: 1 | BI9: =IF(BH9=0,"",CONCATENATE(IF(OR(BG9=BG8,BG9=BG10),"=",""),BG9)) -> 2 | BJ9: Bhutan | BK9: 49.7 | BM9: 55.6 | BN9: =IF($B9=0,"",RANK(BM9,BM$8:BM$15)+COUNTIF(BM$8:BM9,BM9)-1) -> 2 | BO9: 2 | BP9: 2 | BQ9: 2 | BR9: 1 | BS9: =IF(BR9=0,"",CONCATENATE(IF(OR(BQ9=BQ8,BQ9=BQ10),"=",""),BQ9)) -> 2 | BT9: Bhutan | BU9: 55.6
A10: =tblCountries!A5 -> 3 | B10: =tblCountries!F5 -> 1 | C10: =tblCountries!C5 -> India | E10: 42.2 | G10: 42.2 | H10: =IF($B10=0,"",RANK(G10,G$8:G$15,0)+COUNTIF(G$8:G10,G10)-1) -> 5 | I10: 5 | J10: 7 | K10: 3 | L10: 1 | M10: 3 | N10: Sri Lanka | O10: 45.9 | R10: 45.9 | S10: 45.9 | T10: 1 | W10: 42.2 | X10: =IF($B10=0,"",RANK(W10,W$8:W$15)+COUNTIF(W$8:W10,W10)-1) -> 5 | Y10: 5 | Z10: 7 | AA10: 3 | AB10: 1 | AC10: 3 | AD10: Sri Lanka | AE10: 45.9 | AH10: 55.9 | AI10: =IF($B10=0,"",RANK(AH10,AH$8:AH$15)+COUNTIF(AH$8:AH10,AH10)-1) -> 2 | AJ10: 2 | AK10: 7 | AL10: 3 | AM10: 1 | AN10: 3 | AO10: Sri Lanka | AP10: 51.8 | AS10: 35.3 | AT10: =IF($B10=0,"",RANK(AS10,AS$8:AS$15)+COUNTIF(AS$8:AS10,AS10)-1) -> 5 | AU10: 5 | AV10: 7 | AW10: 3 | AX10: 1 | AY10: 3 | AZ10: Sri Lanka | BA10: 58.3 | BC10: 41.1 | BD10: =IF($B10=0,"",RANK(BC10,BC$8:BC$15)+COUNTIF(BC$8:BC10,BC10)-1) -> 5 | BE10: 5 | BF10: 5 | BG10: 3 | BH10: 1 | BI10: 3 | BJ10: Nepal | BK10: 47.1 | BM10: 36.4 | BN10: =IF($B10=0,"",RANK(BM10,BM$8:BM$15)+COUNTIF(BM$8:BM10,BM10)-1) -> 7 | BO10: 7 | BP10: 5 | BQ10: 3 | BR10: 1 | BS10: 3 | BT10: Nepal | BU10: 52.5
A11: =tblCountries!A6 -> 4 | B11: =tblCountries!F6 -> 1 | C11: =tblCountries!C6 -> Maldives | E11: 40.4 | G11: 40.4 | H11: =IF($B11=0,"",RANK(G11,G$8:G$15,0)+COUNTIF(G$8:G11,G11)-1) -> 6 | I11: 6 | J11: 5 | K11: 4 | L11: 1 | M11: 4 | N11: Nepal | O11: 45.2 | R11: 45.2 | S11: 45.2 | T11: 1 | W11: 40.4 | X11: =IF($B11=0,"",RANK(W11,W$8:W$15)+COUNTIF(W$8:W11,W11)-1) -> 6 | Y11: 6 | Z11: 5 | AA11: 4 | AB11: 1 | AC11: 4 | AD11: Nepal | AE11: 45.2 | AH11: 18.2 | AI11: =IF($B11=0,"",RANK(AH11,AH$8:AH$15)+COUNTIF(AH$8:AH11,AH11)-1) -> 8 | AJ11: 8 | AK11: 1 | AL11: 4 | AM11: 1 | AN11: 4 | AO11: Bangladesh | AP11: 48.6 | AS11: 59.6 | AT11: =IF($B11=0,"",RANK(AS11,AS$8:AS$15)+COUNTIF(AS$8:AS11,AS11)-1) -> 2 | AU11: 2 | AV11: 2 | AW11: 4 | AX11: 1 | AY11: 4 | AZ11: Bhutan | BA11: 37.5 | BC11: 32.4 | BD11: =IF($B11=0,"",RANK(BC11,BC$8:BC$15)+COUNTIF(BC$8:BC11,BC11)-1) -> 7 | BE11: 7 | BF11: 1 | BG11: 4 | BH11: 1 | BI11: 4 | BJ11: Bangladesh | BK11: 45.4 | BM11: 51.5 | BN11: =IF($B11=0,"",RANK(BM11,BM$8:BM$15)+COUNTIF(BM$8:BM11,BM11)-1) -> 4 | BO11: 4 | BP11: 4 | BQ11: 4 | BR11: 1 | BS11: 4 | BT11: Maldives | BU11: 51.5
A12: =tblCountries!A7 -> 5 | B12: =tblCountries!F7 -> 1 | C12: =tblCountries!C7 -> Nepal | E12: 45.2 | G12: 45.2 | H12: =IF($B12=0,"",RANK(G12,G$8:G$15,0)+COUNTIF(G$8:G12,G12)-1) -> 4 | I12: 4 | J12: 3 | K12: 5 | L12: 1 | M12: 5 | N12: India | O12: 42.2 | R12: 42.2 | S12: 42.2 | T12: 1 | W12: 45.2 | X12: =IF($B12=0,"",RANK(W12,W$8:W$15)+COUNTIF(W$8:W12,W12)-1) -> 4 | Y12: 4 | Z12: 3 | AA12: 5 | AB12: 1 | AC12: 5 | AD12: India | AE12: 42.2 | AH12: 48.3 | AI12: =IF($B12=0,"",RANK(AH12,AH$8:AH$15)+COUNTIF(AH$8:AH12,AH12)-1) -> 5 | AJ12: 5 | AK12: 5 | AL12: 5 | AM12: 1 | AN12: 5 | AO12: Nepal | AP12: 48.3 | AS12: 32.7 | AT12: =IF($B12=0,"",RANK(AS12,AS$8:AS$15)+COUNTIF(AS$8:AS12,AS12)-1) -> 6 | AU12: 6 | AV12: 3 | AW12: 5 | AX12: 1 | AY12: 5 | AZ12: India | BA12: 35.3 | BC12: 47.1 | BD12: =IF($B12=0,"",RANK(BC12,BC$8:BC$15)+COUNTIF(BC$8:BC12,BC12)-1) -> 3 | BE12: 3 | BF12: 3 | BG12: 5 | BH12: 1 | BI12: 5 | BJ12: India | BK12: 41.1 | BM12: 52.5 | BN12: =IF($B12=0,"",RANK(BM12,BM$8:BM$15)+COUNTIF(BM$8:BM12,BM12)-1) -> 3 | BO12: 3 | BP12: 7 | BQ12: 5 | BR12: 1 | BS12: 5 | BT12: Sri Lanka | BU12: 43.9
A13: =tblCountries!A8 -> 6 | B13: =tblCountries!F8 -> 1 | C13: =tblCountries!C8 -> Pakistan | E13: 27.8 | G13: 27.8 | H13: =IF($B13=0,"",RANK(G13,G$8:G$15,0)+COUNTIF(G$8:G13,G13)-1) -> 8 | I13: 8 | J13: 4 | K13: 6 | L13: 1 | M13: 6 | N13: Maldives | O13: 40.4 | R13: 40.4 | S13: 40.4 | T13: 1 | W13: 27.8 | X13: =IF($B13=0,"",RANK(W13,W$8:W$15)+COUNTIF(W$8:W13,W13)-1) -> 8 | Y13: 8 | Z13: 4 | AA13: 6 | AB13: 1 | AC13: 6 | AD13: Maldives | AE13: 40.4 | AH13: 23.8 | AI13: =IF($B13=0,"",RANK(AH13,AH$8:AH$15)+COUNTIF(AH$8:AH13,AH13)-1) -> 7 | AJ13: 7 | AK13: 2 | AL13: 6 | AM13: 1 | AN13: 6 | AO13: Bhutan | AP13: 43 | AS13: 31.5 | AT13: =IF($B13=0,"",RANK(AS13,AS$8:AS$15)+COUNTIF(AS$8:AS13,AS13)-1) -> 7 | AU13: 7 | AV13: 5 | AW13: 6 | AX13: 1 | AY13: 6 | AZ13: Nepal | BA13: 32.7 | BC13: 34.5 | BD13: =IF($B13=0,"",RANK(BC13,BC$8:BC$15)+COUNTIF(BC$8:BC13,BC13)-1) -> 6 | BE13: 6 | BF13: 6 | BG13: 6 | BH13: 1 | BI13: 6 | BJ13: Pakistan | BK13: 34.5 | BM13: 21.6 | BN13: =IF($B13=0,"",RANK(BM13,BM$8:BM$15)+COUNTIF(BM$8:BM13,BM13)-1) -> 8 | BO13: 8 | BP13: 1 | BQ13: 6 | BR13: 1 | BS13: 6 | BT13: Bangladesh | BU13: 43.8
A14: =tblCountries!A9 -> 7 | B14: =tblCountries!F9 -> 1 | C14: =tblCountries!C9 -> Sri Lanka | E14: 45.9 | G14: 45.9 | H14: =IF($B14=0,"",RANK(G14,G$8:G$15,0)+COUNTIF(G$8:G14,G14)-1) -> 3 | I14: 3 | J14: 1 | K14: 7 | L14: 1 | M14: 7 | N14: Bangladesh | O14: 40 | R14: 40 | S14: 40 | T14: 1 | W14: 45.9 | X14: =IF($B14=0,"",RANK(W14,W$8:W$15)+COUNTIF(W$8:W14,W14)-1) -> 3 | Y14: 3 | Z14: 1 | AA14: 7 | AB14: 1 | AC14: 7 | AD14: Bangladesh | AE14: 40 | AH14: 51.8 | AI14: =IF($B14=0,"",RANK(AH14,AH$8:AH$15)+COUNTIF(AH$8:AH14,AH14)-1) -> 3 | AJ14: 3 | AK14: 6 | AL14: 7 | AM14: 1 | AN14: 7 | AO14: Pakistan | AP14: 23.8 | AS14: 58.3 | AT14: =IF($B14=0,"",RANK(AS14,AS$8:AS$15)+COUNTIF(AS$8:AS14,AS14)-1) -> 3 | AU14: 3 | AV14: 6 | AW14: 7 | AX14: 1 | AY14: 7 | AZ14: Pakistan | BA14: 31.5 | BC14: 29.4 | BD14: =IF($B14=0,"",RANK(BC14,BC$8:BC$15)+COUNTIF(BC$8:BC14,BC14)-1) -> 8 | BE14: 8 | BF14: 4 | BG14: 7 | BH14: 1 | BI14: 7 | BJ14: Maldives | BK14: 32.4 | BM14: 43.9 | BN14: =IF($B14=0,"",RANK(BM14,BM$8:BM$15)+COUNTIF(BM$8:BM14,BM14)-1) -> 5 | BO14: 5 | BP14: 3 | BQ14: 7 | BR14: 1 | BS14: 7 | BT14: India | BU14: 36.4
A15: =tblCountries!A10 -> 8 | B15: =tblCountries!F10 -> 1 | C15: =tblCountries!C10 -> Japan | E15: 80.6 | G15: 80.6 | H15: =IF($B15=0,"",RANK(G15,G$8:G$15,0)+COUNTIF(G$8:G15,G15)-1) -> 1 | I15: 1 | J15: 6 | K15: 8 | L15: 1 | M15: 8 | N15: Pakistan | O15: 27.8 | R15: 27.8 | S15: 27.8 | T15: 1 | W15: 80.6 | X15: =IF($B15=0,"",RANK(W15,W$8:W$15)+COUNTIF(W$8:W15,W15)-1) -> 1 | Y15: 1 | Z15: 6 | AA15: 8 | AB15: 1 | AC15: 8 | AD15: Pakistan | AE15: 27.8 | AH15: 73.2 | AI15: =IF($B15=0,"",RANK(AH15,AH$8:AH$15)+COUNTIF(AH$8:AH15,AH15)-1) -> 1 | AJ15: 1 | AK15: 4 | AL15: 8 | AM15: 1 | AN15: 8 | AO15: Maldives | AP15: 18.2 | AS15: 90.1 | AT15: =IF($B15=0,"",RANK(AS15,AS$8:AS$15)+COUNTIF(AS$8:AS15,AS15)-1) -> 1 | AU15: 1 | AV15: 1 | AW15: 8 | AX15: 1 | AY15: 8 | AZ15: Bangladesh | BA15: 22.3 | BC15: 85.5 | BD15: =IF($B15=0,"",RANK(BC15,BC$8:BC$15)+COUNTIF(BC$8:BC15,BC15)-1) -> 1 | BE15: 1 | BF15: 7 | BG15: 8 | BH15: 1 | BI15: 8 | BJ15: Sri Lanka | BK15: 29.4 | BM15: 73.7 | BN15: =IF($B15=0,"",RANK(BM15,BM$8:BM$15)+COUNTIF(BM$8:BM15,BM15)-1) -> 1 | BO15: 1 | BP15: 6 | BQ15: 8 | BR15: 1 | BS15: 8 | BT15: Pakistan | BU15: 21.6
P16: =IF(OR(L16=0,$E$2<3),"",INDEX(F$8:F$15,J16)) -> 
B18: =Data!J4 -> Bangladesh | C18: =Data!K4 -> Bhutan | D18: =Data!L4 -> India | E18: =Data!M4 -> Maldives | F18: =Data!N4 -> Nepal | G18: =Data!O4 -> Pakistan | H18: =Data!P4 -> Sri Lanka | I18: =Data!Q4 -> Japan | K18: =B18 -> Bangladesh | L18: Bhutan | M18: India | N18: Maldives | O18: Nepal | P18: Pakistan | Q18: Sri Lanka | R18: Japan | V18: units
A19: =tblIndicators!V2 -> OVERALL SCORE | B19: =iScores!N5 -> 40.02344303 | C19: =iScores!O5 -> 46.4483399 | D19: =iScores!P5 -> 42.16517027 | E19: =iScores!Q5 -> 40.40269535 | F19: =iScores!R5 -> 45.15950191 | G19: =iScores!S5 -> 27.84010103 | H19: =iScores!T5 -> 45.85861656 | I19: =iScores!U5 -> 80.62488545 | K19: =RANK(B19,$B19:$I19) -> 7 | L19: =RANK(C19,$B19:$I19) -> 2 | M19: 5 | N19: 6 | O19: 4 | P19: 8 | Q19: 3 | R19: 1 | V19: =tblIndicators!R2 -> 0.0
A20: =tblIndicators!V3 -> 1) ECONOMIC | B20: =iScores!N6 -> 48.55700669 | C20: =iScores!O6 -> 43.02590342 | D20: =iScores!P6 -> 55.86727224 | E20: =iScores!Q6 -> 18.15663612 | F20: =iScores!R6 -> 48.3283757 | G20: =iScores!S6 -> 23.7585483 | H20: =iScores!T6 -> 51.80221033 | I20: =iScores!U6 -> 73.16818215 | K20: =RANK(B20,$B20:$I20) -> 4 | L20: =RANK(C20,$B20:$I20) -> 6 | M20: 2 | N20: 8 | O20: 5 | P20: 7 | Q20: 3 | R20: 1 | V20: =tblIndicators!R3 -> 0.0
A21: =tblIndicators!V4 -> 1.1) Country-level economic strength | B21: =iScores!N7 -> 6.092945369 | C21: =iScores!O7 -> 54.31505028 | D21: =iScores!P7 -> 15.20019004 | E21: =iScores!Q7 -> 30.68308616 | F21: =iScores!R7 -> 27.05551047 | G21: =iScores!S7 -> 15.1896778 | H21: =iScores!T7 -> 33.0648421 | I21: =iScores!U7 -> 78.47660741 | K21: =RANK(B21,$B21:$I21) -> 8 | L21: =RANK(C21,$B21:$I21) -> 2 | M21: =RANK(D21,$B21:$I21) -> 6 | N21: =RANK(E21,$B21:$I21) -> 4 | O21: =RANK(F21,$B21:$I21) -> 5 | P21: =RANK(G21,$B21:$I21) -> 7 | Q21: =RANK(H21,$B21:$I21) -> 3 | R21: =RANK(I21,$B21:$I21) -> 1 | V21: =tblIndicators!R4 -> 0.0
A22: =tblIndicators!V5 -> 1.1.1) GDP per capita | B22: =iScores!N8 -> 0.9191197932 | C22: =iScores!O8 -> 15.92251495 | D22: =iScores!P8 -> 9.292426447 | E22: =iScores!Q8 -> 27.61758312 | F22: =iScores!R8 -> 0 | G22: =iScores!S8 -> 7.20443648 | H22: =iScores!T8 -> 21.98774169 | I22: =iScores!U8 -> 100 | K22: 7 | L22: 4 | M22: 5 | N22: 2 | O22: 8 | P22: 6 | Q22: 3 | R22: 1 | V22: =tblIndicators!R5 -> #,###.0
A23: =tblIndicators!V6 -> 1.1.2) Level of foreign currency reserves | B23: =iScores!N9 -> 21.65370084 | C23: =iScores!O9 -> 100 | D23: =iScores!P9 -> 25.60984615 | E23: =iScores!Q9 -> 27.07117954 | F23: =iScores!R9 -> 63.76224835 | G23: =iScores!S9 -> 0 | H23: =iScores!T9 -> 16.05523093 | I23: =iScores!U9 -> 45.78060593 | K23: 6 | L23: 1 | M23: 5 | N23: 4 | O23: 2 | P23: 8 | Q23: 7 | R23: 3 | V23: =tblIndicators!R6 -> #,###.0
A24: =tblIndicators!V7 -> 1.1.3) Poverty headcount ratio | B24: =iScores!N10 -> 0 | C24: =iScores!O10 -> 100 | D24: =iScores!P10 -> 25.50432277 | E24: =iScores!Q10 -> 67.96349664 | F24: =iScores!R10 -> 44.38040346 | G24: =iScores!S10 -> 53.55427474 | H24: =iScores!T10 -> 94.14024976 | I24: =iScores!U10 -> 68.12582373 | K24: 8 | L24: 1 | M24: 7 | N24: 4 | O24: 6 | P24: 5 | Q24: 2 | R24: 3 | V24: =tblIndicators!R7 -> 0.0
A25: =tblIndicators!V8 -> 1.1.4) Government funding for disaster relief (per person) | B25: =iScores!N11 -> 1.798960838 | C25: =iScores!O11 -> 1.337686181 | D25: =iScores!P11 -> 0.3941648005 | E25: =iScores!Q11 -> 0.08008536292 | F25: =iScores!R11 -> 0.07939008043 | G25: =iScores!S11 -> 0 | H25: =iScores!T11 -> 0.076146028 | I25: =iScores!U11 -> 100 | K25: 2 | L25: 3 | M25: 4 | N25: 5 | O25: 6 | P25: 8 | Q25: 7 | R25: 1 | V25: =tblIndicators!R8 -> #,###.0
A26: =tblIndicators!V9 -> 1.2) Personal finance: Women | B26: =iScores!N12 -> 60.02199992 | C26: =iScores!O12 -> 27.80004315 | D26: =iScores!P12 -> 56.13994442 | E26: =iScores!Q12 -> 23.78682219 | F26: =iScores!R12 -> 55.42961662 | G26: =iScores!S12 -> 21.50652785 | H26: =iScores!T12 -> 68.72029355 | I26: =iScores!U12 -> 81.56532221 | K26: 3 | L26: 6 | M26: 4 | N26: 7 | O26: 5 | P26: 8 | Q26: 2 | R26: 1 | V26: =tblIndicators!R9 -> 0.0
A27: =tblIndicators!V10 -> 1.2.1) Microfinance: Women borrowers | B27: =iScores!N13 -> 86.10147083 | C27: =iScores!O13 -> 0.06610477607 | D27: =iScores!P13 -> 92.11700545 | E27: =iScores!Q13 -> 0 | F27: =iScores!R13 -> 100 | G27: =iScores!S13 -> 27.53263923 | H27: =iScores!T13 -> 89.37365725 | I27: =iScores!U13 -> 99.98347381 | K27: 5 | L27: 7 | M27: 3 | N27: 8 | O27: 1 | P27: 6 | Q27: 4 | R27: 2 | V27: =tblIndicators!R10 -> 0.0
A28: =tblIndicators!V11 -> 1.2.2) Building credit histories | B28: =iScores!N14 -> 20 | C28: =iScores!O14 -> 0 | D28: =iScores!P14 -> 100 | E28: =iScores!Q14 -> 0 | F28: =iScores!R14 -> 60 | G28: =iScores!S14 -> 40 | H28: =iScores!T14 -> 40 | I28: =iScores!U14 -> 100 | K28: 6 | L28: 7 | M28: 1 | N28: 7 | O28: 3 | P28: 4 | Q28: 4 | R28: 1 | V28: =tblIndicators!R11 -> 0.0
A29: =tblIndicators!V12 -> 1.2.3) Women's access to finance programmes | B29: =iScores!N15 -> 60 | C29: =iScores!O15 -> 60 | D29: =iScores!P15 -> 40 | E29: =iScores!Q15 -> 40 | F29: =iScores!R15 -> 60 | G29: =iScores!S15 -> 40 | H29: =iScores!T15 -> 60 | I29: =iScores!U15 -> 100 | K29: 2 | L29: 2 | M29: 6 | N29: 6 | O29: 2 | P29: 6 | Q29: 2 | R29: 1 | V29: =tblIndicators!R12 -> 0
A30: =tblIndicators!V13 -> 1.2.4) Loans at financial institutions | B30: =iScores!N16 -> 100 | C30: =iScores!O16 -> 49.50980392 | D30: =iScores!P16 -> 23.52941176 | E30: =iScores!Q16 -> 49.50980392 | F30: =iScores!R16 -> 37.74509804 | G30: =iScores!S16 -> 0 | H30: =iScores!T16 -> 85.78431373 | I30: =iScores!U16 -> 7.843137255 | K30: 1 | L30: 3 | M30: 6 | N30: 3 | O30: 5 | P30: 8 | Q30: 2 | R30: 7 | V30: =tblIndicators!R13 -> 0.0
A31: =tblIndicators!V14 -> 1.2.5) Accounts at financial institutions | B31: =iScores!N17 -> 34.00852878 | C31: =iScores!O17 -> 29.42430704 | D31: =iScores!P17 -> 25.0533049 | E31: =iScores!Q17 -> 29.42430704 | F31: =iScores!R17 -> 19.40298507 | G31: =iScores!S17 -> 0 | H31: =iScores!T17 -> 68.4434968 | I31: =iScores!U17 -> 100 | K31: 3 | L31: 4 | M31: 6 | N31: 4 | O31: 7 | P31: 8 | Q31: 2 | R31: 1 | V31: =tblIndicators!R14 -> 0.0
A32: =tblIndicators!V15 -> 1.3) Labour environment: Women | B32: =iScores!N18 -> 79.55607477 | C32: =iScores!O18 -> 46.96261682 | D32: =iScores!P18 -> 96.26168224 | E32: =iScores!Q18 -> 0 | F32: =iScores!R18 -> 62.5 | G32: =iScores!S18 -> 34.57943925 | H32: =iScores!T18 -> 53.62149533 | I32: =iScores!U18 -> 59.46261682 | K32: 2 | L32: 6 | M32: 1 | N32: 8 | O32: 3 | P32: 7 | Q32: 5 | R32: 4 | V32: =tblIndicators!R15 -> 0.0
A33: =tblIndicators!V16 -> 1.3.1) Employment guarantee schemes for women | B33: =iScores!N19 -> 75 | C33: =iScores!O19 -> 0 | D33: =iScores!P19 -> 100 | E33: =iScores!Q19 -> 0 | F33: =iScores!R19 -> 25 | G33: =iScores!S19 -> 0 | H33: =iScores!T19 -> 25 | I33: =iScores!U19 -> 25 | K33: 2 | L33: 6 | M33: 1 | N33: 6 | O33: 3 | P33: 6 | Q33: 3 | R33: 3 | V33: =tblIndicators!R16 -> 0
A34: =tblIndicators!V17 -> 1.3.2) Female unemployment rate | B34: =iScores!N20 -> 84.11214953 | C34: =iScores!O20 -> 93.92523364 | D34: =iScores!P20 -> 92.52336449 | E34: =iScores!Q20 -> 0 | F34: =iScores!R20 -> 100 | G34: =iScores!S20 -> 69.1588785 | H34: =iScores!T20 -> 82.24299065 | I34: =iScores!U20 -> 93.92523364 | K34: 5 | L34: 2 | M34: 4 | N34: 8 | O34: 1 | P34: 7 | Q34: 6 | R34: 2 | V34: =tblIndicators!R17 -> 0.0
A35: =tblIndicators!V18 -> 2) INFRASTRUCTURE | B35: =iScores!N21 -> 22.32321228 | C35: =iScores!O21 -> 37.48357764 | D35: =iScores!P21 -> 35.26927025 | E35: =iScores!Q21 -> 59.56393021 | F35: =iScores!R21 -> 32.71964398 | G35: =iScores!S21 -> 31.49846533 | H35: =iScores!T21 -> 58.2890406 | I35: =iScores!U21 -> 90.07262636 | K35: 8 | L35: 4 | M35: 5 | N35: 2 | O35: 6 | P35: 7 | Q35: 3 | R35: 1 | V35: =tblIndicators!R18 -> 0.0
A36: =tblIndicators!V19 -> 2.1) Adherence to land use regulations | B36: =iScores!N22 -> 40 | C36: =iScores!O22 -> 40 | D36: =iScores!P22 -> 50 | E36: =iScores!Q22 -> 30 | F36: =iScores!R22 -> 40 | G36: =iScores!S22 -> 40 | H36: =iScores!T22 -> 50 | I36: =iScores!U22 -> 100 | K36: 4 | L36: 4 | M36: 2 | N36: 8 | O36: 4 | P36: 4 | Q36: 2 | R36: 1 | V36: =tblIndicators!R19 -> 0
A37: =tblIndicators!V20 -> 2.2) Adherence to building codes | B37: =iScores!N23 -> 64.28571429 | C37: =iScores!O23 -> 57.14285714 | D37: =iScores!P23 -> 42.85714286 | E37: =iScores!Q23 -> 42.85714286 | F37: =iScores!R23 -> 42.85714286 | G37: =iScores!S23 -> 64.28571429 | H37: =iScores!T23 -> 42.85714286 | I37: =iScores!U23 -> 92.85714286 | K37: 2 | L37: 4 | M37: 5 | N37: 5 | O37: 5 | P37: 2 | Q37: 5 | R37: 1 | V37: =tblIndicators!R20 -> 0
A38: =tblIndicators!V21 -> 2.3) Communication | B38: =iScores!N24 -> 21.05789401 | C38: =iScores!O24 -> 19.86774973 | D38: =iScores!P24 -> 30.15940349 | E38: =iScores!Q24 -> 87.5 | F38: =iScores!R24 -> 30.78300728 | G38: =iScores!S24 -> 29.00502749 | H38: =iScores!T24 -> 60.7721821 | I38: =iScores!U24 -> 81.83219204 | K38: 7 | L38: 8 | M38: 5 | N38: 1 | O38: 4 | P38: 6 | Q38: 3 | R38: 2 | V38: =tblIndicators!R21 -> 0.0
A39: =tblIndicators!V22 -> 2.3.1) Penetration of TV | B39: =iScores!N25 -> 14.28571429 | C39: =iScores!O25 -> 37.58503401 | D39: =iScores!P25 -> 18.36734694 | E39: =iScores!Q25 -> 100 | F39: =iScores!R25 -> 0 | G39: =iScores!S25 -> 40.47619048 | H39: =iScores!T25 -> 71.93877551 | I39: =iScores!U25 -> 91.15646259 | K39: 7 | L39: 5 | M39: 6 | N39: 1 | O39: 8 | P39: 4 | Q39: 3 | R39: 2 | V39: =tblIndicators!R22 -> 0.0
A40: =tblIndicators!V23 -> 2.3.2) Penetration of Radio | B40: =iScores!N26 -> 7.445861762 | C40: =iScores!O26 -> 0 | D40: =iScores!P26 -> 23.76149511 | E40: =iScores!Q26 -> 100 | F40: =iScores!R26 -> 69.62325719 | G40: =iScores!S26 -> 10.41234055 | H40: =iScores!T26 -> 96.58854939 | I40: =iScores!U26 -> 94.06704242 | K40: 7 | L40: 8 | M40: 5 | N40: 1 | O40: 4 | P40: 6 | Q40: 2 | R40: 3 | V40: =tblIndicators!R23 -> 0.0
A41: =tblIndicators!V24 -> 2.3.3) Mobile cellular subscriptions | B41: =iScores!N27 -> 0 | C41: =iScores!O27 -> 4.385964912 | D41: =iScores!P27 -> 3.50877193 | E41: =iScores!Q27 -> 100 | F41: =iScores!R27 -> 3.50877193 | G41: =iScores!S27 -> 2.631578947 | H41: =iScores!T27 -> 24.56140351 | I41: =iScores!U27 -> 42.10526316 | K41: 8 | L41: 4 | M41: 5 | N41: 1 | O41: 5 | P41: 7 | Q41: 3 | R41: 2 | V41: =tblIndicators!R24 -> 0.0
A42: =tblIndicators!V25 -> 2.3.4) Availability of an effective early warning system | B42: =iScores!N28 -> 62.5 | C42: =iScores!O28 -> 37.5 | D42: =iScores!P28 -> 75 | E42: =iScores!Q28 -> 50 | F42: =iScores!R28 -> 50 | G42: =iScores!S28 -> 62.5 | H42: =iScores!T28 -> 50 | I42: =iScores!U28 -> 100 | K42: 3 | L42: 8 | M42: 2 | N42: 5 | O42: 5 | P42: 3 | Q42: 5 | R42: 1 | V42: =tblIndicators!R25 -> 0
A43: =tblIndicators!V26 -> 2.4) Power | B43: =iScores!N29 -> 0 | C43: =iScores!O29 -> 32.01320132 | D43: =iScores!P29 -> 36.09735974 | E43: =iScores!Q29 -> 83.33333333 | F43: =iScores!R29 -> 54.00165017 | G43: =iScores!S29 -> 11.13861386 | H43: =iScores!T29 -> 81.93069307 | I43: =iScores!U29 -> 66.66666667 | K43: 8 | L43: 6 | M43: 5 | N43: 1 | O43: 4 | P43: 7 | Q43: 2 | R43: 3 | V43: =tblIndicators!R26 -> 0.0
A44: =tblIndicators!V27 -> 2.4.1) Quality of power | B44: =iScores!N30 -> 0 | C44: =iScores!O30 -> 33.33333333 | D44: =iScores!P30 -> 33.33333333 | E44: =iScores!Q30 -> 66.66666667 | F44: =iScores!R30 -> 66.66666667 | G44: =iScores!S30 -> 0 | H44: =iScores!T30 -> 100 | I44: =iScores!U30 -> 33.33333333 | K44: 7 | L44: 4 | M44: 4 | N44: 2 | O44: 2 | P44: 7 | Q44: 1 | R44: 4 | V44: =tblIndicators!R27 -> 0
A45: =tblIndicators!V28 -> 2.4.2) Access to electricity | B45: =iScores!N31 -> 0 | C45: =iScores!O31 -> 30.69306931 | D45: =iScores!P31 -> 38.86138614 | E45: =iScores!Q31 -> 100 | F45: =iScores!R31 -> 41.33663366 | G45: =iScores!S31 -> 22.27722772 | H45: =iScores!T31 -> 63.86138614 | I45: =iScores!U31 -> 100 | K45: 8 | L45: 6 | M45: 5 | N45: 1 | O45: 4 | P45: 7 | Q45: 3 | R45: 1 | V45: =tblIndicators!R28 -> 0.0
A46: =tblIndicators!V29 -> 2.5) Environmental performance | B46: =iScores!N32 -> 15.82592576 | C46: =iScores!O32 -> 39.45578231 | D46: =iScores!P32 -> 31.76629178 | E46: =iScores!Q32 -> 32.27810058 | F46: =iScores!R32 -> 42.32179095 | G46: =iScores!S32 -> 33.93174362 | H46: =iScores!T32 -> 43.6957205 | I46: =iScores!U32 -> 79.22500934 | K46: 8 | L46: 4 | M46: 7 | N46: 6 | O46: 3 | P46: 5 | Q46: 2 | R46: 1 | V46: =tblIndicators!R29 -> 0.0
A47: =tblIndicators!V30 -> 2.5.1) Treatment of wastewater | B47: =iScores!N33 -> 0 | C47: =iScores!O33 -> 0 | D47: =iScores!P33 -> 14.71248247 | E47: =iScores!Q33 -> 6.451612903 | F47: =iScores!R33 -> 0 | G47: =iScores!S33 -> 4.936886396 | H47: =iScores!T33 -> 0 | I47: =iScores!U33 -> 100 | K47: 5 | L47: 5 | M47: 2 | N47: 3 | O47: 5 | P47: 4 | Q47: 5 | R47: 1 | V47: =tblIndicators!R30 -> 0.0
A48: =tblIndicators!V31 -> 2.5.2) Pesticide and fertiliser regulation | B48: =iScores!N34 -> 91.30434783 | C48: =iScores!O34 -> 0 | D48: =iScores!P34 -> 100 | E48: =iScores!Q34 -> 13.04347826 | F48: =iScores!R34 -> 91.30434783 | G48: =iScores!S34 -> 52.17391304 | H48: =iScores!T34 -> 91.30434783 | I48: =iScores!U34 -> 100 | K48: 3 | L48: 8 | M48: 1 | N48: 7 | O48: 3 | P48: 6 | Q48: 3 | R48: 1 | V48: =tblIndicators!R31 -> 0.0
A49: =tblIndicators!V32 -> 2.5.3) Loss in forested area | B49: =iScores!N35 -> 0 | C49: =iScores!O35 -> 38.0952381 | D49: =iScores!P35 -> 19.04761905 | E49: =iScores!Q35 -> 100 | F49: =iScores!R35 -> 38.0952381 | G49: =iScores!S35 -> 26.98412698 | H49: =iScores!T35 -> 17.46031746 | I49: =iScores!U35 -> 34.92063492 | K49: 8 | L49: 2 | M49: 6 | N49: 1 | O49: 2 | P49: 5 | Q49: 7 | R49: 4 | V49: =tblIndicators!R32 -> 0.0
A50: =tblIndicators!V33 -> 2.5.4) Protection of terrestrial and marine areas | B50: =iScores!N36 -> 9.738566249 | C50: =iScores!O36 -> 100 | D50: =iScores!P36 -> 27.42191973 | E50: =iScores!Q36 -> 0 | F50: =iScores!R36 -> 64.37885631 | G50: =iScores!S36 -> 60.75313275 | H50: =iScores!T36 -> 89.82253037 | I50: =iScores!U36 -> 92.36689778 | K50: 7 | L50: 1 | M50: 6 | N50: 8 | O50: 4 | P50: 5 | Q50: 3 | R50: 2 | V50: =tblIndicators!R33 -> 0.0
A51: =tblIndicators!V34 -> 2.6) Sanitation | B51: =iScores!N37 -> 28.3252551 | C51: =iScores!O37 -> 24.72236395 | D51: =iScores!P37 -> 6.12244898 | E51: =iScores!Q37 -> 98.11862245 | F51: =iScores!R37 -> 4.520833333 | G51: =iScores!S37 -> 24.53571429 | H51: =iScores!T37 -> 81.60204082 | I51: =iScores!U37 -> 100 | K51: 4 | L51: 5 | M51: 7 | N51: 2 | O51: 8 | P51: 6 | Q51: 3 | R51: 1 | V51: =tblIndicators!R34 -> 0.0
A52: =tblIndicators!V35 -> 2.6.1) Access to sanitation | B52: =iScores!N38 -> 32.8125 | C52: =iScores!O38 -> 17.1875 | D52: =iScores!P38 -> 0 | E52: =iScores!Q38 -> 98.4375 | F52: =iScores!R38 -> 1.5625 | G52: =iScores!S38 -> 18.75 | H52: =iScores!T38 -> 87.5 | I52: =iScores!U38 -> 100 | K52: 4 | L52: 6 | M52: 8 | N52: 2 | O52: 7 | P52: 5 | Q52: 3 | R52: 1 | V52: =tblIndicators!R35 -> 0.0
A53: =tblIndicators!V36 -> 2.6.2) Waste water treatment (Urban) | B53: =iScores!N39 -> 8.163265306 | C53: =iScores!O39 -> 48.97959184 | D53: =iScores!P39 -> 18.36734694 | E53: =iScores!Q39 -> 95.91836735 | F53: =iScores!R39 -> 0 | G53: =iScores!S39 -> 42.85714286 | H53: =iScores!T39 -> 65.30612245 | I53: =iScores!U39 -> 100 | K53: 7 | L53: 4 | M53: 6 | N53: 2 | O53: 8 | P53: 5 | Q53: 3 | R53: 1 | V53: =tblIndicators!R36 -> 0.0
A54: =tblIndicators!V37 -> 2.6.3) Waste water treatment (Rural) | B54: =iScores!N40 -> 44 | C54: =iScores!O40 -> 8 | D54: =iScores!P40 -> 0 | E54: =iScores!Q40 -> 100 | F54: =iScores!R40 -> 12 | G54: =iScores!S40 -> 12 | H54: =iScores!T40 -> 92 | I54: =iScores!U40 -> 100 | K54: 4 | L54: 7 | M54: 8 | N54: 1 | O54: 5 | P54: 5 | Q54: 3 | R54: 1 | V54: =tblIndicators!R37 -> 0.0
A55: =tblIndicators!V38 -> 2.7) Quality of transport network | B55: =iScores!N41 -> 9.090909091 | C55: =iScores!O41 -> 0 | D55: =iScores!P41 -> 31.81818182 | E55: =iScores!Q41 -> 9.090909091 | F55: =iScores!R41 -> 27.27272727 | G55: =iScores!S41 -> 9.090909091 | H55: =iScores!T41 -> 45.45454545 | I55: =iScores!U41 -> 100 | K55: 5 | L55: 8 | M55: 3 | N55: 5 | O55: 4 | P55: 5 | Q55: 2 | R55: 1 | V55: =tblIndicators!R38 -> 0
A56: =tblIndicators!V39 -> 2.8) Access to potable water | B56: =iScores!N42 -> 0 | C56: =iScores!O42 -> 86.66666667 | D56: =iScores!P42 -> 53.33333333 | E56: =iScores!Q42 -> 93.33333333 | F56: =iScores!R42 -> 20 | G56: =iScores!S42 -> 40 | H56: =iScores!T42 -> 60 | I56: =iScores!U42 -> 100 | K56: 8 | L56: 3 | M56: 5 | N56: 2 | O56: 7 | P56: 6 | Q56: 4 | R56: 1 | V56: =tblIndicators!R39 -> 0.0
A57: =tblIndicators!V40 -> 3) INSTITUTIONAL | B57: =iScores!N43 -> 45.40010513 | C57: =iScores!O43 -> 49.72703352 | D57: =iScores!P43 -> 41.13757952 | E57: =iScores!Q43 -> 32.40684837 | F57: =iScores!R43 -> 47.05448533 | G57: =iScores!S43 -> 34.4650736 | H57: =iScores!T43 -> 29.39451126 | I57: =iScores!U43 -> 85.53187831 | K57: 4 | L57: 2 | M57: 5 | N57: 7 | O57: 3 | P57: 6 | Q57: 8 | R57: 1 | V57: =tblIndicators!R40 -> 0.0
A58: =tblIndicators!V41 -> 3.1) Domestic protection | B58: =iScores!N44 -> 19.44444444 | C58: =iScores!O44 -> 30.55555556 | D58: =iScores!P44 -> 45.83333333 | E58: =iScores!Q44 -> 19.44444444 | F58: =iScores!R44 -> 50 | G58: =iScores!S44 -> 27.77777778 | H58: =iScores!T44 -> 50 | I58: =iScores!U44 -> 83.33333333 | K58: 7 | L58: 5 | M58: 4 | N58: 7 | O58: 2 | P58: 6 | Q58: 2 | R58: 1 | V58: =tblIndicators!R41 -> 0.0
A59: =tblIndicators!V42 -> 3.1.1) Implementation of CEDAW | B59: =iScores!N45 -> 25 | C59: =iScores!O45 -> 75 | D59: =iScores!P45 -> 50 | E59: =iScores!Q45 -> 25 | F59: =iScores!R45 -> 100 | G59: =iScores!S45 -> 50 | H59: =iScores!T45 -> 100 | I59: =iScores!U45 -> 100 | K59: 7 | L59: 4 | M59: 5 | N59: 7 | O59: 1 | P59: 5 | Q59: 1 | R59: 1 | V59: =tblIndicators!R42 -> 0
A60: =tblIndicators!V43 -> 3.1.2) Asssessment of National Critical Infrastructure Plan | B60: =iScores!N46 -> 0 | C60: =iScores!O46 -> 0 | D60: =iScores!P46 -> 37.5 | E60: =iScores!Q46 -> 0 | F60: =iScores!R46 -> 0 | G60: =iScores!S46 -> 0 | H60: =iScores!T46 -> 0 | I60: =iScores!U46 -> 50 | K60: 3 | L60: 3 | M60: 2 | N60: 3 | O60: 3 | P60: 3 | Q60: 3 | R60: 1 | V60: =tblIndicators!R43 -> 0
A61: =tblIndicators!V44 -> 3.1.3) Existence of social safety nets | B61: =iScores!N47 -> 33.33333333 | C61: =iScores!O47 -> 16.66666667 | D61: =iScores!P47 -> 50 | E61: =iScores!Q47 -> 33.33333333 | F61: =iScores!R47 -> 50 | G61: =iScores!S47 -> 33.33333333 | H61: =iScores!T47 -> 50 | I61: =iScores!U47 -> 100 | K61: 5 | L61: 8 | M61: 2 | N61: 5 | O61: 2 | P61: 5 | Q61: 2 | R61: 1 | V61: =tblIndicators!R44 -> 0
A62: =tblIndicators!V45 -> 3.2) Culture of safety | B62: =iScores!N48 -> 46.32083333 | C62: =iScores!O48 -> 32.0625 | D62: =iScores!P48 -> 36.08291667 | E62: =iScores!Q48 -> 24.07916667 | F62: =iScores!R48 -> 21.58333333 | G62: =iScores!S48 -> 35.49666667 | H62: =iScores!T48 -> 4.829166667 | I62: =iScores!U48 -> 75.85 | K62: 2 | L62: 5 | M62: 3 | N62: 6 | O62: 7 | P62: 4 | Q62: 8 | R62: 1 | V62: =tblIndicators!R45 -> 0.0
A63: =tblIndicators!V46 -> 3.2.1) Drills | B63: =iScores!N49 -> 75 | C63: =iScores!O49 -> 25 | D63: =iScores!P49 -> 50 | E63: =iScores!Q49 -> 25 | F63: =iScores!R49 -> 25 | G63: =iScores!S49 -> 50 | H63: =iScores!T49 -> 0 | I63: =iScores!U49 -> 100 | K63: 2 | L63: 5 | M63: 3 | N63: 5 | O63: 5 | P63: 3 | Q63: 8 | R63: 1 | V63: =tblIndicators!R46 -> 0
A64: =tblIndicators!V47 -> 3.2.2) Quality of emergency response team | B64: =iScores!N50 -> 66.66666667 | C64: =iScores!O50 -> 33.33333333 | D64: =iScores!P50 -> 33.33333333 | E64: =iScores!Q50 -> 33.33333333 | F64: =iScores!R50 -> 33.33333333 | G64: =iScores!S50 -> 33.33333333 | H64: =iScores!T50 -> 0 | I64: =iScores!U50 -> 100 | K64: 2 | L64: 3 | M64: 3 | N64: 3 | O64: 3 | P64: 3 | Q64: 8 | R64: 1 | V64: =tblIndicators!R47 -> 0
A65: =tblIndicators!V48 -> 3.2.3) Military force | B65: =iScores!N51 -> 33.33333333 | C65: =iScores!O51 -> 33.33333333 | D65: =iScores!P51 -> 33.33333333 | E65: =iScores!Q51 -> 33.33333333 | F65: =iScores!R51 -> 33.33333333 | G65: =iScores!S51 -> 66.66666667 | H65: =iScores!T51 -> 33.33333333 | I65: =iScores!U51 -> 66.66666667 | K65: 3 | L65: 3 | M65: 3 | N65: 3 | O65: 3 | P65: 1 | Q65: 3 | R65: 1 | V65: =tblIndicators!R48 -> 0
A66: =tblIndicators!V49 -> 3.2.4) Police force | B66: =iScores!N52 -> 0 | C66: =iScores!O52 -> 50 | D66: =iScores!P52 -> 33.33333333 | E66: =iScores!Q52 -> 33.33333333 | F66: =iScores!R52 -> 16.66666667 | G66: =iScores!S52 -> 50 | H66: =iScores!T52 -> 0 | I66: =iScores!U52 -> 83.33333333 | K66: 7 | L66: 2 | M66: 4 | N66: 4 | O66: 6 | P66: 2 | Q66: 7 | R66: 1 | V66: =tblIndicators!R49 -> 0
A67: =tblIndicators!V50 -> 3.2.5) Women in police force | B67: =iScores!N53 -> 3.9 | C67: =iScores!O53 -> 6.5 | D67: =iScores!P53 -> 5.33 | E67: =iScores!Q53 -> 9.3 | F67: =iScores!R53 -> 6 | G67: =iScores!S53 -> 0.64 | H67: =iScores!T53 -> 5.3 | I67: =iScores!U53 -> 6.8 | K67: 7 | L67: 3 | M67: 5 | N67: 1 | O67: 4 | P67: 8 | Q67: 6 | R67: 2 | V67: =tblIndicators!R50 -> 0.0
A68: =tblIndicators!V51 -> 3.2.6) Influence of women in police force | B68: =iScores!N54 -> 50 | C68: =iScores!O54 -> 50 | D68: =iScores!P54 -> 50 | E68: =iScores!Q54 -> 0 | F68: =iScores!R54 -> 0 | G68: =iScores!S54 -> 0 | H68: =iScores!T54 -> 0 | I68: =iScores!U54 -> 50 | K68: 1 | L68: 1 | M68: 1 | N68: 5 | O68: 5 | P68: 5 | Q68: 5 | R68: 1 | V68: =tblIndicators!R51 -> 0
A69: =tblIndicators!V52 -> 3.3) Policy coordination | B69: =iScores!N55 -> 88.88888889 | C69: =iScores!O55 -> 66.66666667 | D69: =iScores!P55 -> 66.66666667 | E69: =iScores!Q55 -> 47.22222222 | F69: =iScores!R55 -> 77.77777778 | G69: =iScores!S55 -> 69.44444444 | H69: =iScores!T55 -> 58.33333333 | I69: =iScores!U55 -> 88.88888889 | K69: 1 | L69: 5 | M69: 5 | N69: 8 | O69: 3 | P69: 4 | Q69: 7 | R69: 1 | V69: =tblIndicators!R52 -> 0.0
A70: =tblIndicators!V53 -> 3.3.1) Transboundary risk assessment systems and agreements | B70: =iScores!N56 -> 100 | C70: =iScores!O56 -> 100 | D70: =iScores!P56 -> 100 | E70: =iScores!Q56 -> 75 | F70: =iScores!R56 -> 100 | G70: =iScores!S56 -> 75 | H70: =iScores!T56 -> 75 | I70: =iScores!U56 -> 100 | K70: 1 | L70: 1 | M70: 1 | N70: 6 | O70: 1 | P70: 6 | Q70: 6 | R70: 1 | V70: =tblIndicators!R53 -> 0
A71: =tblIndicators!V54 -> 3.3.2) National platform for multilevel coordination of DRR | B71: =iScores!N57 -> 100 | C71: =iScores!O57 -> 66.66666667 | D71: =iScores!P57 -> 66.66666667 | E71: =iScores!Q57 -> 33.33333333 | F71: =iScores!R57 -> 100 | G71: =iScores!S57 -> 100 | H71: =iScores!T57 -> 66.66666667 | I71: =iScores!U57 -> 100 | K71: 1 | L71: 5 | M71: 5 | N71: 8 | O71: 1 | P71: 1 | Q71: 5 | R71: 1 | V71: =tblIndicators!R54 -> 0
A72: =tblIndicators!V55 -> 3.3.3) Decentralisation | B72: =iScores!N58 -> 66.66666667 | C72: =iScores!O58 -> 33.33333333 | D72: =iScores!P58 -> 33.33333333 | E72: =iScores!Q58 -> 33.33333333 | F72: =iScores!R58 -> 33.33333333 | G72: =iScores!S58 -> 33.33333333 | H72: =iScores!T58 -> 33.33333333 | I72: =iScores!U58 -> 66.66666667 | K72: =RANK(B72,$B72:$I72) -> 1 | L72: 3 | M72: 3 | N72: 3 | O72: 3 | P72: 3 | Q72: 3 | R72: 1 | V72: =tblIndicators!R55 -> 0
A73: =tblIndicators!V56 -> 3.4) Gender focus in DRR policy | B73: =iScores!N59 -> 23.33333333 | C73: =iScores!O59 -> 26.66666667 | D73: =iScores!P59 -> 3.333333333 | E73: =iScores!Q59 -> 0 | F73: =iScores!R59 -> 36.66666667 | G73: =iScores!S59 -> 43.33333333 | H73: =iScores!T59 -> 0 | I73: =iScores!U59 -> 80 | K73: 5 | L73: 4 | M73: 6 | N73: 7 | O73: 3 | P73: 2 | Q73: 7 | R73: 1 | V73: =tblIndicators!R56 -> 0.0
A74: =tblIndicators!V57 -> 3.4.1) Gender perspective in disaster management planning | B74: =iScores!N60 -> 50 | C74: =iScores!O60 -> 50 | D74: =iScores!P60 -> 0 | E74: =iScores!Q60 -> 0 | F74: =iScores!R60 -> 50 | G74: =iScores!S60 -> 50 | H74: =iScores!T60 -> 0 | I74: =iScores!U60 -> 100 | K74: 2 | L74: 2 | M74: 6 | N74: 6 | O74: 2 | P74: 2 | Q74: 6 | R74: 1 | V74: =tblIndicators!R57 -> 0
A75: =tblIndicators!V58 -> 3.4.2) Inclusion of women in DRR decision-making and leadership | B75: =iScores!N61 -> 33.33333333 | C75: =iScores!O61 -> 33.33333333 | D75: =iScores!P61 -> 0 | E75: =iScores!Q61 -> 0 | F75: =iScores!R61 -> 33.33333333 | G75: =iScores!S61 -> 33.33333333 | H75: =iScores!T61 -> 0 | I75: =iScores!U61 -> 33.33333333 | K75: 1 | L75: 1 | M75: 6 | N75: 6 | O75: 1 | P75: 1 | Q75: 6 | R75: 1 | V75: =tblIndicators!R58 -> 0
A76: =tblIndicators!V59 -> 3.4.3) Consideration of the needs of female internally-displaced persons | B76: =iScores!N62 -> 33.33333333 | C76: =iScores!O62 -> 0 | D76: =iScores!P62 -> 16.66666667 | E76: =iScores!Q62 -> 0 | F76: =iScores!R62 -> 0 | G76: =iScores!S62 -> 83.33333333 | H76: =iScores!T62 -> 0 | I76: =iScores!U62 -> 66.66666667 | K76: 3 | L76: 5 | M76: 4 | N76: 5 | O76: 5 | P76: 1 | Q76: 5 | R76: 2 | V76: =tblIndicators!R59 -> 0
A77: =tblIndicators!V60 -> 3.4.4) Inclusion of women in disaster preparedness training | B77: =iScores!N63 -> 0 | C77: =iScores!O63 -> 50 | D77: =iScores!P63 -> 0 | E77: =iScores!Q63 -> 0 | F77: =iScores!R63 -> 100 | G77: =iScores!S63 -> 50 | H77: =iScores!T63 -> 0 | I77: =iScores!U63 -> 100 | K77: 5 | L77: 3 | M77: 5 | N77: 5 | O77: 1 | P77: 3 | Q77: 5 | R77: 1 | V77: =tblIndicators!R60 -> 0
A78: =tblIndicators!V61 -> 3.4.5) Measures to address violence against women | B78: =iScores!N64 -> 0 | C78: =iScores!O64 -> 0 | D78: =iScores!P64 -> 0 | E78: =iScores!Q64 -> 0 | F78: =iScores!R64 -> 0 | G78: =iScores!S64 -> 0 | H78: =iScores!T64 -> 0 | I78: =iScores!U64 -> 100 | K78: 2 | L78: 2 | M78: 2 | N78: 2 | O78: 2 | P78: 2 | Q78: 2 | R78: 1 | V78: =tblIndicators!R61 -> 0
A79: =tblIndicators!V62 -> 3.5) Government effectiveness | B79: =iScores!N65 -> 28.41350826 | C79: =iScores!O65 -> 54.37317784 | D79: =iScores!P65 -> 46.02769679 | E79: =iScores!Q65 -> 32.45869776 | F79: =iScores!R65 -> 41.67881438 | G79: =iScores!S65 -> 18.13654033 | H79: =iScores!T65 -> 38.20456754 | I79: =iScores!U65 -> 93.45238095 | K79: 7 | L79: 2 | M79: 3 | N79: 6 | O79: 4 | P79: 8 | Q79: 5 | R79: 1 | V79: =tblIndicators!R62 -> 0.0
A80: =tblIndicators!V63 -> 3.5.1) Government corruption | B80: =iScores!N66 -> 4.081632653 | C80: =iScores!O66 -> 77.55102041 | D80: =iScores!P66 -> 22.44897959 | E80: =iScores!Q66 -> 0 | F80: =iScores!R66 -> 12.24489796 | G80: =iScores!S66 -> 6.12244898 | H80: =iScores!T66 -> 24.48979592 | I80: =iScores!U66 -> 100 | K80: 7 | L80: 2 | M80: 4 | N80: 8 | O80: 5 | P80: 6 | Q80: 3 | R80: 1 | V80: =tblIndicators!R63 -> 0.0
A81: =tblIndicators!V64 -> 3.5.2) Quality of the bureaucracy | B81: =iScores!N67 -> 33.33333333 | C81: =iScores!O67 -> 66.66666667 | D81: =iScores!P67 -> 33.33333333 | E81: =iScores!Q67 -> 66.66666667 | F81: =iScores!R67 -> 66.66666667 | G81: =iScores!S67 -> 33.33333333 | H81: =iScores!T67 -> 33.33333333 | I81: =iScores!U67 -> 100 | K81: 5 | L81: 2 | M81: 5 | N81: 2 | O81: 2 | P81: 5 | Q81: 5 | R81: 1 | V81: =tblIndicators!R64 -> 0
A82: =tblIndicators!V65 -> 3.5.3) Effectiveness of legal system | B82: =iScores!N68 -> 50 | C82: =iScores!O68 -> 41.66666667 | D82: =iScores!P68 -> 25 | E82: =iScores!Q68 -> 66.66666667 | F82: =iScores!R68 -> 41.66666667 | G82: =iScores!S68 -> 50 | H82: =iScores!T68 -> 66.66666667 | I82: =iScores!U68 -> 66.66666667 | K82: 4 | L82: 6 | M82: 8 | N82: 1 | O82: 6 | P82: 4 | Q82: 1 | R82: 1 | V82: =tblIndicators!R65 -> 0.0
A83: =tblIndicators!V66 -> 3.5.4) Well-defined property rights | B83: =iScores!N69 -> 37.5 | C83: =iScores!O69 -> 0 | D83: =iScores!P69 -> 62.5 | E83: =iScores!Q69 -> 25 | F83: =iScores!R69 -> 12.5 | G83: =iScores!S69 -> 37.5 | H83: =iScores!T69 -> 62.5 | I83: =iScores!U69 -> 87.5 | K83: 4 | L83: 8 | M83: 2 | N83: 6 | O83: 7 | P83: 4 | Q83: 2 | R83: 1 | V83: =tblIndicators!R66 -> 0.0
A84: =tblIndicators!V67 -> 3.5.5) Presence of free and independent media | B84: =iScores!N70 -> 23.97959184 | C84: =iScores!O70 -> 28.06122449 | D84: =iScores!P70 -> 62.24489796 | E84: =iScores!Q70 -> 18.87755102 | F84: =iScores!R70 -> 8.673469388 | G84: =iScores!S70 -> 0 | H84: =iScores!T70 -> 13.7755102 | I84: =iScores!U70 -> 100 | K84: 4 | L84: 3 | M84: 2 | N84: 5 | O84: 7 | P84: 8 | Q84: 6 | R84: 1 | V84: =tblIndicators!R67 -> 0.0
A85: =tblIndicators!V68 -> 3.5.6) Women's access to common property and government-allocated land | B85: =iScores!N71 -> 50 | C85: =iScores!O71 -> 100 | D85: =iScores!P71 -> 50 | E85: =iScores!Q71 -> 50 | F85: =iScores!R71 -> 50 | G85: =iScores!S71 -> 0 | H85: =iScores!T71 -> 0 | I85: =iScores!U71 -> 100 | K85: =RANK(B85,$B85:$I85) -> 3 | L85: =RANK(C85,$B85:$I85) -> 1 | M85: =RANK(D85,$B85:$I85) -> 3 | N85: =RANK(E85,$B85:$I85) -> 3 | O85: =RANK(F85,$B85:$I85) -> 3 | P85: =RANK(G85,$B85:$I85) -> 7 | Q85: =RANK(H85,$B85:$I85) -> 7 | R85: =RANK(I85,$B85:$I85) -> 1 | V85: =tblIndicators!R68 -> 0
A86: =tblIndicators!V69 -> 3.5.7) Women's property rights | B86: =iScores!N72 -> 0 | C86: =iScores!O72 -> 66.66666667 | D86: =iScores!P72 -> 66.66666667 | E86: =iScores!Q72 -> 0 | F86: =iScores!R72 -> 100 | G86: =iScores!S72 -> 0 | H86: =iScores!T72 -> 66.66666667 | I86: =iScores!U72 -> 100 | K86: 6 | L86: 3 | M86: 3 | N86: 6 | O86: 1 | P86: 6 | Q86: 3 | R86: 1 | V86: =tblIndicators!R69 -> 0
A87: =tblIndicators!V70 -> 3.6) Violence | B87: =iScores!N73 -> 65.99962254 | C87: =iScores!O73 -> 88.03763441 | D87: =iScores!P73 -> 48.8815303 | E87: =iScores!Q73 -> 71.23655914 | F87: =iScores!R73 -> 54.62031982 | G87: =iScores!S73 -> 12.60167906 | H87: =iScores!T73 -> 25 | I87: =iScores!U73 -> 91.66666667 | K87: 4 | L87: 2 | M87: 6 | N87: 3 | O87: 5 | P87: 8 | Q87: 7 | R87: 1 | V87: =tblIndicators!R70 -> 0.0
A88: =tblIndicators!V71 -> 3.6.1) Violent crime level | B88: =iScores!N74 -> 33.33333333 | C88: =iScores!O74 -> 100 | D88: =iScores!P74 -> 33.33333333 | E88: =iScores!Q74 -> 66.66666667 | F88: =iScores!R74 -> 33.33333333 | G88: =iScores!S74 -> 0 | H88: =iScores!T74 -> 66.66666667 | I88: =iScores!U74 -> 100 | K88: 5 | L88: 1 | M88: 5 | N88: 3 | O88: 5 | P88: 8 | Q88: 3 | R88: 1 | V88: =tblIndicators!R71 -> 0
A89: =tblIndicators!V72 -> 3.6.2) Trafficking in persons | B89: =iScores!N75 -> 66.66666667 | C89: =iScores!O75 -> 66.66666667 | D89: =iScores!P75 -> 66.66666667 | E89: =iScores!Q75 -> 66.66666667 | F89: =iScores!R75 -> 66.66666667 | G89: =iScores!S75 -> 33.33333333 | H89: =iScores!T75 -> 33.33333333 | I89: =iScores!U75 -> 66.66666667 | K89: 1 | L89: 1 | M89: 1 | N89: 1 | O89: 1 | P89: 7 | Q89: 7 | R89: 1 | V89: =tblIndicators!R72 -> 0
A90: =tblIndicators!V73 -> 3.6.3) Deaths from organised conflict (internal) | B90: =iScores!N76 -> 99.48236113 | C90: =iScores!O76 -> 100 | D90: =iScores!P76 -> 45.52612119 | E90: =iScores!Q76 -> 100 | F90: =iScores!R76 -> 62.02966636 | G90: =iScores!S76 -> 17.07338292 | H90: =iScores!T76 -> 0 | I90: =iScores!U76 -> 100 | K90: 4 | L90: 1 | M90: 6 | N90: 1 | O90: 5 | P90: 7 | Q90: 8 | R90: 1 | V90: =tblIndicators!R73 -> 0.0
A91: =tblIndicators!V74 -> 3.6.4) Deaths from homicides | B91: =iScores!N77 -> 64.51612903 | C91: =iScores!O77 -> 85.48387097 | D91: =iScores!P77 -> 50 | E91: =iScores!Q77 -> 51.61290323 | F91: =iScores!R77 -> 56.4516129 | G91: =iScores!S77 -> 0 | H91: =iScores!T77 -> 0 | I91: =iScores!U77 -> 100 | K91: 3 | L91: 2 | M91: 6 | N91: 5 | O91: 4 | P91: 7 | Q91: 7 | R91: 1 | V91: =tblIndicators!R74 -> 0.0
A92: =tblIndicators!V75 -> 4) SOCIAL | B92: =iScores!N78 -> 43.81344802 | C92: =iScores!O78 -> 55.55684501 | D92: =iScores!P78 -> 36.38655908 | E92: =iScores!Q78 -> 51.48336672 | F92: =iScores!R78 -> 52.53550264 | G92: =iScores!S78 -> 21.63831688 | H92: =iScores!T78 -> 43.94870405 | I92: =iScores!U78 -> 73.72685499 | K92: 6 | L92: 2 | M92: 7 | N92: 4 | O92: 3 | P92: 8 | Q92: 5 | R92: 1 | V92: =tblIndicators!R75 -> 0.0
A93: =tblIndicators!V76 -> 4.1) Population vulnerability | B93: =iScores!N79 -> 36.08370035 | C93: =iScores!O79 -> 58.02889386 | D93: =iScores!P79 -> 35.35624162 | E93: =iScores!Q79 -> 44.20630774 | F93: =iScores!R79 -> 61.35433397 | G93: =iScores!S79 -> 25.78766262 | H93: =iScores!T79 -> 8.333333333 | I93: =iScores!U79 -> 76.2922238 | K93: 5 | L93: 3 | M93: 6 | N93: 4 | O93: 2 | P93: 7 | Q93: 8 | R93: 1 | V93: =tblIndicators!R76 -> 0.0
A94: =tblIndicators!V77 -> 4.1.1) Dependency ratio | B94: =iScores!N80 -> 23.94518729 | C94: =iScores!O80 -> 24.08668158 | D94: =iScores!P80 -> 15.62930069 | E94: =iScores!Q80 -> 7.618923228 | F94: =iScores!R80 -> 100 | G94: =iScores!S80 -> 70.66385703 | H94: =iScores!T80 -> 0 | I94: =iScores!U80 -> 53.8766714 | K94: 5 | L94: 4 | M94: 6 | N94: 7 | O94: 1 | P94: 2 | Q94: 8 | R94: 3 | V94: =tblIndicators!R77 -> 0.0
A95: =tblIndicators!V78 -> 4.1.2) Internally displaced persons (IDPs) | B95: =iScores!N81 -> 59.30591376 | C95: =iScores!O81 -> 100 | D95: =iScores!P81 -> 90.43942417 | E95: =iScores!Q81 -> 100 | F95: =iScores!R81 -> 59.0630019 | G95: =iScores!S81 -> 6.699130829 | H95: =iScores!T81 -> 0 | I95: =iScores!U81 -> 100 | K95: 5 | L95: 1 | M95: 4 | N95: 1 | O95: 6 | P95: 7 | Q95: 8 | R95: 1 | V95: =tblIndicators!R78 -> 0.0000
A96: =tblIndicators!V79 -> 4.1.3) Ease of mobility for women | B96: =iScores!N82 -> 25 | C96: =iScores!O82 -> 50 | D96: =iScores!P82 -> 0 | E96: =iScores!Q82 -> 25 | F96: =iScores!R82 -> 25 | G96: =iScores!S82 -> 0 | H96: =iScores!T82 -> 25 | I96: =iScores!U82 -> 75 | K96: 3 | L96: 2 | M96: 7 | N96: 3 | O96: 3 | P96: 7 | Q96: 3 | R96: 1 | V96: =tblIndicators!R79 -> 0
A97: =tblIndicators!V80 -> 4.2) Education and gender | B97: =iScores!N83 -> 53.50542249 | C97: =iScores!O83 -> 55.65943139 | D97: =iScores!P83 -> 46.49905548 | E97: =iScores!Q83 -> 47.34832079 | F97: =iScores!R83 -> 63.3111913 | G97: =iScores!S83 -> 0 | H97: =iScores!T83 -> 73.94852162 | I97: =iScores!U83 -> 76.21147231 | K97: 5 | L97: 4 | M97: 7 | N97: 6 | O97: 3 | P97: 8 | Q97: 2 | R97: 1 | V97: =tblIndicators!R80 -> 0.0
A98: =tblIndicators!V81 -> 4.2.1) Female/male literacy rate | B98: =iScores!N84 -> 69.56786366 | C98: =iScores!O84 -> 54.04747413 | D98: =iScores!P84 -> 39.13572733 | E98: =iScores!Q84 -> 100 | F98: =iScores!R84 -> 39.13572733 | G98: =iScores!S84 -> 0 | H98: =iScores!T84 -> 100 | I98: =iScores!U84 -> 100 | K98: 4 | L98: 5 | M98: 6 | N98: 1 | O98: 6 | P98: 8 | Q98: 1 | R98: 1 | V98: =tblIndicators!R81 -> 0.0
A99: =tblIndicators!V82 -> 4.2.2) Rate of secondary school enrollment (girls) | B99: =iScores!N85 -> 33.09403955 | C99: =iScores!O85 -> 63.27745986 | D99: =iScores!P85 -> 49.59520494 | E99: =iScores!Q85 -> 16.15759349 | F99: =iScores!R85 -> 50.79784658 | G99: =iScores!S85 -> 0 | H99: =iScores!T85 -> 100 | I99: =iScores!U85 -> 99.44011749 | K99: 6 | L99: 3 | M99: 5 | N99: 7 | O99: 4 | P99: 8 | Q99: 1 | R99: 2 | V99: =tblIndicators!R82 -> 0.0
A100: =tblIndicators!V83 -> 4.2.3) Rate of primary school enrollment (girls) | B100: =iScores!N86 -> 57.85436425 | C100: =iScores!O86 -> 49.65336019 | D100: =iScores!P86 -> 50.76623418 | E100: =iScores!Q86 -> 25.88736888 | F100: =iScores!R86 -> 100 | G100: =iScores!S86 -> 0 | H100: =iScores!T86 -> 21.84556487 | I100: =iScores!U86 -> 29.19429944 | K100: 2 | L100: 4 | M100: 3 | N100: 6 | O100: 1 | P100: 8 | Q100: 7 | R100: 5 | V100: =tblIndicators!R83 -> 0.0
A101: =tblIndicators!V84 -> 4.3) Health | B101: =iScores!N87 -> 41.85122122 | C101: =iScores!O87 -> 52.98220978 | D101: =iScores!P87 -> 27.30438014 | E101: =iScores!Q87 -> 62.89547162 | F101: =iScores!R87 -> 32.94098266 | G101: =iScores!S87 -> 39.12728803 | H101: =iScores!T87 -> 49.5642572 | I101: =iScores!U87 -> 68.67686885 | K101: 5 | L101: 3 | M101: 8 | N101: 2 | O101: 7 | P101: 6 | Q101: 4 | R101: 1 | V101: =tblIndicators!R84 -> 0.0
A102: =tblIndicators!V85 -> 4.3.1) # of doctors/1000 | B102: =iScores!N88 -> 7.428571429 | C102: =iScores!O88 -> 2.80952381 | D102: =iScores!P88 -> 23.9047619 | E102: =iScores!Q88 -> 57.14285714 | F102: =iScores!R88 -> 0.4761904762 | G102: =iScores!S88 -> 29.85714286 | H102: =iScores!T88 -> 23.80952381 | I102: =iScores!U88 -> 99.85714286 | K102: 6 | L102: 7 | M102: 4 | N102: 2 | O102: 8 | P102: 3 | Q102: 5 | R102: 1 | V102: =tblIndicators!R85 -> 0.0
A103: =tblIndicators!V86 -> 4.3.2) # of hospitals/land unit | B103: =iScores!N89 -> 27.45991484 | C103: =iScores!O89 -> 0.2215429413 | D103: =iScores!P89 -> 4.637026386 | E103: =iScores!Q89 -> 100 | F103: =iScores!R89 -> 0 | G103: =iScores!S89 -> 1.253733876 | H103: =iScores!T89 -> 12.83720993 | I103: =iScores!U89 -> 31.90407025 | K103: 3 | L103: 7 | M103: 5 | N103: 1 | O103: 8 | P103: 6 | Q103: 4 | R103: 2 | V103: =tblIndicators!R86 -> 0.0
A104: =tblIndicators!V87 -> 4.3.3) Affordability of healthcare | B104: =iScores!N90 -> 36.5 | C104: =iScores!O90 -> 84.6 | D104: =iScores!P90 -> 28.2 | E104: =iScores!Q90 -> 60.8 | F104: =iScores!R90 -> 37.4 | G104: =iScores!S90 -> 76.6 | H104: =iScores!T90 -> 45.6 | I104: =iScores!U90 -> 80.3 | K104: 7 | L104: 1 | M104: 8 | N104: 4 | O104: 6 | P104: 3 | Q104: 5 | R104: 2 | V104: =tblIndicators!R87 -> 0.0
A105: =tblIndicators!V88 -> 4.3.4) Level of child malnutrition | B105: =iScores!N91 -> 21.82410423 | C105: =iScores!O91 -> 100 | D105: =iScores!P91 -> 0 | E105: =iScores!Q91 -> 83.71335505 | F105: =iScores!R91 -> 46.90553746 | G105: =iScores!S91 -> 41.04234528 | H105: =iScores!T91 -> 71.33550489 | I105: =iScores!U91 -> 100 | K105: 7 | L105: 1 | M105: 8 | N105: 3 | O105: 5 | P105: 6 | Q105: 4 | R105: 1 | V105: =tblIndicators!R88 -> 0.0
A106: =tblIndicators!V89 -> 4.3.5) Fertility rate | B106: =iScores!N92 -> 57.89473684 | C106: =iScores!O92 -> 52.63157895 | D106: =iScores!P92 -> 42.10526316 | E106: =iScores!Q92 -> 52.63157895 | F106: =iScores!R92 -> 47.36842105 | G106: =iScores!S92 -> 0 | H106: =iScores!T92 -> 52.63157895 | I106: =iScores!U92 -> 100 | K106: 2 | L106: 3 | M106: 7 | N106: 3 | O106: 6 | P106: 8 | Q106: 3 | R106: 1 | V106: =tblIndicators!R89 -> 0.0
A107: =tblIndicators!V90 -> 4.3.6) Psychiatric morbidity | B107: =iScores!N93 -> 100 | C107: =iScores!O93 -> 77.63061301 | D107: =iScores!P93 -> 64.9792294 | E107: =iScores!Q93 -> 23.08503857 | F107: =iScores!R93 -> 65.49574697 | G107: =iScores!S93 -> 86.01050619 | H107: =iScores!T93 -> 91.17172561 | I107: =iScores!U93 -> 0 | K107: 1 | L107: 4 | M107: 6 | N107: 7 | O107: 5 | P107: 3 | Q107: 2 | R107: 8 | V107: =tblIndicators!R90 -> 0.0

Sheet Rankings
B1: CATEGORY RANKINGS | K1: COUNTRY HIGHLIGHT | U1: WEIGHT PROFILE
D4: =iRank!AC6 -> OVERALL SCORE | I4: =iRank!AN6 -> ECONOMIC | N4: =iRank!AY6 -> INFRASTRUCTURE | S4: =iRank!BI6 -> INSTITUTIONAL | X4: =iRank!BS6 -> SOCIAL
C5: =iRank!AB8 -> 1 | D5: =iRank!AC8 -> 1 | E5: =iRank!AD8 -> Japan | F5: =iRank!AE8 -> 80.6 | H5: =iRank!AM8 -> 1 | I5: =iRank!AN8 -> 1 | J5: =iRank!AO8 -> Japan | K5: =iRank!AP8 -> 73.2 | M5: =iRank!AX8 -> 1 | N5: =iRank!AY8 -> 1 | O5: =iRank!AZ8 -> Japan | P5: =iRank!BA8 -> 90.1 | R5: =iRank!BH8 -> 1 | S5: =iRank!BI8 -> 1 | T5: =iRank!BJ8 -> Japan | U5: =iRank!BK8 -> 85.5 | W5: =iRank!BR8 -> 1 | X5: =iRank!BS8 -> 1 | Y5: =iRank!BT8 -> Japan | Z5: =iRank!BU8 -> 73.7
C6: =iRank!AB9 -> 1 | D6: =iRank!AC9 -> 2 | E6: =iRank!AD9 -> Bhutan | F6: =iRank!AE9 -> 46.4 | H6: =iRank!AM9 -> 1 | I6: =iRank!AN9 -> 2 | J6: =iRank!AO9 -> India | K6: =iRank!AP9 -> 55.9 | M6: =iRank!AX9 -> 1 | N6: =iRank!AY9 -> 2 | O6: =iRank!AZ9 -> Maldives | P6: =iRank!BA9 -> 59.6 | R6: =iRank!BH9 -> 1 | S6: =iRank!BI9 -> 2 | T6: =iRank!BJ9 -> Bhutan | U6: =iRank!BK9 -> 49.7 | W6: =iRank!BR9 -> 1 | X6: =iRank!BS9 -> 2 | Y6: =iRank!BT9 -> Bhutan | Z6: =iRank!BU9 -> 55.6
C7: =iRank!AB10 -> 1 | D7: =iRank!AC10 -> 3 | E7: =iRank!AD10 -> Sri Lanka | F7: =iRank!AE10 -> 45.9 | H7: =iRank!AM10 -> 1 | I7: =iRank!AN10 -> 3 | J7: =iRank!AO10 -> Sri Lanka | K7: =iRank!AP10 -> 51.8 | M7: =iRank!AX10 -> 1 | N7: =iRank!AY10 -> 3 | O7: =iRank!AZ10 -> Sri Lanka | P7: =iRank!BA10 -> 58.3 | R7: =iRank!BH10 -> 1 | S7: =iRank!BI10 -> 3 | T7: =iRank!BJ10 -> Nepal | U7: =iRank!BK10 -> 47.1 | W7: =iRank!BR10 -> 1 | X7: =iRank!BS10 -> 3 | Y7: =iRank!BT10 -> Nepal | Z7: =iRank!BU10 -> 52.5
C8: =iRank!AB11 -> 1 | D8: =iRank!AC11 -> 4 | E8: =iRank!AD11 -> Nepal | F8: =iRank!AE11 -> 45.2 | H8: =iRank!AM11 -> 1 | I8: =iRank!AN11 -> 4 | J8: =iRank!AO11 -> Bangladesh | K8: =iRank!AP11 -> 48.6 | M8: =iRank!AX11 -> 1 | N8: =iRank!AY11 -> 4 | O8: =iRank!AZ11 -> Bhutan | P8: =iRank!BA11 -> 37.5 | R8: =iRank!BH11 -> 1 | S8: =iRank!BI11 -> 4 | T8: =iRank!BJ11 -> Bangladesh | U8: =iRank!BK11 -> 45.4 | W8: =iRank!BR11 -> 1 | X8: =iRank!BS11 -> 4 | Y8: =iRank!BT11 -> Maldives | Z8: =iRank!BU11 -> 51.5
C9: =iRank!AB12 -> 1 | D9: =iRank!AC12 -> 5 | E9: =iRank!AD12 -> India | F9: =iRank!AE12 -> 42.2 | H9: =iRank!AM12 -> 1 | I9: =iRank!AN12 -> 5 | J9: =iRank!AO12 -> Nepal | K9: =iRank!AP12 -> 48.3 | M9: =iRank!AX12 -> 1 | N9: =iRank!AY12 -> 5 | O9: =iRank!AZ12 -> India | P9: =iRank!BA12 -> 35.3 | R9: =iRank!BH12 -> 1 | S9: =iRank!BI12 -> 5 | T9: =iRank!BJ12 -> India | U9: =iRank!BK12 -> 41.1 | W9: =iRank!BR12 -> 1 | X9: =iRank!BS12 -> 5 | Y9: =iRank!BT12 -> Sri Lanka | Z9: =iRank!BU12 -> 43.9
C10: =iRank!AB13 -> 1 | D10: =iRank!AC13 -> 6 | E10: =iRank!AD13 -> Maldives | F10: =iRank!AE13 -> 40.4 | H10: =iRank!AM13 -> 1 | I10: =iRank!AN13 -> 6 | J10: =iRank!AO13 -> Bhutan | K10: =iRank!AP13 -> 43 | M10: =iRank!AX13 -> 1 | N10: =iRank!AY13 -> 6 | O10: =iRank!AZ13 -> Nepal | P10: =iRank!BA13 -> 32.7 | R10: =iRank!BH13 -> 1 | S10: =iRank!BI13 -> 6 | T10: =iRank!BJ13 -> Pakistan | U10: =iRank!BK13 -> 34.5 | W10: =iRank!BR13 -> 1 | X10: =iRank!BS13 -> 6 | Y10: =iRank!BT13 -> Bangladesh | Z10: =iRank!BU13 -> 43.8
C11: =iRank!AB14 -> 1 | D11: =iRank!AC14 -> 7 | E11: =iRank!AD14 -> Bangladesh | F11: =iRank!AE14 -> 40 | H11: =iRank!AM14 -> 1 | I11: =iRank!AN14 -> 7 | J11: =iRank!AO14 -> Pakistan | K11: =iRank!AP14 -> 23.8 | M11: =iRank!AX14 -> 1 | N11: =iRank!AY14 -> 7 | O11: =iRank!AZ14 -> Pakistan | P11: =iRank!BA14 -> 31.5 | R11: =iRank!BH14 -> 1 | S11: =iRank!BI14 -> 7 | T11: =iRank!BJ14 -> Maldives | U11: =iRank!BK14 -> 32.4 | W11: =iRank!BR14 -> 1 | X11: =iRank!BS14 -> 7 | Y11: =iRank!BT14 -> India | Z11: =iRank!BU14 -> 36.4
C12: =iRank!AB15 -> 1 | D12: =iRank!AC15 -> 8 | E12: =iRank!AD15 -> Pakistan | F12: =iRank!AE15 -> 27.8 | H12: =iRank!AM15 -> 1 | I12: =iRank!AN15 -> 8 | J12: =iRank!AO15 -> Maldives | K12: =iRank!AP15 -> 18.2 | M12: =iRank!AX15 -> 1 | N12: =iRank!AY15 -> 8 | O12: =iRank!AZ15 -> Bangladesh | P12: =iRank!BA15 -> 22.3 | R12: =iRank!BH15 -> 1 | S12: =iRank!BI15 -> 8 | T12: =iRank!BJ15 -> Sri Lanka | U12: =iRank!BK15 -> 29.4 | W12: =iRank!BR15 -> 1 | X12: =iRank!BS15 -> 8 | Y12: =iRank!BT15 -> Pakistan | Z12: =iRank!BU15 -> 21.6

Sheet iCountryP (hidden)
A1: =uxbWorks!A2 -> COUNTRY_COUNT | B1: =uxbWorks!B2 -> 8
A2: =uxbWorks!A21 -> COUNTRY1_ID | B2: =uxbWorks!B18 -> 1 | C2: =uxbWorks!C21 -> Bangladesh
A3: =uxbWorks!A22 -> COUNTRY2_ID | B3: =uxbWorks!B19 -> 2 | C3: =IF(B3=0,"",uxbWorks!C22) -> Bhutan
J4: Score | O4: Rank
J6: =B2 -> 1 | K6: =B3 -> 2
A7: =uxbWorks!A4 -> TRIM_TEXT_LEN | B7: =uxbWorks!B4 -> 200 | F7: Rank(tie) | G7: ISTIE | J7: =C2 -> Bangladesh | K7: =C3 -> Bhutan | S7: Spider Chart | U7: 1 | V7: 2 | W7: 3
E8: Score / 100 | H8: =CONCATENATE("Rank / ",B1) -> Rank / 8 | T8: =C2 -> Bangladesh | U8: High | V8: Low | W8: Average
A9: =tblLookups!E2 -> 0 | B9: =tblLookups!F2 -> TOTAL | C9: =tblLookups!G2 -> 1 | D9: =tblLookups!H2 -> OVERALL SCORE | E9: =INDEX(aScores,$C9,$B$2) -> 40 | F9: =RANK(E9,OFFSET(aScores,$C9-1,0,1,$B$1)) -> 7 | G9: =COUNTIF(OFFSET(aScores,$C9-1,0,1,$B$1),E9) -> 1 | H9: =IF(G9>1,CONCATENATE("=",F9),F9) -> 7 | J9: =IF(J$6=0,-100,INDEX(aScores,$C9,J$6)) -> 40 | K9: 46.4 | O9: =RANK(J9,$J9:$M9)+COUNTIF($J9:J9,J9)-1 -> 2 | P9: =RANK(K9,$J9:$M9)+COUNTIF($J9:K9,K9)-1 -> 1 | R9: =C9 -> 1 | S9: OVERALL SCORE | T9: 40 | U9: =INDEX(rScores!$L$5:$N$93,iCountryP!$R9,iCountryP!U$7) -> 80.6 | V9: =INDEX(rScores!$L$5:$N$93,iCountryP!$R9,iCountryP!V$7) -> 27.8 | W9: =INDEX(rScores!$L$5:$N$93,iCountryP!$R9,iCountryP!W$7) -> 46.0625
A10: =tblLookups!E3 -> 1 | B10: =tblLookups!F3 -> ECON | C10: =tblLookups!G3 -> 2 | D10: =tblLookups!H3 -> ECONOMIC | E10: =INDEX(aScores,$C10,$B$2) -> 48.6 | F10: =RANK(E10,OFFSET(aScores,$C10-1,0,1,$B$1)) -> 4 | G10: =COUNTIF(OFFSET(aScores,$C10-1,0,1,$B$1),E10) -> 1 | H10: =IF(G10>1,CONCATENATE("=",F10),F10) -> 4 | J10: 48.6 | K10: 43 | O10: =RANK(J10,$J10:$M10)+COUNTIF($J10:J10,J10)-1 -> 1 | P10: =RANK(K10,$J10:$M10)+COUNTIF($J10:K10,K10)-1 -> 2 | R10: 2 | S10: ECONOMIC | T10: 48.6 | U10: =INDEX(rScores!$L$5:$N$93,iCountryP!$R10,iCountryP!U$7) -> 73.2 | V10: =INDEX(rScores!$L$5:$N$93,iCountryP!$R10,iCountryP!V$7) -> 18.2 | W10: =INDEX(rScores!$L$5:$N$93,iCountryP!$R10,iCountryP!W$7) -> 45.35
A11: =tblLookups!E4 -> 2 | B11: =tblLookups!F4 -> INFRA | C11: =tblLookups!G4 -> 17 | D11: =tblLookups!H4 -> INFRASTRUCTURE | E11: =INDEX(aScores,$C11,$B$2) -> 22.3 | F11: =RANK(E11,OFFSET(aScores,$C11-1,0,1,$B$1)) -> 8 | G11: =COUNTIF(OFFSET(aScores,$C11-1,0,1,$B$1),E11) -> 1 | H11: =IF(G11>1,CONCATENATE("=",F11),F11) -> 8 | J11: 22.3 | K11: 37.5 | O11: =RANK(J11,$J11:$M11)+COUNTIF($J11:J11,J11)-1 -> 2 | P11: =RANK(K11,$J11:$M11)+COUNTIF($J11:K11,K11)-1 -> 1 | R11: 17 | S11: INFRASTRUCTURE | T11: 22.3 | U11: =INDEX(rScores!$L$5:$N$93,iCountryP!$R11,iCountryP!U$7) -> 90.1 | V11: =INDEX(rScores!$L$5:$N$93,iCountryP!$R11,iCountryP!V$7) -> 22.3 | W11: =INDEX(rScores!$L$5:$N$93,iCountryP!$R11,iCountryP!W$7) -> 45.9125
A12: =tblLookups!E5 -> 3 | B12: =tblLookups!F5 -> INST | C12: =tblLookups!G5 -> 39 | D12: =tblLookups!H5 -> INSTITUTIONAL | E12: =INDEX(aScores,$C12,$B$2) -> 45.4 | F12: =RANK(E12,OFFSET(aScores,$C12-1,0,1,$B$1)) -> 4 | G12: =COUNTIF(OFFSET(aScores,$C12-1,0,1,$B$1),E12) -> 1 | H12: =IF(G12>1,CONCATENATE("=",F12),F12) -> 4 | J12: 45.4 | K12: 49.7 | O12: =RANK(J12,$J12:$M12)+COUNTIF($J12:J12,J12)-1 -> 2 | P12: =RANK(K12,$J12:$M12)+COUNTIF($J12:K12,K12)-1 -> 1 | R12: 39 | S12: INSTITUTIONAL | T12: 45.4 | U12: =INDEX(rScores!$L$5:$N$93,iCountryP!$R12,iCountryP!U$7) -> 85.5 | V12: =INDEX(rScores!$L$5:$N$93,iCountryP!$R12,iCountryP!V$7) -> 29.4 | W12: =INDEX(rScores!$L$5:$N$93,iCountryP!$R12,iCountryP!W$7) -> 45.6375
A13: =tblLookups!E6 -> 4 | B13: =tblLookups!F6 -> SOCIAL | C13: =tblLookups!G6 -> 74 | D13: =tblLookups!H6 -> SOCIAL | E13: =INDEX(aScores,$C13,$B$2) -> 43.8 | F13: =RANK(E13,OFFSET(aScores,$C13-1,0,1,$B$1)) -> 6 | G13: =COUNTIF(OFFSET(aScores,$C13-1,0,1,$B$1),E13) -> 1 | H13: =IF(G13>1,CONCATENATE("=",F13),F13) -> 6 | J13: 43.8 | K13: 55.6 | O13: =RANK(J13,$J13:$M13)+COUNTIF($J13:J13,J13)-1 -> 2 | P13: =RANK(K13,$J13:$M13)+COUNTIF($J13:K13,K13)-1 -> 1 | R13: 74 | S13: SOCIAL | T13: 43.8 | U13: =INDEX(rScores!$L$5:$N$93,iCountryP!$R13,iCountryP!U$7) -> 73.7 | V13: =INDEX(rScores!$L$5:$N$93,iCountryP!$R13,iCountryP!V$7) -> 21.6 | W13: =INDEX(rScores!$L$5:$N$93,iCountryP!$R13,iCountryP!W$7) -> 47.375
C15: =C9 -> 1 | D15: =INDEX($D$9:$D$13,C15) -> OVERALL SCORE | G15: 2 | H15: =INDEX($D$9:$D$13,G15) -> ECONOMIC | K15: 3 | L15: =INDEX($D$9:$D$13,K15) -> INFRASTRUCTURE | O15: 4 | P15: =INDEX($D$9:$D$13,O15) -> INSTITUTIONAL | S15: 5 | T15: =INDEX($D$9:$D$13,S15) -> SOCIAL | W15: 6 | X15: =INDEX($D$9:$D$13,W15) ->  | AA15: 7 | AB15: =INDEX($D$9:$D$13,AA15) -> 
B16: 1 | C16: =MATCH($B16,OFFSET($O$8:$R$8,C$15,0,1,4),0) -> 2 | D16: =INDEX($C$2:$C$5,C16) -> Bhutan | E16: =INDEX($J$9:$M$13,C$15,C16) -> 46.4 | G16: =MATCH($B16,OFFSET($O$8:$R$8,G$15,0,1,4),0) -> 1 | H16: =INDEX($C$2:$C$5,G16) -> Bangladesh | I16: =INDEX($J$9:$M$13,G$15,G16) -> 48.6 | K16: =MATCH($B16,OFFSET($O$8:$R$8,K$15,0,1,4),0) -> 2 | L16: =INDEX($C$2:$C$5,K16) -> Bhutan | M16: =INDEX($J$9:$M$13,K$15,K16) -> 37.5 | O16: =MATCH($B16,OFFSET($O$8:$R$8,O$15,0,1,4),0) -> 2 | P16: =INDEX($C$2:$C$5,O16) -> Bhutan | Q16: =INDEX($J$9:$M$13,O$15,O16) -> 49.7 | S16: =MATCH($B16,OFFSET($O$8:$R$8,S$15,0,1,4),0) -> 2 | T16: =INDEX($C$2:$C$5,S16) -> Bhutan | U16: =INDEX($J$9:$M$13,S$15,S16) -> 55.6 | W16: =MATCH($B16,OFFSET($O$8:$R$8,W$15,0,1,4),0) ->  | X16: =INDEX($C$2:$C$5,W16) ->  | Y16: =INDEX($J$9:$M$13,W$15,W16) ->  | AA16: =MATCH($B16,OFFSET($O$8:$R$8,AA$15,0,1,4),0) ->  | AB16: =INDEX($C$2:$C$5,AA16) ->  | AC16: =INDEX($J$9:$M$13,AA$15,AA16) -> 
B17: 2 | C17: =MATCH($B17,OFFSET($O$8:$R$8,C$15,0,1,4),0) -> 1 | D17: =INDEX($C$2:$C$5,C17) -> Bangladesh | E17: =INDEX($J$9:$M$13,C$15,C17) -> 40 | G17: =MATCH($B17,OFFSET($O$8:$R$8,G$15,0,1,4),0) -> 2 | H17: =INDEX($C$2:$C$5,G17) -> Bhutan | I17: =INDEX($J$9:$M$13,G$15,G17) -> 43 | K17: =MATCH($B17,OFFSET($O$8:$R$8,K$15,0,1,4),0) -> 1 | L17: =INDEX($C$2:$C$5,K17) -> Bangladesh | M17: =INDEX($J$9:$M$13,K$15,K17) -> 22.3 | O17: =MATCH($B17,OFFSET($O$8:$R$8,O$15,0,1,4),0) -> 1 | P17: =INDEX($C$2:$C$5,O17) -> Bangladesh | Q17: =INDEX($J$9:$M$13,O$15,O17) -> 45.4 | S17: =MATCH($B17,OFFSET($O$8:$R$8,S$15,0,1,4),0) -> 1 | T17: =INDEX($C$2:$C$5,S17) -> Bangladesh | U17: =INDEX($J$9:$M$13,S$15,S17) -> 43.8 | W17: =MATCH($B17,OFFSET($O$8:$R$8,W$15,0,1,4),0) ->  | X17: =INDEX($C$2:$C$5,W17) ->  | Y17: =INDEX($J$9:$M$13,W$15,W17) ->  | AA17: =MATCH($B17,OFFSET($O$8:$R$8,AA$15,0,1,4),0) ->  | AB17: =INDEX($C$2:$C$5,AA17) ->  | AC17: =INDEX($J$9:$M$13,AA$15,AA17) -> 
E19: Scores | N19: DATA
E20: =B2 -> 1 | I20: =B2 -> 1 | J20: =B3 -> 2
E21: =C2 -> Bangladesh | I21: =C2 -> Bangladesh | J21: =C3 -> Bhutan | N21: =I21 -> Bangladesh | O21: =J21 -> Bhutan
B22: =tblIndicators!E2 -> 0 | C22: =tblIndicators!A2 -> 1 | D22: =tblIndicators!V2 -> OVERALL SCORE | E22: =IF(ISERROR(INDEX(aScores,$C22,$B$2)),"",INDEX(aScores,$C22,$B$2)) -> 40 | F22: =IF($B22<2,"",INDEX(aText,$C22,$B$2)) ->  | G22: =IF(LEN(F22)>$B$7,CONCATENATE(LEFT(F22,$B$7),"…"),F22) ->  | I22: =IF(I$20=0,"",IF(ISERROR(INDEX(aScores,$C22,I$20)),"",INDEX(aScores,$C22,I$20))) -> 40 | J22: 46.4 | N22: =IF(INDEX(aData,$C22,$B$2)="","",INDEX(aData,$C22,$B$2)) ->  | O22: =IF(INDEX(aData,$C22,$B$3)="","",INDEX(aData,$C22,$B$3)) -> 
B23: =tblIndicators!E3 -> 1 | C23: =tblIndicators!A3 -> 2 | D23: =tblIndicators!V3 -> 1) ECONOMIC | E23: =INDEX(aScores,$C23,$B$2) -> 48.6 | G23: =IF(LEN(F23)>$B$7,CONCATENATE(LEFT(F23,$B$7),"…"),F23) ->  | I23: 48.6 | J23: 43
B24: =tblIndicators!E4 -> 2 | C24: =tblIndicators!A4 -> 3 | D24: =tblIndicators!V4 -> 1.1) Country-level economic strength | E24: 6.1 | I24: 6.1 | J24: 54.3
B25: =tblIndicators!E5 -> 3 | C25: =tblIndicators!A5 -> 4 | D25: =tblIndicators!V5 -> 1.1.1) GDP per capita | E25: 0.9 | F25: World Bank, World Development Indicators, (2013) | G25: World Bank, World Development Indicators, (2013) | I25: 0.9 | J25: 15.9 | N25: 2557.405934 | O25: 7669.24272
B26: =tblIndicators!E6 -> 3 | C26: =tblIndicators!A6 -> 5 | D26: =tblIndicators!V6 -> 1.1.2) Level of foreign currency reserves | E26: 21.7 | F26: IMF International Financial Statistics,World Bank (World Development Indicators), (2012-2013) | G26: IMF International Financial Statistics,World Bank (World Development Indicators), (2012-2013) | I26: 21.7 | J26: 100 | N26: 13.92897163 | O26: 52.62678317
B27: =tblIndicators!E7 -> 3 | C27: =tblIndicators!A7 -> 6 | D27: =tblIndicators!V7 -> 1.1.3) Poverty headcount ratio | E27: 0 | F27: World Bank, 2010 | G27: World Bank, 2010 | I27: 0 | J27: 100 | N27: 43.3 | O27: 1.66
B28: =tblIndicators!E8 -> 3 | C28: =tblIndicators!A8 -> 7 | D28: =tblIndicators!V8 -> 1.1.4) Government funding for disaster relief (per person) | E28: 1.8 | F28: Finance Division, Ministry of Finance, Bangladesh, Budget 2013-2014. | G28: Finance Division, Ministry of Finance, Bangladesh, Budget 2013-2014. | I28: 1.8 | J28: 1.3 | N28: 5.332227738 | O28: 3.979059536
B29: =tblIndicators!E9 -> 2 | C29: =tblIndicators!A9 -> 8 | D29: =tblIndicators!V9 -> 1.2) Personal finance: Women | E29: 60 | I29: 60 | J29: 27.8
B30: =tblIndicators!E10 -> 3 | C30: =tblIndicators!A10 -> 9 | D30: =tblIndicators!V10 -> 1.2.1) Microfinance: Women borrowers | E30: 86.1 | F30: Per cent of women borrowers based on sample of 28 MFIs reported to MIX Market in 2012 | G30: Per cent of women borrowers based on sample of 28 MFIs reported to MIX Market in 2012 | I30: 86.1 | J30: 0.1 | N30: 90.1 | O30: 38.04
B31: =tblIndicators!E11 -> 3 | C31: =tblIndicators!A11 -> 10 | D31: =tblIndicators!V11 -> 1.2.2) Building credit histories | E31: 20 | F31: This indicator combines gender-sensitive elements from two of the World Bank Group's Doing Business 'Getting Credit' measures: 'Depth of credit information' and 'Legal rights to credit' - into a single, composite indicator. This measure is not gender-disaggregated, but is useful in establishing the credit environment in which women participate. The average of the two scores is taken. | G31: This indicator combines gender-sensitive elements from two of the World Bank Group's Doing Business 'Getting Credit' measures: 'Depth of credit information' and 'Legal rights to credit' - into a singl… | I31: 20 | J31: 0 | N31: 4.5 | O31: 4
B32: =tblIndicators!E12 -> 3 | C32: =tblIndicators!A12 -> 11 | D32: =tblIndicators!V12 -> 1.2.3) Women's access to finance programmes | E32: 60 | F32: Women's access to credit is limited because both formal and informal credit institutions provide loans to those who can provide collateral. All formal credit institutions seek tangible collateral for loans. Since women have little access to inherited property (although this situation is likely to change over time following the full implementation of National Women's Development Policy 2011, the benefits have not accrued fully yet), many of them are still excluded from institutional credit. In addition, the task of applying for loans is made that much harder as the application has to be countersigned by the male spouse, or in the case of an unmarried woman, a guarantee is needed from the father. This custom is expected to continue until the monetary authorities are instructed otherwise by the government. The Bangladesh Women Chamber of Commerce and Industry can in some instances act as guarantor and runs programmes to inform women entrepreneurs about existing finance programmes. Bangladesh Bank (the central bank) offers a refinancing scheme for women entrepreneurs of SMEs but according to a survey conducted by the Bangladesh Women Chamber of Commerce and Industry, around 65% of respondents did not know anything about the scheme. | G32: Women's access to credit is limited because both formal and informal credit institutions provide loans to those who can provide collateral. All formal credit institutions seek tangible collateral for … | I32: 60 | J32: 60 | N32: 3 | O32: 3
B33: =tblIndicators!E13 -> 3 | C33: =tblIndicators!A13 -> 12 | D33: =tblIndicators!V13 -> 1.2.4) Loans at financial institutions | E33: 100 | F33: World Bank, Global Financial Inclusion Database (2012-2013) | G33: World Bank, Global Financial Inclusion Database (2012-2013) | I33: 100 | J33: 49.5 | N33: 22.3 | O33: 12
B34: =tblIndicators!E14 -> 3 | C34: =tblIndicators!A14 -> 13 | D34: =tblIndicators!V14 -> 1.2.5) Accounts at financial institutions | E34: 34 | F34: World Bank, Global Financial Inclusion Database (2012-2013) | G34: World Bank, Global Financial Inclusion Database (2012-2013) | I34: 34 | J34: 29.4 | N34: 34.9 | O34: 30.6
B35: =tblIndicators!E15 -> 2 | C35: =tblIndicators!A15 -> 14 | D35: =tblIndicators!V15 -> 1.3) Labour environment: Women | E35: 79.6 | I35: 79.6 | J35: 47
B36: =tblIndicators!E16 -> 3 | C36: =tblIndicators!A16 -> 15 | D36: =tblIndicators!V16 -> 1.3.1) Employment guarantee schemes for women | E36: 75 | F36: Though there were no administrative gender requirements, 28% of the beneficiaries in the first phase of the 100-day Employment Guarantee Programme turned out to be women. For many female beneficiaries, the programme turned out to be more than relief from temporary unemployment: it provided them an employment opportunity. There are several government employment programmes that specifically target women such as the Food for Work (FFW) programme and the Rural Employment Opportunities for Public Assets (REOPA). The Main Program Component (MPC) of the Employment Generation Program for the Poorest Project (EGPP), one-third of programme benefits are mandated to go to women workers. Although these programmes do not specify that there should be equal wages for men and women, they specify a fixed wage rate which is assumed to be the same among men and women. Sources: International Labour Organization and EIU analysis | G36: Though there were no administrative gender requirements, 28% of the beneficiaries in the first phase of the 100-day Employment Guarantee Programme turned out to be women. For many female beneficiaries… | I36: 75 | J36: 0 | N36: 3 | O36: 0
B37: =tblIndicators!E17 -> 3 | C37: =tblIndicators!A17 -> 16 | D37: =tblIndicators!V17 -> 1.3.2) Female unemployment rate | E37: 84.1 | F37: Bangladesh Labour Force Survey 2010, Statistics and Information Division, Ministry of Planning, Bangladesh | G37: Bangladesh Labour Force Survey 2010, Statistics and Information Division, Ministry of Planning, Bangladesh | I37: 84.1 | J37: 93.9 | N37: 5.8 | O37: 3.7
B38: =tblIndicators!E18 -> 1 | C38: =tblIndicators!A18 -> 17 | D38: =tblIndicators!V18 -> 2) INFRASTRUCTURE | E38: 22.3 | I38: 22.3 | J38: 37.5
B39: =tblIndicators!E19 -> 3 | C39: =tblIndicators!A19 -> 18 | D39: =tblIndicators!V19 -> 2.1) Adherence to land use regulations | E39: 40 | F39: Bangladesh has some of the components of an effective planning system, including the Urban Development Directorate (UDD) which is responsible for the majority of the country, and a dedicated development authority for each of the four largest cities. However, a number of the plans appear to be quite basic, information is not easy to access and nationwide coverage is patchy. Coordination between the agencies does not appear strong. Where there is coverage the plans are intended to be mandatory. However, coverage is far from complete and circumvention is also a problem. The plans do not explicitly consider natural hazards or cater for low income groups. While there is evidence of public consultation in the preparation of the plans, this again is patchy. Sources: Guidelines for Mainstreaming Disaster Risk Reduction into Land Use Planning for Upazilas and Municipalities in Bangladesh (2013) Asian Disaster Preparedness Centre. "Bangladesh factory disasters highlight regulatory failures", Financial Times, 25 April 2013. "Collapsed factory was built without permit", The Wall Street Journal, 25 April 2013. | G39: Bangladesh has some of the components of an effective planning system, including the Urban Development Directorate (UDD) which is responsible for the majority of the country, and a dedicated developme… | I39: 40 | J39: 40 | N39: 4 | O39: 4
B40: =tblIndicators!E20 -> 2 | C40: =tblIndicators!A20 -> 19 | D40: =tblIndicators!V20 -> 2.2) Adherence to building codes | E40: 64.3 | F40: Bangladesh has a modern mandatory building code that can be freely accessed on the internet, although it only appears to be available in English which may limit access to some. However, a large number of structures in Bangladesh have not been built in accordance with the code. This is for a number of reasons including corruption, the lack of skills in much of the construction industry and the impossibility of meeting the standards for those on low incomes. These factors contibuted to the high-profile collapse of a garment factory building in Bangladesh in 2013, with significant loss of life. Recently this has resulted in international funds being made available to strengthen existing sub-code buildings. By international standards, following the building consent process takes a moderate amount of time at a moderate cost. Sources: World Bank Doing Business Survey 2014 "Bangladesh factory disasters highlight regulatory failures", Financial Times, 25 April 2013. "Collapsed factory was built without permit", The Wall Street Journal, 25 April 2013. | G40: Bangladesh has a modern mandatory building code that can be freely accessed on the internet, although it only appears to be available in English which may limit access to some. However, a large number… | I40: 64.3 | J40: 57.1 | N40: 9 | O40: 8
B41: =tblIndicators!E21 -> 2 | C41: =tblIndicators!A21 -> 20 | D41: =tblIndicators!V21 -> 2.3) Communication | E41: 21.1 | I41: 21.1 | J41: 19.9
B42: =tblIndicators!E22 -> 3 | C42: =tblIndicators!A22 -> 21 | D42: =tblIndicators!V22 -> 2.3.1) Penetration of TV | E42: 14.3 | F42: Socio-economic and Demographic Report 2011, Bangladesh Bureau of Statistics | G42: Socio-economic and Demographic Report 2011, Bangladesh Bureau of Statistics | I42: =IF(I$20=0,"",IF(ISERROR(INDEX(aScores,$C42,I$20)),"",INDEX(aScores,$C42,I$20))) -> 14.3 | J42: 37.6 | N42: =IF(INDEX(aData,$C42,$B$2)="","",INDEX(aData,$C42,$B$2)) -> 44.8 | O42: 58.5
B43: =tblIndicators!E23 -> 3 | C43: =tblIndicators!A23 -> 22 | D43: =tblIndicators!V23 -> 2.3.2) Penetration of Radio | E43: 7.4 | F43: Socio-economic and Demographic Report 2011, Bangladesh Bureau of Statistics | G43: Socio-economic and Demographic Report 2011, Bangladesh Bureau of Statistics | I43: 7.4 | J43: 0 | N43: 8.9 | O43: 3.88
B44: =tblIndicators!E24 -> 3 | C44: =tblIndicators!A24 -> 23 | D44: =tblIndicators!V24 -> 2.3.3) Mobile cellular subscriptions | E44: 0 | F44: World Bank, 2013 | G44: World Bank, 2013 | I44: 0 | J44: 4.4 | N44: 67 | O44: 72
B45: =tblIndicators!E25 -> 3 | C45: =tblIndicators!A25 -> 24 | D45: =tblIndicators!V25 -> 2.3.4) Availability of an effective early warning system | E45: 62.5 | F45: Bangladesh has many of the components of an effective end-to-end early warning system (EWS), and has experienced some significant successes and improvements in the last decade, in particular the response to the 2007 cyclone. However, there are still many issues with the EWS including reliance on NGOs, particularly at the community level where significant further improvement is possible. Sources: "Bangladesh improves disaster early warning system with ESCAP support", UNESCAP, 2012, http://www.unescap.org/features/bangladesh-improves-disaster-early-warning-system-with-ESCAP-support "Multi-Hazard Early Warning System in Bangladesh with Emphasis on the Cyclone Preparedness Programme", 2009, Second Experts’ Symposium on Multi-Hazard Early Warning Systems, http://www.wmo.int/pages/prog/drr/events/MHEWS-I/Presentations/Session%201/Bangladesh/BangladeshMHEWS.pdf. | G45: Bangladesh has many of the components of an effective end-to-end early warning system (EWS), and has experienced some significant successes and improvements in the last decade, in particular the respo… | I45: 62.5 | J45: 37.5 | N45: 5 | O45: 3
B46: =tblIndicators!E26 -> 2 | C46: =tblIndicators!A26 -> 25 | D46: =tblIndicators!V26 -> 2.4) Power | E46: 0 | I46: 0 | J46: 32
B47: =tblIndicators!E27 -> 3 | C47: =tblIndicators!A27 -> 26 | D47: =tblIndicators!V27 -> 2.4.1) Quality of power | E47: 0 | F47: EIU Risk Briefing | G47: EIU Risk Briefing | I47: 0 | J47: 33.3 | N47: 4 | O47: 3
B48: =tblIndicators!E28 -> 3 | C48: =tblIndicators!A28 -> 27 | D48: =tblIndicators!V28 -> 2.4.2) Access to electricity | E48: 0 | F48: World Bank, 2011 | G48: World Bank, 2011 | I48: 0 | J48: 30.7 | N48: 59.6 | O48: 72
B49: =tblIndicators!E29 -> 2 | C49: =tblIndicators!A29 -> 28 | D49: =tblIndicators!V29 -> 2.5) Environmental performance | E49: 15.8 | I49: 15.8 | J49: 39.5
B50: =tblIndicators!E30 -> 3 | C50: =tblIndicators!A30 -> 29 | D50: =tblIndicators!V30 -> 2.5.1) Treatment of wastewater | E50: 0 | F50: Environmental Performance Index, Yale University, 2012 | G50: Environmental Performance Index, Yale University, 2012 | I50: 0 | J50: 0 | N50: 0 | O50: 0
B51: =tblIndicators!E31 -> 3 | C51: =tblIndicators!A31 -> 30 | D51: =tblIndicators!V31 -> 2.5.2) Pesticide and fertiliser regulation | E51: 91.3 | F51: Environmental Performance Index, Yale University, 2012 | G51: Environmental Performance Index, Yale University, 2012 | I51: 91.3 | J51: 0 | N51: 21 | O51: 0
B52: =tblIndicators!E32 -> 3 | C52: =tblIndicators!A32 -> 31 | D52: =tblIndicators!V32 -> 2.5.3) Loss in forested area | E52: 0 | F52: Environmental Performance Index, Yale University, 2012 | G52: Environmental Performance Index, Yale University, 2012 | I52: 0 | J52: 38.1 | N52: -2.8 | O52: -0.4
B53: =tblIndicators!E33 -> 3 | C53: =tblIndicators!A33 -> 32 | D53: =tblIndicators!V33 -> 2.5.4) Protection of terrestrial and marine areas | E53: 9.7 | F53: Environmental Performance Index, Yale University, 2012 | G53: Environmental Performance Index, Yale University, 2012 | I53: 9.7 | J53: 100 | N53: 1.91 | O53: 16.1
B54: =tblIndicators!E34 -> 2 | C54: =tblIndicators!A34 -> 33 | D54: =tblIndicators!V34 -> 2.6) Sanitation | E54: 28.3 | I54: 28.3 | J54: 24.7 | O54: =IF(INDEX(aData,$C54,$B$3)="","",INDEX(aData,$C54,$B$3)) -> 
B55: =tblIndicators!E35 -> 3 | C55: =tblIndicators!A35 -> 34 | D55: =tblIndicators!V35 -> 2.6.1) Access to sanitation | E55: 32.8 | F55: World Bank, World Development Indicators, 2012 | G55: World Bank, World Development Indicators, 2012 | I55: 32.8 | J55: 17.2 | N55: 57 | O55: 47
B56: =tblIndicators!E36 -> 3 | C56: =tblIndicators!A36 -> 35 | D56: =tblIndicators!V36 -> 2.6.2) Waste water treatment (Urban) | E56: 8.2 | F56: World Bank, World Development Indicators, 2012 | G56: World Bank, World Development Indicators, 2012 | I56: 8.2 | J56: 49 | N56: 55 | O56: 75
B57: =tblIndicators!E37 -> 3 | C57: =tblIndicators!A37 -> 36 | D57: =tblIndicators!V37 -> 2.6.3) Waste water treatment (Rural) | E57: 44 | F57: World Bank, World Development Indicators, 2012 | G57: World Bank, World Development Indicators, 2012 | I57: 44 | J57: 8 | N57: 58 | O57: 31
B58: =tblIndicators!E38 -> 2 | C58: =tblIndicators!A38 -> 37 | D58: =tblIndicators!V38 -> 2.7) Quality of transport network | E58: 9.1 | F58: Bangladesh's road and rail infrastructure is inadequate and badly in need of investment. Infrastructure bottlenecks add significantly to production and distribution costs. The bulk of the population lives in rural areas, which lack basic infrastructure. A large proportion of development spending is allocated to upgrading road links and building bridges to connect rural markets, but more money and resources are needed to speed up this process. However, natural disasters, such as floods and cyclones, sweep away large parts of the country's infrastructure when they occur. | G58: Bangladesh's road and rail infrastructure is inadequate and badly in need of investment. Infrastructure bottlenecks add significantly to production and distribution costs. The bulk of the population l… | I58: 9.1 | J58: 0 | N58: 3 | O58: 3.2
B59: =tblIndicators!E39 -> 2 | C59: =tblIndicators!A39 -> 38 | D59: =tblIndicators!V39 -> 2.8) Access to potable water | E59: 0 | F59: World Bank, World Development Indicators, 2012 | G59: World Bank, World Development Indicators, 2012 | I59: 0 | J59: 86.7 | N59: 85 | O59: 98
B60: =tblIndicators!E40 -> 1 | C60: =tblIndicators!A40 -> 39 | D60: =tblIndicators!V40 -> 3) INSTITUTIONAL | E60: 45.4 | I60: 45.4 | J60: 49.7
B61: =tblIndicators!E41 -> 2 | C61: =tblIndicators!A41 -> 40 | D61: =tblIndicators!V41 -> 3.1) Domestic protection | E61: 19.4 | I61: 19.4 | J61: 30.6
B62: =tblIndicators!E42 -> 3 | C62: =tblIndicators!A42 -> 41 | D62: =tblIndicators!V42 -> 3.1.1) Implementation of CEDAW | E62: 25 | F62: Bangladesh receives a score of 1 because it has ratified CEDAW with reservations to Articles 2, 13(1)a, and 16(1)(c)(f). Further, Bangladesh did not fully ratify the Optional Protocol, exercising its right under Article 10 of the Protocol not to recognise jurisdiction of a UN Committee to investigate, report on and make recommendations on "grave or systematic violations" of the Convention. Thus, although Bangladesh ratified the optional protocol, they failed to ratify one of its key components. Sources: UN Women, CEDAW, Declarations, Reservations and Objections to CEDAW, http://www.un.org/womenwatch/daw/cedaw/reservations-country.htm#N19 | G62: Bangladesh receives a score of 1 because it has ratified CEDAW with reservations to Articles 2, 13(1)a, and 16(1)(c)(f). Further, Bangladesh did not fully ratify the Optional Protocol, exercising its … | I62: =IF(I$20=0,"",IF(ISERROR(INDEX(aScores,$C62,I$20)),"",INDEX(aScores,$C62,I$20))) -> 25 | J62: 75 | N62: =IF(INDEX(aData,$C62,$B$2)="","",INDEX(aData,$C62,$B$2)) -> 1 | O62: 3
B63: =tblIndicators!E43 -> 3 | C63: =tblIndicators!A43 -> 42 | D63: =tblIndicators!V43 -> 3.1.2) Asssessment of National Critical Infrastructure Plan | E63: 0 | F63: There is no evidence that Bangladesh has a national-level critical infrastructure plan. At a sector and topic level there is evidence that Bangladesh recognises what critical infrastructure it has. In addition early steps are being taken to protect critical infrastructure in terms of cyber security and disaster resilience. Sources: Readiness Asessment for establishing a national CIRT, International Telecommunications Union (2012). "Bangladesh needs to climate-proof critical infrastructure to reduce the impact of extreme weather events says World Bank report", July 2012, World Bank Press Release, http://www.worldbank.org/en/news/press-release/2012/03/01/bangladesh-needs-to-climate-proof-critical-infrastructure-to-reduce-the-impact-of-extreme-weather-events-says-world-bank-report. | G63: There is no evidence that Bangladesh has a national-level critical infrastructure plan. At a sector and topic level there is evidence that Bangladesh recognises what critical infrastructure it has. In… | I63: 0 | J63: 0 | N63: 0 | O63: 0
B64: =tblIndicators!E44 -> 3 | C64: =tblIndicators!A44 -> 43 | D64: =tblIndicators!V44 -> 3.1.3) Existence of social safety nets | E64: 33.3 | F64: The Old Age Allowance is a gender-sensitive, means-tested program providing an unconditional monthly allowance to 2.5 million beneficiaries (ADB, UNDP). Unemployment Benefit offers half the average basic wage for up to 120 days, though this only applies to formal workers. Although there are a number of targeted programs run by government and civil society, there is no effective, overarching framework of benefits for poor families with children. Sources: The Department of Social Services, Ministry of Social Welfare, Government of Bangladesh. Social Security Programs Throughout the World: Asia and the Pacific (2012), Social Security Administration US The Old-age Allowance Programme in Bangladesh: Challenges and Lessons(2013), The International Policy Centre, ADB. | G64: The Old Age Allowance is a gender-sensitive, means-tested program providing an unconditional monthly allowance to 2.5 million beneficiaries (ADB, UNDP). Unemployment Benefit offers half the average ba… | I64: 33.3 | J64: 16.7 | N64: 2 | O64: 1
B65: =tblIndicators!E45 -> 2 | C65: =tblIndicators!A45 -> 44 | D65: =tblIndicators!V45 -> 3.2) Culture of safety | E65: 46.3 | I65: 46.3 | J65: 32.1
B66: =tblIndicators!E46 -> 3 | C66: =tblIndicators!A46 -> 45 | D66: =tblIndicators!V46 -> 3.2.1) Drills | E66: 75 | F66: Bangladesh’s National Plan for Disaster Management mandates community-level drills, and guidelines for local disaster management committees clearly specify the requirement. Cyclone Preparedness Plan (CPP) volunteers also organise regular simulation drills. However, the HFA Progress Report highlights a lack of drills and public DRR awareness in general as a major challenge, and the WHO has found health sector prevention plans to be insufficient. There is a mandatory government initiative to organize at least two mock drills a year in each school. Primary and secondary curricula have both been revised to include DRR. Textbooks incorporate DRR in multiple subject areas, but according to a UNESCO report (2012) the highly centralised school system leaves too little flexibility to account for the diverse hazards experienced in different parts of the country. | G66: Bangladesh’s National Plan for Disaster Management mandates community-level drills, and guidelines for local disaster management committees clearly specify the requirement. Cyclone Preparedness Plan (… | I66: 75 | J66: 25 | N66: 3 | O66: 1
B67: =tblIndicators!E47 -> 3 | C67: =tblIndicators!A47 -> 46 | D67: =tblIndicators!V47 -> 3.2.2) Quality of emergency response team | E67: 66.7 | F67: An Emergency Operations Centre (EOC) is set up in the event of a disaster, which coordinates information exchange and relief management with the armed forces and NGOs. Education and training programs, such as the Cyclone Preparedness Programme (CPP), have greatly increased the number of effective first responders, providing training to more than 60,000 government officials alone. The recent trend has been for ever decreasing fatality rates. Cyclone Mahesen in May 2013 demonstrated the country’s improved disaster warning and emergency operation capabilities; more than 1.2 million people were safely evacuated ahead of time. | G67: An Emergency Operations Centre (EOC) is set up in the event of a disaster, which coordinates information exchange and relief management with the armed forces and NGOs. Education and training programs,… | I67: 66.7 | J67: 33.3 | N67: 2 | O67: 1
B68: =tblIndicators!E48 -> 3 | C68: =tblIndicators!A48 -> 47 | D68: =tblIndicators!V48 -> 3.2.3) Military force | E68: 33.3 | F68: The Bangladesh military is well-established and improving. However, it still faces significant challenges (eg equipment) and has no dedicated disaster response units. It is of an average size relative to the population by international standards. When the availability of Bangladesh’s military equipment is compared to the benchmark country for this index (Japan) on the Global Firepower website, it is clear that there are inadequacies in the availability of the quantity of equipment available to the military. This is particularly the case for equipment and facilities which are also useful for emergency relief work such as aircraft, helicopters, serviceable airports, merchant marine and ports. The military’s expenditure as a percentage of GDP in 2012 is approximately average by international standards, being slightly into the lower half of the table in the CIA World Factbook table. However, a 2014 article in Jane’s indicate that the defence budget this year will be raised by 8.4%. The Global Security website notes that the Bangladesh military has had significant problems with equipment since its formation. The Global Security website also shows that while the military face significant constraints, the government is investing in the military and its capabilities are improving. The military has a significant role in disaster relief and is the second largest contributor to UN operations, which provides some emergency relief experience to personnel. According to the Global Firepower website, in 2014 Bangladesh had approximately 400,000 active personnel and a total population of approximately 163,654,800. This leads to a figure of 244 regular military per 100,000 population which is average relative to international military forces. While the Bangladesh military clearly has a significant disaster relief role, there is no evidence of dedicated disaster response units. Rather it appears from the Bangladesh Army website that regular engineer and medical units are typically deployed. | G68: The Bangladesh military is well-established and improving. However, it still faces significant challenges (eg equipment) and has no dedicated disaster response units. It is of an average size relative… | I68: 33.3 | J68: 33.3 | N68: 2 | O68: 2
B69: =tblIndicators!E49 -> 3 | C69: =tblIndicators!A49 -> 48 | D69: =tblIndicators!V49 -> 3.2.4) Police force | E69: 0 | F69: The Bangladesh Police force are considered to be corrupt, incompetent and a possible “source of instability and fear”. The size of the police force is comparatively small compared to the size of the population and there is no dedicated disaster response unit. | G69: The Bangladesh Police force are considered to be corrupt, incompetent and a possible “source of instability and fear”. The size of the police force is comparatively small compared to the size of the p… | I69: 0 | J69: 50 | N69: 0 | O69: 3
B70: =tblIndicators!E50 -> 3 | C70: =tblIndicators!A50 -> 49 | D70: =tblIndicators!V50 -> 3.2.5) Women in police force | E70: 3.9 | F70: UK DfID Review, 2012 | G70: UK DfID Review, 2012 | I70: 3.9 | J70: 6.5 | N70: 3.9 | O70: 6.5
B71: =tblIndicators!E51 -> 3 | C71: =tblIndicators!A51 -> 50 | D71: =tblIndicators!V51 -> 3.2.6) Influence of women in police force | E71: 50 | F71: An article from the Daily Star highlights an improving trend in female police recruitment from 0 female officers in 1974, to 2,240 female officers in 2010 ( this is still a very low proportion of the entire police force). Into 2010 there were 5 female officers holding senior police ranks. In the past female officers were only permitted to serve in the urban areas and had separate training from the male officers until 1986. In 2009 Bangladesh became the first Muslim nation to commit an all-female UN peacekeeping mission (and has been sending female officers on UN missions since 2000). Also, The Dhaka Tribune (2013) ran a story on the first female police officer to receive US-provided SWAT training. In summary this evidence indicates that women have a positive and improving influence, although this is increasing from a very low level and is still very limited. | G71: An article from the Daily Star highlights an improving trend in female police recruitment from 0 female officers in 1974, to 2,240 female officers in 2010 ( this is still a very low proportion of the … | I71: 50 | J71: 50 | N71: 1 | O71: 1
B72: =tblIndicators!E52 -> 2 | C72: =tblIndicators!A52 -> 51 | D72: =tblIndicators!V52 -> 3.3) Policy coordination | E72: 88.9 | I72: 88.9 | J72: 66.7
B73: =tblIndicators!E53 -> 3 | C73: =tblIndicators!A53 -> 52 | D73: =tblIndicators!V53 -> 3.3.1) Transboundary risk assessment systems and agreements | E73: 100 | F73: Bangladesh is a member of numerous other international and regional initiatives. Disaster Management degrees are now available at seven public universities. The Bangladesh Disaster Knowledge Network is a web-based GIS portal which links into the South Asian Disaster Knowledge Network, and the Disaster Management Information Centre collects, analyses and disseminates detailed information for risk reduction and emergency response. Bangladesh’s Comprehensive Disaster Management Programme has developed earthquake and tsunami and storm surge risk mapping, covering the major cities and the entire coast line. According to a World Resources Institute (WRI) report, the data generated are being used in land-use planning, protection of critical infrastructure, and early warning and evacuation systems. | G73: Bangladesh is a member of numerous other international and regional initiatives. Disaster Management degrees are now available at seven public universities. The Bangladesh Disaster Knowledge Network i… | I73: 100 | J73: 100 | N73: 4 | O73: 4
B74: =tblIndicators!E54 -> 3 | C74: =tblIndicators!A54 -> 53 | D74: =tblIndicators!V54 -> 3.3.2) National platform for multilevel coordination of DRR | E74: 100 | F74: In Bangladesh, the Disaster Management and Relief Division (DM&RD) of the Ministry of Food and Disaster Management (MoFDM) is responsible for coordinating national disaster management efforts across all agencies. The Standing Orders on Disaster (SOD) issued by the MoFDM specify the divisions of responsibilities across different agencies and levels of government—including which bodies are responsible for coordinating with civil society, NGOs and private entities. NGO leaders are expected to sit on local disaster management committees. In addition, annexes to the SOD on earthquake and tsunami planning allocate specific tasks to government agencies, utilities, media, NGOs and other players. | G74: In Bangladesh, the Disaster Management and Relief Division (DM&RD) of the Ministry of Food and Disaster Management (MoFDM) is responsible for coordinating national disaster management efforts across a… | I74: 100 | J74: 66.7 | N74: 3 | O74: 2
B75: =tblIndicators!E55 -> 3 | C75: =tblIndicators!A55 -> 54 | D75: =tblIndicators!V55 -> 3.3.3) Decentralisation | E75: 66.7 | F75: Bangladesh’s National Plan for Disaster Management, 2010-2015 states: “Community involvement for preparedness programmes for protecting lives and properties would be a major focus. Involvement of local government bodies would be an essential part of the strategy. Self-reliance should be the key for preparedness, response and recovery”. The Plan mandates the creation of disaster management committees at each administrative level, with local government representatives playing a coordinating role, and including civil society representatives. The Hyogo Framework for Action (HFA) progress report (2011-13) indicates that these committees are already operational, and thanks to centrally-provided guidelines for local governments, work on preparing local disaster management plans is at an advanced stage. | G75: =IF(LEN(F75)>$B$7,CONCATENATE(LEFT(F75,$B$7),"…"),F75) -> Bangladesh’s National Plan for Disaster Management, 2010-2015 states: “Community involvement for preparedness programmes for protecting lives and properties would be a major focus. Involvement of loca… | I75: 66.7 | J75: 33.3 | N75: 2 | O75: 1
B76: =tblIndicators!E56 -> 2 | C76: =tblIndicators!A56 -> 55 | D76: =tblIndicators!V56 -> 3.4) Gender focus in DRR policy | E76: 23.3 | I76: 23.3 | J76: 26.7
B77: =tblIndicators!E57 -> 3 | C77: =tblIndicators!A57 -> 56 | D77: =tblIndicators!V57 -> 3.4.1) Gender perspective in disaster management planning | E77: 50 | F77: Bangladesh’s National Disaster Management Plan recognises the particular vulnerabilities of women, and makes some provisions to enable women to participate in disaster management. Yet it is rather vague on the roles that women can play, and as a result, not all disaster-specific or local plans include stipulations on this. | G77: Bangladesh’s National Disaster Management Plan recognises the particular vulnerabilities of women, and makes some provisions to enable women to participate in disaster management. Yet it is rather vag… | I77: 50 | J77: 50 | N77: 1 | O77: 1
B78: =tblIndicators!E58 -> 3 | C78: =tblIndicators!A58 -> 57 | D78: =tblIndicators!V58 -> 3.4.2) Inclusion of women in DRR decision-making and leadership | E78: 33.3 | F78: Bangladesh’s National Disaster Management Plan and Standing Orders on Disaster mandate the participation of women’s representatives in general and on certain disaster-specific committees. However, they are not represented at the highest national level, nor is female participation specifically mandated on all local disaster management committees. | G78: Bangladesh’s National Disaster Management Plan and Standing Orders on Disaster mandate the participation of women’s representatives in general and on certain disaster-specific committees. However, the… | I78: 33.3 | J78: 33.3 | N78: 1 | O78: 1
B79: =tblIndicators!E59 -> 3 | C79: =tblIndicators!A59 -> 58 | D79: =tblIndicators!V59 -> 3.4.3) Consideration of the needs of female internally-displaced persons | E79: 33.3 | F79: Bangladesh’s national-level planning documents encourage the provision of separate facilities for women where possible, but are inconsistent on whether this is mandatory. Cyclone shelters are expected to have separate latrines for women, but there is no specific reference to separate spaces for other purposes. There is no explicit recognition of gender-specific privacy concerns, or the need for secure, well-lit spaces for women; and reports on previous disasters indicate that women are reluctant to go to shelters due to security and privacy concerns. There are, however, requirements for women to be involved on the management committees of cyclone shelters. | G79: Bangladesh’s national-level planning documents encourage the provision of separate facilities for women where possible, but are inconsistent on whether this is mandatory. Cyclone shelters are expected… | I79: 33.3 | J79: 0 | N79: 2 | O79: 0
B80: =tblIndicators!E60 -> 3 | C80: =tblIndicators!A60 -> 59 | D80: =tblIndicators!V60 -> 3.4.4) Inclusion of women in disaster preparedness training | E80: 0 | F80: According to the OECD Development Centre, the government of Bangladesh acknowledged in its report to CEDAW in 2010 that “women’s movement is commonly limited to their homes and local areas due to discriminatory social norms.” While some schemes for disaster preparedness do involve training for female volunteers, the lack of a mainstream focus on this in Bangladesh’s national-level disaster planning means that there is no consistent effort across disaster types and localities to either provide training aimed specifically at women or to help women gain access to training. | G80: According to the OECD Development Centre, the government of Bangladesh acknowledged in its report to CEDAW in 2010 that “women’s movement is commonly limited to their homes and local areas due to disc… | I80: 0 | J80: 50 | N80: 0 | O80: 1
B81: =tblIndicators!E61 -> 3 | C81: =tblIndicators!A61 -> 60 | D81: =tblIndicators!V61 -> 3.4.5) Measures to address violence against women | E81: 0 | F81: Freedom House recognises VAW as a widespread problem in Bangladesh. Reports on previous events indicate that women in Bangladesh face increased domestic and external violence during and after disasters, yet neither national disaster management plans nor women’s development plans explicitly recognise this as a security problem. | G81: Freedom House recognises VAW as a widespread problem in Bangladesh. Reports on previous events indicate that women in Bangladesh face increased domestic and external violence during and after disaster… | I81: 0 | J81: 0 | N81: 0 | O81: 0
B82: =tblIndicators!E62 -> 2 | C82: =tblIndicators!A62 -> 61 | D82: =tblIndicators!V62 -> 3.5) Government effectiveness | E82: 28.4 | I82: =IF(I$20=0,"",IF(ISERROR(INDEX(aScores,$C82,I$20)),"",INDEX(aScores,$C82,I$20))) -> 28.4 | J82: 54.4 | N82: =IF(INDEX(aData,$C82,$B$2)="","",INDEX(aData,$C82,$B$2)) -> 
B83: =tblIndicators!E63 -> 3 | C83: =tblIndicators!A63 -> 62 | D83: =tblIndicators!V63 -> 3.5.1) Government corruption | E83: 4.1 | F83: Widespread corruption undermines government effectiveness. The effectiveness of the Anti-Corruption Commission has been hindered by legislative changes implemented in 2012 that require the commission to obtain permission from the government before proceeding with graft charges against public servants. An example of the way in which corruption affects the governing agenda in Bangladesh is the World Bank’s decision in 2013 to withdraw its funding of the Padma Bridge project, which has more recently been awarded to a Chinese company (EIU analysis, 2013). Bangladesh surveys conducted by TPI saw the highest number of respondents who had stated to have come into contact with one of 9 service providers that reported that they had paid a bribe in the last 12 months (TPI). | G83: Widespread corruption undermines government effectiveness. The effectiveness of the Anti-Corruption Commission has been hindered by legislative changes implemented in 2012 that require the commission … | I83: 4.1 | J83: 77.6 | N83: 27 | O83: 63
B84: =tblIndicators!E64 -> 3 | C84: =tblIndicators!A64 -> 63 | D84: =tblIndicators!V64 -> 3.5.2) Quality of the bureaucracy | E84: 33.3 | F84: The quality of bureaucracy is low largely because of the prevalence of corruption and low skill levels. It can take several days, if not weeks, to set up a business. This partly reflects excessive red tape and the fact that government offices are closed on Fridays, which is part of the standard work week in all OECD countries (EIU analysis, 2013). | G84: The quality of bureaucracy is low largely because of the prevalence of corruption and low skill levels. It can take several days, if not weeks, to set up a business. This partly reflects excessive red… | I84: 33.3 | J84: 66.7 | N84: 3 | O84: 2
B85: =tblIndicators!E65 -> 3 | C85: =tblIndicators!A65 -> 64 | D85: =tblIndicators!V65 -> 3.5.3) Effectiveness of legal system | E85: 50 | F85: The legal system is slow and inefficient. Corruption is also a problem in the courts of first instance. Regulations lack clarity and are enforced inconsistently. Businesses reliant on civil servants to implement new projects do not always receive the necessary assistance, even when they have the support of high-ranking politicians (EIU analysis, 2013). | G85: The legal system is slow and inefficient. Corruption is also a problem in the courts of first instance. Regulations lack clarity and are enforced inconsistently. Businesses reliant on civil servants t… | I85: 50 | J85: 41.7 | N85: 2.5 | O85: 2.75
B86: =tblIndicators!E66 -> 3 | C86: =tblIndicators!A66 -> 65 | D86: =tblIndicators!V66 -> 3.5.4) Well-defined property rights | E86: =INDEX(aScores,$C86,$B$2) -> 37.5 | F86: =IF($B86<2,"",INDEX(aText,$C86,$B$2)) -> Intellectual property rights are recognised but rules protecting them are not enforced. The prevalence of corruption often compromises the integrity of accounting practices.(2013) | G86: Intellectual property rights are recognised but rules protecting them are not enforced. The prevalence of corruption often compromises the integrity of accounting practices.(2013) | I86: 37.5 | J86: 0 | N86: 2.5 | O86: =IF(INDEX(aData,$C86,$B$3)="","",INDEX(aData,$C86,$B$3)) -> 4
B87: =tblIndicators!E67 -> 3 | C87: =tblIndicators!A67 -> 66 | D87: =tblIndicators!V67 -> 3.5.5) Presence of free and independent media | E87: 24 | F87: 2012 | G87: =IF(LEN(F87)>$B$7,CONCATENATE(LEFT(F87,$B$7),"…"),F87) -> 2012 | I87: 24 | J87: 28.1 | N87: -0.4 | O87: -0.32
B88: =tblIndicators!E68 -> 3 | C88: =tblIndicators!A68 -> 67 | D88: =tblIndicators!V68 -> 3.5.6) Women's access to common property and government-allocated land | E88: 50 | F88: Women have equal rights to property under the law, and when government land is allocated to families it is required to be in the names of both the husband and the wife. Yet, according to Unnayan Onneshan, a Dhaka-based non-profit research organisation, in practice women have little ownership of or control over property. Illegal grabbing of public land is a major problem, and one which disproportionately affects women, due to their important role in food production combined with a lack of awareness of the law or of access to institutional or legal resources. | G88: Women have equal rights to property under the law, and when government land is allocated to families it is required to be in the names of both the husband and the wife. Yet, according to Unnayan Onnes… | I88: 50 | J88: 100 | N88: 1 | O88: 2
B89: =tblIndicators!E69 -> 3 | C89: =tblIndicators!A69 -> 68 | D89: =tblIndicators!V69 -> 3.5.7) Women's property rights | E89: 0 | F89: Although Bangladesh’s law enshrines equal property rights for men and women, it does not allow for equal inheritance rights, leaving women vulnerable if their father or spouse passes away. | G89: Although Bangladesh’s law enshrines equal property rights for men and women, it does not allow for equal inheritance rights, leaving women vulnerable if their father or spouse passes away. | I89: 0 | J89: 66.7 | N89: 0 | O89: 2
B90: =tblIndicators!E70 -> 2 | C90: =tblIndicators!A70 -> 69 | D90: =tblIndicators!V70 -> 3.6) Violence | E90: 66 | I90: 66 | J90: 88
B91: =tblIndicators!E71 -> 3 | C91: =tblIndicators!A71 -> 70 | D91: =tblIndicators!V71 -> 3.6.1) Violent crime level | E91: 33.3 | F91: Global Peace Index, EIU, 2014 | G91: Global Peace Index, EIU, 2014 | I91: 33.3 | J91: 100 | N91: 3 | O91: 1
B92: =tblIndicators!E72 -> 3 | C92: =tblIndicators!A72 -> 71 | D92: =tblIndicators!V72 -> 3.6.2) Trafficking in persons | E92: 66.7 | F92: Trafficking in Persons Report, US State Department 2013 | G92: Trafficking in Persons Report, US State Department 2013 | I92: 66.7 | J92: 66.7 | N92: 2 | O92: 2
B93: =tblIndicators!E73 -> 3 | C93: =tblIndicators!A73 -> 72 | D93: =tblIndicators!V73 -> 3.6.3) Deaths from organised conflict (internal) | E93: 99.5 | F93: UCDP Battle-Related Deaths Dataset v.5-2014, Uppsala Conflict Data Program,Uppsala University | G93: UCDP Battle-Related Deaths Dataset v.5-2014, Uppsala Conflict Data Program,Uppsala University | I93: 99.5 | J93: 100 | N93: 119 | O93: 0
B94: =tblIndicators!E74 -> 3 | C94: =tblIndicators!A74 -> 73 | D94: =tblIndicators!V74 -> 3.6.4) Deaths from homicides | E94: 64.5 | F94: United Nations Office on Drugs and Crime, 2003-2007 | G94: United Nations Office on Drugs and Crime, 2003-2007 | I94: 64.5 | J94: 85.5 | N94: 2.7 | O94: 1.4
B95: =tblIndicators!E75 -> 1 | C95: =tblIndicators!A75 -> 74 | D95: =tblIndicators!V75 -> 4) SOCIAL | E95: 43.8 | I95: 43.8 | J95: 55.6
B96: =tblIndicators!E76 -> 2 | C96: =tblIndicators!A76 -> 75 | D96: =tblIndicators!V76 -> 4.1) Population vulnerability | E96: 36.1 | I96: 36.1 | J96: 58
B97: =tblIndicators!E77 -> 3 | C97: =tblIndicators!A77 -> 76 | D97: =tblIndicators!V77 -> 4.1.1) Dependency ratio | E97: 23.9 | F97: World Bank, World Development Indicators, 2012 | G97: World Bank, World Development Indicators, 2012 | I97: 23.9 | J97: 24.1 | N97: 54.5 | O97: 54.526
B98: =tblIndicators!E78 -> 3 | C98: =tblIndicators!A78 -> 77 | D98: =tblIndicators!V78 -> 4.1.2) Internally displaced persons (IDPs) | E98: 59.3 | F98: Internal Displacement Monitoring Centre, Global Overview 2014 | G98: Internal Displacement Monitoring Centre, Global Overview 2014 | I98: 59.3 | J98: 100 | N98: 0.1788052415 | O98: 0
B99: =tblIndicators!E79 -> 3 | C99: =tblIndicators!A79 -> 78 | D99: =tblIndicators!V79 -> 4.1.3) Ease of mobility for women | E99: 25 | F99: Mobility for women in Bangladesh varies according to social status, religion and whether they are urban or rural. As of 2007, 89% of women were Muslims and as such were subject to varying interpretations of purdah rules. Irrespective of religion, a number of reliable studies cite the heavy domestic workload facing Bangladeshi women, with 70% of women working as unpaid domestic labourers. A World Food Programme report from 2013 notes that: “Due to social roles and poor mobility, women shoulder responsibilities at home, while men can leave in search of higher-paying work.” This is at once the result of, and a contributor to, social norms restricting women’s mobility; and it reduces the ability of women to seek paid work, which would increase their resilience. About 75% of women in 2007 lived in rural areas. According to the Bangladesh Demographic and Health Survey 2011, 42% of women aged 15-19 and 16-18% of older women were unable to attend a health centre alone or accompanied by their children. Sources: Bangladesh's Enhancing Resilience Programme (2013), Reserach Program on Climate Change, Agriculture and Food Security. Uteng, T.P., 2011, "Gender and Mobility in the Developing World", World Development Report, World Bank From conflict and crisis to renewal: generations of change (2010), UNFPA, State of World Population. Bangladesh: Spatial Mobility and women's empowerment, International Forum for Rural Transport and Development Bangladesh, Gender and Land rights Database, Food and Agricultural Organisation, UN | G99: Mobility for women in Bangladesh varies according to social status, religion and whether they are urban or rural. As of 2007, 89% of women were Muslims and as such were subject to varying interpretati… | I99: 25 | J99: 50 | N99: 1 | O99: 2
B100: =tblIndicators!E80 -> 2 | C100: =tblIndicators!A80 -> 79 | D100: =tblIndicators!V80 -> 4.2) Education and gender | E100: 53.5 | I100: 53.5 | J100: 55.7
B101: =tblIndicators!E81 -> 3 | C101: =tblIndicators!A81 -> 80 | D101: =tblIndicators!V81 -> 4.2.1) Female/male literacy rate | E101: 69.6 | F101: World Bank, World Development Indicators, 2012 | G101: World Bank, World Development Indicators, 2012 | I101: 69.6 | J101: 54 | N101: 0.9 | O101: 0.849
B102: =tblIndicators!E82 -> 3 | C102: =tblIndicators!A82 -> 81 | D102: =tblIndicators!V82 -> 4.2.2) Rate of secondary school enrollment (girls) | E102: 33.1 | F102: World Bank, World Development Indicators, 2011 | G102: World Bank, World Development Indicators, 2011 | I102: =IF(I$20=0,"",IF(ISERROR(INDEX(aScores,$C102,I$20)),"",INDEX(aScores,$C102,I$20))) -> 33.1 | J102: 63.3 | N102: =IF(INDEX(aData,$C102,$B$2)="","",INDEX(aData,$C102,$B$2)) -> 54.5 | O102: 76.06411
B103: =tblIndicators!E83 -> 3 | C103: =tblIndicators!A83 -> 82 | D103: =tblIndicators!V83 -> 4.2.3) Rate of primary school enrollment (girls) | E103: 57.9 | F103: World Bank, World Development Indicators, 2011 | G103: World Bank, World Development Indicators, 2011 | I103: 57.9 | J103: 49.7 | N103: 117.8 | O103: 113.3361
B104: =tblIndicators!E84 -> 2 | C104: =tblIndicators!A84 -> 83 | D104: =tblIndicators!V84 -> 4.3) Health | E104: 41.9 | I104: 41.9 | J104: 53
B105: =tblIndicators!E85 -> 3 | C105: =tblIndicators!A85 -> 84 | D105: =tblIndicators!V85 -> 4.3.1) # of doctors/1000 | E105: 7.4 | F105: World Health Organization, 201 | G105: World Health Organization, 201 | I105: 7.4 | J105: 2.8 | N105: 0.356 | O105: 0.259
B106: =tblIndicators!E86 -> 3 | C106: =tblIndicators!A86 -> 85 | D106: =tblIndicators!V86 -> 4.3.2) # of hospitals/land unit | E106: 27.5 | F106: Bangladesh Health, Family Planning and Social Statistics, 2012 | G106: Bangladesh Health, Family Planning and Social Statistics, 2012 | I106: 27.5 | J106: 0.2 | N106: 1.98 | O106: 0.08
B107: =tblIndicators!E87 -> 3 | C107: =tblIndicators!A87 -> 86 | D107: =tblIndicators!V87 -> 4.3.3) Affordability of healthcare | E107: 36.5 | F107: World Bank, World Development Indicators, 2012 | G107: World Bank, World Development Indicators, 2012 | I107: 36.5 | J107: 84.6 | N107: 63.5 | O107: 15.4
B108: =tblIndicators!E88 -> 3 | C108: =tblIndicators!A88 -> 87 | D108: =tblIndicators!V88 -> 4.3.4) Level of child malnutrition | E108: 21.8 | F108: World Bank, 2011 | G108: World Bank, 2011 | I108: 21.8 | J108: 100 | N108: 36.8 | O108: 12.8
B109: =tblIndicators!E89 -> 3 | C109: =tblIndicators!A89 -> 88 | D109: =tblIndicators!V89 -> 4.3.5) Fertility rate | E109: 57.9 | F109: World Bank, World Development Indicators, 2012 | G109: World Bank, World Development Indicators, 2012 | I109: 57.9 | J109: 52.6 | N109: 2.2 | O109: 2.3
B110: =tblIndicators!E90 -> 3 | C110: =tblIndicators!A90 -> 89 | D110: =tblIndicators!V90 -> 4.3.6) Psychiatric morbidity | E110: 100 | F110: World Health Organization Mental Health Country Profiles, 2011-2012 | G110: World Health Organization Mental Health Country Profiles, 2011-2012 | I110: 100 | J110: 77.6 | N110: 25.24 | O110: 534.11
B111: =tblIndicators!E91 -> 1 | C111: =tblIndicators!A91 -> 90 | D111: =tblIndicators!V91 -> 5) EXPOSURE | E111: =IF(ISERROR(INDEX(aScores,$C111,$B$2)),"",INDEX(aScores,$C111,$B$2)) -> 
B112: =tblIndicators!E92 -> 2 | C112: =tblIndicators!A92 -> 91 | D112: =tblIndicators!V92 -> 5.1) Exposure
B113: =tblIndicators!E93 -> 3 | C113: =tblIndicators!A93 -> 92 | D113: =tblIndicators!V93 -> 5.1.1) Rate of urbanisation | F113: 2010-2015 | G113: 2010-2015 | N113: 1.7 | O113: 2.11
B114: =tblIndicators!E94 -> 3 | C114: =tblIndicators!A94 -> 93 | D114: =tblIndicators!V94 -> 5.1.2) Population growth | F114: 2012 | G114: 2012 | N114: 1.2 | O114: 1.7
B115: =tblIndicators!E95 -> 3 | C115: =tblIndicators!A95 -> 94 | D115: =tblIndicators!V95 -> 5.1.3) Death from disasters | F115: 1995-2014 | G115: 1995-2014 | N115: 15719 | O115: 224
B116: =tblIndicators!E96 -> 3 | C116: =tblIndicators!A96 -> 95 | D116: =tblIndicators!V96 -> 5.1.4) Economic damage from disasters | F116: 1995-2014 | G116: 1995-2014 | N116: 11618300 | O116: 2500
B117: =tblIndicators!E97 -> 3 | C117: =tblIndicators!A97 -> 96 | D117: =tblIndicators!V97 -> 5.1.5) List of major disasters | N117: Available | O117: Available
B118: =tblIndicators!E98 -> 3 | C118: =tblIndicators!A98 -> 97 | D118: =tblIndicators!V98 -> 5.1.6) Rate of migration | F118: 2005-2010 | G118: 2005-2010 | N118: -4.9 | O118: 4.9

Sheet iCompare (hidden)
A1: Overall Score | D1: Score | E1: Rank
A2: Country_1 | B2: =uxbWorks!B18 -> 1 | C2: =uxbWorks!C18 -> Bangladesh | D2: =INDEX(iScores!$N$5:$U$5,iCompare!B2) -> 40.02344303 | E2: =INDEX(iRank!$K$19:$R$19,iCompare!B2) -> 7 | F2: =IF(E2<E3,"*","") -> 
A3: Country_2 | B3: =uxbWorks!B19 -> 2 | C3: =uxbWorks!C19 -> Bhutan | D3: =INDEX(iScores!$N$5:$U$5,iCompare!B3) -> 46.4483399 | E3: =INDEX(iRank!$K$19:$R$19,iCompare!B3) -> 2 | F3: =IF(E3<E2,"*","") -> *
O5: 1
O6: =INDEX(tblIndiSets!$B$5:$B$10,O5) -> 1 | V6: 1 | W6: 1 | X6: 2 | Y6: 3 | Z6: 4 | AB6: Country 1 | AC6: Country 2 | AH6: 1
C7: ActiveStatus | E7: Score | F7: Data | G7: Score | H7: Data | O7: Score | P7: Rank | Q7: LU | R7: Rank | V7: Name | W7: Score | X7: Data | Y7: Score | Z7: Data | AA7: Text | AB7: Rank` | AC7: Rank` | AE7: units | AF7: Star | AG7: Star | AH7: 2 | AJ7: units
A8: =tblCategories!A3 -> 1 | B8: =tblCategories!D3 -> 1) ECONOMIC | C8: =tblCategories!F3 -> 3 | D8: 1 | E8: =INDEX(iCountryP!$E$23:$E$118,iCompare!$A8) -> 48.6 | F8: =INDEX(iCountryP!$N$23:$N$118,iCompare!$A8) ->  | G8: =INDEX(iCountryP!$J$23:$J$118,iCompare!$A8) -> 43 | H8: =INDEX(iCountryP!$O$23:$O$118,iCompare!$A8) ->  | O8: =IF($C8=0,"",(INDEX($D$8:$H$120,$A8,O$6))) -> 1 | P8: =IF($C8=0,"",RANK(O8,O$8:O$120,1)+COUNTIF(O$8:O8,O8)-1) -> 1 | Q8: =IF(ISERROR(MATCH($A8,P$8:P$120,0)),"",MATCH($A8,P$8:P$120,0)) -> 1 | R8: =IF(Q8="","",RANK(W8,W$8:W$120,0)) -> 31 | S8: =IF(Q8="","",COUNTIF(W$8:W$120,W8)) -> 1 | T8: =IF(Q8="",0,INDEX($D$8:$D$120,Q8)) -> 1 | U8: =IF(Q8="","",IF(S8>1,CONCATENATE("=",R8),R8)) -> 31 | V8: =IF($Q8="","",INDEX($B$8:$H$120,$Q8,V$6)) -> 1) ECONOMIC | W8: =IF($Q8="","",INDEX($E$8:$M$120,$Q8,W$6)) -> 48.6 | Y8: =IF($Q8="","",INDEX($E$8:$H$120,$Q8,Y$6)) -> 43 | Z8: =IF($Q8="","",INDEX($E$8:$M$120,$Q8,Z$6)) ->  | AA8: =IF(Q8="","",INDEX(iCountryP!$F$23:$F$118,iCompare!Q8)) ->  | AB8: =IF(Q8="","",IF(ISERROR(INDEX(iRank!$K$20:$R$107,iCompare!Q8,uxbWorks!$B$18)),"",INDEX(iRank!$K$20:$R$107,iCompare!Q8,uxbWorks!$B$18))) -> 4 | AC8: =IF(Q8="","",IF(ISERROR(INDEX(iRank!$K$20:$R$107,iCompare!Q8,uxbWorks!$B$19)),"",INDEX(iRank!$K$20:$R$107,iCompare!Q8,uxbWorks!$B$19))) -> 6 | AE8: =IF(Q8="","",INDEX(tblIndicators!$H$3:$H$98,iCompare!Q8)) -> 0 - 100 where 100= best and 0=worst | AF8: =IF(AB8<AC8,"*","") -> * | AG8: =IF(AC8<AB8,"*","") ->  | AH8: 3 | AJ8: =IF(Q8="","",INDEX(tblIndicators!$R$3:$R$98,iCompare!Q8)) -> 0.0
A9: =tblCategories!A4 -> 2 | B9: =tblCategories!D4 -> 1.1) Country-level economic strength | C9: =tblCategories!F4 -> 1 | D9: 2 | E9: =INDEX(iCountryP!$E$23:$E$118,iCompare!$A9) -> 6.1 | F9: =INDEX(iCountryP!$N$23:$N$118,iCompare!$A9) ->  | G9: =INDEX(iCountryP!$J$23:$J$118,iCompare!$A9) -> 54.3 | H9: =INDEX(iCountryP!$O$23:$O$118,iCompare!$A9) ->  | O9: 2 | P9: =IF($C9=0,"",RANK(O9,O$8:O$120,1)+COUNTIF(O$8:O9,O9)-1) -> 2 | Q9: 2 | R9: 71 | S9: 1 | T9: 2 | U9: =IF(Q9="","",IF(S9>1,CONCATENATE("=",R9),R9)) -> 71 | V9: 1.1) Country-level economic strength | W9: 6.1 | Y9: =IF($Q9="","",INDEX($E$8:$M$120,$Q9,Y$6)) -> 54.3 | AA9: =IF(Q9="","",INDEX(iCountryP!$F$23:$F$118,iCompare!Q9)) ->  | AB9: =IF(Q9="","",IF(ISERROR(INDEX(iRank!$K$20:$R$107,iCompare!Q9,uxbWorks!$B$18)),"",INDEX(iRank!$K$20:$R$107,iCompare!Q9,uxbWorks!$B$18))) -> 8 | AC9: =IF(Q9="","",IF(ISERROR(INDEX(iRank!$K$20:$R$107,iCompare!Q9,uxbWorks!$B$19)),"",INDEX(iRank!$K$20:$R$107,iCompare!Q9,uxbWorks!$B$19))) -> 2 | AE9: =IF(Q9="","",INDEX(tblIndicators!$H$3:$H$98,iCompare!Q9)) -> 0 - 100 where 100= best and 0=worst | AF9: =IF(AB9<AC9,"*","") ->  | AG9: =IF(AC9<AB9,"*","") -> * | AH9: 4 | AJ9: =IF(Q9="","",INDEX(tblIndicators!$R$3:$R$98,iCompare!Q9)) -> 0.0
A10: =tblCategories!A5 -> 3 | B10: =tblCategories!D5 -> 1.1.1) GDP per capita | C10: =tblCategories!F5 -> 1 | D10: 3 | E10: =INDEX(iCountryP!$E$23:$E$118,iCompare!$A10) -> 0.9 | F10: =INDEX(iCountryP!$N$23:$N$118,iCompare!$A10) -> 2557.405934 | G10: =INDEX(iCountryP!$J$23:$J$118,iCompare!$A10) -> 15.9 | H10: =INDEX(iCountryP!$O$23:$O$118,iCompare!$A10) -> 7669.24272 | O10: 3 | P10: =IF($C10=0,"",RANK(O10,O$8:O$120,1)+COUNTIF(O$8:O10,O10)-1) -> 3 | Q10: 3 | R10: 75 | S10: 1 | T10: 3 | U10: 75 | V10: 1.1.1) GDP per capita | W10: 0.9 | X10: 2557.405934 | Y10: 15.9 | Z10: 7669.24272 | AA10: =IF(Q10="","",INDEX(iCountryP!$F$23:$F$118,iCompare!Q10)) -> World Bank, World Development Indicators, (2013) | AB10: =IF(Q10="","",IF(ISERROR(INDEX(iRank!$K$20:$R$107,iCompare!Q10,uxbWorks!$B$18)),"",INDEX(iRank!$K$20:$R$107,iCompare!Q10,uxbWorks!$B$18))) -> 7 | AC10: =IF(Q10="","",IF(ISERROR(INDEX(iRank!$K$20:$R$107,iCompare!Q10,uxbWorks!$B$19)),"",INDEX(iRank!$K$20:$R$107,iCompare!Q10,uxbWorks!$B$19))) -> 4 | AE10: =IF(Q10="","",INDEX(tblIndicators!$H$3:$H$98,iCompare!Q10)) -> PPP International $ | AG10: * | AH10: 5 | AJ10: =IF(Q10="","",INDEX(tblIndicators!$R$3:$R$98,iCompare!Q10)) -> #,###.0
A11: =tblCategories!A6 -> 4 | B11: =tblCategories!D6 -> 1.1.2) Level of foreign currency reserves | C11: =tblCategories!F6 -> 1 | D11: 4 | E11: =INDEX(iCountryP!$E$23:$E$118,iCompare!$A11) -> 21.7 | F11: =INDEX(iCountryP!$N$23:$N$118,iCompare!$A11) -> 13.92897163 | G11: =INDEX(iCountryP!$J$23:$J$118,iCompare!$A11) -> 100 | H11: =INDEX(iCountryP!$O$23:$O$118,iCompare!$A11) -> 52.62678317 | O11: 4 | P11: =IF($C11=0,"",RANK(O11,O$8:O$120,1)+COUNTIF(O$8:O11,O11)-1) -> 4 | Q11: 4 | R11: 60 | S11: 1 | T11: 4 | U11: 60 | V11: 1.1.2) Level of foreign currency reserves | W11: 21.7 | X11: 13.92897163 | Y11: 100 | Z11: 52.62678317 | AA11: =IF(Q11="","",INDEX(iCountryP!$F$23:$F$118,iCompare!Q11)) -> IMF International Financial Statistics,World Bank (World Development Indicators), (2012-2013) | AB11: =IF(Q11="","",IF(ISERROR(INDEX(iRank!$K$20:$R$107,iCompare!Q11,uxbWorks!$B$18)),"",INDEX(iRank!$K$20:$R$107,iCompare!Q11,uxbWorks!$B$18))) -> 6 | AC11: =IF(Q11="","",IF(ISERROR(INDEX(iRank!$K$20:$R$107,iCompare!Q11,uxbWorks!$B$19)),"",INDEX(iRank!$K$20:$R$107,iCompare!Q11,uxbWorks!$B$19))) -> 1 | AE11: =IF(Q11="","",INDEX(tblIndicators!$H$3:$H$98,iCompare!Q11)) -> % | AG11: * | AH11: 6 | AJ11: =IF(Q11="","",INDEX(tblIndicators!$R$3:$R$98,iCompare!Q11)) -> #,###.0
A12: =tblCategories!A7 -> 5 | B12: =tblCategories!D7 -> 1.1.3) Poverty headcount ratio | C12: =tblCategories!F7 -> 1 | D12: 5 | E12: =INDEX(iCountryP!$E$23:$E$118,iCompare!$A12) -> 0 | F12: =INDEX(iCountryP!$N$23:$N$118,iCompare!$A12) -> 43.3 | G12: =INDEX(iCountryP!$J$23:$J$118,iCompare!$A12) -> 100 | H12: =INDEX(iCountryP!$O$23:$O$118,iCompare!$A12) -> 1.66 | O12: 5 | P12: =IF($C12=0,"",RANK(O12,O$8:O$120,1)+COUNTIF(O$8:O12,O12)-1) -> 5 | Q12: 5 | R12: 76 | S12: 13 | T12: 5 | U12: =76 | V12: 1.1.3) Poverty headcount ratio | W12: 0 | X12: 43.3 | Y12: 100 | Z12: 1.66 | AA12: =IF(Q12="","",INDEX(iCountryP!$F$23:$F$118,iCompare!Q12)) -> World Bank, 2010 | AB12: =IF(Q12="","",IF(ISERROR(INDEX(iRank!$K$20:$R$107,iCompare!Q12,uxbWorks!$B$18)),"",INDEX(iRank!$K$20:$R$107,iCompare!Q12,uxbWorks!$B$18))) -> 8 | AC12: =IF(Q12="","",IF(ISERROR(INDEX(iRank!$K$20:$R$107,iCompare!Q12,uxbWorks!$B$19)),"",INDEX(iRank!$K$20:$R$107,iCompare!Q12,uxbWorks!$B$19))) -> 1 | AE12: =IF(Q12="","",INDEX(tblIndicators!$H$3:$H$98,iCompare!Q12)) -> % | AG12: * | AH12: 7 | AJ12: =IF(Q12="","",INDEX(tblIndicators!$R$3:$R$98,iCompare!Q12)) -> 0.0
A13: =tblCategories!A8 -> 6 | B13: =tblCategories!D8 -> 1.1.4) Government funding for disaster relief (per person) | C13: =tblCategories!F8 -> 1 | D13: 6 | E13: =INDEX(iCountryP!$E$23:$E$118,iCompare!$A13) -> 1.8 | F13: =INDEX(iCountryP!$N$23:$N$118,iCompare!$A13) -> 5.332227738 | G13: =INDEX(iCountryP!$J$23:$J$118,iCompare!$A13) -> 1.3 | H13: =INDEX(iCountryP!$O$23:$O$118,iCompare!$A13) -> 3.979059536 | O13: 6 | P13: =IF($C13=0,"",RANK(O13,O$8:O$120,1)+COUNTIF(O$8:O13,O13)-1) -> 6 | Q13: 6 | R13: 74 | S13: 1 | T13: 6 | U13: 74 | V13: 1.1.4) Government funding for disaster relief (per person) | W13: 1.8 | X13: 5.332227738 | Y13: 1.3 | Z13: 3.979059536 | AA13: =IF(Q13="","",INDEX(iCountryP!$F$23:$F$118,iCompare!Q13)) -> Finance Division, Ministry of Finance, Bangladesh, Budget 2013-2014. | AB13: =IF(Q13="","",IF(ISERROR(INDEX(iRank!$K$20:$R$107,iCompare!Q13,uxbWorks!$B$18)),"",INDEX(iRank!$K$20:$R$107,iCompare!Q13,uxbWorks!$B$18))) -> 2 | AC13: =IF(Q13="","",IF(ISERROR(INDEX(iRank!$K$20:$R$107,iCompare!Q13,uxbWorks!$B$19)),"",INDEX(iRank!$K$20:$R$107,iCompare!Q13,uxbWorks!$B$19))) -> 3 | AE13: =IF(Q13="","",INDEX(tblIndicators!$H$3:$H$98,iCompare!Q13)) -> USD/capita | AF13: * | AH13: 8 | AJ13: =IF(Q13="","",INDEX(tblIndicators!$R$3:$R$98,iCompare!Q13)) -> #,###.0
A14: =tblCategories!A9 -> 7 | B14: =tblCategories!D9 -> 1.2) Personal finance: Women | C14: =tblCategories!F9 -> 1 | D14: 7 | E14: =INDEX(iCountryP!$E$23:$E$118,iCompare!$A14) -> 60 | F14: =INDEX(iCountryP!$N$23:$N$118,iCompare!$A14) ->  | G14: =INDEX(iCountryP!$J$23:$J$118,iCompare!$A14) -> 27.8 | H14: =INDEX(iCountryP!$O$23:$O$118,iCompare!$A14) ->  | O14: 7 | P14: =IF($C14=0,"",RANK(O14,O$8:O$120,1)+COUNTIF(O$8:O14,O14)-1) -> 7 | Q14: 7 | R14: 21 | S14: 2 | T14: 7 | U14: =21 | V14: 1.2) Personal finance: Women | W14: 60 | Y14: 27.8 | AA14: =IF(Q14="","",INDEX(iCountryP!$F$23:$F$118,iCompare!Q14)) ->  | AB14: =IF(Q14="","",IF(ISERROR(INDEX(iRank!$K$20:$R$107,iCompare!Q14,uxbWorks!$B$18)),"",INDEX(iRank!$K$20:$R$107,iCompare!Q14,uxbWorks!$B$18))) -> 3 | AC14: =IF(Q14="","",IF(ISERROR(INDEX(iRank!$K$20:$R$107,iCompare!Q14,uxbWorks!$B$19)),"",INDEX(iRank!$K$20:$R$107,iCompare!Q14,uxbWorks!$B$19))) -> 6 | AE14: =IF(Q14="","",INDEX(tblIndicators!$H$3:$H$98,iCompare!Q14)) -> 0 - 100 where 100= best and 0=worst | AF14: * | AJ14: =IF(Q14="","",INDEX(tblIndicators!$R$3:$R$98,iCompare!Q14)) -> 0.0
A15: =tblCategories!A10 -> 8 | B15: =tblCategories!D10 -> 1.2.1) Microfinance: Women borrowers | C15: =tblCategories!F10 -> 1 | D15: 8 | E15: =INDEX(iCountryP!$E$23:$E$118,iCompare!$A15) -> 86.1 | F15: =INDEX(iCountryP!$N$23:$N$118,iCompare!$A15) -> 90.1 | G15: =INDEX(iCountryP!$J$23:$J$118,iCompare!$A15) -> 0.1 | H15: =INDEX(iCountryP!$O$23:$O$118,iCompare!$A15) -> 38.04 | O15: 8 | P15: =IF($C15=0,"",RANK(O15,O$8:O$120,1)+COUNTIF(O$8:O15,O15)-1) -> 8 | Q15: 8 | R15: 8 | S15: 1 | T15: 8 | U15: 8 | V15: 1.2.1) Microfinance: Women borrowers | W15: 86.1 | X15: 90.1 | Y15: 0.1 | Z15: 38.04 | AA15: =IF(Q15="","",INDEX(iCountryP!$F$23:$F$118,iCompare!Q15)) -> Per cent of women borrowers based on sample of 28 MFIs reported to MIX Market in 2012 | AB15: =IF(Q15="","",IF(ISERROR(INDEX(iRank!$K$20:$R$107,iCompare!Q15,uxbWorks!$B$18)),"",INDEX(iRank!$K$20:$R$107,iCompare!Q15,uxbWorks!$B$18))) -> 5 | AC15: =IF(Q15="","",IF(ISERROR(INDEX(iRank!$K$20:$R$107,iCompare!Q15,uxbWorks!$B$19)),"",INDEX(iRank!$K$20:$R$107,iCompare!Q15,uxbWorks!$B$19))) -> 7 | AE15: =IF(Q15="","",INDEX(tblIndicators!$H$3:$H$98,iCompare!Q15)) -> % | AF15: * | AJ15: =IF(Q15="","",INDEX(tblIndicators!$R$3:$R$98,iCompare!Q15)) -> 0.0
A16: =tblCategories!A11 -> 9 | B16: =tblCategories!D11 -> 1.2.2) Building credit histories | C16: =tblCategories!F11 -> 1 | D16: 9 | E16: =INDEX(iCountryP!$E$23:$E$118,iCompare!$A16) -> 20 | F16: =INDEX(iCountryP!$N$23:$N$118,iCompare!$A16) -> 4.5 | G16: =INDEX(iCountryP!$J$23:$J$118,iCompare!$A16) -> 0 | H16: =INDEX(iCountryP!$O$23:$O$118,iCompare!$A16) -> 4 | O16: 9 | P16: =IF($C16=0,"",RANK(O16,O$8:O$120,1)+COUNTIF(O$8:O16,O16)-1) -> 9 | Q16: 9 | R16: 62 | S16: 1 | T16: 9 | U16: 62 | V16: 1.2.2) Building credit histories | W16: 20 | X16: 4.5 | Y16: 0 | Z16: 4 | AA16: =IF(Q16="","",INDEX(iCountryP!$F$23:$F$118,iCompare!Q16)) -> This indicator combines gender-sensitive elements from two of the World Bank Group's Doing Business 'Getting Credit' measures: 'Depth of credit information' and 'Legal rights to credit' - into a single, composite indicator. This measure is not gender-disaggregated, but is useful in establishing the credit environment in which women participate. The average of the two scores is taken. | AB16: =IF(Q16="","",IF(ISERROR(INDEX(iRank!$K$20:$R$107,iCompare!Q16,uxbWorks!$B$18)),"",INDEX(iRank!$K$20:$R$107,iCompare!Q16,uxbWorks!$B$18))) -> 6 | AC16: =IF(Q16="","",IF(ISERROR(INDEX(iRank!$K$20:$R$107,iCompare!Q16,uxbWorks!$B$19)),"",INDEX(iRank!$K$20:$R$107,iCompare!Q16,uxbWorks!$B$19))) -> 7 | AE16: =IF(Q16="","",INDEX(tblIndicators!$H$3:$H$98,iCompare!Q16)) -> Score (0-8), 8= Best | AF16: * | AJ16: =IF(Q16="","",INDEX(tblIndicators!$R$3:$R$98,iCompare!Q16)) -> 0.0
A17: =tblCategories!A12 -> 10 | B17: =tblCategories!D12 -> 1.2.3) Women's access to finance programmes | C17: =tblCategories!F12 -> 1 | D17: 10 | E17: =INDEX(iCountryP!$E$23:$E$118,iCompare!$A17) -> 60 | F17: =INDEX(iCountryP!$N$23:$N$118,iCompare!$A17) -> 3 | G17: =INDEX(iCountryP!$J$23:$J$118,iCompare!$A17) -> 60 | H17: =INDEX(iCountryP!$O$23:$O$118,iCompare!$A17) -> 3 | O17: 10 | P17: =IF($C17=0,"",RANK(O17,O$8:O$120,1)+COUNTIF(O$8:O17,O17)-1) -> 10 | Q17: 10 | R17: 21 | S17: 2 | T17: 10 | U17: =21 | V17: 1.2.3) Women's access to finance programmes | W17: 60 | X17: 3 | Y17: 60 | Z17: 3 | AA17: =IF(Q17="","",INDEX(iCountryP!$F$23:$F$118,iCompare!Q17)) -> Women's access to credit is limited because both formal and informal credit institutions provide loans to those who can provide collateral. All formal credit institutions seek tangible collateral for loans. Since women have little access to inherited property (although this situation is likely to change over time following the full implementation of National Women's Development Policy 2011, the benefits have not accrued fully yet), many of them are still excluded from institutional credit. In addition, the task of applying for loans is made that much harder as the application has to be countersigned by the male spouse, or in the case of an unmarried woman, a guarantee is needed from the father. This custom is expected to continue until the monetary authorities are instructed otherwise by the government. The Bangladesh Women Chamber of Commerce and Industry can in some instances act as guarantor and runs programmes to inform women entrepreneurs about existing finance programmes. Bangladesh Bank (the central bank) offers a refinancing scheme for women entrepreneurs of SMEs but according to a survey conducted by the Bangladesh Women Chamber of Commerce and Industry, around 65% of respondents did not know anything about the scheme. | AB17: =IF(Q17="","",IF(ISERROR(INDEX(iRank!$K$20:$R$107,iCompare!Q17,uxbWorks!$B$18)),"",INDEX(iRank!$K$20:$R$107,iCompare!Q17,uxbWorks!$B$18))) -> 2 | AC17: =IF(Q17="","",IF(ISERROR(INDEX(iRank!$K$20:$R$107,iCompare!Q17,uxbWorks!$B$19)),"",INDEX(iRank!$K$20:$R$107,iCompare!Q17,uxbWorks!$B$19))) -> 2 | AE17: =IF(Q17="","",INDEX(tblIndicators!$H$3:$H$98,iCompare!Q17)) -> Score (0 - 5), 5 = Best | AJ17: =IF(Q17="","",INDEX(tblIndicators!$R$3:$R$98,iCompare!Q17)) -> 0
A18: =tblCategories!A13 -> 11 | B18: =tblCategories!D13 -> 1.2.4) Loans at financial institutions | C18: =tblCategories!F13 -> 1 | D18: 11 | E18: =INDEX(iCountryP!$E$23:$E$118,iCompare!$A18) -> 100 | F18: =INDEX(iCountryP!$N$23:$N$118,iCompare!$A18) -> 22.3 | G18: =INDEX(iCountryP!$J$23:$J$118,iCompare!$A18) -> 49.5 | H18: =INDEX(iCountryP!$O$23:$O$118,iCompare!$A18) -> 12 | O18: 11 | P18: =IF($C18=0,"",RANK(O18,O$8:O$120,1)+COUNTIF(O$8:O18,O18)-1) -> 11 | Q18: 11 | R18: 1 | S18: 4 | T18: 11 | U18: =1 | V18: 1.2.4) Loans at financial institutions | W18: 100 | X18: 22.3 | Y18: 49.5 | Z18: 12 | AA18: =IF(Q18="","",INDEX(iCountryP!$F$23:$F$118,iCompare!Q18)) -> World Bank, Global Financial Inclusion Database (2012-2013) | AB18: =IF(Q18="","",IF(ISERROR(INDEX(iRank!$K$20:$R$107,iCompare!Q18,uxbWorks!$B$18)),"",INDEX(iRank!$K$20:$R$107,iCompare!Q18,uxbWorks!$B$18))) -> 1 | AC18: =IF(Q18="","",IF(ISERROR(INDEX(iRank!$K$20:$R$107,iCompare!Q18,uxbWorks!$B$19)),"",INDEX(iRank!$K$20:$R$107,iCompare!Q18,uxbWorks!$B$19))) -> 3 | AE18: =IF(Q18="","",INDEX(tblIndicators!$H$3:$H$98,iCompare!Q18)) -> % females aged 15+ | AF18: * | AJ18: =IF(Q18="","",INDEX(tblIndicators!$R$3:$R$98,iCompare!Q18)) -> 0.0
A19: =tblCategories!A14 -> 12 | B19: =tblCategories!D14 -> 1.2.5) Accounts at financial institutions | C19: =tblCategories!F14 -> 1 | D19: 12 | E19: =INDEX(iCountryP!$E$23:$E$118,iCompare!$A19) -> 34 | F19: =INDEX(iCountryP!$N$23:$N$118,iCompare!$A19) -> 34.9 | G19: =INDEX(iCountryP!$J$23:$J$118,iCompare!$A19) -> 29.4 | H19: =INDEX(iCountryP!$O$23:$O$118,iCompare!$A19) -> 30.6 | O19: 12 | P19: =IF($C19=0,"",RANK(O19,O$8:O$120,1)+COUNTIF(O$8:O19,O19)-1) -> 12 | Q19: 12 | R19: 41 | S19: 1 | T19: 12 | U19: 41 | V19: 1.2.5) Accounts at financial institutions | W19: 34 | X19: 34.9 | Y19: 29.4 | Z19: 30.6 | AA19: =IF(Q19="","",INDEX(iCountryP!$F$23:$F$118,iCompare!Q19)) -> World Bank, Global Financial Inclusion Database (2012-2013) | AB19: =IF(Q19="","",IF(ISERROR(INDEX(iRank!$K$20:$R$107,iCompare!Q19,uxbWorks!$B$18)),"",INDEX(iRank!$K$20:$R$107,iCompare!Q19,uxbWorks!$B$18))) -> 3 | AC19: =IF(Q19="","",IF(ISERROR(INDEX(iRank!$K$20:$R$107,iCompare!Q19,uxbWorks!$B$19)),"",INDEX(iRank!$K$20:$R$107,iCompare!Q19,uxbWorks!$B$19))) -> 4 | AE19: =IF(Q19="","",INDEX(tblIndicators!$H$3:$H$98,iCompare!Q19)) -> % females aged 15+ | AF19: * | AJ19: =IF(Q19="","",INDEX(tblIndicators!$R$3:$R$98,iCompare!Q19)) -> 0.0
A20: =tblCategories!A15 -> 13 | B20: =tblCategories!D15 -> 1.3) Labour environment: Women | C20: =tblCategories!F15 -> 1 | D20: 13 | E20: =INDEX(iCountryP!$E$23:$E$118,iCompare!$A20) -> 79.6 | F20: =INDEX(iCountryP!$N$23:$N$118,iCompare!$A20) ->  | G20: =INDEX(iCountryP!$J$23:$J$118,iCompare!$A20) -> 47 | H20: =INDEX(iCountryP!$O$23:$O$118,iCompare!$A20) ->  | O20: 13 | P20: =IF($C20=0,"",RANK(O20,O$8:O$120,1)+COUNTIF(O$8:O20,O20)-1) -> 13 | Q20: 13 | R20: 10 | S20: 1 | T20: 13 | U20: 10 | V20: 1.3) Labour environment: Women | W20: 79.6 | Y20: 47 | AA20: =IF(Q20="","",INDEX(iCountryP!$F$23:$F$118,iCompare!Q20)) ->  | AB20: =IF(Q20="","",IF(ISERROR(INDEX(iRank!$K$20:$R$107,iCompare!Q20,uxbWorks!$B$18)),"",INDEX(iRank!$K$20:$R$107,iCompare!Q20,uxbWorks!$B$18))) -> 2 | AC20: =IF(Q20="","",IF(ISERROR(INDEX(iRank!$K$20:$R$107,iCompare!Q20,uxbWorks!$B$19)),"",INDEX(iRank!$K$20:$R$107,iCompare!Q20,uxbWorks!$B$19))) -> 6 | AE20: =IF(Q20="","",INDEX(tblIndicators!$H$3:$H$98,iCompare!Q20)) -> 0 - 100 where 100= best and 0=worst | AF20: * | AJ20: =IF(Q20="","",INDEX(tblIndicators!$R$3:$R$98,iCompare!Q20)) -> 0.0
A21: =tblCategories!A16 -> 14 | B21: =tblCategories!D16 -> 1.3.1) Employment guarantee schemes for women | C21: =tblCategories!F16 -> 1 | D21: 14 | E21: =INDEX(iCountryP!$E$23:$E$118,iCompare!$A21) -> 75 | F21: =INDEX(iCountryP!$N$23:$N$118,iCompare!$A21) -> 3 | G21: =INDEX(iCountryP!$J$23:$J$118,iCompare!$A21) -> 0 | H21: =INDEX(iCountryP!$O$23:$O$118,iCompare!$A21) -> 0 | O21: 14 | P21: =IF($C21=0,"",RANK(O21,O$8:O$120,1)+COUNTIF(O$8:O21,O21)-1) -> 14 | Q21: 14 | R21: 11 | S21: 2 | T21: 14 | U21: =11 | V21: 1.3.1) Employment guarantee schemes for women | W21: 75 | X21: 3 | Y21: 0 | Z21: 0 | AA21: =IF(Q21="","",INDEX(iCountryP!$F$23:$F$118,iCompare!Q21)) -> Though there were no administrative gender requirements, 28% of the beneficiaries in the first phase of the 100-day Employment Guarantee Programme turned out to be women. For many female beneficiaries, the programme turned out to be more than relief from temporary unemployment: it provided them an employment opportunity. There are several government employment programmes that specifically target women such as the Food for Work (FFW) programme and the Rural Employment Opportunities for Public Assets (REOPA). The Main Program Component (MPC) of the Employment Generation Program for the Poorest Project (EGPP), one-third of programme benefits are mandated to go to women workers. Although these programmes do not specify that there should be equal wages for men and women, they specify a fixed wage rate which is assumed to be the same among men and women. Sources: International Labour Organization and EIU analysis | AB21: =IF(Q21="","",IF(ISERROR(INDEX(iRank!$K$20:$R$107,iCompare!Q21,uxbWorks!$B$18)),"",INDEX(iRank!$K$20:$R$107,iCompare!Q21,uxbWorks!$B$18))) -> 2 | AC21: =IF(Q21="","",IF(ISERROR(INDEX(iRank!$K$20:$R$107,iCompare!Q21,uxbWorks!$B$19)),"",INDEX(iRank!$K$20:$R$107,iCompare!Q21,uxbWorks!$B$19))) -> 6 | AE21: =IF(Q21="","",INDEX(tblIndicators!$H$3:$H$98,iCompare!Q21)) -> Score (0-4), 4=Best | AF21: * | AJ21: =IF(Q21="","",INDEX(tblIndicators!$R$3:$R$98,iCompare!Q21)) -> 0
A22: =tblCategories!A17 -> 15 | B22: =tblCategories!D17 -> 1.3.2) Female unemployment rate | C22: =tblCategories!F17 -> 1 | D22: 15 | E22: =INDEX(iCountryP!$E$23:$E$118,iCompare!$A22) -> 84.1 | F22: =INDEX(iCountryP!$N$23:$N$118,iCompare!$A22) -> 5.8 | G22: =INDEX(iCountryP!$J$23:$J$118,iCompare!$A22) -> 93.9 | H22: =INDEX(iCountryP!$O$23:$O$118,iCompare!$A22) -> 3.7 | O22: 15 | P22: =IF($C22=0,"",RANK(O22,O$8:O$120,1)+COUNTIF(O$8:O22,O22)-1) -> 15 | Q22: 15 | R22: 9 | S22: 1 | T22: 15 | U22: 9 | V22: 1.3.2) Female unemployment rate | W22: 84.1 | X22: 5.8 | Y22: 93.9 | Z22: 3.7 | AA22: =IF(Q22="","",INDEX(iCountryP!$F$23:$F$118,iCompare!Q22)) -> Bangladesh Labour Force Survey 2010, Statistics and Information Division, Ministry of Planning, Bangladesh | AB22: =IF(Q22="","",IF(ISERROR(INDEX(iRank!$K$20:$R$107,iCompare!Q22,uxbWorks!$B$18)),"",INDEX(iRank!$K$20:$R$107,iCompare!Q22,uxbWorks!$B$18))) -> 5 | AC22: =IF(Q22="","",IF(ISERROR(INDEX(iRank!$K$20:$R$107,iCompare!Q22,uxbWorks!$B$19)),"",INDEX(iRank!$K$20:$R$107,iCompare!Q22,uxbWorks!$B$19))) -> 2 | AE22: =IF(Q22="","",INDEX(tblIndicators!$H$3:$H$98,iCompare!Q22)) -> % | AG22: * | AJ22: =IF(Q22="","",INDEX(tblIndicators!$R$3:$R$98,iCompare!Q22)) -> 0.0
A23: =tblCategories!A18 -> 16 | B23: =tblCategories!D18 -> 2) INFRASTRUCTURE | C23: =tblCategories!F18 -> 1 | D23: 16 | E23: =INDEX(iCountryP!$E$23:$E$118,iCompare!$A23) -> 22.3 | F23: =INDEX(iCountryP!$N$23:$N$118,iCompare!$A23) ->  | G23: =INDEX(iCountryP!$J$23:$J$118,iCompare!$A23) -> 37.5 | H23: =INDEX(iCountryP!$O$23:$O$118,iCompare!$A23) ->  | O23: 16 | P23: =IF($C23=0,"",RANK(O23,O$8:O$120,1)+COUNTIF(O$8:O23,O23)-1) -> 16 | Q23: 16 | R23: 58 | S23: 1 | T23: 16 | U23: 58 | V23: 2) INFRASTRUCTURE | W23: 22.3 | Y23: 37.5 | AA23: =IF(Q23="","",INDEX(iCountryP!$F$23:$F$118,iCompare!Q23)) ->  | AB23: =IF(Q23="","",IF(ISERROR(INDEX(iRank!$K$20:$R$107,iCompare!Q23,uxbWorks!$B$18)),"",INDEX(iRank!$K$20:$R$107,iCompare!Q23,uxbWorks!$B$18))) -> 8 | AC23: =IF(Q23="","",IF(ISERROR(INDEX(iRank!$K$20:$R$107,iCompare!Q23,uxbWorks!$B$19)),"",INDEX(iRank!$K$20:$R$107,iCompare!Q23,uxbWorks!$B$19))) -> 4 | AE23: =IF(Q23="","",INDEX(tblIndicators!$H$3:$H$98,iCompare!Q23)) -> 0 - 100 where 100= best and 0=worst | AG23: * | AJ23: =IF(Q23="","",INDEX(tblIndicators!$R$3:$R$98,iCompare!Q23)) -> 0.0
A24: =tblCategories!A19 -> 17 | B24: =tblCategories!D19 -> 2.1) Adherence to land use regulations | C24: =tblCategories!F19 -> 1 | D24: 17 | E24: =INDEX(iCountryP!$E$23:$E$118,iCompare!$A24) -> 40 | F24: =INDEX(iCountryP!$N$23:$N$118,iCompare!$A24) -> 4 | G24: =INDEX(iCountryP!$J$23:$J$118,iCompare!$A24) -> 40 | H24: =INDEX(iCountryP!$O$23:$O$118,iCompare!$A24) -> 4 | O24: 17 | P24: =IF($C24=0,"",RANK(O24,O$8:O$120,1)+COUNTIF(O$8:O24,O24)-1) -> 17 | Q24: 17 | R24: 37 | S24: 1 | T24: 17 | U24: 37 | V24: 2.1) Adherence to land use regulations | W24: 40 | X24: 4 | Y24: 40 | Z24: 4 | AA24: =IF(Q24="","",INDEX(iCountryP!$F$23:$F$118,iCompare!Q24)) -> Bangladesh has some of the components of an effective planning system, including the Urban Development Directorate (UDD) which is responsible for the majority of the country, and a dedicated development authority for each of the four largest cities. However, a number of the plans appear to be quite basic, information is not easy to access and nationwide coverage is patchy. Coordination between the agencies does not appear strong. Where there is coverage the plans are intended to be mandatory. However, coverage is far from complete and circumvention is also a problem. The plans do not explicitly consider natural hazards or cater for low income groups. While there is evidence of public consultation in the preparation of the plans, this again is patchy. Sources: Guidelines for Mainstreaming Disaster Risk Reduction into Land Use Planning for Upazilas and Municipalities in Bangladesh (2013) Asian Disaster Preparedness Centre. "Bangladesh factory disasters highlight regulatory failures", Financial Times, 25 April 2013. "Collapsed factory was built without permit", The Wall Street Journal, 25 April 2013. | AB24: =IF(Q24="","",IF(ISERROR(INDEX(iRank!$K$20:$R$107,iCompare!Q24,uxbWorks!$B$18)),"",INDEX(iRank!$K$20:$R$107,iCompare!Q24,uxbWorks!$B$18))) -> 4 | AC24: =IF(Q24="","",IF(ISERROR(INDEX(iRank!$K$20:$R$107,iCompare!Q24,uxbWorks!$B$19)),"",INDEX(iRank!$K$20:$R$107,iCompare!Q24,uxbWorks!$B$19))) -> 4 | AE24: =IF(Q24="","",INDEX(tblIndicators!$H$3:$H$98,iCompare!Q24)) -> Score (0 - 10), 10 = Best | AJ24: =IF(Q24="","",INDEX(tblIndicators!$R$3:$R$98,iCompare!Q24)) -> 0
A25: =tblCategories!A20 -> 18 | B25: =tblCategories!D20 -> 2.2) Adherence to building codes | C25: =tblCategories!F20 -> 1 | D25: 18 | E25: =INDEX(iCountryP!$E$23:$E$118,iCompare!$A25) -> 64.3 | F25: =INDEX(iCountryP!$N$23:$N$118,iCompare!$A25) -> 9 | G25: =INDEX(iCountryP!$J$23:$J$118,iCompare!$A25) -> 57.1 | H25: =INDEX(iCountryP!$O$23:$O$118,iCompare!$A25) -> 8 | O25: 18 | P25: =IF($C25=0,"",RANK(O25,O$8:O$120,1)+COUNTIF(O$8:O25,O25)-1) -> 18 | Q25: 18 | R25: 19 | S25: 1 | T25: 18 | U25: 19 | V25: 2.2) Adherence to building codes | W25: 64.3 | X25: 9 | Y25: 57.1 | Z25: 8 | AA25: =IF(Q25="","",INDEX(iCountryP!$F$23:$F$118,iCompare!Q25)) -> Bangladesh has a modern mandatory building code that can be freely accessed on the internet, although it only appears to be available in English which may limit access to some. However, a large number of structures in Bangladesh have not been built in accordance with the code. This is for a number of reasons including corruption, the lack of skills in much of the construction industry and the impossibility of meeting the standards for those on low incomes. These factors contibuted to the high-profile collapse of a garment factory building in Bangladesh in 2013, with significant loss of life. Recently this has resulted in international funds being made available to strengthen existing sub-code buildings. By international standards, following the building consent process takes a moderate amount of time at a moderate cost. Sources: World Bank Doing Business Survey 2014 "Bangladesh factory disasters highlight regulatory failures", Financial Times, 25 April 2013. "Collapsed factory was built without permit", The Wall Street Journal, 25 April 2013. | AB25: =IF(Q25="","",IF(ISERROR(INDEX(iRank!$K$20:$R$107,iCompare!Q25,uxbWorks!$B$18)),"",INDEX(iRank!$K$20:$R$107,iCompare!Q25,uxbWorks!$B$18))) -> 2 | AC25: =IF(Q25="","",IF(ISERROR(INDEX(iRank!$K$20:$R$107,iCompare!Q25,uxbWorks!$B$19)),"",INDEX(iRank!$K$20:$R$107,iCompare!Q25,uxbWorks!$B$19))) -> 4 | AE25: =IF(Q25="","",INDEX(tblIndicators!$H$3:$H$98,iCompare!Q25)) -> Score (0 - 14), 14 = Best | AF25: * | AJ25: =IF(Q25="","",INDEX(tblIndicators!$R$3:$R$98,iCompare!Q25)) -> 0
A26: =tblCategories!A21 -> 19 | B26: =tblCategories!D21 -> 2.3) Communication | C26: =tblCategories!F21 -> 1 | D26: 19 | E26: =INDEX(iCountryP!$E$23:$E$118,iCompare!$A26) -> 21.1 | F26: =INDEX(iCountryP!$N$23:$N$118,iCompare!$A26) ->  | G26: =INDEX(iCountryP!$J$23:$J$118,iCompare!$A26) -> 19.9 | H26: =INDEX(iCountryP!$O$23:$O$118,iCompare!$A26) ->  | O26: 19 | P26: =IF($C26=0,"",RANK(O26,O$8:O$120,1)+COUNTIF(O$8:O26,O26)-1) -> 19 | Q26: 19 | R26: 61 | S26: 1 | T26: 19 | U26: 61 | V26: 2.3) Communication | W26: 21.1 | Y26: 19.9 | AA26: =IF(Q26="","",INDEX(iCountryP!$F$23:$F$118,iCompare!Q26)) ->  | AB26: =IF(Q26="","",IF(ISERROR(INDEX(iRank!$K$20:$R$107,iCompare!Q26,uxbWorks!$B$18)),"",INDEX(iRank!$K$20:$R$107,iCompare!Q26,uxbWorks!$B$18))) -> 7 | AC26: =IF(Q26="","",IF(ISERROR(INDEX(iRank!$K$20:$R$107,iCompare!Q26,uxbWorks!$B$19)),"",INDEX(iRank!$K$20:$R$107,iCompare!Q26,uxbWorks!$B$19))) -> 8 | AE26: =IF(Q26="","",INDEX(tblIndicators!$H$3:$H$98,iCompare!Q26)) -> 0 - 100 where 100= best and 0=worst | AF26: * | AJ26: =IF(Q26="","",INDEX(tblIndicators!$R$3:$R$98,iCompare!Q26)) -> 0.0
A27: =tblCategories!A22 -> 20 | B27: =tblCategories!D22 -> 2.3.1) Penetration of TV | C27: =tblCategories!F22 -> 1 | D27: 20 | E27: =INDEX(iCountryP!$E$23:$E$118,iCompare!$A27) -> 14.3 | F27: =INDEX(iCountryP!$N$23:$N$118,iCompare!$A27) -> 44.8 | G27: =INDEX(iCountryP!$J$23:$J$118,iCompare!$A27) -> 37.6 | H27: =INDEX(iCountryP!$O$23:$O$118,iCompare!$A27) -> 58.5 | O27: 20 | P27: =IF($C27=0,"",RANK(O27,O$8:O$120,1)+COUNTIF(O$8:O27,O27)-1) -> 20 | Q27: 20 | R27: 65 | S27: 1 | T27: 20 | U27: 65 | V27: 2.3.1) Penetration of TV | W27: 14.3 | X27: 44.8 | Y27: 37.6 | Z27: 58.5 | AA27: =IF(Q27="","",INDEX(iCountryP!$F$23:$F$118,iCompare!Q27)) -> Socio-economic and Demographic Report 2011, Bangladesh Bureau of Statistics | AB27: =IF(Q27="","",IF(ISERROR(INDEX(iRank!$K$20:$R$107,iCompare!Q27,uxbWorks!$B$18)),"",INDEX(iRank!$K$20:$R$107,iCompare!Q27,uxbWorks!$B$18))) -> 7 | AC27: =IF(Q27="","",IF(ISERROR(INDEX(iRank!$K$20:$R$107,iCompare!Q27,uxbWorks!$B$19)),"",INDEX(iRank!$K$20:$R$107,iCompare!Q27,uxbWorks!$B$19))) -> 5 | AE27: =IF(Q27="","",INDEX(tblIndicators!$H$3:$H$98,iCompare!Q27)) -> % | AG27: * | AJ27: =IF(Q27="","",INDEX(tblIndicators!$R$3:$R$98,iCompare!Q27)) -> 0.0
A28: =tblCategories!A23 -> 21 | B28: =tblCategories!D23 -> 2.3.2) Penetration of Radio | C28: =tblCategories!F23 -> 1 | D28: 21 | E28: =INDEX(iCountryP!$E$23:$E$118,iCompare!$A28) -> 7.4 | F28: =INDEX(iCountryP!$N$23:$N$118,iCompare!$A28) -> 8.9 | G28: =INDEX(iCountryP!$J$23:$J$118,iCompare!$A28) -> 0 | H28: =INDEX(iCountryP!$O$23:$O$118,iCompare!$A28) -> 3.88 | O28: 21 | P28: =IF($C28=0,"",RANK(O28,O$8:O$120,1)+COUNTIF(O$8:O28,O28)-1) -> 21 | Q28: 21 | R28: 69 | S28: 2 | T28: 21 | U28: =69 | V28: 2.3.2) Penetration of Radio | W28: =IF($Q28="","",INDEX($E$8:$M$120,$Q28,W$6)) -> 7.4 | X28: 8.9 | Y28: 0 | Z28: 3.88 | AA28: =IF(Q28="","",INDEX(iCountryP!$F$23:$F$118,iCompare!Q28)) -> Socio-economic and Demographic Report 2011, Bangladesh Bureau of Statistics | AB28: =IF(Q28="","",IF(ISERROR(INDEX(iRank!$K$20:$R$107,iCompare!Q28,uxbWorks!$B$18)),"",INDEX(iRank!$K$20:$R$107,iCompare!Q28,uxbWorks!$B$18))) -> 7 | AC28: =IF(Q28="","",IF(ISERROR(INDEX(iRank!$K$20:$R$107,iCompare!Q28,uxbWorks!$B$19)),"",INDEX(iRank!$K$20:$R$107,iCompare!Q28,uxbWorks!$B$19))) -> 8 | AE28: =IF(Q28="","",INDEX(tblIndicators!$H$3:$H$98,iCompare!Q28)) -> % | AF28: * | AJ28: =IF(Q28="","",INDEX(tblIndicators!$R$3:$R$98,iCompare!Q28)) -> 0.0
A29: =tblCategories!A24 -> 22 | B29: =tblCategories!D24 -> 2.3.3) Mobile cellular subscriptions | C29: =tblCategories!F24 -> 1 | D29: 22 | E29: =INDEX(iCountryP!$E$23:$E$118,iCompare!$A29) -> 0 | F29: =INDEX(iCountryP!$N$23:$N$118,iCompare!$A29) -> 67 | G29: =INDEX(iCountryP!$J$23:$J$118,iCompare!$A29) -> 4.4 | H29: =INDEX(iCountryP!$O$23:$O$118,iCompare!$A29) -> 72 | O29: 22 | P29: =IF($C29=0,"",RANK(O29,O$8:O$120,1)+COUNTIF(O$8:O29,O29)-1) -> 22 | Q29: 22 | R29: 76 | S29: 13 | T29: 22 | U29: =76 | V29: 2.3.3) Mobile cellular subscriptions | W29: 0 | X29: 67 | Y29: 4.4 | Z29: 72 | AA29: =IF(Q29="","",INDEX(iCountryP!$F$23:$F$118,iCompare!Q29)) -> World Bank, 2013 | AB29: =IF(Q29="","",IF(ISERROR(INDEX(iRank!$K$20:$R$107,iCompare!Q29,uxbWorks!$B$18)),"",INDEX(iRank!$K$20:$R$107,iCompare!Q29,uxbWorks!$B$18))) -> 8 | AC29: =IF(Q29="","",IF(ISERROR(INDEX(iRank!$K$20:$R$107,iCompare!Q29,uxbWorks!$B$19)),"",INDEX(iRank!$K$20:$R$107,iCompare!Q29,uxbWorks!$B$19))) -> 4 | AE29: =IF(Q29="","",INDEX(tblIndicators!$H$3:$H$98,iCompare!Q29)) -> % | AG29: * | AJ29: =IF(Q29="","",INDEX(tblIndicators!$R$3:$R$98,iCompare!Q29)) -> 0.0
A30: =tblCategories!A25 -> 23 | B30: =tblCategories!D25 -> 2.3.4) Availability of an effective early warning system | C30: =tblCategories!F25 -> 1 | D30: 23 | E30: =INDEX(iCountryP!$E$23:$E$118,iCompare!$A30) -> 62.5 | F30: =INDEX(iCountryP!$N$23:$N$118,iCompare!$A30) -> 5 | G30: =INDEX(iCountryP!$J$23:$J$118,iCompare!$A30) -> 37.5 | H30: =INDEX(iCountryP!$O$23:$O$118,iCompare!$A30) -> 3 | O30: 23 | P30: =IF($C30=0,"",RANK(O30,O$8:O$120,1)+COUNTIF(O$8:O30,O30)-1) -> 23 | Q30: 23 | R30: 20 | S30: 1 | T30: 23 | U30: 20 | V30: 2.3.4) Availability of an effective early warning system | W30: 62.5 | X30: 5 | Y30: 37.5 | Z30: 3 | AA30: =IF(Q30="","",INDEX(iCountryP!$F$23:$F$118,iCompare!Q30)) -> Bangladesh has many of the components of an effective end-to-end early warning system (EWS), and has experienced some significant successes and improvements in the last decade, in particular the response to the 2007 cyclone. However, there are still many issues with the EWS including reliance on NGOs, particularly at the community level where significant further improvement is possible. Sources: "Bangladesh improves disaster early warning system with ESCAP support", UNESCAP, 2012, http://www.unescap.org/features/bangladesh-improves-disaster-early-warning-system-with-ESCAP-support "Multi-Hazard Early Warning System in Bangladesh with Emphasis on the Cyclone Preparedness Programme", 2009, Second Experts’ Symposium on Multi-Hazard Early Warning Systems, http://www.wmo.int/pages/prog/drr/events/MHEWS-I/Presentations/Session%201/Bangladesh/BangladeshMHEWS.pdf. | AB30: =IF(Q30="","",IF(ISERROR(INDEX(iRank!$K$20:$R$107,iCompare!Q30,uxbWorks!$B$18)),"",INDEX(iRank!$K$20:$R$107,iCompare!Q30,uxbWorks!$B$18))) -> 3 | AC30: =IF(Q30="","",IF(ISERROR(INDEX(iRank!$K$20:$R$107,iCompare!Q30,uxbWorks!$B$19)),"",INDEX(iRank!$K$20:$R$107,iCompare!Q30,uxbWorks!$B$19))) -> 8 | AE30: =IF(Q30="","",INDEX(tblIndicators!$H$3:$H$98,iCompare!Q30)) -> Score (0 - 8), 8 = Best | AF30: * | AJ30: =IF(Q30="","",INDEX(tblIndicators!$R$3:$R$98,iCompare!Q30)) -> 0
A31: =tblCategories!A26 -> 24 | B31: =tblCategories!D26 -> 2.4) Power | C31: =tblCategories!F26 -> 1 | D31: 24 | E31: =INDEX(iCountryP!$E$23:$E$118,iCompare!$A31) -> 0 | F31: =INDEX(iCountryP!$N$23:$N$118,iCompare!$A31) ->  | G31: =INDEX(iCountryP!$J$23:$J$118,iCompare!$A31) -> 32 | H31: =INDEX(iCountryP!$O$23:$O$118,iCompare!$A31) ->  | O31: 24 | P31: =IF($C31=0,"",RANK(O31,O$8:O$120,1)+COUNTIF(O$8:O31,O31)-1) -> 24 | Q31: 24 | R31: 76 | S31: 13 | T31: 24 | U31: =76 | V31: 2.4) Power | W31: 0 | Y31: 32 | AA31: =IF(Q31="","",INDEX(iCountryP!$F$23:$F$118,iCompare!Q31)) ->  | AB31: =IF(Q31="","",IF(ISERROR(INDEX(iRank!$K$20:$R$107,iCompare!Q31,uxbWorks!$B$18)),"",INDEX(iRank!$K$20:$R$107,iCompare!Q31,uxbWorks!$B$18))) -> 8 | AC31: =IF(Q31="","",IF(ISERROR(INDEX(iRank!$K$20:$R$107,iCompare!Q31,uxbWorks!$B$19)),"",INDEX(iRank!$K$20:$R$107,iCompare!Q31,uxbWorks!$B$19))) -> 6 | AE31: =IF(Q31="","",INDEX(tblIndicators!$H$3:$H$98,iCompare!Q31)) -> 0 - 100 where 100= best and 0=worst | AG31: * | AJ31: =IF(Q31="","",INDEX(tblIndicators!$R$3:$R$98,iCompare!Q31)) -> 0.0
A32: =tblCategories!A27 -> 25 | B32: =tblCategories!D27 -> 2.4.1) Quality of power | C32: =tblCategories!F27 -> 1 | D32: 25 | E32: =INDEX(iCountryP!$E$23:$E$118,iCompare!$A32) -> 0 | F32: =INDEX(iCountryP!$N$23:$N$118,iCompare!$A32) -> 4 | G32: =INDEX(iCountryP!$J$23:$J$118,iCompare!$A32) -> 33.3 | H32: =INDEX(iCountryP!$O$23:$O$118,iCompare!$A32) -> 3 | O32: 25 | P32: =IF($C32=0,"",RANK(O32,O$8:O$120,1)+COUNTIF(O$8:O32,O32)-1) -> 25 | Q32: 25 | R32: 76 | S32: 13 | T32: 25 | U32: =76 | V32: 2.4.1) Quality of power | W32: 0 | X32: 4 | Y32: 33.3 | Z32: 3 | AA32: =IF(Q32="","",INDEX(iCountryP!$F$23:$F$118,iCompare!Q32)) -> EIU Risk Briefing | AB32: =IF(Q32="","",IF(ISERROR(INDEX(iRank!$K$20:$R$107,iCompare!Q32,uxbWorks!$B$18)),"",INDEX(iRank!$K$20:$R$107,iCompare!Q32,uxbWorks!$B$18))) -> 7 | AC32: =IF(Q32="","",IF(ISERROR(INDEX(iRank!$K$20:$R$107,iCompare!Q32,uxbWorks!$B$19)),"",INDEX(iRank!$K$20:$R$107,iCompare!Q32,uxbWorks!$B$19))) -> 4 | AE32: =IF(Q32="","",INDEX(tblIndicators!$H$3:$H$98,iCompare!Q32)) -> Score (0 - 4), 4 = Highest Risk | AG32: * | AJ32: =IF(Q32="","",INDEX(tblIndicators!$R$3:$R$98,iCompare!Q32)) -> 0
A33: =tblCategories!A28 -> 26 | B33: =tblCategories!D28 -> 2.4.2) Access to electricity | C33: =tblCategories!F28 -> 1 | D33: 26 | E33: =INDEX(iCountryP!$E$23:$E$118,iCompare!$A33) -> 0 | F33: =INDEX(iCountryP!$N$23:$N$118,iCompare!$A33) -> 59.6 | G33: =INDEX(iCountryP!$J$23:$J$118,iCompare!$A33) -> 30.7 | H33: =INDEX(iCountryP!$O$23:$O$118,iCompare!$A33) -> 72 | O33: 26 | P33: =IF($C33=0,"",RANK(O33,O$8:O$120,1)+COUNTIF(O$8:O33,O33)-1) -> 26 | Q33: 26 | R33: 76 | S33: 13 | T33: 26 | U33: =76 | V33: 2.4.2) Access to electricity | W33: 0 | X33: 59.6 | Y33: 30.7 | Z33: 72 | AA33: =IF(Q33="","",INDEX(iCountryP!$F$23:$F$118,iCompare!Q33)) -> World Bank, 2011 | AB33: =IF(Q33="","",IF(ISERROR(INDEX(iRank!$K$20:$R$107,iCompare!Q33,uxbWorks!$B$18)),"",INDEX(iRank!$K$20:$R$107,iCompare!Q33,uxbWorks!$B$18))) -> 8 | AC33: =IF(Q33="","",IF(ISERROR(INDEX(iRank!$K$20:$R$107,iCompare!Q33,uxbWorks!$B$19)),"",INDEX(iRank!$K$20:$R$107,iCompare!Q33,uxbWorks!$B$19))) -> 6 | AE33: =IF(Q33="","",INDEX(tblIndicators!$H$3:$H$98,iCompare!Q33)) -> % | AG33: * | AJ33: =IF(Q33="","",INDEX(tblIndicators!$R$3:$R$98,iCompare!Q33)) -> 0.0
A34: =tblCategories!A29 -> 27 | B34: =tblCategories!D29 -> 2.5) Environmental performance | C34: =tblCategories!F29 -> 1 | D34: 27 | E34: =INDEX(iCountryP!$E$23:$E$118,iCompare!$A34) -> 15.8 | F34: =INDEX(iCountryP!$N$23:$N$118,iCompare!$A34) ->  | G34: =INDEX(iCountryP!$J$23:$J$118,iCompare!$A34) -> 39.5 | H34: =INDEX(iCountryP!$O$23:$O$118,iCompare!$A34) ->  | O34: 27 | P34: =IF($C34=0,"",RANK(O34,O$8:O$120,1)+COUNTIF(O$8:O34,O34)-1) -> 27 | Q34: 27 | R34: 64 | S34: 1 | T34: 27 | U34: 64 | V34: 2.5) Environmental performance | W34: 15.8 | Y34: 39.5 | AA34: =IF(Q34="","",INDEX(iCountryP!$F$23:$F$118,iCompare!Q34)) ->  | AB34: =IF(Q34="","",IF(ISERROR(INDEX(iRank!$K$20:$R$107,iCompare!Q34,uxbWorks!$B$18)),"",INDEX(iRank!$K$20:$R$107,iCompare!Q34,uxbWorks!$B$18))) -> 8 | AC34: =IF(Q34="","",IF(ISERROR(INDEX(iRank!$K$20:$R$107,iCompare!Q34,uxbWorks!$B$19)),"",INDEX(iRank!$K$20:$R$107,iCompare!Q34,uxbWorks!$B$19))) -> 4 | AE34: =IF(Q34="","",INDEX(tblIndicators!$H$3:$H$98,iCompare!Q34)) -> 0 - 100 where 100= best and 0=worst | AG34: * | AJ34: =IF(Q34="","",INDEX(tblIndicators!$R$3:$R$98,iCompare!Q34)) -> 0.0
A35: =tblCategories!A30 -> 28 | B35: =tblCategories!D30 -> 2.5.1) Treatment of wastewater | C35: =tblCategories!F30 -> 1 | D35: 28 | E35: =INDEX(iCountryP!$E$23:$E$118,iCompare!$A35) -> 0 | F35: =INDEX(iCountryP!$N$23:$N$118,iCompare!$A35) -> 0 | G35: =INDEX(iCountryP!$J$23:$J$118,iCompare!$A35) -> 0 | H35: =INDEX(iCountryP!$O$23:$O$118,iCompare!$A35) -> 0 | O35: 28 | P35: =IF($C35=0,"",RANK(O35,O$8:O$120,1)+COUNTIF(O$8:O35,O35)-1) -> 28 | Q35: 28 | R35: 76 | S35: 13 | T35: 28 | U35: =76 | V35: 2.5.1) Treatment of wastewater | W35: 0 | X35: 0 | Y35: 0 | Z35: 0 | AA35: =IF(Q35="","",INDEX(iCountryP!$F$23:$F$118,iCompare!Q35)) -> Environmental Performance Index, Yale University, 2012 | AB35: =IF(Q35="","",IF(ISERROR(INDEX(iRank!$K$20:$R$107,iCompare!Q35,uxbWorks!$B$18)),"",INDEX(iRank!$K$20:$R$107,iCompare!Q35,uxbWorks!$B$18))) -> 5 | AC35: =IF(Q35="","",IF(ISERROR(INDEX(iRank!$K$20:$R$107,iCompare!Q35,uxbWorks!$B$19)),"",INDEX(iRank!$K$20:$R$107,iCompare!Q35,uxbWorks!$B$19))) -> 5 | AE35: =IF(Q35="","",INDEX(tblIndicators!$H$3:$H$98,iCompare!Q35)) -> % | AJ35: =IF(Q35="","",INDEX(tblIndicators!$R$3:$R$98,iCompare!Q35)) -> 0.0
A36: =tblCategories!A31 -> 29 | B36: =tblCategories!D31 -> 2.5.2) Pesticide and fertiliser regulation | C36: =tblCategories!F31 -> 1 | D36: 29 | E36: =INDEX(iCountryP!$E$23:$E$118,iCompare!$A36) -> 91.3 | F36: =INDEX(iCountryP!$N$23:$N$118,iCompare!$A36) -> 21 | G36: =INDEX(iCountryP!$J$23:$J$118,iCompare!$A36) -> 0 | H36: =INDEX(iCountryP!$O$23:$O$118,iCompare!$A36) -> 0 | O36: 29 | P36: =IF($C36=0,"",RANK(O36,O$8:O$120,1)+COUNTIF(O$8:O36,O36)-1) -> 29 | Q36: 29 | R36: 6 | S36: 1 | T36: 29 | U36: 6 | V36: 2.5.2) Pesticide and fertiliser regulation | W36: 91.3 | X36: 21 | Y36: 0 | Z36: 0 | AA36: =IF(Q36="","",INDEX(iCountryP!$F$23:$F$118,iCompare!Q36)) -> Environmental Performance Index, Yale University, 2012 | AB36: =IF(Q36="","",IF(ISERROR(INDEX(iRank!$K$20:$R$107,iCompare!Q36,uxbWorks!$B$18)),"",INDEX(iRank!$K$20:$R$107,iCompare!Q36,uxbWorks!$B$18))) -> 3 | AC36: =IF(Q36="","",IF(ISERROR(INDEX(iRank!$K$20:$R$107,iCompare!Q36,uxbWorks!$B$19)),"",INDEX(iRank!$K$20:$R$107,iCompare!Q36,uxbWorks!$B$19))) -> 8 | AE36: =IF(Q36="","",INDEX(tblIndicators!$H$3:$H$98,iCompare!Q36)) -> Scoring (0-24), 24=Best | AF36: * | AJ36: =IF(Q36="","",INDEX(tblIndicators!$R$3:$R$98,iCompare!Q36)) -> 0.0
A37: =tblCategories!A32 -> 30 | B37: =tblCategories!D32 -> 2.5.3) Loss in forested area | C37: =tblCategories!F32 -> 1 | D37: 30 | E37: =INDEX(iCountryP!$E$23:$E$118,iCompare!$A37) -> 0 | F37: =INDEX(iCountryP!$N$23:$N$118,iCompare!$A37) -> -2.8 | G37: =INDEX(iCountryP!$J$23:$J$118,iCompare!$A37) -> 38.1 | H37: =INDEX(iCountryP!$O$23:$O$118,iCompare!$A37) -> -0.4 | O37: 30 | P37: =IF($C37=0,"",RANK(O37,O$8:O$120,1)+COUNTIF(O$8:O37,O37)-1) -> 30 | Q37: 30 | R37: 76 | S37: 13 | T37: 30 | U37: =76 | V37: 2.5.3) Loss in forested area | W37: 0 | X37: -2.8 | Y37: 38.1 | Z37: -0.4 | AA37: =IF(Q37="","",INDEX(iCountryP!$F$23:$F$118,iCompare!Q37)) -> Environmental Performance Index, Yale University, 2012 | AB37: =IF(Q37="","",IF(ISERROR(INDEX(iRank!$K$20:$R$107,iCompare!Q37,uxbWorks!$B$18)),"",INDEX(iRank!$K$20:$R$107,iCompare!Q37,uxbWorks!$B$18))) -> 8 | AC37: =IF(Q37="","",IF(ISERROR(INDEX(iRank!$K$20:$R$107,iCompare!Q37,uxbWorks!$B$19)),"",INDEX(iRank!$K$20:$R$107,iCompare!Q37,uxbWorks!$B$19))) -> 2 | AE37: =IF(Q37="","",INDEX(tblIndicators!$H$3:$H$98,iCompare!Q37)) -> % | AG37: * | AJ37: =IF(Q37="","",INDEX(tblIndicators!$R$3:$R$98,iCompare!Q37)) -> 0.0
A38: =tblCategories!A33 -> 31 | B38: =tblCategories!D33 -> 2.5.4) Protection of terrestrial and marine areas | C38: =tblCategories!F33 -> 1 | D38: 31 | E38: =INDEX(iCountryP!$E$23:$E$118,iCompare!$A38) -> 9.7 | F38: =INDEX(iCountryP!$N$23:$N$118,iCompare!$A38) -> 1.91 | G38: =INDEX(iCountryP!$J$23:$J$118,iCompare!$A38) -> 100 | H38: =INDEX(iCountryP!$O$23:$O$118,iCompare!$A38) -> 16.1 | O38: 31 | P38: =IF($C38=0,"",RANK(O38,O$8:O$120,1)+COUNTIF(O$8:O38,O38)-1) -> 31 | Q38: 31 | R38: 66 | S38: 1 | T38: 31 | U38: 66 | V38: 2.5.4) Protection of terrestrial and marine areas | W38: 9.7 | X38: 1.91 | Y38: 100 | Z38: 16.1 | AA38: =IF(Q38="","",INDEX(iCountryP!$F$23:$F$118,iCompare!Q38)) -> Environmental Performance Index, Yale University, 2012 | AB38: =IF(Q38="","",IF(ISERROR(INDEX(iRank!$K$20:$R$107,iCompare!Q38,uxbWorks!$B$18)),"",INDEX(iRank!$K$20:$R$107,iCompare!Q38,uxbWorks!$B$18))) -> 7 | AC38: =IF(Q38="","",IF(ISERROR(INDEX(iRank!$K$20:$R$107,iCompare!Q38,uxbWorks!$B$19)),"",INDEX(iRank!$K$20:$R$107,iCompare!Q38,uxbWorks!$B$19))) -> 1 | AE38: =IF(Q38="","",INDEX(tblIndicators!$H$3:$H$98,iCompare!Q38)) -> % | AG38: * | AJ38: =IF(Q38="","",INDEX(tblIndicators!$R$3:$R$98,iCompare!Q38)) -> 0.0
A39: =tblCategories!A34 -> 32 | B39: =tblCategories!D34 -> 2.6) Sanitation | C39: =tblCategories!F34 -> 1 | D39: 32 | E39: =INDEX(iCountryP!$E$23:$E$118,iCompare!$A39) -> 28.3 | F39: =INDEX(iCountryP!$N$23:$N$118,iCompare!$A39) ->  | G39: =INDEX(iCountryP!$J$23:$J$118,iCompare!$A39) -> 24.7 | H39: =INDEX(iCountryP!$O$23:$O$118,iCompare!$A39) ->  | O39: 32 | P39: =IF($C39=0,"",RANK(O39,O$8:O$120,1)+COUNTIF(O$8:O39,O39)-1) -> 32 | Q39: 32 | R39: 51 | S39: 1 | T39: 32 | U39: 51 | V39: 2.6) Sanitation | W39: 28.3 | Y39: 24.7 | AA39: =IF(Q39="","",INDEX(iCountryP!$F$23:$F$118,iCompare!Q39)) ->  | AB39: =IF(Q39="","",IF(ISERROR(INDEX(iRank!$K$20:$R$107,iCompare!Q39,uxbWorks!$B$18)),"",INDEX(iRank!$K$20:$R$107,iCompare!Q39,uxbWorks!$B$18))) -> 4 | AC39: =IF(Q39="","",IF(ISERROR(INDEX(iRank!$K$20:$R$107,iCompare!Q39,uxbWorks!$B$19)),"",INDEX(iRank!$K$20:$R$107,iCompare!Q39,uxbWorks!$B$19))) -> 5 | AE39: =IF(Q39="","",INDEX(tblIndicators!$H$3:$H$98,iCompare!Q39)) -> 0 - 100 where 100= best and 0=worst | AF39: * | AJ39: =IF(Q39="","",INDEX(tblIndicators!$R$3:$R$98,iCompare!Q39)) -> 0.0
A40: =tblCategories!A35 -> 33 | B40: =tblCategories!D35 -> 2.6.1) Access to sanitation | C40: =tblCategories!F35 -> 1 | D40: 33 | E40: =INDEX(iCountryP!$E$23:$E$118,iCompare!$A40) -> 32.8 | F40: =INDEX(iCountryP!$N$23:$N$118,iCompare!$A40) -> 57 | G40: =INDEX(iCountryP!$J$23:$J$118,iCompare!$A40) -> 17.2 | H40: =INDEX(iCountryP!$O$23:$O$118,iCompare!$A40) -> 47 | O40: =IF($C40=0,"",(INDEX($D$8:$H$120,$A40,O$6))) -> 33 | P40: =IF($C40=0,"",RANK(O40,O$8:O$120,1)+COUNTIF(O$8:O40,O40)-1) -> 33 | Q40: =IF(ISERROR(MATCH($A40,P$8:P$120,0)),"",MATCH($A40,P$8:P$120,0)) -> 33 | R40: =IF(Q40="","",RANK(W40,W$8:W$120,0)) -> 49 | S40: =IF(Q40="","",COUNTIF(W$8:W$120,W40)) -> 1 | T40: =IF(Q40="",0,INDEX($D$8:$D$120,Q40)) -> 33 | U40: 49 | V40: =IF($Q40="","",INDEX($B$8:$H$120,$Q40,V$6)) -> 2.6.1) Access to sanitation | W40: 32.8 | X40: 57 | Y40: 17.2 | Z40: =IF($Q40="","",INDEX($E$8:$M$120,$Q40,Z$6)) -> 47 | AA40: =IF(Q40="","",INDEX(iCountryP!$F$23:$F$118,iCompare!Q40)) -> World Bank, World Development Indicators, 2012 | AB40: =IF(Q40="","",IF(ISERROR(INDEX(iRank!$K$20:$R$107,iCompare!Q40,uxbWorks!$B$18)),"",INDEX(iRank!$K$20:$R$107,iCompare!Q40,uxbWorks!$B$18))) -> 4 | AC40: =IF(Q40="","",IF(ISERROR(INDEX(iRank!$K$20:$R$107,iCompare!Q40,uxbWorks!$B$19)),"",INDEX(iRank!$K$20:$R$107,iCompare!Q40,uxbWorks!$B$19))) -> 6 | AE40: =IF(Q40="","",INDEX(tblIndicators!$H$3:$H$98,iCompare!Q40)) -> % | AF40: * | AJ40: =IF(Q40="","",INDEX(tblIndicators!$R$3:$R$98,iCompare!Q40)) -> 0.0
A41: =tblCategories!A36 -> 34 | B41: =tblCategories!D36 -> 2.6.2) Waste water treatment (Urban) | C41: =tblCategories!F36 -> 1 | D41: 34 | E41: =INDEX(iCountryP!$E$23:$E$118,iCompare!$A41) -> 8.2 | F41: =INDEX(iCountryP!$N$23:$N$118,iCompare!$A41) -> 55 | G41: =INDEX(iCountryP!$J$23:$J$118,iCompare!$A41) -> 49 | H41: =INDEX(iCountryP!$O$23:$O$118,iCompare!$A41) -> 75 | O41: 34 | P41: =IF($C41=0,"",RANK(O41,O$8:O$120,1)+COUNTIF(O$8:O41,O41)-1) -> 34 | Q41: 34 | R41: 68 | S41: 1 | T41: 34 | U41: 68 | V41: 2.6.2) Waste water treatment (Urban) | W41: 8.2 | X41: 55 | Y41: =IF($Q41="","",INDEX($E$8:$M$120,$Q41,Y$6)) -> 49 | Z41: 75 | AA41: =IF(Q41="","",INDEX(iCountryP!$F$23:$F$118,iCompare!Q41)) -> World Bank, World Development Indicators, 2012 | AB41: =IF(Q41="","",IF(ISERROR(INDEX(iRank!$K$20:$R$107,iCompare!Q41,uxbWorks!$B$18)),"",INDEX(iRank!$K$20:$R$107,iCompare!Q41,uxbWorks!$B$18))) -> 7 | AC41: =IF(Q41="","",IF(ISERROR(INDEX(iRank!$K$20:$R$107,iCompare!Q41,uxbWorks!$B$19)),"",INDEX(iRank!$K$20:$R$107,iCompare!Q41,uxbWorks!$B$19))) -> 4 | AE41: =IF(Q41="","",INDEX(tblIndicators!$H$3:$H$98,iCompare!Q41)) -> % | AG41: * | AJ41: =IF(Q41="","",INDEX(tblIndicators!$R$3:$R$98,iCompare!Q41)) -> 0.0
A42: =tblCategories!A37 -> 35 | B42: =tblCategories!D37 -> 2.6.3) Waste water treatment (Rural) | C42: =tblCategories!F37 -> 1 | D42: 35 | E42: =INDEX(iCountryP!$E$23:$E$118,iCompare!$A42) -> 44 | F42: =INDEX(iCountryP!$N$23:$N$118,iCompare!$A42) -> 58 | G42: =INDEX(iCountryP!$J$23:$J$118,iCompare!$A42) -> 8 | H42: =INDEX(iCountryP!$O$23:$O$118,iCompare!$A42) -> 31 | O42: 35 | P42: =IF($C42=0,"",RANK(O42,O$8:O$120,1)+COUNTIF(O$8:O42,O42)-1) -> 35 | Q42: 35 | R42: 34 | S42: 1 | T42: 35 | U42: 34 | V42: 2.6.3) Waste water treatment (Rural) | W42: 44 | X42: 58 | Y42: 8 | Z42: 31 | AA42: =IF(Q42="","",INDEX(iCountryP!$F$23:$F$118,iCompare!Q42)) -> World Bank, World Development Indicators, 2012 | AB42: =IF(Q42="","",IF(ISERROR(INDEX(iRank!$K$20:$R$107,iCompare!Q42,uxbWorks!$B$18)),"",INDEX(iRank!$K$20:$R$107,iCompare!Q42,uxbWorks!$B$18))) -> 4 | AC42: =IF(Q42="","",IF(ISERROR(INDEX(iRank!$K$20:$R$107,iCompare!Q42,uxbWorks!$B$19)),"",INDEX(iRank!$K$20:$R$107,iCompare!Q42,uxbWorks!$B$19))) -> 7 | AE42: =IF(Q42="","",INDEX(tblIndicators!$H$3:$H$98,iCompare!Q42)) -> % | AF42: * | AJ42: =IF(Q42="","",INDEX(tblIndicators!$R$3:$R$98,iCompare!Q42)) -> 0.0
